Workbook

Sheet TASAS
B1: Tasas • Registro de activos fijos y depreciación
B2: MOS Expert CPC Martín Cruz • +51 998 401 784 | Excel No Convencional
C5: CUENTA | D5: NOMBRE | E5: TASA
C6: 335111 | D6: MUEBLES | E6: 10%
C7: 335211 | D7: ENSERES | E7: 10%
C8: 336111 | D8: EQUIPO COMPUTO | E8: 25%
C9: 336211 | D9: EQUIPO DE COMUNICACION | E9: 10%
C10: 336311 | D10: EQUIPOS DE SEGURIDAD | E10: 10%
C11: 336911 | D11: OTROS EQUIPOS | E11: 10%
C12: 341211 | D12: LICENCIAS DE PROGRAMAS | E12: 25%
C13: 349111 | D13: OTROS ACTIVOS INTANGIBLES | E13: 10%

Sheet F 7.1 Det bs AF
B1: Hoja de trabajo • Registro de activos fijos y depreciación
B2: MOS Expert CPC Martín Cruz • +51 998 401 784 | Excel No Convencional
C6: FORMATO 7.1: "REGISTRO DE ACTIVOS FIJOS - DETALLE DE LOS ACTIVOS FIJOS"
C8: PERÍODO: | D8: =SELECCION -> 2020-05-31
C9: RUC:
C10: APELLIDOS Y NOMBRES, DENOMINACIÓN O RAZÓN SOCIAL:
C12: CÓDIGO | D12: CUENTA | E12: DETALLE DEL ACTIVO FIJO | N12: VALOR | P12: VALOR | R12: FECHA DE INICIO | S12: DEPRECIACIÓN | V12: DEPRECIACIÓN | AJ12: DEPRECIACIÓN | AK12: DEPRECIACIÓN | AL12: DEPRECIACIÓN | AM12: AJUSTE POR | AN12: DEPRECIACIÓN
C13: RELACIONADO | D13: CONTABLE | F13: MARCA | G13: MODELO | H13: NÚMERO DE SERIE | I13: SALDO | J13: ADQUISICIONES | K13: MEJORAS | L13: RETIROS | M13: OTROS | N13: HISTÓRICO | O13: AJUSTE POR | P13: AJUSTADO | Q13: FECHA DE | R13: DEL USO | S13: MÉTODO | T13: N° DE DOCUMENTO | U13: PORCENTAJE | V13: ACUMULADA AL | AI13: DEPRECIACIÓN | AJ13: DEL EJERCICIO | AK13: RELACIONADA | AL13: ACUMULADA | AM13: INFLACIÓN | AN13: ACUMULADA
C14: CON EL | D14: DEL | E14: DESCRIPCIÓN | F14: DEL | G14: DEL | H14: Y/O PLACA DEL | I14: INICIAL | J14: ADICIONES | L14: Y/O | M14: AJUSTES | N14: DEL ACTIVO FIJO | O14: INFLACIÓN | P14: DEL ACTIVO FIJO | Q14: ADQUISICIÓN | R14: DEL ACTIVO FIJO | S14: APLICADO | T14: DE | U14: DE | V14: AL CIERRE DEL | AI14: DEL EJERCICIO | AJ14: RELACIONADA CON LOS | AK14: CON OTROS | AL14: HISTÓRICA | AM14: DE LA | AN14: AJUSTADA POR
C15: ACTIVO FIJO | D15: ACTIVO FIJO | F15: ACTIVO FIJO | G15: ACTIVO FIJO | H15: ACTIVO FIJO | L15: BAJAS | N15: AL 31.12 | P15: AL 31.12 | T15: AUTORIZACIÓN | U15: DEPRECIACIÓN | V15: EJERCICIO ANTERIOR | AJ15: RETIROS Y/O BAJAS | AK15: AJUSTES | AM15: DEPRECIACIÓN | AN15: INFLACIÓN
C16: Columna1 | D16: Columna2 | E16: Columna3 | F16: Columna4 | G16: Columna5 | H16: Columna6 | I16: Columna7 | J16: Columna8 | K16: Columna9 | L16: Columna10 | M16: Columna11 | N16: Columna12 | O16: Columna13 | P16: Columna14 | Q16: Columna15 | R16: Columna16 | S16: Columna17 | T16: Columna18 | U16: Columna19 | V16: Columna20 | W16: 31/01/2020 | X16: 29/02/2020 | Y16: 31/03/2020 | Z16: 30/04/2020 | AA16: 31/05/2020 | AB16: 30/06/2020 | AC16: 31/07/2020 | AD16: 31/08/2020 | AE16: 30/09/2020 | AF16: 31/10/2020 | AG16: 30/11/2020 | AH16: 31/12/2020 | AI16: Columna21 | AJ16: Columna22 | AK16: Columna23 | AL16: Columna24 | AM16: Columna25 | AN16: Columna26
C17: 1 | D17: 335111 | E17: ARCHIVADOR DE MADERA NEGRO C/4 GAVETAS | I17: 168.55 | N17: 168.55 | P17: 168.55 | Q17: 2000-01-26 | R17: 2000-02-01 | U17: 10% | V17: 168.55 | W17: =IF(AND(W$16*1>=$R17,W$16*1<=$D$8,$R17<$D$8,$P17>SUM($V17:V17)),IF(SUM($P17*$U17/12,$V17:V17)>$P17,$P17-SUM($V17:V17),$P17*$U17/12),0) -> 0.00 | X17: =IF(AND(X$16*1>=$R17,X$16*1<=$D$8,$R17<$D$8,$P17>SUM($V17:W17)),IF(SUM($P17*$U17/12,$V17:W17)>$P17,$P17-SUM($V17:W17),$P17*$U17/12),0) -> 0.00 | Y17: =IF(AND(Y$16*1>=$R17,Y$16*1<=$D$8,$R17<$D$8,$P17>SUM($V17:X17)),IF(SUM($P17*$U17/12,$V17:X17)>$P17,$P17-SUM($V17:X17),$P17*$U17/12),0) -> 0.00 | Z17: =IF(AND(Z$16*1>=$R17,Z$16*1<=$D$8,$R17<$D$8,$P17>SUM($V17:Y17)),IF(SUM($P17*$U17/12,$V17:Y17)>$P17,$P17-SUM($V17:Y17),$P17*$U17/12),0) -> 0.00 | AA17: =IF(AND(AA$16*1>=$R17,AA$16*1<=$D$8,$R17<$D$8,$P17>SUM($V17:Z17)),IF(SUM($P17*$U17/12,$V17:Z17)>$P17,$P17-SUM($V17:Z17),$P17*$U17/12),0) -> 0.00 | AB17: =IF(AND(AB$16*1>=$R17,AB$16*1<=$D$8,$R17<$D$8,$P17>SUM($V17:AA17)),IF(SUM($P17*$U17/12,$V17:AA17)>$P17,$P17-SUM($V17:AA17),$P17*$U17/12),0) -> 0.00 | AC17: =IF(AND(AC$16*1>=$R17,AC$16*1<=$D$8,$R17<$D$8,$P17>SUM($V17:AB17)),IF(SUM($P17*$U17/12,$V17:AB17)>$P17,$P17-SUM($V17:AB17),$P17*$U17/12),0) -> 0.00 | AD17: =IF(AND(AD$16*1>=$R17,AD$16*1<=$D$8,$R17<$D$8,$P17>SUM($V17:AC17)),IF(SUM($P17*$U17/12,$V17:AC17)>$P17,$P17-SUM($V17:AC17),$P17*$U17/12),0) -> 0.00 | AE17: =IF(AND(AE$16*1>=$R17,AE$16*1<=$D$8,$R17<$D$8,$P17>SUM($V17:AD17)),IF(SUM($P17*$U17/12,$V17:AD17)>$P17,$P17-SUM($V17:AD17),$P17*$U17/12),0) -> 0.00 | AF17: =IF(AND(AF$16*1>=$R17,AF$16*1<=$D$8,$R17<$D$8,$P17>SUM($V17:AE17)),IF(SUM($P17*$U17/12,$V17:AE17)>$P17,$P17-SUM($V17:AE17),$P17*$U17/12),0) -> 0.00 | AG17: =IF(AND(AG$16*1>=$R17,AG$16*1<=$D$8,$R17<$D$8,$P17>SUM($V17:AF17)),IF(SUM($P17*$U17/12,$V17:AF17)>$P17,$P17-SUM($V17:AF17),$P17*$U17/12),0) -> 0.00 | AH17: =IF(AND(AH$16*1>=$R17,AH$16*1<=$D$8,$R17<$D$8,$P17>SUM($V17:AG17)),IF(SUM($P17*$U17/12,$V17:AG17)>$P17,$P17-SUM($V17:AG17),$P17*$U17/12),0) -> 0.00 | AI17: =SUM(W17:AH17) -> 0.00 | AL17: 168.55 | AN17: 168.55
C18: 2 | D18: 335111 | E18: MODULO DE COMPUTO EN "L" NEGRO | I18: 257.12 | N18: 257.12 | P18: 257.12 | Q18: 2000-01-26 | R18: 2000-02-01 | U18: 10% | V18: 257.12 | W18: =IF(AND(W$16*1>=$R18,W$16*1<=$D$8,$R18<$D$8,$P18>SUM($V18:V18)),IF(SUM($P18*$U18/12,$V18:V18)>$P18,$P18-SUM($V18:V18),$P18*$U18/12),0) -> 0.00 | X18: =IF(AND(X$16*1>=$R18,X$16*1<=$D$8,$R18<$D$8,$P18>SUM($V18:W18)),IF(SUM($P18*$U18/12,$V18:W18)>$P18,$P18-SUM($V18:W18),$P18*$U18/12),0) -> 0.00 | Y18: =IF(AND(Y$16*1>=$R18,Y$16*1<=$D$8,$R18<$D$8,$P18>SUM($V18:X18)),IF(SUM($P18*$U18/12,$V18:X18)>$P18,$P18-SUM($V18:X18),$P18*$U18/12),0) -> 0.00 | Z18: =IF(AND(Z$16*1>=$R18,Z$16*1<=$D$8,$R18<$D$8,$P18>SUM($V18:Y18)),IF(SUM($P18*$U18/12,$V18:Y18)>$P18,$P18-SUM($V18:Y18),$P18*$U18/12),0) -> 0.00 | AA18: =IF(AND(AA$16*1>=$R18,AA$16*1<=$D$8,$R18<$D$8,$P18>SUM($V18:Z18)),IF(SUM($P18*$U18/12,$V18:Z18)>$P18,$P18-SUM($V18:Z18),$P18*$U18/12),0) -> 0.00 | AB18: =IF(AND(AB$16*1>=$R18,AB$16*1<=$D$8,$R18<$D$8,$P18>SUM($V18:AA18)),IF(SUM($P18*$U18/12,$V18:AA18)>$P18,$P18-SUM($V18:AA18),$P18*$U18/12),0) -> 0.00 | AC18: =IF(AND(AC$16*1>=$R18,AC$16*1<=$D$8,$R18<$D$8,$P18>SUM($V18:AB18)),IF(SUM($P18*$U18/12,$V18:AB18)>$P18,$P18-SUM($V18:AB18),$P18*$U18/12),0) -> 0.00 | AD18: =IF(AND(AD$16*1>=$R18,AD$16*1<=$D$8,$R18<$D$8,$P18>SUM($V18:AC18)),IF(SUM($P18*$U18/12,$V18:AC18)>$P18,$P18-SUM($V18:AC18),$P18*$U18/12),0) -> 0.00 | AE18: =IF(AND(AE$16*1>=$R18,AE$16*1<=$D$8,$R18<$D$8,$P18>SUM($V18:AD18)),IF(SUM($P18*$U18/12,$V18:AD18)>$P18,$P18-SUM($V18:AD18),$P18*$U18/12),0) -> 0.00 | AF18: =IF(AND(AF$16*1>=$R18,AF$16*1<=$D$8,$R18<$D$8,$P18>SUM($V18:AE18)),IF(SUM($P18*$U18/12,$V18:AE18)>$P18,$P18-SUM($V18:AE18),$P18*$U18/12),0) -> 0.00 | AG18: =IF(AND(AG$16*1>=$R18,AG$16*1<=$D$8,$R18<$D$8,$P18>SUM($V18:AF18)),IF(SUM($P18*$U18/12,$V18:AF18)>$P18,$P18-SUM($V18:AF18),$P18*$U18/12),0) -> 0.00 | AH18: =IF(AND(AH$16*1>=$R18,AH$16*1<=$D$8,$R18<$D$8,$P18>SUM($V18:AG18)),IF(SUM($P18*$U18/12,$V18:AG18)>$P18,$P18-SUM($V18:AG18),$P18*$U18/12),0) -> 0.00 | AI18: 0.00 | AL18: 257.12 | AN18: 257.12
C19: 3 | D19: 335111 | E19: ESTANTE DE 2 MTS. | I19: 282.99 | N19: 282.99 | P19: 282.99 | Q19: 2000-05-06 | R19: 2000-06-01 | U19: 10% | V19: 282.99 | W19: =IF(AND(W$16*1>=$R19,W$16*1<=$D$8,$R19<$D$8,$P19>SUM($V19:V19)),IF(SUM($P19*$U19/12,$V19:V19)>$P19,$P19-SUM($V19:V19),$P19*$U19/12),0) -> 0.00 | X19: =IF(AND(X$16*1>=$R19,X$16*1<=$D$8,$R19<$D$8,$P19>SUM($V19:W19)),IF(SUM($P19*$U19/12,$V19:W19)>$P19,$P19-SUM($V19:W19),$P19*$U19/12),0) -> 0.00 | Y19: =IF(AND(Y$16*1>=$R19,Y$16*1<=$D$8,$R19<$D$8,$P19>SUM($V19:X19)),IF(SUM($P19*$U19/12,$V19:X19)>$P19,$P19-SUM($V19:X19),$P19*$U19/12),0) -> 0.00 | Z19: =IF(AND(Z$16*1>=$R19,Z$16*1<=$D$8,$R19<$D$8,$P19>SUM($V19:Y19)),IF(SUM($P19*$U19/12,$V19:Y19)>$P19,$P19-SUM($V19:Y19),$P19*$U19/12),0) -> 0.00 | AA19: =IF(AND(AA$16*1>=$R19,AA$16*1<=$D$8,$R19<$D$8,$P19>SUM($V19:Z19)),IF(SUM($P19*$U19/12,$V19:Z19)>$P19,$P19-SUM($V19:Z19),$P19*$U19/12),0) -> 0.00 | AB19: =IF(AND(AB$16*1>=$R19,AB$16*1<=$D$8,$R19<$D$8,$P19>SUM($V19:AA19)),IF(SUM($P19*$U19/12,$V19:AA19)>$P19,$P19-SUM($V19:AA19),$P19*$U19/12),0) -> 0.00 | AC19: =IF(AND(AC$16*1>=$R19,AC$16*1<=$D$8,$R19<$D$8,$P19>SUM($V19:AB19)),IF(SUM($P19*$U19/12,$V19:AB19)>$P19,$P19-SUM($V19:AB19),$P19*$U19/12),0) -> 0.00 | AD19: =IF(AND(AD$16*1>=$R19,AD$16*1<=$D$8,$R19<$D$8,$P19>SUM($V19:AC19)),IF(SUM($P19*$U19/12,$V19:AC19)>$P19,$P19-SUM($V19:AC19),$P19*$U19/12),0) -> 0.00 | AE19: =IF(AND(AE$16*1>=$R19,AE$16*1<=$D$8,$R19<$D$8,$P19>SUM($V19:AD19)),IF(SUM($P19*$U19/12,$V19:AD19)>$P19,$P19-SUM($V19:AD19),$P19*$U19/12),0) -> 0.00 | AF19: =IF(AND(AF$16*1>=$R19,AF$16*1<=$D$8,$R19<$D$8,$P19>SUM($V19:AE19)),IF(SUM($P19*$U19/12,$V19:AE19)>$P19,$P19-SUM($V19:AE19),$P19*$U19/12),0) -> 0.00 | AG19: =IF(AND(AG$16*1>=$R19,AG$16*1<=$D$8,$R19<$D$8,$P19>SUM($V19:AF19)),IF(SUM($P19*$U19/12,$V19:AF19)>$P19,$P19-SUM($V19:AF19),$P19*$U19/12),0) -> 0.00 | AH19: =IF(AND(AH$16*1>=$R19,AH$16*1<=$D$8,$R19<$D$8,$P19>SUM($V19:AG19)),IF(SUM($P19*$U19/12,$V19:AG19)>$P19,$P19-SUM($V19:AG19),$P19*$U19/12),0) -> 0.00 | AI19: 0.00 | AL19: 282.99 | AN19: 282.99
C20: 4 | D20: 335111 | E20: MUEBLE NEGRO PARA COMPUTADORA | I20: 799.22 | N20: 799.22 | P20: 799.22 | Q20: 2000-07-22 | R20: 2000-08-01 | U20: 10% | V20: 799.22 | W20: =IF(AND(W$16*1>=$R20,W$16*1<=$D$8,$R20<$D$8,$P20>SUM($V20:V20)),IF(SUM($P20*$U20/12,$V20:V20)>$P20,$P20-SUM($V20:V20),$P20*$U20/12),0) -> 0.00 | X20: =IF(AND(X$16*1>=$R20,X$16*1<=$D$8,$R20<$D$8,$P20>SUM($V20:W20)),IF(SUM($P20*$U20/12,$V20:W20)>$P20,$P20-SUM($V20:W20),$P20*$U20/12),0) -> 0.00 | Y20: =IF(AND(Y$16*1>=$R20,Y$16*1<=$D$8,$R20<$D$8,$P20>SUM($V20:X20)),IF(SUM($P20*$U20/12,$V20:X20)>$P20,$P20-SUM($V20:X20),$P20*$U20/12),0) -> 0.00 | Z20: =IF(AND(Z$16*1>=$R20,Z$16*1<=$D$8,$R20<$D$8,$P20>SUM($V20:Y20)),IF(SUM($P20*$U20/12,$V20:Y20)>$P20,$P20-SUM($V20:Y20),$P20*$U20/12),0) -> 0.00 | AA20: =IF(AND(AA$16*1>=$R20,AA$16*1<=$D$8,$R20<$D$8,$P20>SUM($V20:Z20)),IF(SUM($P20*$U20/12,$V20:Z20)>$P20,$P20-SUM($V20:Z20),$P20*$U20/12),0) -> 0.00 | AB20: =IF(AND(AB$16*1>=$R20,AB$16*1<=$D$8,$R20<$D$8,$P20>SUM($V20:AA20)),IF(SUM($P20*$U20/12,$V20:AA20)>$P20,$P20-SUM($V20:AA20),$P20*$U20/12),0) -> 0.00 | AC20: =IF(AND(AC$16*1>=$R20,AC$16*1<=$D$8,$R20<$D$8,$P20>SUM($V20:AB20)),IF(SUM($P20*$U20/12,$V20:AB20)>$P20,$P20-SUM($V20:AB20),$P20*$U20/12),0) -> 0.00 | AD20: =IF(AND(AD$16*1>=$R20,AD$16*1<=$D$8,$R20<$D$8,$P20>SUM($V20:AC20)),IF(SUM($P20*$U20/12,$V20:AC20)>$P20,$P20-SUM($V20:AC20),$P20*$U20/12),0) -> 0.00 | AE20: =IF(AND(AE$16*1>=$R20,AE$16*1<=$D$8,$R20<$D$8,$P20>SUM($V20:AD20)),IF(SUM($P20*$U20/12,$V20:AD20)>$P20,$P20-SUM($V20:AD20),$P20*$U20/12),0) -> 0.00 | AF20: =IF(AND(AF$16*1>=$R20,AF$16*1<=$D$8,$R20<$D$8,$P20>SUM($V20:AE20)),IF(SUM($P20*$U20/12,$V20:AE20)>$P20,$P20-SUM($V20:AE20),$P20*$U20/12),0) -> 0.00 | AG20: =IF(AND(AG$16*1>=$R20,AG$16*1<=$D$8,$R20<$D$8,$P20>SUM($V20:AF20)),IF(SUM($P20*$U20/12,$V20:AF20)>$P20,$P20-SUM($V20:AF20),$P20*$U20/12),0) -> 0.00 | AH20: =IF(AND(AH$16*1>=$R20,AH$16*1<=$D$8,$R20<$D$8,$P20>SUM($V20:AG20)),IF(SUM($P20*$U20/12,$V20:AG20)>$P20,$P20-SUM($V20:AG20),$P20*$U20/12),0) -> 0.00 | AI20: 0.00 | AL20: 799.22 | AN20: 799.22
C21: 5 | D21: 335111 | E21: ARCHIVADOR NEGRO C/4 GAVETAS | I21: 356.79 | N21: 356.79 | P21: 356.79 | Q21: 2000-09-28 | R21: 2000-10-01 | U21: 10% | V21: 356.79 | W21: =IF(AND(W$16*1>=$R21,W$16*1<=$D$8,$R21<$D$8,$P21>SUM($V21:V21)),IF(SUM($P21*$U21/12,$V21:V21)>$P21,$P21-SUM($V21:V21),$P21*$U21/12),0) -> 0.00 | X21: =IF(AND(X$16*1>=$R21,X$16*1<=$D$8,$R21<$D$8,$P21>SUM($V21:W21)),IF(SUM($P21*$U21/12,$V21:W21)>$P21,$P21-SUM($V21:W21),$P21*$U21/12),0) -> 0.00 | Y21: =IF(AND(Y$16*1>=$R21,Y$16*1<=$D$8,$R21<$D$8,$P21>SUM($V21:X21)),IF(SUM($P21*$U21/12,$V21:X21)>$P21,$P21-SUM($V21:X21),$P21*$U21/12),0) -> 0.00 | Z21: =IF(AND(Z$16*1>=$R21,Z$16*1<=$D$8,$R21<$D$8,$P21>SUM($V21:Y21)),IF(SUM($P21*$U21/12,$V21:Y21)>$P21,$P21-SUM($V21:Y21),$P21*$U21/12),0) -> 0.00 | AA21: =IF(AND(AA$16*1>=$R21,AA$16*1<=$D$8,$R21<$D$8,$P21>SUM($V21:Z21)),IF(SUM($P21*$U21/12,$V21:Z21)>$P21,$P21-SUM($V21:Z21),$P21*$U21/12),0) -> 0.00 | AB21: =IF(AND(AB$16*1>=$R21,AB$16*1<=$D$8,$R21<$D$8,$P21>SUM($V21:AA21)),IF(SUM($P21*$U21/12,$V21:AA21)>$P21,$P21-SUM($V21:AA21),$P21*$U21/12),0) -> 0.00 | AC21: =IF(AND(AC$16*1>=$R21,AC$16*1<=$D$8,$R21<$D$8,$P21>SUM($V21:AB21)),IF(SUM($P21*$U21/12,$V21:AB21)>$P21,$P21-SUM($V21:AB21),$P21*$U21/12),0) -> 0.00 | AD21: =IF(AND(AD$16*1>=$R21,AD$16*1<=$D$8,$R21<$D$8,$P21>SUM($V21:AC21)),IF(SUM($P21*$U21/12,$V21:AC21)>$P21,$P21-SUM($V21:AC21),$P21*$U21/12),0) -> 0.00 | AE21: =IF(AND(AE$16*1>=$R21,AE$16*1<=$D$8,$R21<$D$8,$P21>SUM($V21:AD21)),IF(SUM($P21*$U21/12,$V21:AD21)>$P21,$P21-SUM($V21:AD21),$P21*$U21/12),0) -> 0.00 | AF21: =IF(AND(AF$16*1>=$R21,AF$16*1<=$D$8,$R21<$D$8,$P21>SUM($V21:AE21)),IF(SUM($P21*$U21/12,$V21:AE21)>$P21,$P21-SUM($V21:AE21),$P21*$U21/12),0) -> 0.00 | AG21: =IF(AND(AG$16*1>=$R21,AG$16*1<=$D$8,$R21<$D$8,$P21>SUM($V21:AF21)),IF(SUM($P21*$U21/12,$V21:AF21)>$P21,$P21-SUM($V21:AF21),$P21*$U21/12),0) -> 0.00 | AH21: =IF(AND(AH$16*1>=$R21,AH$16*1<=$D$8,$R21<$D$8,$P21>SUM($V21:AG21)),IF(SUM($P21*$U21/12,$V21:AG21)>$P21,$P21-SUM($V21:AG21),$P21*$U21/12),0) -> 0.00 | AI21: 0.00 | AL21: 356.79 | AN21: 356.79
C22: 6 | D22: 335111 | E22: ARCHIVADOR DE 4 GAVETAS NEGRO | I22: 306.9 | N22: 306.9 | P22: 306.90 | Q22: 2002-04-27 | R22: 2002-05-01 | U22: 10% | V22: 306.90 | W22: =IF(AND(W$16*1>=$R22,W$16*1<=$D$8,$R22<$D$8,$P22>SUM($V22:V22)),IF(SUM($P22*$U22/12,$V22:V22)>$P22,$P22-SUM($V22:V22),$P22*$U22/12),0) -> 0.00 | X22: =IF(AND(X$16*1>=$R22,X$16*1<=$D$8,$R22<$D$8,$P22>SUM($V22:W22)),IF(SUM($P22*$U22/12,$V22:W22)>$P22,$P22-SUM($V22:W22),$P22*$U22/12),0) -> 0.00 | Y22: =IF(AND(Y$16*1>=$R22,Y$16*1<=$D$8,$R22<$D$8,$P22>SUM($V22:X22)),IF(SUM($P22*$U22/12,$V22:X22)>$P22,$P22-SUM($V22:X22),$P22*$U22/12),0) -> 0.00 | Z22: =IF(AND(Z$16*1>=$R22,Z$16*1<=$D$8,$R22<$D$8,$P22>SUM($V22:Y22)),IF(SUM($P22*$U22/12,$V22:Y22)>$P22,$P22-SUM($V22:Y22),$P22*$U22/12),0) -> 0.00 | AA22: =IF(AND(AA$16*1>=$R22,AA$16*1<=$D$8,$R22<$D$8,$P22>SUM($V22:Z22)),IF(SUM($P22*$U22/12,$V22:Z22)>$P22,$P22-SUM($V22:Z22),$P22*$U22/12),0) -> 0.00 | AB22: =IF(AND(AB$16*1>=$R22,AB$16*1<=$D$8,$R22<$D$8,$P22>SUM($V22:AA22)),IF(SUM($P22*$U22/12,$V22:AA22)>$P22,$P22-SUM($V22:AA22),$P22*$U22/12),0) -> 0.00 | AC22: =IF(AND(AC$16*1>=$R22,AC$16*1<=$D$8,$R22<$D$8,$P22>SUM($V22:AB22)),IF(SUM($P22*$U22/12,$V22:AB22)>$P22,$P22-SUM($V22:AB22),$P22*$U22/12),0) -> 0.00 | AD22: =IF(AND(AD$16*1>=$R22,AD$16*1<=$D$8,$R22<$D$8,$P22>SUM($V22:AC22)),IF(SUM($P22*$U22/12,$V22:AC22)>$P22,$P22-SUM($V22:AC22),$P22*$U22/12),0) -> 0.00 | AE22: =IF(AND(AE$16*1>=$R22,AE$16*1<=$D$8,$R22<$D$8,$P22>SUM($V22:AD22)),IF(SUM($P22*$U22/12,$V22:AD22)>$P22,$P22-SUM($V22:AD22),$P22*$U22/12),0) -> 0.00 | AF22: =IF(AND(AF$16*1>=$R22,AF$16*1<=$D$8,$R22<$D$8,$P22>SUM($V22:AE22)),IF(SUM($P22*$U22/12,$V22:AE22)>$P22,$P22-SUM($V22:AE22),$P22*$U22/12),0) -> 0.00 | AG22: =IF(AND(AG$16*1>=$R22,AG$16*1<=$D$8,$R22<$D$8,$P22>SUM($V22:AF22)),IF(SUM($P22*$U22/12,$V22:AF22)>$P22,$P22-SUM($V22:AF22),$P22*$U22/12),0) -> 0.00 | AH22: =IF(AND(AH$16*1>=$R22,AH$16*1<=$D$8,$R22<$D$8,$P22>SUM($V22:AG22)),IF(SUM($P22*$U22/12,$V22:AG22)>$P22,$P22-SUM($V22:AG22),$P22*$U22/12),0) -> 0.00 | AI22: 0.00 | AL22: 306.90 | AN22: 306.90
C23: 7 | D23: 335111 | E23: ARCHIVADOR DE 4 GAVETAS NEGRO | I23: 301.59 | N23: 301.59 | P23: 301.59 | Q23: 2002-06-10 | R23: 2002-07-01 | U23: 10% | V23: 301.59 | W23: =IF(AND(W$16*1>=$R23,W$16*1<=$D$8,$R23<$D$8,$P23>SUM($V23:V23)),IF(SUM($P23*$U23/12,$V23:V23)>$P23,$P23-SUM($V23:V23),$P23*$U23/12),0) -> 0.00 | X23: =IF(AND(X$16*1>=$R23,X$16*1<=$D$8,$R23<$D$8,$P23>SUM($V23:W23)),IF(SUM($P23*$U23/12,$V23:W23)>$P23,$P23-SUM($V23:W23),$P23*$U23/12),0) -> 0.00 | Y23: =IF(AND(Y$16*1>=$R23,Y$16*1<=$D$8,$R23<$D$8,$P23>SUM($V23:X23)),IF(SUM($P23*$U23/12,$V23:X23)>$P23,$P23-SUM($V23:X23),$P23*$U23/12),0) -> 0.00 | Z23: =IF(AND(Z$16*1>=$R23,Z$16*1<=$D$8,$R23<$D$8,$P23>SUM($V23:Y23)),IF(SUM($P23*$U23/12,$V23:Y23)>$P23,$P23-SUM($V23:Y23),$P23*$U23/12),0) -> 0.00 | AA23: =IF(AND(AA$16*1>=$R23,AA$16*1<=$D$8,$R23<$D$8,$P23>SUM($V23:Z23)),IF(SUM($P23*$U23/12,$V23:Z23)>$P23,$P23-SUM($V23:Z23),$P23*$U23/12),0) -> 0.00 | AB23: =IF(AND(AB$16*1>=$R23,AB$16*1<=$D$8,$R23<$D$8,$P23>SUM($V23:AA23)),IF(SUM($P23*$U23/12,$V23:AA23)>$P23,$P23-SUM($V23:AA23),$P23*$U23/12),0) -> 0.00 | AC23: =IF(AND(AC$16*1>=$R23,AC$16*1<=$D$8,$R23<$D$8,$P23>SUM($V23:AB23)),IF(SUM($P23*$U23/12,$V23:AB23)>$P23,$P23-SUM($V23:AB23),$P23*$U23/12),0) -> 0.00 | AD23: =IF(AND(AD$16*1>=$R23,AD$16*1<=$D$8,$R23<$D$8,$P23>SUM($V23:AC23)),IF(SUM($P23*$U23/12,$V23:AC23)>$P23,$P23-SUM($V23:AC23),$P23*$U23/12),0) -> 0.00 | AE23: =IF(AND(AE$16*1>=$R23,AE$16*1<=$D$8,$R23<$D$8,$P23>SUM($V23:AD23)),IF(SUM($P23*$U23/12,$V23:AD23)>$P23,$P23-SUM($V23:AD23),$P23*$U23/12),0) -> 0.00 | AF23: =IF(AND(AF$16*1>=$R23,AF$16*1<=$D$8,$R23<$D$8,$P23>SUM($V23:AE23)),IF(SUM($P23*$U23/12,$V23:AE23)>$P23,$P23-SUM($V23:AE23),$P23*$U23/12),0) -> 0.00 | AG23: =IF(AND(AG$16*1>=$R23,AG$16*1<=$D$8,$R23<$D$8,$P23>SUM($V23:AF23)),IF(SUM($P23*$U23/12,$V23:AF23)>$P23,$P23-SUM($V23:AF23),$P23*$U23/12),0) -> 0.00 | AH23: =IF(AND(AH$16*1>=$R23,AH$16*1<=$D$8,$R23<$D$8,$P23>SUM($V23:AG23)),IF(SUM($P23*$U23/12,$V23:AG23)>$P23,$P23-SUM($V23:AG23),$P23*$U23/12),0) -> 0.00 | AI23: 0.00 | AL23: 301.59 | AN23: 301.59
C24: 8 | D24: 335111 | E24: ARCHIVADOR DE 4 GAVETAS NEGRO | I24: 299.22 | N24: 299.22 | P24: 299.22 | Q24: 2002-09-01 | R24: 2002-10-01 | U24: 10% | V24: 299.22 | W24: =IF(AND(W$16*1>=$R24,W$16*1<=$D$8,$R24<$D$8,$P24>SUM($V24:V24)),IF(SUM($P24*$U24/12,$V24:V24)>$P24,$P24-SUM($V24:V24),$P24*$U24/12),0) -> 0.00 | X24: =IF(AND(X$16*1>=$R24,X$16*1<=$D$8,$R24<$D$8,$P24>SUM($V24:W24)),IF(SUM($P24*$U24/12,$V24:W24)>$P24,$P24-SUM($V24:W24),$P24*$U24/12),0) -> 0.00 | Y24: =IF(AND(Y$16*1>=$R24,Y$16*1<=$D$8,$R24<$D$8,$P24>SUM($V24:X24)),IF(SUM($P24*$U24/12,$V24:X24)>$P24,$P24-SUM($V24:X24),$P24*$U24/12),0) -> 0.00 | Z24: =IF(AND(Z$16*1>=$R24,Z$16*1<=$D$8,$R24<$D$8,$P24>SUM($V24:Y24)),IF(SUM($P24*$U24/12,$V24:Y24)>$P24,$P24-SUM($V24:Y24),$P24*$U24/12),0) -> 0.00 | AA24: =IF(AND(AA$16*1>=$R24,AA$16*1<=$D$8,$R24<$D$8,$P24>SUM($V24:Z24)),IF(SUM($P24*$U24/12,$V24:Z24)>$P24,$P24-SUM($V24:Z24),$P24*$U24/12),0) -> 0.00 | AB24: =IF(AND(AB$16*1>=$R24,AB$16*1<=$D$8,$R24<$D$8,$P24>SUM($V24:AA24)),IF(SUM($P24*$U24/12,$V24:AA24)>$P24,$P24-SUM($V24:AA24),$P24*$U24/12),0) -> 0.00 | AC24: =IF(AND(AC$16*1>=$R24,AC$16*1<=$D$8,$R24<$D$8,$P24>SUM($V24:AB24)),IF(SUM($P24*$U24/12,$V24:AB24)>$P24,$P24-SUM($V24:AB24),$P24*$U24/12),0) -> 0.00 | AD24: =IF(AND(AD$16*1>=$R24,AD$16*1<=$D$8,$R24<$D$8,$P24>SUM($V24:AC24)),IF(SUM($P24*$U24/12,$V24:AC24)>$P24,$P24-SUM($V24:AC24),$P24*$U24/12),0) -> 0.00 | AE24: =IF(AND(AE$16*1>=$R24,AE$16*1<=$D$8,$R24<$D$8,$P24>SUM($V24:AD24)),IF(SUM($P24*$U24/12,$V24:AD24)>$P24,$P24-SUM($V24:AD24),$P24*$U24/12),0) -> 0.00 | AF24: =IF(AND(AF$16*1>=$R24,AF$16*1<=$D$8,$R24<$D$8,$P24>SUM($V24:AE24)),IF(SUM($P24*$U24/12,$V24:AE24)>$P24,$P24-SUM($V24:AE24),$P24*$U24/12),0) -> 0.00 | AG24: =IF(AND(AG$16*1>=$R24,AG$16*1<=$D$8,$R24<$D$8,$P24>SUM($V24:AF24)),IF(SUM($P24*$U24/12,$V24:AF24)>$P24,$P24-SUM($V24:AF24),$P24*$U24/12),0) -> 0.00 | AH24: =IF(AND(AH$16*1>=$R24,AH$16*1<=$D$8,$R24<$D$8,$P24>SUM($V24:AG24)),IF(SUM($P24*$U24/12,$V24:AG24)>$P24,$P24-SUM($V24:AG24),$P24*$U24/12),0) -> 0.00 | AI24: 0.00 | AL24: 299.22 | AN24: 299.22
C25: 9 | D25: 335111 | E25: ESCRITORIO DE 1.20 M. | I25: 245.79 | N25: 245.79 | P25: 245.79 | Q25: 2002-09-15 | R25: 2002-10-01 | U25: 10% | V25: 245.79 | W25: =IF(AND(W$16*1>=$R25,W$16*1<=$D$8,$R25<$D$8,$P25>SUM($V25:V25)),IF(SUM($P25*$U25/12,$V25:V25)>$P25,$P25-SUM($V25:V25),$P25*$U25/12),0) -> 0.00 | X25: =IF(AND(X$16*1>=$R25,X$16*1<=$D$8,$R25<$D$8,$P25>SUM($V25:W25)),IF(SUM($P25*$U25/12,$V25:W25)>$P25,$P25-SUM($V25:W25),$P25*$U25/12),0) -> 0.00 | Y25: =IF(AND(Y$16*1>=$R25,Y$16*1<=$D$8,$R25<$D$8,$P25>SUM($V25:X25)),IF(SUM($P25*$U25/12,$V25:X25)>$P25,$P25-SUM($V25:X25),$P25*$U25/12),0) -> 0.00 | Z25: =IF(AND(Z$16*1>=$R25,Z$16*1<=$D$8,$R25<$D$8,$P25>SUM($V25:Y25)),IF(SUM($P25*$U25/12,$V25:Y25)>$P25,$P25-SUM($V25:Y25),$P25*$U25/12),0) -> 0.00 | AA25: =IF(AND(AA$16*1>=$R25,AA$16*1<=$D$8,$R25<$D$8,$P25>SUM($V25:Z25)),IF(SUM($P25*$U25/12,$V25:Z25)>$P25,$P25-SUM($V25:Z25),$P25*$U25/12),0) -> 0.00 | AB25: =IF(AND(AB$16*1>=$R25,AB$16*1<=$D$8,$R25<$D$8,$P25>SUM($V25:AA25)),IF(SUM($P25*$U25/12,$V25:AA25)>$P25,$P25-SUM($V25:AA25),$P25*$U25/12),0) -> 0.00 | AC25: =IF(AND(AC$16*1>=$R25,AC$16*1<=$D$8,$R25<$D$8,$P25>SUM($V25:AB25)),IF(SUM($P25*$U25/12,$V25:AB25)>$P25,$P25-SUM($V25:AB25),$P25*$U25/12),0) -> 0.00 | AD25: =IF(AND(AD$16*1>=$R25,AD$16*1<=$D$8,$R25<$D$8,$P25>SUM($V25:AC25)),IF(SUM($P25*$U25/12,$V25:AC25)>$P25,$P25-SUM($V25:AC25),$P25*$U25/12),0) -> 0.00 | AE25: =IF(AND(AE$16*1>=$R25,AE$16*1<=$D$8,$R25<$D$8,$P25>SUM($V25:AD25)),IF(SUM($P25*$U25/12,$V25:AD25)>$P25,$P25-SUM($V25:AD25),$P25*$U25/12),0) -> 0.00 | AF25: =IF(AND(AF$16*1>=$R25,AF$16*1<=$D$8,$R25<$D$8,$P25>SUM($V25:AE25)),IF(SUM($P25*$U25/12,$V25:AE25)>$P25,$P25-SUM($V25:AE25),$P25*$U25/12),0) -> 0.00 | AG25: =IF(AND(AG$16*1>=$R25,AG$16*1<=$D$8,$R25<$D$8,$P25>SUM($V25:AF25)),IF(SUM($P25*$U25/12,$V25:AF25)>$P25,$P25-SUM($V25:AF25),$P25*$U25/12),0) -> 0.00 | AH25: =IF(AND(AH$16*1>=$R25,AH$16*1<=$D$8,$R25<$D$8,$P25>SUM($V25:AG25)),IF(SUM($P25*$U25/12,$V25:AG25)>$P25,$P25-SUM($V25:AG25),$P25*$U25/12),0) -> 0.00 | AI25: 0.00 | AL25: 245.79 | AN25: 245.79
C26: 10 | D26: 335111 | E26: ARCHIVADOR DE 4 GAVETAS | I26: 295.68 | N26: 295.68 | P26: 295.68 | Q26: 2002-11-06 | R26: 2002-12-01 | U26: 10% | V26: 295.68 | W26: =IF(AND(W$16*1>=$R26,W$16*1<=$D$8,$R26<$D$8,$P26>SUM($V26:V26)),IF(SUM($P26*$U26/12,$V26:V26)>$P26,$P26-SUM($V26:V26),$P26*$U26/12),0) -> 0.00 | X26: =IF(AND(X$16*1>=$R26,X$16*1<=$D$8,$R26<$D$8,$P26>SUM($V26:W26)),IF(SUM($P26*$U26/12,$V26:W26)>$P26,$P26-SUM($V26:W26),$P26*$U26/12),0) -> 0.00 | Y26: =IF(AND(Y$16*1>=$R26,Y$16*1<=$D$8,$R26<$D$8,$P26>SUM($V26:X26)),IF(SUM($P26*$U26/12,$V26:X26)>$P26,$P26-SUM($V26:X26),$P26*$U26/12),0) -> 0.00 | Z26: =IF(AND(Z$16*1>=$R26,Z$16*1<=$D$8,$R26<$D$8,$P26>SUM($V26:Y26)),IF(SUM($P26*$U26/12,$V26:Y26)>$P26,$P26-SUM($V26:Y26),$P26*$U26/12),0) -> 0.00 | AA26: =IF(AND(AA$16*1>=$R26,AA$16*1<=$D$8,$R26<$D$8,$P26>SUM($V26:Z26)),IF(SUM($P26*$U26/12,$V26:Z26)>$P26,$P26-SUM($V26:Z26),$P26*$U26/12),0) -> 0.00 | AB26: =IF(AND(AB$16*1>=$R26,AB$16*1<=$D$8,$R26<$D$8,$P26>SUM($V26:AA26)),IF(SUM($P26*$U26/12,$V26:AA26)>$P26,$P26-SUM($V26:AA26),$P26*$U26/12),0) -> 0.00 | AC26: =IF(AND(AC$16*1>=$R26,AC$16*1<=$D$8,$R26<$D$8,$P26>SUM($V26:AB26)),IF(SUM($P26*$U26/12,$V26:AB26)>$P26,$P26-SUM($V26:AB26),$P26*$U26/12),0) -> 0.00 | AD26: =IF(AND(AD$16*1>=$R26,AD$16*1<=$D$8,$R26<$D$8,$P26>SUM($V26:AC26)),IF(SUM($P26*$U26/12,$V26:AC26)>$P26,$P26-SUM($V26:AC26),$P26*$U26/12),0) -> 0.00 | AE26: =IF(AND(AE$16*1>=$R26,AE$16*1<=$D$8,$R26<$D$8,$P26>SUM($V26:AD26)),IF(SUM($P26*$U26/12,$V26:AD26)>$P26,$P26-SUM($V26:AD26),$P26*$U26/12),0) -> 0.00 | AF26: =IF(AND(AF$16*1>=$R26,AF$16*1<=$D$8,$R26<$D$8,$P26>SUM($V26:AE26)),IF(SUM($P26*$U26/12,$V26:AE26)>$P26,$P26-SUM($V26:AE26),$P26*$U26/12),0) -> 0.00 | AG26: =IF(AND(AG$16*1>=$R26,AG$16*1<=$D$8,$R26<$D$8,$P26>SUM($V26:AF26)),IF(SUM($P26*$U26/12,$V26:AF26)>$P26,$P26-SUM($V26:AF26),$P26*$U26/12),0) -> 0.00 | AH26: =IF(AND(AH$16*1>=$R26,AH$16*1<=$D$8,$R26<$D$8,$P26>SUM($V26:AG26)),IF(SUM($P26*$U26/12,$V26:AG26)>$P26,$P26-SUM($V26:AG26),$P26*$U26/12),0) -> 0.00 | AI26: 0.00 | AL26: 295.68 | AN26: 295.68
C27: 11 | D27: 335111 | E27: COUNTER RECEPCION CEDRO | I27: 2832.34 | N27: 2832.34 | P27: 2,832.34 | Q27: 2004-04-11 | R27: 2004-05-01 | U27: 10% | V27: 2,832.34 | W27: =IF(AND(W$16*1>=$R27,W$16*1<=$D$8,$R27<$D$8,$P27>SUM($V27:V27)),IF(SUM($P27*$U27/12,$V27:V27)>$P27,$P27-SUM($V27:V27),$P27*$U27/12),0) -> 0.00 | X27: =IF(AND(X$16*1>=$R27,X$16*1<=$D$8,$R27<$D$8,$P27>SUM($V27:W27)),IF(SUM($P27*$U27/12,$V27:W27)>$P27,$P27-SUM($V27:W27),$P27*$U27/12),0) -> 0.00 | Y27: =IF(AND(Y$16*1>=$R27,Y$16*1<=$D$8,$R27<$D$8,$P27>SUM($V27:X27)),IF(SUM($P27*$U27/12,$V27:X27)>$P27,$P27-SUM($V27:X27),$P27*$U27/12),0) -> 0.00 | Z27: =IF(AND(Z$16*1>=$R27,Z$16*1<=$D$8,$R27<$D$8,$P27>SUM($V27:Y27)),IF(SUM($P27*$U27/12,$V27:Y27)>$P27,$P27-SUM($V27:Y27),$P27*$U27/12),0) -> 0.00 | AA27: =IF(AND(AA$16*1>=$R27,AA$16*1<=$D$8,$R27<$D$8,$P27>SUM($V27:Z27)),IF(SUM($P27*$U27/12,$V27:Z27)>$P27,$P27-SUM($V27:Z27),$P27*$U27/12),0) -> 0.00 | AB27: =IF(AND(AB$16*1>=$R27,AB$16*1<=$D$8,$R27<$D$8,$P27>SUM($V27:AA27)),IF(SUM($P27*$U27/12,$V27:AA27)>$P27,$P27-SUM($V27:AA27),$P27*$U27/12),0) -> 0.00 | AC27: =IF(AND(AC$16*1>=$R27,AC$16*1<=$D$8,$R27<$D$8,$P27>SUM($V27:AB27)),IF(SUM($P27*$U27/12,$V27:AB27)>$P27,$P27-SUM($V27:AB27),$P27*$U27/12),0) -> 0.00 | AD27: =IF(AND(AD$16*1>=$R27,AD$16*1<=$D$8,$R27<$D$8,$P27>SUM($V27:AC27)),IF(SUM($P27*$U27/12,$V27:AC27)>$P27,$P27-SUM($V27:AC27),$P27*$U27/12),0) -> 0.00 | AE27: =IF(AND(AE$16*1>=$R27,AE$16*1<=$D$8,$R27<$D$8,$P27>SUM($V27:AD27)),IF(SUM($P27*$U27/12,$V27:AD27)>$P27,$P27-SUM($V27:AD27),$P27*$U27/12),0) -> 0.00 | AF27: =IF(AND(AF$16*1>=$R27,AF$16*1<=$D$8,$R27<$D$8,$P27>SUM($V27:AE27)),IF(SUM($P27*$U27/12,$V27:AE27)>$P27,$P27-SUM($V27:AE27),$P27*$U27/12),0) -> 0.00 | AG27: =IF(AND(AG$16*1>=$R27,AG$16*1<=$D$8,$R27<$D$8,$P27>SUM($V27:AF27)),IF(SUM($P27*$U27/12,$V27:AF27)>$P27,$P27-SUM($V27:AF27),$P27*$U27/12),0) -> 0.00 | AH27: =IF(AND(AH$16*1>=$R27,AH$16*1<=$D$8,$R27<$D$8,$P27>SUM($V27:AG27)),IF(SUM($P27*$U27/12,$V27:AG27)>$P27,$P27-SUM($V27:AG27),$P27*$U27/12),0) -> 0.00 | AI27: 0.00 | AL27: 2,832.34 | AN27: 2,832.34
C28: 12 | D28: 335111 | E28: 2 LLAVES, CAJA MOLDEADA | I28: 1383.66 | N28: 1383.66 | P28: 1,383.66 | Q28: 2004-11-15 | R28: 2004-12-01 | U28: 10% | V28: 1,383.66 | W28: =IF(AND(W$16*1>=$R28,W$16*1<=$D$8,$R28<$D$8,$P28>SUM($V28:V28)),IF(SUM($P28*$U28/12,$V28:V28)>$P28,$P28-SUM($V28:V28),$P28*$U28/12),0) -> 0.00 | X28: =IF(AND(X$16*1>=$R28,X$16*1<=$D$8,$R28<$D$8,$P28>SUM($V28:W28)),IF(SUM($P28*$U28/12,$V28:W28)>$P28,$P28-SUM($V28:W28),$P28*$U28/12),0) -> 0.00 | Y28: =IF(AND(Y$16*1>=$R28,Y$16*1<=$D$8,$R28<$D$8,$P28>SUM($V28:X28)),IF(SUM($P28*$U28/12,$V28:X28)>$P28,$P28-SUM($V28:X28),$P28*$U28/12),0) -> 0.00 | Z28: =IF(AND(Z$16*1>=$R28,Z$16*1<=$D$8,$R28<$D$8,$P28>SUM($V28:Y28)),IF(SUM($P28*$U28/12,$V28:Y28)>$P28,$P28-SUM($V28:Y28),$P28*$U28/12),0) -> 0.00 | AA28: =IF(AND(AA$16*1>=$R28,AA$16*1<=$D$8,$R28<$D$8,$P28>SUM($V28:Z28)),IF(SUM($P28*$U28/12,$V28:Z28)>$P28,$P28-SUM($V28:Z28),$P28*$U28/12),0) -> 0.00 | AB28: =IF(AND(AB$16*1>=$R28,AB$16*1<=$D$8,$R28<$D$8,$P28>SUM($V28:AA28)),IF(SUM($P28*$U28/12,$V28:AA28)>$P28,$P28-SUM($V28:AA28),$P28*$U28/12),0) -> 0.00 | AC28: =IF(AND(AC$16*1>=$R28,AC$16*1<=$D$8,$R28<$D$8,$P28>SUM($V28:AB28)),IF(SUM($P28*$U28/12,$V28:AB28)>$P28,$P28-SUM($V28:AB28),$P28*$U28/12),0) -> 0.00 | AD28: =IF(AND(AD$16*1>=$R28,AD$16*1<=$D$8,$R28<$D$8,$P28>SUM($V28:AC28)),IF(SUM($P28*$U28/12,$V28:AC28)>$P28,$P28-SUM($V28:AC28),$P28*$U28/12),0) -> 0.00 | AE28: =IF(AND(AE$16*1>=$R28,AE$16*1<=$D$8,$R28<$D$8,$P28>SUM($V28:AD28)),IF(SUM($P28*$U28/12,$V28:AD28)>$P28,$P28-SUM($V28:AD28),$P28*$U28/12),0) -> 0.00 | AF28: =IF(AND(AF$16*1>=$R28,AF$16*1<=$D$8,$R28<$D$8,$P28>SUM($V28:AE28)),IF(SUM($P28*$U28/12,$V28:AE28)>$P28,$P28-SUM($V28:AE28),$P28*$U28/12),0) -> 0.00 | AG28: =IF(AND(AG$16*1>=$R28,AG$16*1<=$D$8,$R28<$D$8,$P28>SUM($V28:AF28)),IF(SUM($P28*$U28/12,$V28:AF28)>$P28,$P28-SUM($V28:AF28),$P28*$U28/12),0) -> 0.00 | AH28: =IF(AND(AH$16*1>=$R28,AH$16*1<=$D$8,$R28<$D$8,$P28>SUM($V28:AG28)),IF(SUM($P28*$U28/12,$V28:AG28)>$P28,$P28-SUM($V28:AG28),$P28*$U28/12),0) -> 0.00 | AI28: 0.00 | AL28: 1,383.66 | AN28: 1,383.66
C29: 13 | D29: 335111 | E29: SALA GENOVA CUERINA CREMA 3-2-1 | I29: 3752.16 | N29: 3752.16 | P29: 3,752.16 | Q29: 2004-11-25 | R29: 2004-12-01 | U29: 10% | V29: 3,752.16 | W29: =IF(AND(W$16*1>=$R29,W$16*1<=$D$8,$R29<$D$8,$P29>SUM($V29:V29)),IF(SUM($P29*$U29/12,$V29:V29)>$P29,$P29-SUM($V29:V29),$P29*$U29/12),0) -> 0.00 | X29: =IF(AND(X$16*1>=$R29,X$16*1<=$D$8,$R29<$D$8,$P29>SUM($V29:W29)),IF(SUM($P29*$U29/12,$V29:W29)>$P29,$P29-SUM($V29:W29),$P29*$U29/12),0) -> 0.00 | Y29: =IF(AND(Y$16*1>=$R29,Y$16*1<=$D$8,$R29<$D$8,$P29>SUM($V29:X29)),IF(SUM($P29*$U29/12,$V29:X29)>$P29,$P29-SUM($V29:X29),$P29*$U29/12),0) -> 0.00 | Z29: =IF(AND(Z$16*1>=$R29,Z$16*1<=$D$8,$R29<$D$8,$P29>SUM($V29:Y29)),IF(SUM($P29*$U29/12,$V29:Y29)>$P29,$P29-SUM($V29:Y29),$P29*$U29/12),0) -> 0.00 | AA29: =IF(AND(AA$16*1>=$R29,AA$16*1<=$D$8,$R29<$D$8,$P29>SUM($V29:Z29)),IF(SUM($P29*$U29/12,$V29:Z29)>$P29,$P29-SUM($V29:Z29),$P29*$U29/12),0) -> 0.00 | AB29: =IF(AND(AB$16*1>=$R29,AB$16*1<=$D$8,$R29<$D$8,$P29>SUM($V29:AA29)),IF(SUM($P29*$U29/12,$V29:AA29)>$P29,$P29-SUM($V29:AA29),$P29*$U29/12),0) -> 0.00 | AC29: =IF(AND(AC$16*1>=$R29,AC$16*1<=$D$8,$R29<$D$8,$P29>SUM($V29:AB29)),IF(SUM($P29*$U29/12,$V29:AB29)>$P29,$P29-SUM($V29:AB29),$P29*$U29/12),0) -> 0.00 | AD29: =IF(AND(AD$16*1>=$R29,AD$16*1<=$D$8,$R29<$D$8,$P29>SUM($V29:AC29)),IF(SUM($P29*$U29/12,$V29:AC29)>$P29,$P29-SUM($V29:AC29),$P29*$U29/12),0) -> 0.00 | AE29: =IF(AND(AE$16*1>=$R29,AE$16*1<=$D$8,$R29<$D$8,$P29>SUM($V29:AD29)),IF(SUM($P29*$U29/12,$V29:AD29)>$P29,$P29-SUM($V29:AD29),$P29*$U29/12),0) -> 0.00 | AF29: =IF(AND(AF$16*1>=$R29,AF$16*1<=$D$8,$R29<$D$8,$P29>SUM($V29:AE29)),IF(SUM($P29*$U29/12,$V29:AE29)>$P29,$P29-SUM($V29:AE29),$P29*$U29/12),0) -> 0.00 | AG29: =IF(AND(AG$16*1>=$R29,AG$16*1<=$D$8,$R29<$D$8,$P29>SUM($V29:AF29)),IF(SUM($P29*$U29/12,$V29:AF29)>$P29,$P29-SUM($V29:AF29),$P29*$U29/12),0) -> 0.00 | AH29: =IF(AND(AH$16*1>=$R29,AH$16*1<=$D$8,$R29<$D$8,$P29>SUM($V29:AG29)),IF(SUM($P29*$U29/12,$V29:AG29)>$P29,$P29-SUM($V29:AG29),$P29*$U29/12),0) -> 0.00 | AI29: 0.00 | AL29: 3,752.16 | AN29: 3,752.16
C30: 14 | D30: 335111 | E30: PUERTA METALICA | I30: 907.96 | N30: 907.96 | P30: 907.96 | Q30: 2004-12-14 | R30: 2005-01-01 | U30: 10% | V30: 907.96 | W30: =IF(AND(W$16*1>=$R30,W$16*1<=$D$8,$R30<$D$8,$P30>SUM($V30:V30)),IF(SUM($P30*$U30/12,$V30:V30)>$P30,$P30-SUM($V30:V30),$P30*$U30/12),0) -> 0.00 | X30: =IF(AND(X$16*1>=$R30,X$16*1<=$D$8,$R30<$D$8,$P30>SUM($V30:W30)),IF(SUM($P30*$U30/12,$V30:W30)>$P30,$P30-SUM($V30:W30),$P30*$U30/12),0) -> 0.00 | Y30: =IF(AND(Y$16*1>=$R30,Y$16*1<=$D$8,$R30<$D$8,$P30>SUM($V30:X30)),IF(SUM($P30*$U30/12,$V30:X30)>$P30,$P30-SUM($V30:X30),$P30*$U30/12),0) -> 0.00 | Z30: =IF(AND(Z$16*1>=$R30,Z$16*1<=$D$8,$R30<$D$8,$P30>SUM($V30:Y30)),IF(SUM($P30*$U30/12,$V30:Y30)>$P30,$P30-SUM($V30:Y30),$P30*$U30/12),0) -> 0.00 | AA30: =IF(AND(AA$16*1>=$R30,AA$16*1<=$D$8,$R30<$D$8,$P30>SUM($V30:Z30)),IF(SUM($P30*$U30/12,$V30:Z30)>$P30,$P30-SUM($V30:Z30),$P30*$U30/12),0) -> 0.00 | AB30: =IF(AND(AB$16*1>=$R30,AB$16*1<=$D$8,$R30<$D$8,$P30>SUM($V30:AA30)),IF(SUM($P30*$U30/12,$V30:AA30)>$P30,$P30-SUM($V30:AA30),$P30*$U30/12),0) -> 0.00 | AC30: =IF(AND(AC$16*1>=$R30,AC$16*1<=$D$8,$R30<$D$8,$P30>SUM($V30:AB30)),IF(SUM($P30*$U30/12,$V30:AB30)>$P30,$P30-SUM($V30:AB30),$P30*$U30/12),0) -> 0.00 | AD30: =IF(AND(AD$16*1>=$R30,AD$16*1<=$D$8,$R30<$D$8,$P30>SUM($V30:AC30)),IF(SUM($P30*$U30/12,$V30:AC30)>$P30,$P30-SUM($V30:AC30),$P30*$U30/12),0) -> 0.00 | AE30: =IF(AND(AE$16*1>=$R30,AE$16*1<=$D$8,$R30<$D$8,$P30>SUM($V30:AD30)),IF(SUM($P30*$U30/12,$V30:AD30)>$P30,$P30-SUM($V30:AD30),$P30*$U30/12),0) -> 0.00 | AF30: =IF(AND(AF$16*1>=$R30,AF$16*1<=$D$8,$R30<$D$8,$P30>SUM($V30:AE30)),IF(SUM($P30*$U30/12,$V30:AE30)>$P30,$P30-SUM($V30:AE30),$P30*$U30/12),0) -> 0.00 | AG30: =IF(AND(AG$16*1>=$R30,AG$16*1<=$D$8,$R30<$D$8,$P30>SUM($V30:AF30)),IF(SUM($P30*$U30/12,$V30:AF30)>$P30,$P30-SUM($V30:AF30),$P30*$U30/12),0) -> 0.00 | AH30: =IF(AND(AH$16*1>=$R30,AH$16*1<=$D$8,$R30<$D$8,$P30>SUM($V30:AG30)),IF(SUM($P30*$U30/12,$V30:AG30)>$P30,$P30-SUM($V30:AG30),$P30*$U30/12),0) -> 0.00 | AI30: 0.00 | AL30: 907.96 | AN30: 907.96
C31: 15 | D31: 335111 | E31: MAMPARA FIERRO | I31: 1471.89 | N31: 1471.89 | P31: 1,471.89 | Q31: 2005-01-15 | R31: 2005-02-01 | U31: 10% | V31: 1,471.89 | W31: =IF(AND(W$16*1>=$R31,W$16*1<=$D$8,$R31<$D$8,$P31>SUM($V31:V31)),IF(SUM($P31*$U31/12,$V31:V31)>$P31,$P31-SUM($V31:V31),$P31*$U31/12),0) -> 0.00 | X31: =IF(AND(X$16*1>=$R31,X$16*1<=$D$8,$R31<$D$8,$P31>SUM($V31:W31)),IF(SUM($P31*$U31/12,$V31:W31)>$P31,$P31-SUM($V31:W31),$P31*$U31/12),0) -> 0.00 | Y31: =IF(AND(Y$16*1>=$R31,Y$16*1<=$D$8,$R31<$D$8,$P31>SUM($V31:X31)),IF(SUM($P31*$U31/12,$V31:X31)>$P31,$P31-SUM($V31:X31),$P31*$U31/12),0) -> 0.00 | Z31: =IF(AND(Z$16*1>=$R31,Z$16*1<=$D$8,$R31<$D$8,$P31>SUM($V31:Y31)),IF(SUM($P31*$U31/12,$V31:Y31)>$P31,$P31-SUM($V31:Y31),$P31*$U31/12),0) -> 0.00 | AA31: =IF(AND(AA$16*1>=$R31,AA$16*1<=$D$8,$R31<$D$8,$P31>SUM($V31:Z31)),IF(SUM($P31*$U31/12,$V31:Z31)>$P31,$P31-SUM($V31:Z31),$P31*$U31/12),0) -> 0.00 | AB31: =IF(AND(AB$16*1>=$R31,AB$16*1<=$D$8,$R31<$D$8,$P31>SUM($V31:AA31)),IF(SUM($P31*$U31/12,$V31:AA31)>$P31,$P31-SUM($V31:AA31),$P31*$U31/12),0) -> 0.00 | AC31: =IF(AND(AC$16*1>=$R31,AC$16*1<=$D$8,$R31<$D$8,$P31>SUM($V31:AB31)),IF(SUM($P31*$U31/12,$V31:AB31)>$P31,$P31-SUM($V31:AB31),$P31*$U31/12),0) -> 0.00 | AD31: =IF(AND(AD$16*1>=$R31,AD$16*1<=$D$8,$R31<$D$8,$P31>SUM($V31:AC31)),IF(SUM($P31*$U31/12,$V31:AC31)>$P31,$P31-SUM($V31:AC31),$P31*$U31/12),0) -> 0.00 | AE31: =IF(AND(AE$16*1>=$R31,AE$16*1<=$D$8,$R31<$D$8,$P31>SUM($V31:AD31)),IF(SUM($P31*$U31/12,$V31:AD31)>$P31,$P31-SUM($V31:AD31),$P31*$U31/12),0) -> 0.00 | AF31: =IF(AND(AF$16*1>=$R31,AF$16*1<=$D$8,$R31<$D$8,$P31>SUM($V31:AE31)),IF(SUM($P31*$U31/12,$V31:AE31)>$P31,$P31-SUM($V31:AE31),$P31*$U31/12),0) -> 0.00 | AG31: =IF(AND(AG$16*1>=$R31,AG$16*1<=$D$8,$R31<$D$8,$P31>SUM($V31:AF31)),IF(SUM($P31*$U31/12,$V31:AF31)>$P31,$P31-SUM($V31:AF31),$P31*$U31/12),0) -> 0.00 | AH31: =IF(AND(AH$16*1>=$R31,AH$16*1<=$D$8,$R31<$D$8,$P31>SUM($V31:AG31)),IF(SUM($P31*$U31/12,$V31:AG31)>$P31,$P31-SUM($V31:AG31),$P31*$U31/12),0) -> 0.00 | AI31: 0.00 | AL31: 1,471.89 | AN31: 1,471.89
C32: 16 | D32: 335111 | E32: ESCRITORIO DIRECCIONAL CF | I32: 5341.74 | N32: 5341.74 | P32: 5,341.74 | Q32: 2005-01-22 | R32: 2005-02-01 | U32: 10% | V32: 5,341.74 | W32: =IF(AND(W$16*1>=$R32,W$16*1<=$D$8,$R32<$D$8,$P32>SUM($V32:V32)),IF(SUM($P32*$U32/12,$V32:V32)>$P32,$P32-SUM($V32:V32),$P32*$U32/12),0) -> 0.00 | X32: =IF(AND(X$16*1>=$R32,X$16*1<=$D$8,$R32<$D$8,$P32>SUM($V32:W32)),IF(SUM($P32*$U32/12,$V32:W32)>$P32,$P32-SUM($V32:W32),$P32*$U32/12),0) -> 0.00 | Y32: =IF(AND(Y$16*1>=$R32,Y$16*1<=$D$8,$R32<$D$8,$P32>SUM($V32:X32)),IF(SUM($P32*$U32/12,$V32:X32)>$P32,$P32-SUM($V32:X32),$P32*$U32/12),0) -> 0.00 | Z32: =IF(AND(Z$16*1>=$R32,Z$16*1<=$D$8,$R32<$D$8,$P32>SUM($V32:Y32)),IF(SUM($P32*$U32/12,$V32:Y32)>$P32,$P32-SUM($V32:Y32),$P32*$U32/12),0) -> 0.00 | AA32: =IF(AND(AA$16*1>=$R32,AA$16*1<=$D$8,$R32<$D$8,$P32>SUM($V32:Z32)),IF(SUM($P32*$U32/12,$V32:Z32)>$P32,$P32-SUM($V32:Z32),$P32*$U32/12),0) -> 0.00 | AB32: =IF(AND(AB$16*1>=$R32,AB$16*1<=$D$8,$R32<$D$8,$P32>SUM($V32:AA32)),IF(SUM($P32*$U32/12,$V32:AA32)>$P32,$P32-SUM($V32:AA32),$P32*$U32/12),0) -> 0.00 | AC32: =IF(AND(AC$16*1>=$R32,AC$16*1<=$D$8,$R32<$D$8,$P32>SUM($V32:AB32)),IF(SUM($P32*$U32/12,$V32:AB32)>$P32,$P32-SUM($V32:AB32),$P32*$U32/12),0) -> 0.00 | AD32: =IF(AND(AD$16*1>=$R32,AD$16*1<=$D$8,$R32<$D$8,$P32>SUM($V32:AC32)),IF(SUM($P32*$U32/12,$V32:AC32)>$P32,$P32-SUM($V32:AC32),$P32*$U32/12),0) -> 0.00 | AE32: =IF(AND(AE$16*1>=$R32,AE$16*1<=$D$8,$R32<$D$8,$P32>SUM($V32:AD32)),IF(SUM($P32*$U32/12,$V32:AD32)>$P32,$P32-SUM($V32:AD32),$P32*$U32/12),0) -> 0.00 | AF32: =IF(AND(AF$16*1>=$R32,AF$16*1<=$D$8,$R32<$D$8,$P32>SUM($V32:AE32)),IF(SUM($P32*$U32/12,$V32:AE32)>$P32,$P32-SUM($V32:AE32),$P32*$U32/12),0) -> 0.00 | AG32: =IF(AND(AG$16*1>=$R32,AG$16*1<=$D$8,$R32<$D$8,$P32>SUM($V32:AF32)),IF(SUM($P32*$U32/12,$V32:AF32)>$P32,$P32-SUM($V32:AF32),$P32*$U32/12),0) -> 0.00 | AH32: =IF(AND(AH$16*1>=$R32,AH$16*1<=$D$8,$R32<$D$8,$P32>SUM($V32:AG32)),IF(SUM($P32*$U32/12,$V32:AG32)>$P32,$P32-SUM($V32:AG32),$P32*$U32/12),0) -> 0.00 | AI32: 0.00 | AL32: 5,341.74 | AN32: 5,341.74
C33: 17 | D33: 335111 | E33: CREDENZA CORTA CF | I33: 2653.87 | N33: 2653.87 | P33: 2,653.87 | Q33: 2005-01-22 | R33: 2005-02-01 | U33: 10% | V33: 2,653.87 | W33: =IF(AND(W$16*1>=$R33,W$16*1<=$D$8,$R33<$D$8,$P33>SUM($V33:V33)),IF(SUM($P33*$U33/12,$V33:V33)>$P33,$P33-SUM($V33:V33),$P33*$U33/12),0) -> 0.00 | X33: =IF(AND(X$16*1>=$R33,X$16*1<=$D$8,$R33<$D$8,$P33>SUM($V33:W33)),IF(SUM($P33*$U33/12,$V33:W33)>$P33,$P33-SUM($V33:W33),$P33*$U33/12),0) -> 0.00 | Y33: =IF(AND(Y$16*1>=$R33,Y$16*1<=$D$8,$R33<$D$8,$P33>SUM($V33:X33)),IF(SUM($P33*$U33/12,$V33:X33)>$P33,$P33-SUM($V33:X33),$P33*$U33/12),0) -> 0.00 | Z33: =IF(AND(Z$16*1>=$R33,Z$16*1<=$D$8,$R33<$D$8,$P33>SUM($V33:Y33)),IF(SUM($P33*$U33/12,$V33:Y33)>$P33,$P33-SUM($V33:Y33),$P33*$U33/12),0) -> 0.00 | AA33: =IF(AND(AA$16*1>=$R33,AA$16*1<=$D$8,$R33<$D$8,$P33>SUM($V33:Z33)),IF(SUM($P33*$U33/12,$V33:Z33)>$P33,$P33-SUM($V33:Z33),$P33*$U33/12),0) -> 0.00 | AB33: =IF(AND(AB$16*1>=$R33,AB$16*1<=$D$8,$R33<$D$8,$P33>SUM($V33:AA33)),IF(SUM($P33*$U33/12,$V33:AA33)>$P33,$P33-SUM($V33:AA33),$P33*$U33/12),0) -> 0.00 | AC33: =IF(AND(AC$16*1>=$R33,AC$16*1<=$D$8,$R33<$D$8,$P33>SUM($V33:AB33)),IF(SUM($P33*$U33/12,$V33:AB33)>$P33,$P33-SUM($V33:AB33),$P33*$U33/12),0) -> 0.00 | AD33: =IF(AND(AD$16*1>=$R33,AD$16*1<=$D$8,$R33<$D$8,$P33>SUM($V33:AC33)),IF(SUM($P33*$U33/12,$V33:AC33)>$P33,$P33-SUM($V33:AC33),$P33*$U33/12),0) -> 0.00 | AE33: =IF(AND(AE$16*1>=$R33,AE$16*1<=$D$8,$R33<$D$8,$P33>SUM($V33:AD33)),IF(SUM($P33*$U33/12,$V33:AD33)>$P33,$P33-SUM($V33:AD33),$P33*$U33/12),0) -> 0.00 | AF33: =IF(AND(AF$16*1>=$R33,AF$16*1<=$D$8,$R33<$D$8,$P33>SUM($V33:AE33)),IF(SUM($P33*$U33/12,$V33:AE33)>$P33,$P33-SUM($V33:AE33),$P33*$U33/12),0) -> 0.00 | AG33: =IF(AND(AG$16*1>=$R33,AG$16*1<=$D$8,$R33<$D$8,$P33>SUM($V33:AF33)),IF(SUM($P33*$U33/12,$V33:AF33)>$P33,$P33-SUM($V33:AF33),$P33*$U33/12),0) -> 0.00 | AH33: =IF(AND(AH$16*1>=$R33,AH$16*1<=$D$8,$R33<$D$8,$P33>SUM($V33:AG33)),IF(SUM($P33*$U33/12,$V33:AG33)>$P33,$P33-SUM($V33:AG33),$P33*$U33/12),0) -> 0.00 | AI33: 0.00 | AL33: 2,653.87 | AN33: 2,653.87
C34: 18 | D34: 335111 | E34: ESCRITORIO AUXILIAR CF | I34: 2194.53 | N34: 2194.53 | P34: 2,194.53 | Q34: 2005-01-22 | R34: 2005-02-01 | U34: 10% | V34: 2,194.53 | W34: =IF(AND(W$16*1>=$R34,W$16*1<=$D$8,$R34<$D$8,$P34>SUM($V34:V34)),IF(SUM($P34*$U34/12,$V34:V34)>$P34,$P34-SUM($V34:V34),$P34*$U34/12),0) -> 0.00 | X34: =IF(AND(X$16*1>=$R34,X$16*1<=$D$8,$R34<$D$8,$P34>SUM($V34:W34)),IF(SUM($P34*$U34/12,$V34:W34)>$P34,$P34-SUM($V34:W34),$P34*$U34/12),0) -> 0.00 | Y34: =IF(AND(Y$16*1>=$R34,Y$16*1<=$D$8,$R34<$D$8,$P34>SUM($V34:X34)),IF(SUM($P34*$U34/12,$V34:X34)>$P34,$P34-SUM($V34:X34),$P34*$U34/12),0) -> 0.00 | Z34: =IF(AND(Z$16*1>=$R34,Z$16*1<=$D$8,$R34<$D$8,$P34>SUM($V34:Y34)),IF(SUM($P34*$U34/12,$V34:Y34)>$P34,$P34-SUM($V34:Y34),$P34*$U34/12),0) -> 0.00 | AA34: =IF(AND(AA$16*1>=$R34,AA$16*1<=$D$8,$R34<$D$8,$P34>SUM($V34:Z34)),IF(SUM($P34*$U34/12,$V34:Z34)>$P34,$P34-SUM($V34:Z34),$P34*$U34/12),0) -> 0.00 | AB34: =IF(AND(AB$16*1>=$R34,AB$16*1<=$D$8,$R34<$D$8,$P34>SUM($V34:AA34)),IF(SUM($P34*$U34/12,$V34:AA34)>$P34,$P34-SUM($V34:AA34),$P34*$U34/12),0) -> 0.00 | AC34: =IF(AND(AC$16*1>=$R34,AC$16*1<=$D$8,$R34<$D$8,$P34>SUM($V34:AB34)),IF(SUM($P34*$U34/12,$V34:AB34)>$P34,$P34-SUM($V34:AB34),$P34*$U34/12),0) -> 0.00 | AD34: =IF(AND(AD$16*1>=$R34,AD$16*1<=$D$8,$R34<$D$8,$P34>SUM($V34:AC34)),IF(SUM($P34*$U34/12,$V34:AC34)>$P34,$P34-SUM($V34:AC34),$P34*$U34/12),0) -> 0.00 | AE34: =IF(AND(AE$16*1>=$R34,AE$16*1<=$D$8,$R34<$D$8,$P34>SUM($V34:AD34)),IF(SUM($P34*$U34/12,$V34:AD34)>$P34,$P34-SUM($V34:AD34),$P34*$U34/12),0) -> 0.00 | AF34: =IF(AND(AF$16*1>=$R34,AF$16*1<=$D$8,$R34<$D$8,$P34>SUM($V34:AE34)),IF(SUM($P34*$U34/12,$V34:AE34)>$P34,$P34-SUM($V34:AE34),$P34*$U34/12),0) -> 0.00 | AG34: =IF(AND(AG$16*1>=$R34,AG$16*1<=$D$8,$R34<$D$8,$P34>SUM($V34:AF34)),IF(SUM($P34*$U34/12,$V34:AF34)>$P34,$P34-SUM($V34:AF34),$P34*$U34/12),0) -> 0.00 | AH34: =IF(AND(AH$16*1>=$R34,AH$16*1<=$D$8,$R34<$D$8,$P34>SUM($V34:AG34)),IF(SUM($P34*$U34/12,$V34:AG34)>$P34,$P34-SUM($V34:AG34),$P34*$U34/12),0) -> 0.00 | AI34: 0.00 | AL34: 2,194.53 | AN34: 2,194.53
C35: 19 | D35: 335111 | E35: 2 SILLONES NEGROS DIRECTORIO | I35: 919.66 | N35: 919.66 | P35: 919.66 | Q35: 2005-03-26 | R35: 2005-04-01 | U35: 10% | V35: 919.66 | W35: =IF(AND(W$16*1>=$R35,W$16*1<=$D$8,$R35<$D$8,$P35>SUM($V35:V35)),IF(SUM($P35*$U35/12,$V35:V35)>$P35,$P35-SUM($V35:V35),$P35*$U35/12),0) -> 0.00 | X35: =IF(AND(X$16*1>=$R35,X$16*1<=$D$8,$R35<$D$8,$P35>SUM($V35:W35)),IF(SUM($P35*$U35/12,$V35:W35)>$P35,$P35-SUM($V35:W35),$P35*$U35/12),0) -> 0.00 | Y35: =IF(AND(Y$16*1>=$R35,Y$16*1<=$D$8,$R35<$D$8,$P35>SUM($V35:X35)),IF(SUM($P35*$U35/12,$V35:X35)>$P35,$P35-SUM($V35:X35),$P35*$U35/12),0) -> 0.00 | Z35: =IF(AND(Z$16*1>=$R35,Z$16*1<=$D$8,$R35<$D$8,$P35>SUM($V35:Y35)),IF(SUM($P35*$U35/12,$V35:Y35)>$P35,$P35-SUM($V35:Y35),$P35*$U35/12),0) -> 0.00 | AA35: =IF(AND(AA$16*1>=$R35,AA$16*1<=$D$8,$R35<$D$8,$P35>SUM($V35:Z35)),IF(SUM($P35*$U35/12,$V35:Z35)>$P35,$P35-SUM($V35:Z35),$P35*$U35/12),0) -> 0.00 | AB35: =IF(AND(AB$16*1>=$R35,AB$16*1<=$D$8,$R35<$D$8,$P35>SUM($V35:AA35)),IF(SUM($P35*$U35/12,$V35:AA35)>$P35,$P35-SUM($V35:AA35),$P35*$U35/12),0) -> 0.00 | AC35: =IF(AND(AC$16*1>=$R35,AC$16*1<=$D$8,$R35<$D$8,$P35>SUM($V35:AB35)),IF(SUM($P35*$U35/12,$V35:AB35)>$P35,$P35-SUM($V35:AB35),$P35*$U35/12),0) -> 0.00 | AD35: =IF(AND(AD$16*1>=$R35,AD$16*1<=$D$8,$R35<$D$8,$P35>SUM($V35:AC35)),IF(SUM($P35*$U35/12,$V35:AC35)>$P35,$P35-SUM($V35:AC35),$P35*$U35/12),0) -> 0.00 | AE35: =IF(AND(AE$16*1>=$R35,AE$16*1<=$D$8,$R35<$D$8,$P35>SUM($V35:AD35)),IF(SUM($P35*$U35/12,$V35:AD35)>$P35,$P35-SUM($V35:AD35),$P35*$U35/12),0) -> 0.00 | AF35: =IF(AND(AF$16*1>=$R35,AF$16*1<=$D$8,$R35<$D$8,$P35>SUM($V35:AE35)),IF(SUM($P35*$U35/12,$V35:AE35)>$P35,$P35-SUM($V35:AE35),$P35*$U35/12),0) -> 0.00 | AG35: =IF(AND(AG$16*1>=$R35,AG$16*1<=$D$8,$R35<$D$8,$P35>SUM($V35:AF35)),IF(SUM($P35*$U35/12,$V35:AF35)>$P35,$P35-SUM($V35:AF35),$P35*$U35/12),0) -> 0.00 | AH35: =IF(AND(AH$16*1>=$R35,AH$16*1<=$D$8,$R35<$D$8,$P35>SUM($V35:AG35)),IF(SUM($P35*$U35/12,$V35:AG35)>$P35,$P35-SUM($V35:AG35),$P35*$U35/12),0) -> 0.00 | AI35: 0.00 | AL35: 919.66 | AN35: 919.66
C36: 20 | D36: 335111 | E36: 8 SILLONES NEGROS DIRECTORIO | I36: 3638.41 | N36: 3638.41 | P36: 3,638.41 | Q36: 2005-03-30 | R36: 2005-04-01 | U36: 10% | V36: 3,638.41 | W36: =IF(AND(W$16*1>=$R36,W$16*1<=$D$8,$R36<$D$8,$P36>SUM($V36:V36)),IF(SUM($P36*$U36/12,$V36:V36)>$P36,$P36-SUM($V36:V36),$P36*$U36/12),0) -> 0.00 | X36: =IF(AND(X$16*1>=$R36,X$16*1<=$D$8,$R36<$D$8,$P36>SUM($V36:W36)),IF(SUM($P36*$U36/12,$V36:W36)>$P36,$P36-SUM($V36:W36),$P36*$U36/12),0) -> 0.00 | Y36: =IF(AND(Y$16*1>=$R36,Y$16*1<=$D$8,$R36<$D$8,$P36>SUM($V36:X36)),IF(SUM($P36*$U36/12,$V36:X36)>$P36,$P36-SUM($V36:X36),$P36*$U36/12),0) -> 0.00 | Z36: =IF(AND(Z$16*1>=$R36,Z$16*1<=$D$8,$R36<$D$8,$P36>SUM($V36:Y36)),IF(SUM($P36*$U36/12,$V36:Y36)>$P36,$P36-SUM($V36:Y36),$P36*$U36/12),0) -> 0.00 | AA36: =IF(AND(AA$16*1>=$R36,AA$16*1<=$D$8,$R36<$D$8,$P36>SUM($V36:Z36)),IF(SUM($P36*$U36/12,$V36:Z36)>$P36,$P36-SUM($V36:Z36),$P36*$U36/12),0) -> 0.00 | AB36: =IF(AND(AB$16*1>=$R36,AB$16*1<=$D$8,$R36<$D$8,$P36>SUM($V36:AA36)),IF(SUM($P36*$U36/12,$V36:AA36)>$P36,$P36-SUM($V36:AA36),$P36*$U36/12),0) -> 0.00 | AC36: =IF(AND(AC$16*1>=$R36,AC$16*1<=$D$8,$R36<$D$8,$P36>SUM($V36:AB36)),IF(SUM($P36*$U36/12,$V36:AB36)>$P36,$P36-SUM($V36:AB36),$P36*$U36/12),0) -> 0.00 | AD36: =IF(AND(AD$16*1>=$R36,AD$16*1<=$D$8,$R36<$D$8,$P36>SUM($V36:AC36)),IF(SUM($P36*$U36/12,$V36:AC36)>$P36,$P36-SUM($V36:AC36),$P36*$U36/12),0) -> 0.00 | AE36: =IF(AND(AE$16*1>=$R36,AE$16*1<=$D$8,$R36<$D$8,$P36>SUM($V36:AD36)),IF(SUM($P36*$U36/12,$V36:AD36)>$P36,$P36-SUM($V36:AD36),$P36*$U36/12),0) -> 0.00 | AF36: =IF(AND(AF$16*1>=$R36,AF$16*1<=$D$8,$R36<$D$8,$P36>SUM($V36:AE36)),IF(SUM($P36*$U36/12,$V36:AE36)>$P36,$P36-SUM($V36:AE36),$P36*$U36/12),0) -> 0.00 | AG36: =IF(AND(AG$16*1>=$R36,AG$16*1<=$D$8,$R36<$D$8,$P36>SUM($V36:AF36)),IF(SUM($P36*$U36/12,$V36:AF36)>$P36,$P36-SUM($V36:AF36),$P36*$U36/12),0) -> 0.00 | AH36: =IF(AND(AH$16*1>=$R36,AH$16*1<=$D$8,$R36<$D$8,$P36>SUM($V36:AG36)),IF(SUM($P36*$U36/12,$V36:AG36)>$P36,$P36-SUM($V36:AG36),$P36*$U36/12),0) -> 0.00 | AI36: 0.00 | AL36: 3,638.41 | AN36: 3,638.41
C37: 21 | D37: 335111 | E37: REJAS METALICAS PUERTA CORREDIZA | I37: 1385.3 | N37: 1385.3 | P37: 1,385.30 | Q37: 2005-05-07 | R37: 2005-06-01 | U37: 10% | V37: 1,385.30 | W37: =IF(AND(W$16*1>=$R37,W$16*1<=$D$8,$R37<$D$8,$P37>SUM($V37:V37)),IF(SUM($P37*$U37/12,$V37:V37)>$P37,$P37-SUM($V37:V37),$P37*$U37/12),0) -> 0.00 | X37: =IF(AND(X$16*1>=$R37,X$16*1<=$D$8,$R37<$D$8,$P37>SUM($V37:W37)),IF(SUM($P37*$U37/12,$V37:W37)>$P37,$P37-SUM($V37:W37),$P37*$U37/12),0) -> 0.00 | Y37: =IF(AND(Y$16*1>=$R37,Y$16*1<=$D$8,$R37<$D$8,$P37>SUM($V37:X37)),IF(SUM($P37*$U37/12,$V37:X37)>$P37,$P37-SUM($V37:X37),$P37*$U37/12),0) -> 0.00 | Z37: =IF(AND(Z$16*1>=$R37,Z$16*1<=$D$8,$R37<$D$8,$P37>SUM($V37:Y37)),IF(SUM($P37*$U37/12,$V37:Y37)>$P37,$P37-SUM($V37:Y37),$P37*$U37/12),0) -> 0.00 | AA37: =IF(AND(AA$16*1>=$R37,AA$16*1<=$D$8,$R37<$D$8,$P37>SUM($V37:Z37)),IF(SUM($P37*$U37/12,$V37:Z37)>$P37,$P37-SUM($V37:Z37),$P37*$U37/12),0) -> 0.00 | AB37: =IF(AND(AB$16*1>=$R37,AB$16*1<=$D$8,$R37<$D$8,$P37>SUM($V37:AA37)),IF(SUM($P37*$U37/12,$V37:AA37)>$P37,$P37-SUM($V37:AA37),$P37*$U37/12),0) -> 0.00 | AC37: =IF(AND(AC$16*1>=$R37,AC$16*1<=$D$8,$R37<$D$8,$P37>SUM($V37:AB37)),IF(SUM($P37*$U37/12,$V37:AB37)>$P37,$P37-SUM($V37:AB37),$P37*$U37/12),0) -> 0.00 | AD37: =IF(AND(AD$16*1>=$R37,AD$16*1<=$D$8,$R37<$D$8,$P37>SUM($V37:AC37)),IF(SUM($P37*$U37/12,$V37:AC37)>$P37,$P37-SUM($V37:AC37),$P37*$U37/12),0) -> 0.00 | AE37: =IF(AND(AE$16*1>=$R37,AE$16*1<=$D$8,$R37<$D$8,$P37>SUM($V37:AD37)),IF(SUM($P37*$U37/12,$V37:AD37)>$P37,$P37-SUM($V37:AD37),$P37*$U37/12),0) -> 0.00 | AF37: =IF(AND(AF$16*1>=$R37,AF$16*1<=$D$8,$R37<$D$8,$P37>SUM($V37:AE37)),IF(SUM($P37*$U37/12,$V37:AE37)>$P37,$P37-SUM($V37:AE37),$P37*$U37/12),0) -> 0.00 | AG37: =IF(AND(AG$16*1>=$R37,AG$16*1<=$D$8,$R37<$D$8,$P37>SUM($V37:AF37)),IF(SUM($P37*$U37/12,$V37:AF37)>$P37,$P37-SUM($V37:AF37),$P37*$U37/12),0) -> 0.00 | AH37: =IF(AND(AH$16*1>=$R37,AH$16*1<=$D$8,$R37<$D$8,$P37>SUM($V37:AG37)),IF(SUM($P37*$U37/12,$V37:AG37)>$P37,$P37-SUM($V37:AG37),$P37*$U37/12),0) -> 0.00 | AI37: 0.00 | AL37: 1,385.30 | AN37: 1,385.30
C38: 22 | D38: 335111 | E38: MESA CEMENTO PULIDO DIRECTORIO | I38: 1255.99 | N38: 1255.99 | P38: 1,255.99 | Q38: 2005-05-15 | R38: 2005-06-01 | U38: 10% | V38: 1,255.99 | W38: =IF(AND(W$16*1>=$R38,W$16*1<=$D$8,$R38<$D$8,$P38>SUM($V38:V38)),IF(SUM($P38*$U38/12,$V38:V38)>$P38,$P38-SUM($V38:V38),$P38*$U38/12),0) -> 0.00 | X38: =IF(AND(X$16*1>=$R38,X$16*1<=$D$8,$R38<$D$8,$P38>SUM($V38:W38)),IF(SUM($P38*$U38/12,$V38:W38)>$P38,$P38-SUM($V38:W38),$P38*$U38/12),0) -> 0.00 | Y38: =IF(AND(Y$16*1>=$R38,Y$16*1<=$D$8,$R38<$D$8,$P38>SUM($V38:X38)),IF(SUM($P38*$U38/12,$V38:X38)>$P38,$P38-SUM($V38:X38),$P38*$U38/12),0) -> 0.00 | Z38: =IF(AND(Z$16*1>=$R38,Z$16*1<=$D$8,$R38<$D$8,$P38>SUM($V38:Y38)),IF(SUM($P38*$U38/12,$V38:Y38)>$P38,$P38-SUM($V38:Y38),$P38*$U38/12),0) -> 0.00 | AA38: =IF(AND(AA$16*1>=$R38,AA$16*1<=$D$8,$R38<$D$8,$P38>SUM($V38:Z38)),IF(SUM($P38*$U38/12,$V38:Z38)>$P38,$P38-SUM($V38:Z38),$P38*$U38/12),0) -> 0.00 | AB38: =IF(AND(AB$16*1>=$R38,AB$16*1<=$D$8,$R38<$D$8,$P38>SUM($V38:AA38)),IF(SUM($P38*$U38/12,$V38:AA38)>$P38,$P38-SUM($V38:AA38),$P38*$U38/12),0) -> 0.00 | AC38: =IF(AND(AC$16*1>=$R38,AC$16*1<=$D$8,$R38<$D$8,$P38>SUM($V38:AB38)),IF(SUM($P38*$U38/12,$V38:AB38)>$P38,$P38-SUM($V38:AB38),$P38*$U38/12),0) -> 0.00 | AD38: =IF(AND(AD$16*1>=$R38,AD$16*1<=$D$8,$R38<$D$8,$P38>SUM($V38:AC38)),IF(SUM($P38*$U38/12,$V38:AC38)>$P38,$P38-SUM($V38:AC38),$P38*$U38/12),0) -> 0.00 | AE38: =IF(AND(AE$16*1>=$R38,AE$16*1<=$D$8,$R38<$D$8,$P38>SUM($V38:AD38)),IF(SUM($P38*$U38/12,$V38:AD38)>$P38,$P38-SUM($V38:AD38),$P38*$U38/12),0) -> 0.00 | AF38: =IF(AND(AF$16*1>=$R38,AF$16*1<=$D$8,$R38<$D$8,$P38>SUM($V38:AE38)),IF(SUM($P38*$U38/12,$V38:AE38)>$P38,$P38-SUM($V38:AE38),$P38*$U38/12),0) -> 0.00 | AG38: =IF(AND(AG$16*1>=$R38,AG$16*1<=$D$8,$R38<$D$8,$P38>SUM($V38:AF38)),IF(SUM($P38*$U38/12,$V38:AF38)>$P38,$P38-SUM($V38:AF38),$P38*$U38/12),0) -> 0.00 | AH38: =IF(AND(AH$16*1>=$R38,AH$16*1<=$D$8,$R38<$D$8,$P38>SUM($V38:AG38)),IF(SUM($P38*$U38/12,$V38:AG38)>$P38,$P38-SUM($V38:AG38),$P38*$U38/12),0) -> 0.00 | AI38: 0.00 | AL38: 1,255.99 | AN38: 1,255.99
C39: 23 | D39: 335111 | E39: REJA METALICA VENTANA | I39: 494.01 | N39: 494.01 | P39: 494.01 | Q39: 2006-03-25 | R39: 2006-04-01 | U39: 10% | V39: 494.01 | W39: =IF(AND(W$16*1>=$R39,W$16*1<=$D$8,$R39<$D$8,$P39>SUM($V39:V39)),IF(SUM($P39*$U39/12,$V39:V39)>$P39,$P39-SUM($V39:V39),$P39*$U39/12),0) -> 0.00 | X39: =IF(AND(X$16*1>=$R39,X$16*1<=$D$8,$R39<$D$8,$P39>SUM($V39:W39)),IF(SUM($P39*$U39/12,$V39:W39)>$P39,$P39-SUM($V39:W39),$P39*$U39/12),0) -> 0.00 | Y39: =IF(AND(Y$16*1>=$R39,Y$16*1<=$D$8,$R39<$D$8,$P39>SUM($V39:X39)),IF(SUM($P39*$U39/12,$V39:X39)>$P39,$P39-SUM($V39:X39),$P39*$U39/12),0) -> 0.00 | Z39: =IF(AND(Z$16*1>=$R39,Z$16*1<=$D$8,$R39<$D$8,$P39>SUM($V39:Y39)),IF(SUM($P39*$U39/12,$V39:Y39)>$P39,$P39-SUM($V39:Y39),$P39*$U39/12),0) -> 0.00 | AA39: =IF(AND(AA$16*1>=$R39,AA$16*1<=$D$8,$R39<$D$8,$P39>SUM($V39:Z39)),IF(SUM($P39*$U39/12,$V39:Z39)>$P39,$P39-SUM($V39:Z39),$P39*$U39/12),0) -> 0.00 | AB39: =IF(AND(AB$16*1>=$R39,AB$16*1<=$D$8,$R39<$D$8,$P39>SUM($V39:AA39)),IF(SUM($P39*$U39/12,$V39:AA39)>$P39,$P39-SUM($V39:AA39),$P39*$U39/12),0) -> 0.00 | AC39: =IF(AND(AC$16*1>=$R39,AC$16*1<=$D$8,$R39<$D$8,$P39>SUM($V39:AB39)),IF(SUM($P39*$U39/12,$V39:AB39)>$P39,$P39-SUM($V39:AB39),$P39*$U39/12),0) -> 0.00 | AD39: =IF(AND(AD$16*1>=$R39,AD$16*1<=$D$8,$R39<$D$8,$P39>SUM($V39:AC39)),IF(SUM($P39*$U39/12,$V39:AC39)>$P39,$P39-SUM($V39:AC39),$P39*$U39/12),0) -> 0.00 | AE39: =IF(AND(AE$16*1>=$R39,AE$16*1<=$D$8,$R39<$D$8,$P39>SUM($V39:AD39)),IF(SUM($P39*$U39/12,$V39:AD39)>$P39,$P39-SUM($V39:AD39),$P39*$U39/12),0) -> 0.00 | AF39: =IF(AND(AF$16*1>=$R39,AF$16*1<=$D$8,$R39<$D$8,$P39>SUM($V39:AE39)),IF(SUM($P39*$U39/12,$V39:AE39)>$P39,$P39-SUM($V39:AE39),$P39*$U39/12),0) -> 0.00 | AG39: =IF(AND(AG$16*1>=$R39,AG$16*1<=$D$8,$R39<$D$8,$P39>SUM($V39:AF39)),IF(SUM($P39*$U39/12,$V39:AF39)>$P39,$P39-SUM($V39:AF39),$P39*$U39/12),0) -> 0.00 | AH39: =IF(AND(AH$16*1>=$R39,AH$16*1<=$D$8,$R39<$D$8,$P39>SUM($V39:AG39)),IF(SUM($P39*$U39/12,$V39:AG39)>$P39,$P39-SUM($V39:AG39),$P39*$U39/12),0) -> 0.00 | AI39: 0.00 | AL39: 494.01 | AN39: 494.01
C40: 24 | D40: 335111 | E40: PUERTA REJA METALICA | I40: 341.32 | N40: 341.32 | P40: 341.32 | Q40: 2006-03-25 | R40: 2006-04-01 | U40: 10% | V40: 341.32 | W40: =IF(AND(W$16*1>=$R40,W$16*1<=$D$8,$R40<$D$8,$P40>SUM($V40:V40)),IF(SUM($P40*$U40/12,$V40:V40)>$P40,$P40-SUM($V40:V40),$P40*$U40/12),0) -> 0.00 | X40: =IF(AND(X$16*1>=$R40,X$16*1<=$D$8,$R40<$D$8,$P40>SUM($V40:W40)),IF(SUM($P40*$U40/12,$V40:W40)>$P40,$P40-SUM($V40:W40),$P40*$U40/12),0) -> 0.00 | Y40: =IF(AND(Y$16*1>=$R40,Y$16*1<=$D$8,$R40<$D$8,$P40>SUM($V40:X40)),IF(SUM($P40*$U40/12,$V40:X40)>$P40,$P40-SUM($V40:X40),$P40*$U40/12),0) -> 0.00 | Z40: =IF(AND(Z$16*1>=$R40,Z$16*1<=$D$8,$R40<$D$8,$P40>SUM($V40:Y40)),IF(SUM($P40*$U40/12,$V40:Y40)>$P40,$P40-SUM($V40:Y40),$P40*$U40/12),0) -> 0.00 | AA40: =IF(AND(AA$16*1>=$R40,AA$16*1<=$D$8,$R40<$D$8,$P40>SUM($V40:Z40)),IF(SUM($P40*$U40/12,$V40:Z40)>$P40,$P40-SUM($V40:Z40),$P40*$U40/12),0) -> 0.00 | AB40: =IF(AND(AB$16*1>=$R40,AB$16*1<=$D$8,$R40<$D$8,$P40>SUM($V40:AA40)),IF(SUM($P40*$U40/12,$V40:AA40)>$P40,$P40-SUM($V40:AA40),$P40*$U40/12),0) -> 0.00 | AC40: =IF(AND(AC$16*1>=$R40,AC$16*1<=$D$8,$R40<$D$8,$P40>SUM($V40:AB40)),IF(SUM($P40*$U40/12,$V40:AB40)>$P40,$P40-SUM($V40:AB40),$P40*$U40/12),0) -> 0.00 | AD40: =IF(AND(AD$16*1>=$R40,AD$16*1<=$D$8,$R40<$D$8,$P40>SUM($V40:AC40)),IF(SUM($P40*$U40/12,$V40:AC40)>$P40,$P40-SUM($V40:AC40),$P40*$U40/12),0) -> 0.00 | AE40: =IF(AND(AE$16*1>=$R40,AE$16*1<=$D$8,$R40<$D$8,$P40>SUM($V40:AD40)),IF(SUM($P40*$U40/12,$V40:AD40)>$P40,$P40-SUM($V40:AD40),$P40*$U40/12),0) -> 0.00 | AF40: =IF(AND(AF$16*1>=$R40,AF$16*1<=$D$8,$R40<$D$8,$P40>SUM($V40:AE40)),IF(SUM($P40*$U40/12,$V40:AE40)>$P40,$P40-SUM($V40:AE40),$P40*$U40/12),0) -> 0.00 | AG40: =IF(AND(AG$16*1>=$R40,AG$16*1<=$D$8,$R40<$D$8,$P40>SUM($V40:AF40)),IF(SUM($P40*$U40/12,$V40:AF40)>$P40,$P40-SUM($V40:AF40),$P40*$U40/12),0) -> 0.00 | AH40: =IF(AND(AH$16*1>=$R40,AH$16*1<=$D$8,$R40<$D$8,$P40>SUM($V40:AG40)),IF(SUM($P40*$U40/12,$V40:AG40)>$P40,$P40-SUM($V40:AG40),$P40*$U40/12),0) -> 0.00 | AI40: 0.00 | AL40: 341.32 | AN40: 341.32
C41: 25 | D41: 335111 | E41: BARANDA ESCALERA ENTRADA | I41: 749.36 | N41: 749.36 | P41: 749.36 | Q41: 2007-04-01 | R41: 2007-05-01 | U41: 10% | V41: 749.36 | W41: =IF(AND(W$16*1>=$R41,W$16*1<=$D$8,$R41<$D$8,$P41>SUM($V41:V41)),IF(SUM($P41*$U41/12,$V41:V41)>$P41,$P41-SUM($V41:V41),$P41*$U41/12),0) -> 0.00 | X41: =IF(AND(X$16*1>=$R41,X$16*1<=$D$8,$R41<$D$8,$P41>SUM($V41:W41)),IF(SUM($P41*$U41/12,$V41:W41)>$P41,$P41-SUM($V41:W41),$P41*$U41/12),0) -> 0.00 | Y41: =IF(AND(Y$16*1>=$R41,Y$16*1<=$D$8,$R41<$D$8,$P41>SUM($V41:X41)),IF(SUM($P41*$U41/12,$V41:X41)>$P41,$P41-SUM($V41:X41),$P41*$U41/12),0) -> 0.00 | Z41: =IF(AND(Z$16*1>=$R41,Z$16*1<=$D$8,$R41<$D$8,$P41>SUM($V41:Y41)),IF(SUM($P41*$U41/12,$V41:Y41)>$P41,$P41-SUM($V41:Y41),$P41*$U41/12),0) -> 0.00 | AA41: =IF(AND(AA$16*1>=$R41,AA$16*1<=$D$8,$R41<$D$8,$P41>SUM($V41:Z41)),IF(SUM($P41*$U41/12,$V41:Z41)>$P41,$P41-SUM($V41:Z41),$P41*$U41/12),0) -> 0.00 | AB41: =IF(AND(AB$16*1>=$R41,AB$16*1<=$D$8,$R41<$D$8,$P41>SUM($V41:AA41)),IF(SUM($P41*$U41/12,$V41:AA41)>$P41,$P41-SUM($V41:AA41),$P41*$U41/12),0) -> 0.00 | AC41: =IF(AND(AC$16*1>=$R41,AC$16*1<=$D$8,$R41<$D$8,$P41>SUM($V41:AB41)),IF(SUM($P41*$U41/12,$V41:AB41)>$P41,$P41-SUM($V41:AB41),$P41*$U41/12),0) -> 0.00 | AD41: =IF(AND(AD$16*1>=$R41,AD$16*1<=$D$8,$R41<$D$8,$P41>SUM($V41:AC41)),IF(SUM($P41*$U41/12,$V41:AC41)>$P41,$P41-SUM($V41:AC41),$P41*$U41/12),0) -> 0.00 | AE41: =IF(AND(AE$16*1>=$R41,AE$16*1<=$D$8,$R41<$D$8,$P41>SUM($V41:AD41)),IF(SUM($P41*$U41/12,$V41:AD41)>$P41,$P41-SUM($V41:AD41),$P41*$U41/12),0) -> 0.00 | AF41: =IF(AND(AF$16*1>=$R41,AF$16*1<=$D$8,$R41<$D$8,$P41>SUM($V41:AE41)),IF(SUM($P41*$U41/12,$V41:AE41)>$P41,$P41-SUM($V41:AE41),$P41*$U41/12),0) -> 0.00 | AG41: =IF(AND(AG$16*1>=$R41,AG$16*1<=$D$8,$R41<$D$8,$P41>SUM($V41:AF41)),IF(SUM($P41*$U41/12,$V41:AF41)>$P41,$P41-SUM($V41:AF41),$P41*$U41/12),0) -> 0.00 | AH41: =IF(AND(AH$16*1>=$R41,AH$16*1<=$D$8,$R41<$D$8,$P41>SUM($V41:AG41)),IF(SUM($P41*$U41/12,$V41:AG41)>$P41,$P41-SUM($V41:AG41),$P41*$U41/12),0) -> 0.00 | AI41: 0.00 | AL41: 749.36 | AN41: 749.36
C42: 26 | D42: 335111 | E42: CERCO PUAS METALICAS | I42: 639.18 | N42: 639.18 | P42: 639.18 | Q42: 2007-08-28 | R42: 2007-09-01 | U42: 10% | V42: 639.18 | W42: =IF(AND(W$16*1>=$R42,W$16*1<=$D$8,$R42<$D$8,$P42>SUM($V42:V42)),IF(SUM($P42*$U42/12,$V42:V42)>$P42,$P42-SUM($V42:V42),$P42*$U42/12),0) -> 0.00 | X42: =IF(AND(X$16*1>=$R42,X$16*1<=$D$8,$R42<$D$8,$P42>SUM($V42:W42)),IF(SUM($P42*$U42/12,$V42:W42)>$P42,$P42-SUM($V42:W42),$P42*$U42/12),0) -> 0.00 | Y42: =IF(AND(Y$16*1>=$R42,Y$16*1<=$D$8,$R42<$D$8,$P42>SUM($V42:X42)),IF(SUM($P42*$U42/12,$V42:X42)>$P42,$P42-SUM($V42:X42),$P42*$U42/12),0) -> 0.00 | Z42: =IF(AND(Z$16*1>=$R42,Z$16*1<=$D$8,$R42<$D$8,$P42>SUM($V42:Y42)),IF(SUM($P42*$U42/12,$V42:Y42)>$P42,$P42-SUM($V42:Y42),$P42*$U42/12),0) -> 0.00 | AA42: =IF(AND(AA$16*1>=$R42,AA$16*1<=$D$8,$R42<$D$8,$P42>SUM($V42:Z42)),IF(SUM($P42*$U42/12,$V42:Z42)>$P42,$P42-SUM($V42:Z42),$P42*$U42/12),0) -> 0.00 | AB42: =IF(AND(AB$16*1>=$R42,AB$16*1<=$D$8,$R42<$D$8,$P42>SUM($V42:AA42)),IF(SUM($P42*$U42/12,$V42:AA42)>$P42,$P42-SUM($V42:AA42),$P42*$U42/12),0) -> 0.00 | AC42: =IF(AND(AC$16*1>=$R42,AC$16*1<=$D$8,$R42<$D$8,$P42>SUM($V42:AB42)),IF(SUM($P42*$U42/12,$V42:AB42)>$P42,$P42-SUM($V42:AB42),$P42*$U42/12),0) -> 0.00 | AD42: =IF(AND(AD$16*1>=$R42,AD$16*1<=$D$8,$R42<$D$8,$P42>SUM($V42:AC42)),IF(SUM($P42*$U42/12,$V42:AC42)>$P42,$P42-SUM($V42:AC42),$P42*$U42/12),0) -> 0.00 | AE42: =IF(AND(AE$16*1>=$R42,AE$16*1<=$D$8,$R42<$D$8,$P42>SUM($V42:AD42)),IF(SUM($P42*$U42/12,$V42:AD42)>$P42,$P42-SUM($V42:AD42),$P42*$U42/12),0) -> 0.00 | AF42: =IF(AND(AF$16*1>=$R42,AF$16*1<=$D$8,$R42<$D$8,$P42>SUM($V42:AE42)),IF(SUM($P42*$U42/12,$V42:AE42)>$P42,$P42-SUM($V42:AE42),$P42*$U42/12),0) -> 0.00 | AG42: =IF(AND(AG$16*1>=$R42,AG$16*1<=$D$8,$R42<$D$8,$P42>SUM($V42:AF42)),IF(SUM($P42*$U42/12,$V42:AF42)>$P42,$P42-SUM($V42:AF42),$P42*$U42/12),0) -> 0.00 | AH42: =IF(AND(AH$16*1>=$R42,AH$16*1<=$D$8,$R42<$D$8,$P42>SUM($V42:AG42)),IF(SUM($P42*$U42/12,$V42:AG42)>$P42,$P42-SUM($V42:AG42),$P42*$U42/12),0) -> 0.00 | AI42: 0.00 | AL42: 639.18 | AN42: 639.18
C43: 27 | D43: 335111 | E43: ESCRITORIO NEGRO EN L (AG) | I43: 557.23 | N43: 557.23 | P43: 557.23 | Q43: 2008-04-27 | R43: 2008-05-01 | U43: 10% | V43: 557.23 | W43: =IF(AND(W$16*1>=$R43,W$16*1<=$D$8,$R43<$D$8,$P43>SUM($V43:V43)),IF(SUM($P43*$U43/12,$V43:V43)>$P43,$P43-SUM($V43:V43),$P43*$U43/12),0) -> 0.00 | X43: =IF(AND(X$16*1>=$R43,X$16*1<=$D$8,$R43<$D$8,$P43>SUM($V43:W43)),IF(SUM($P43*$U43/12,$V43:W43)>$P43,$P43-SUM($V43:W43),$P43*$U43/12),0) -> 0.00 | Y43: =IF(AND(Y$16*1>=$R43,Y$16*1<=$D$8,$R43<$D$8,$P43>SUM($V43:X43)),IF(SUM($P43*$U43/12,$V43:X43)>$P43,$P43-SUM($V43:X43),$P43*$U43/12),0) -> 0.00 | Z43: =IF(AND(Z$16*1>=$R43,Z$16*1<=$D$8,$R43<$D$8,$P43>SUM($V43:Y43)),IF(SUM($P43*$U43/12,$V43:Y43)>$P43,$P43-SUM($V43:Y43),$P43*$U43/12),0) -> 0.00 | AA43: =IF(AND(AA$16*1>=$R43,AA$16*1<=$D$8,$R43<$D$8,$P43>SUM($V43:Z43)),IF(SUM($P43*$U43/12,$V43:Z43)>$P43,$P43-SUM($V43:Z43),$P43*$U43/12),0) -> 0.00 | AB43: =IF(AND(AB$16*1>=$R43,AB$16*1<=$D$8,$R43<$D$8,$P43>SUM($V43:AA43)),IF(SUM($P43*$U43/12,$V43:AA43)>$P43,$P43-SUM($V43:AA43),$P43*$U43/12),0) -> 0.00 | AC43: =IF(AND(AC$16*1>=$R43,AC$16*1<=$D$8,$R43<$D$8,$P43>SUM($V43:AB43)),IF(SUM($P43*$U43/12,$V43:AB43)>$P43,$P43-SUM($V43:AB43),$P43*$U43/12),0) -> 0.00 | AD43: =IF(AND(AD$16*1>=$R43,AD$16*1<=$D$8,$R43<$D$8,$P43>SUM($V43:AC43)),IF(SUM($P43*$U43/12,$V43:AC43)>$P43,$P43-SUM($V43:AC43),$P43*$U43/12),0) -> 0.00 | AE43: =IF(AND(AE$16*1>=$R43,AE$16*1<=$D$8,$R43<$D$8,$P43>SUM($V43:AD43)),IF(SUM($P43*$U43/12,$V43:AD43)>$P43,$P43-SUM($V43:AD43),$P43*$U43/12),0) -> 0.00 | AF43: =IF(AND(AF$16*1>=$R43,AF$16*1<=$D$8,$R43<$D$8,$P43>SUM($V43:AE43)),IF(SUM($P43*$U43/12,$V43:AE43)>$P43,$P43-SUM($V43:AE43),$P43*$U43/12),0) -> 0.00 | AG43: =IF(AND(AG$16*1>=$R43,AG$16*1<=$D$8,$R43<$D$8,$P43>SUM($V43:AF43)),IF(SUM($P43*$U43/12,$V43:AF43)>$P43,$P43-SUM($V43:AF43),$P43*$U43/12),0) -> 0.00 | AH43: =IF(AND(AH$16*1>=$R43,AH$16*1<=$D$8,$R43<$D$8,$P43>SUM($V43:AG43)),IF(SUM($P43*$U43/12,$V43:AG43)>$P43,$P43-SUM($V43:AG43),$P43*$U43/12),0) -> 0.00 | AI43: 0.00 | AL43: 557.23 | AN43: 557.23
C44: 28 | D44: 335111 | E44: ESCRITORIO NEGRO EN L (MG) | I44: 647.11 | N44: 647.11 | P44: 647.11 | Q44: 2008-04-27 | R44: 2008-05-01 | U44: 10% | V44: 647.11 | W44: =IF(AND(W$16*1>=$R44,W$16*1<=$D$8,$R44<$D$8,$P44>SUM($V44:V44)),IF(SUM($P44*$U44/12,$V44:V44)>$P44,$P44-SUM($V44:V44),$P44*$U44/12),0) -> 0.00 | X44: =IF(AND(X$16*1>=$R44,X$16*1<=$D$8,$R44<$D$8,$P44>SUM($V44:W44)),IF(SUM($P44*$U44/12,$V44:W44)>$P44,$P44-SUM($V44:W44),$P44*$U44/12),0) -> 0.00 | Y44: =IF(AND(Y$16*1>=$R44,Y$16*1<=$D$8,$R44<$D$8,$P44>SUM($V44:X44)),IF(SUM($P44*$U44/12,$V44:X44)>$P44,$P44-SUM($V44:X44),$P44*$U44/12),0) -> 0.00 | Z44: =IF(AND(Z$16*1>=$R44,Z$16*1<=$D$8,$R44<$D$8,$P44>SUM($V44:Y44)),IF(SUM($P44*$U44/12,$V44:Y44)>$P44,$P44-SUM($V44:Y44),$P44*$U44/12),0) -> 0.00 | AA44: =IF(AND(AA$16*1>=$R44,AA$16*1<=$D$8,$R44<$D$8,$P44>SUM($V44:Z44)),IF(SUM($P44*$U44/12,$V44:Z44)>$P44,$P44-SUM($V44:Z44),$P44*$U44/12),0) -> 0.00 | AB44: =IF(AND(AB$16*1>=$R44,AB$16*1<=$D$8,$R44<$D$8,$P44>SUM($V44:AA44)),IF(SUM($P44*$U44/12,$V44:AA44)>$P44,$P44-SUM($V44:AA44),$P44*$U44/12),0) -> 0.00 | AC44: =IF(AND(AC$16*1>=$R44,AC$16*1<=$D$8,$R44<$D$8,$P44>SUM($V44:AB44)),IF(SUM($P44*$U44/12,$V44:AB44)>$P44,$P44-SUM($V44:AB44),$P44*$U44/12),0) -> 0.00 | AD44: =IF(AND(AD$16*1>=$R44,AD$16*1<=$D$8,$R44<$D$8,$P44>SUM($V44:AC44)),IF(SUM($P44*$U44/12,$V44:AC44)>$P44,$P44-SUM($V44:AC44),$P44*$U44/12),0) -> 0.00 | AE44: =IF(AND(AE$16*1>=$R44,AE$16*1<=$D$8,$R44<$D$8,$P44>SUM($V44:AD44)),IF(SUM($P44*$U44/12,$V44:AD44)>$P44,$P44-SUM($V44:AD44),$P44*$U44/12),0) -> 0.00 | AF44: =IF(AND(AF$16*1>=$R44,AF$16*1<=$D$8,$R44<$D$8,$P44>SUM($V44:AE44)),IF(SUM($P44*$U44/12,$V44:AE44)>$P44,$P44-SUM($V44:AE44),$P44*$U44/12),0) -> 0.00 | AG44: =IF(AND(AG$16*1>=$R44,AG$16*1<=$D$8,$R44<$D$8,$P44>SUM($V44:AF44)),IF(SUM($P44*$U44/12,$V44:AF44)>$P44,$P44-SUM($V44:AF44),$P44*$U44/12),0) -> 0.00 | AH44: =IF(AND(AH$16*1>=$R44,AH$16*1<=$D$8,$R44<$D$8,$P44>SUM($V44:AG44)),IF(SUM($P44*$U44/12,$V44:AG44)>$P44,$P44-SUM($V44:AG44),$P44*$U44/12),0) -> 0.00 | AI44: 0.00 | AL44: 647.11 | AN44: 647.11
C45: 29 | D45: 335111 | E45: SILLA GIRATORIA GRIS S/BRAZOS | I45: 124.02 | N45: 124.02 | P45: 124.02 | Q45: 2008-09-01 | R45: 2008-10-01 | U45: 10% | V45: 124.02 | W45: =IF(AND(W$16*1>=$R45,W$16*1<=$D$8,$R45<$D$8,$P45>SUM($V45:V45)),IF(SUM($P45*$U45/12,$V45:V45)>$P45,$P45-SUM($V45:V45),$P45*$U45/12),0) -> 0.00 | X45: =IF(AND(X$16*1>=$R45,X$16*1<=$D$8,$R45<$D$8,$P45>SUM($V45:W45)),IF(SUM($P45*$U45/12,$V45:W45)>$P45,$P45-SUM($V45:W45),$P45*$U45/12),0) -> 0.00 | Y45: =IF(AND(Y$16*1>=$R45,Y$16*1<=$D$8,$R45<$D$8,$P45>SUM($V45:X45)),IF(SUM($P45*$U45/12,$V45:X45)>$P45,$P45-SUM($V45:X45),$P45*$U45/12),0) -> 0.00 | Z45: =IF(AND(Z$16*1>=$R45,Z$16*1<=$D$8,$R45<$D$8,$P45>SUM($V45:Y45)),IF(SUM($P45*$U45/12,$V45:Y45)>$P45,$P45-SUM($V45:Y45),$P45*$U45/12),0) -> 0.00 | AA45: =IF(AND(AA$16*1>=$R45,AA$16*1<=$D$8,$R45<$D$8,$P45>SUM($V45:Z45)),IF(SUM($P45*$U45/12,$V45:Z45)>$P45,$P45-SUM($V45:Z45),$P45*$U45/12),0) -> 0.00 | AB45: =IF(AND(AB$16*1>=$R45,AB$16*1<=$D$8,$R45<$D$8,$P45>SUM($V45:AA45)),IF(SUM($P45*$U45/12,$V45:AA45)>$P45,$P45-SUM($V45:AA45),$P45*$U45/12),0) -> 0.00 | AC45: =IF(AND(AC$16*1>=$R45,AC$16*1<=$D$8,$R45<$D$8,$P45>SUM($V45:AB45)),IF(SUM($P45*$U45/12,$V45:AB45)>$P45,$P45-SUM($V45:AB45),$P45*$U45/12),0) -> 0.00 | AD45: =IF(AND(AD$16*1>=$R45,AD$16*1<=$D$8,$R45<$D$8,$P45>SUM($V45:AC45)),IF(SUM($P45*$U45/12,$V45:AC45)>$P45,$P45-SUM($V45:AC45),$P45*$U45/12),0) -> 0.00 | AE45: =IF(AND(AE$16*1>=$R45,AE$16*1<=$D$8,$R45<$D$8,$P45>SUM($V45:AD45)),IF(SUM($P45*$U45/12,$V45:AD45)>$P45,$P45-SUM($V45:AD45),$P45*$U45/12),0) -> 0.00 | AF45: =IF(AND(AF$16*1>=$R45,AF$16*1<=$D$8,$R45<$D$8,$P45>SUM($V45:AE45)),IF(SUM($P45*$U45/12,$V45:AE45)>$P45,$P45-SUM($V45:AE45),$P45*$U45/12),0) -> 0.00 | AG45: =IF(AND(AG$16*1>=$R45,AG$16*1<=$D$8,$R45<$D$8,$P45>SUM($V45:AF45)),IF(SUM($P45*$U45/12,$V45:AF45)>$P45,$P45-SUM($V45:AF45),$P45*$U45/12),0) -> 0.00 | AH45: =IF(AND(AH$16*1>=$R45,AH$16*1<=$D$8,$R45<$D$8,$P45>SUM($V45:AG45)),IF(SUM($P45*$U45/12,$V45:AG45)>$P45,$P45-SUM($V45:AG45),$P45*$U45/12),0) -> 0.00 | AI45: 0.00 | AL45: 124.02 | AN45: 124.02
C46: 30 | D46: 335111 | E46: ECRAN CON TRIPODE | I46: 545.85 | N46: 545.85 | P46: 545.85 | Q46: 2008-12-28 | R46: 2009-01-01 | U46: 10% | V46: 545.85 | W46: =IF(AND(W$16*1>=$R46,W$16*1<=$D$8,$R46<$D$8,$P46>SUM($V46:V46)),IF(SUM($P46*$U46/12,$V46:V46)>$P46,$P46-SUM($V46:V46),$P46*$U46/12),0) -> 0.00 | X46: =IF(AND(X$16*1>=$R46,X$16*1<=$D$8,$R46<$D$8,$P46>SUM($V46:W46)),IF(SUM($P46*$U46/12,$V46:W46)>$P46,$P46-SUM($V46:W46),$P46*$U46/12),0) -> 0.00 | Y46: =IF(AND(Y$16*1>=$R46,Y$16*1<=$D$8,$R46<$D$8,$P46>SUM($V46:X46)),IF(SUM($P46*$U46/12,$V46:X46)>$P46,$P46-SUM($V46:X46),$P46*$U46/12),0) -> 0.00 | Z46: =IF(AND(Z$16*1>=$R46,Z$16*1<=$D$8,$R46<$D$8,$P46>SUM($V46:Y46)),IF(SUM($P46*$U46/12,$V46:Y46)>$P46,$P46-SUM($V46:Y46),$P46*$U46/12),0) -> 0.00 | AA46: =IF(AND(AA$16*1>=$R46,AA$16*1<=$D$8,$R46<$D$8,$P46>SUM($V46:Z46)),IF(SUM($P46*$U46/12,$V46:Z46)>$P46,$P46-SUM($V46:Z46),$P46*$U46/12),0) -> 0.00 | AB46: =IF(AND(AB$16*1>=$R46,AB$16*1<=$D$8,$R46<$D$8,$P46>SUM($V46:AA46)),IF(SUM($P46*$U46/12,$V46:AA46)>$P46,$P46-SUM($V46:AA46),$P46*$U46/12),0) -> 0.00 | AC46: =IF(AND(AC$16*1>=$R46,AC$16*1<=$D$8,$R46<$D$8,$P46>SUM($V46:AB46)),IF(SUM($P46*$U46/12,$V46:AB46)>$P46,$P46-SUM($V46:AB46),$P46*$U46/12),0) -> 0.00 | AD46: =IF(AND(AD$16*1>=$R46,AD$16*1<=$D$8,$R46<$D$8,$P46>SUM($V46:AC46)),IF(SUM($P46*$U46/12,$V46:AC46)>$P46,$P46-SUM($V46:AC46),$P46*$U46/12),0) -> 0.00 | AE46: =IF(AND(AE$16*1>=$R46,AE$16*1<=$D$8,$R46<$D$8,$P46>SUM($V46:AD46)),IF(SUM($P46*$U46/12,$V46:AD46)>$P46,$P46-SUM($V46:AD46),$P46*$U46/12),0) -> 0.00 | AF46: =IF(AND(AF$16*1>=$R46,AF$16*1<=$D$8,$R46<$D$8,$P46>SUM($V46:AE46)),IF(SUM($P46*$U46/12,$V46:AE46)>$P46,$P46-SUM($V46:AE46),$P46*$U46/12),0) -> 0.00 | AG46: =IF(AND(AG$16*1>=$R46,AG$16*1<=$D$8,$R46<$D$8,$P46>SUM($V46:AF46)),IF(SUM($P46*$U46/12,$V46:AF46)>$P46,$P46-SUM($V46:AF46),$P46*$U46/12),0) -> 0.00 | AH46: =IF(AND(AH$16*1>=$R46,AH$16*1<=$D$8,$R46<$D$8,$P46>SUM($V46:AG46)),IF(SUM($P46*$U46/12,$V46:AG46)>$P46,$P46-SUM($V46:AG46),$P46*$U46/12),0) -> 0.00 | AI46: 0.00 | AL46: 545.85 | AN46: 545.85
C47: 31 | D47: 335111 | E47: ARCHIVADOR 4 GAVETAS | I47: 192.82 | N47: 192.82 | P47: 192.82 | Q47: 2009-01-10 | R47: 2009-02-01 | U47: 10% | V47: 191.20 | W47: =IF(AND(W$16*1>=$R47,W$16*1<=$D$8,$R47<$D$8,$P47>SUM($V47:V47)),IF(SUM($P47*$U47/12,$V47:V47)>$P47,$P47-SUM($V47:V47),$P47*$U47/12),0) -> 1.61 | X47: =IF(AND(X$16*1>=$R47,X$16*1<=$D$8,$R47<$D$8,$P47>SUM($V47:W47)),IF(SUM($P47*$U47/12,$V47:W47)>$P47,$P47-SUM($V47:W47),$P47*$U47/12),0) -> 0.01 | Y47: =IF(AND(Y$16*1>=$R47,Y$16*1<=$D$8,$R47<$D$8,$P47>SUM($V47:X47)),IF(SUM($P47*$U47/12,$V47:X47)>$P47,$P47-SUM($V47:X47),$P47*$U47/12),0) -> 0.00 | Z47: =IF(AND(Z$16*1>=$R47,Z$16*1<=$D$8,$R47<$D$8,$P47>SUM($V47:Y47)),IF(SUM($P47*$U47/12,$V47:Y47)>$P47,$P47-SUM($V47:Y47),$P47*$U47/12),0) -> 0.00 | AA47: =IF(AND(AA$16*1>=$R47,AA$16*1<=$D$8,$R47<$D$8,$P47>SUM($V47:Z47)),IF(SUM($P47*$U47/12,$V47:Z47)>$P47,$P47-SUM($V47:Z47),$P47*$U47/12),0) -> 0.00 | AB47: =IF(AND(AB$16*1>=$R47,AB$16*1<=$D$8,$R47<$D$8,$P47>SUM($V47:AA47)),IF(SUM($P47*$U47/12,$V47:AA47)>$P47,$P47-SUM($V47:AA47),$P47*$U47/12),0) -> 0.00 | AC47: =IF(AND(AC$16*1>=$R47,AC$16*1<=$D$8,$R47<$D$8,$P47>SUM($V47:AB47)),IF(SUM($P47*$U47/12,$V47:AB47)>$P47,$P47-SUM($V47:AB47),$P47*$U47/12),0) -> 0.00 | AD47: =IF(AND(AD$16*1>=$R47,AD$16*1<=$D$8,$R47<$D$8,$P47>SUM($V47:AC47)),IF(SUM($P47*$U47/12,$V47:AC47)>$P47,$P47-SUM($V47:AC47),$P47*$U47/12),0) -> 0.00 | AE47: =IF(AND(AE$16*1>=$R47,AE$16*1<=$D$8,$R47<$D$8,$P47>SUM($V47:AD47)),IF(SUM($P47*$U47/12,$V47:AD47)>$P47,$P47-SUM($V47:AD47),$P47*$U47/12),0) -> 0.00 | AF47: =IF(AND(AF$16*1>=$R47,AF$16*1<=$D$8,$R47<$D$8,$P47>SUM($V47:AE47)),IF(SUM($P47*$U47/12,$V47:AE47)>$P47,$P47-SUM($V47:AE47),$P47*$U47/12),0) -> 0.00 | AG47: =IF(AND(AG$16*1>=$R47,AG$16*1<=$D$8,$R47<$D$8,$P47>SUM($V47:AF47)),IF(SUM($P47*$U47/12,$V47:AF47)>$P47,$P47-SUM($V47:AF47),$P47*$U47/12),0) -> 0.00 | AH47: =IF(AND(AH$16*1>=$R47,AH$16*1<=$D$8,$R47<$D$8,$P47>SUM($V47:AG47)),IF(SUM($P47*$U47/12,$V47:AG47)>$P47,$P47-SUM($V47:AG47),$P47*$U47/12),0) -> 0.00 | AI47: 1.62 | AL47: 192.82 | AN47: 192.82
C48: 32 | D48: 335111 | E48: REJA METALICA FACHADA | I48: 4837.68 | N48: 4837.68 | P48: 4,837.68 | Q48: 2009-08-24 | R48: 2009-09-01 | U48: 10% | V48: 4,515.19 | W48: =IF(AND(W$16*1>=$R48,W$16*1<=$D$8,$R48<$D$8,$P48>SUM($V48:V48)),IF(SUM($P48*$U48/12,$V48:V48)>$P48,$P48-SUM($V48:V48),$P48*$U48/12),0) -> 40.31 | X48: =IF(AND(X$16*1>=$R48,X$16*1<=$D$8,$R48<$D$8,$P48>SUM($V48:W48)),IF(SUM($P48*$U48/12,$V48:W48)>$P48,$P48-SUM($V48:W48),$P48*$U48/12),0) -> 40.31 | Y48: =IF(AND(Y$16*1>=$R48,Y$16*1<=$D$8,$R48<$D$8,$P48>SUM($V48:X48)),IF(SUM($P48*$U48/12,$V48:X48)>$P48,$P48-SUM($V48:X48),$P48*$U48/12),0) -> 40.31 | Z48: =IF(AND(Z$16*1>=$R48,Z$16*1<=$D$8,$R48<$D$8,$P48>SUM($V48:Y48)),IF(SUM($P48*$U48/12,$V48:Y48)>$P48,$P48-SUM($V48:Y48),$P48*$U48/12),0) -> 40.31 | AA48: =IF(AND(AA$16*1>=$R48,AA$16*1<=$D$8,$R48<$D$8,$P48>SUM($V48:Z48)),IF(SUM($P48*$U48/12,$V48:Z48)>$P48,$P48-SUM($V48:Z48),$P48*$U48/12),0) -> 40.31 | AB48: =IF(AND(AB$16*1>=$R48,AB$16*1<=$D$8,$R48<$D$8,$P48>SUM($V48:AA48)),IF(SUM($P48*$U48/12,$V48:AA48)>$P48,$P48-SUM($V48:AA48),$P48*$U48/12),0) -> 0.00 | AC48: =IF(AND(AC$16*1>=$R48,AC$16*1<=$D$8,$R48<$D$8,$P48>SUM($V48:AB48)),IF(SUM($P48*$U48/12,$V48:AB48)>$P48,$P48-SUM($V48:AB48),$P48*$U48/12),0) -> 0.00 | AD48: =IF(AND(AD$16*1>=$R48,AD$16*1<=$D$8,$R48<$D$8,$P48>SUM($V48:AC48)),IF(SUM($P48*$U48/12,$V48:AC48)>$P48,$P48-SUM($V48:AC48),$P48*$U48/12),0) -> 0.00 | AE48: =IF(AND(AE$16*1>=$R48,AE$16*1<=$D$8,$R48<$D$8,$P48>SUM($V48:AD48)),IF(SUM($P48*$U48/12,$V48:AD48)>$P48,$P48-SUM($V48:AD48),$P48*$U48/12),0) -> 0.00 | AF48: =IF(AND(AF$16*1>=$R48,AF$16*1<=$D$8,$R48<$D$8,$P48>SUM($V48:AE48)),IF(SUM($P48*$U48/12,$V48:AE48)>$P48,$P48-SUM($V48:AE48),$P48*$U48/12),0) -> 0.00 | AG48: =IF(AND(AG$16*1>=$R48,AG$16*1<=$D$8,$R48<$D$8,$P48>SUM($V48:AF48)),IF(SUM($P48*$U48/12,$V48:AF48)>$P48,$P48-SUM($V48:AF48),$P48*$U48/12),0) -> 0.00 | AH48: =IF(AND(AH$16*1>=$R48,AH$16*1<=$D$8,$R48<$D$8,$P48>SUM($V48:AG48)),IF(SUM($P48*$U48/12,$V48:AG48)>$P48,$P48-SUM($V48:AG48),$P48*$U48/12),0) -> 0.00 | AI48: 201.57 | AL48: 4,636.13 | AN48: 4,636.13
C49: 33 | D49: 335111 | E49: REJA METAL AREA LIBROS | I49: 420.17 | N49: 420.17 | P49: 420.17 | Q49: 2011-06-11 | R49: 2011-07-01 | U49: 10% | V49: 315.15 | W49: =IF(AND(W$16*1>=$R49,W$16*1<=$D$8,$R49<$D$8,$P49>SUM($V49:V49)),IF(SUM($P49*$U49/12,$V49:V49)>$P49,$P49-SUM($V49:V49),$P49*$U49/12),0) -> 3.50 | X49: =IF(AND(X$16*1>=$R49,X$16*1<=$D$8,$R49<$D$8,$P49>SUM($V49:W49)),IF(SUM($P49*$U49/12,$V49:W49)>$P49,$P49-SUM($V49:W49),$P49*$U49/12),0) -> 3.50 | Y49: =IF(AND(Y$16*1>=$R49,Y$16*1<=$D$8,$R49<$D$8,$P49>SUM($V49:X49)),IF(SUM($P49*$U49/12,$V49:X49)>$P49,$P49-SUM($V49:X49),$P49*$U49/12),0) -> 3.50 | Z49: =IF(AND(Z$16*1>=$R49,Z$16*1<=$D$8,$R49<$D$8,$P49>SUM($V49:Y49)),IF(SUM($P49*$U49/12,$V49:Y49)>$P49,$P49-SUM($V49:Y49),$P49*$U49/12),0) -> 3.50 | AA49: =IF(AND(AA$16*1>=$R49,AA$16*1<=$D$8,$R49<$D$8,$P49>SUM($V49:Z49)),IF(SUM($P49*$U49/12,$V49:Z49)>$P49,$P49-SUM($V49:Z49),$P49*$U49/12),0) -> 3.50 | AB49: =IF(AND(AB$16*1>=$R49,AB$16*1<=$D$8,$R49<$D$8,$P49>SUM($V49:AA49)),IF(SUM($P49*$U49/12,$V49:AA49)>$P49,$P49-SUM($V49:AA49),$P49*$U49/12),0) -> 0.00 | AC49: =IF(AND(AC$16*1>=$R49,AC$16*1<=$D$8,$R49<$D$8,$P49>SUM($V49:AB49)),IF(SUM($P49*$U49/12,$V49:AB49)>$P49,$P49-SUM($V49:AB49),$P49*$U49/12),0) -> 0.00 | AD49: =IF(AND(AD$16*1>=$R49,AD$16*1<=$D$8,$R49<$D$8,$P49>SUM($V49:AC49)),IF(SUM($P49*$U49/12,$V49:AC49)>$P49,$P49-SUM($V49:AC49),$P49*$U49/12),0) -> 0.00 | AE49: =IF(AND(AE$16*1>=$R49,AE$16*1<=$D$8,$R49<$D$8,$P49>SUM($V49:AD49)),IF(SUM($P49*$U49/12,$V49:AD49)>$P49,$P49-SUM($V49:AD49),$P49*$U49/12),0) -> 0.00 | AF49: =IF(AND(AF$16*1>=$R49,AF$16*1<=$D$8,$R49<$D$8,$P49>SUM($V49:AE49)),IF(SUM($P49*$U49/12,$V49:AE49)>$P49,$P49-SUM($V49:AE49),$P49*$U49/12),0) -> 0.00 | AG49: =IF(AND(AG$16*1>=$R49,AG$16*1<=$D$8,$R49<$D$8,$P49>SUM($V49:AF49)),IF(SUM($P49*$U49/12,$V49:AF49)>$P49,$P49-SUM($V49:AF49),$P49*$U49/12),0) -> 0.00 | AH49: =IF(AND(AH$16*1>=$R49,AH$16*1<=$D$8,$R49<$D$8,$P49>SUM($V49:AG49)),IF(SUM($P49*$U49/12,$V49:AG49)>$P49,$P49-SUM($V49:AG49),$P49*$U49/12),0) -> 0.00 | AI49: 17.51 | AL49: 325.65 | AN49: 325.65
C50: 34 | D50: 335111 | E50: 5 ARCHIVADORES MADERA MARRON 4 GAVETAS | I50: 1134.45 | N50: 1134.45 | P50: 1,134.45 | Q50: 2011-11-22 | R50: 2011-12-01 | U50: 10% | V50: 803.60 | W50: =IF(AND(W$16*1>=$R50,W$16*1<=$D$8,$R50<$D$8,$P50>SUM($V50:V50)),IF(SUM($P50*$U50/12,$V50:V50)>$P50,$P50-SUM($V50:V50),$P50*$U50/12),0) -> 9.45 | X50: =IF(AND(X$16*1>=$R50,X$16*1<=$D$8,$R50<$D$8,$P50>SUM($V50:W50)),IF(SUM($P50*$U50/12,$V50:W50)>$P50,$P50-SUM($V50:W50),$P50*$U50/12),0) -> 9.45 | Y50: =IF(AND(Y$16*1>=$R50,Y$16*1<=$D$8,$R50<$D$8,$P50>SUM($V50:X50)),IF(SUM($P50*$U50/12,$V50:X50)>$P50,$P50-SUM($V50:X50),$P50*$U50/12),0) -> 9.45 | Z50: =IF(AND(Z$16*1>=$R50,Z$16*1<=$D$8,$R50<$D$8,$P50>SUM($V50:Y50)),IF(SUM($P50*$U50/12,$V50:Y50)>$P50,$P50-SUM($V50:Y50),$P50*$U50/12),0) -> 9.45 | AA50: =IF(AND(AA$16*1>=$R50,AA$16*1<=$D$8,$R50<$D$8,$P50>SUM($V50:Z50)),IF(SUM($P50*$U50/12,$V50:Z50)>$P50,$P50-SUM($V50:Z50),$P50*$U50/12),0) -> 9.45 | AB50: =IF(AND(AB$16*1>=$R50,AB$16*1<=$D$8,$R50<$D$8,$P50>SUM($V50:AA50)),IF(SUM($P50*$U50/12,$V50:AA50)>$P50,$P50-SUM($V50:AA50),$P50*$U50/12),0) -> 0.00 | AC50: =IF(AND(AC$16*1>=$R50,AC$16*1<=$D$8,$R50<$D$8,$P50>SUM($V50:AB50)),IF(SUM($P50*$U50/12,$V50:AB50)>$P50,$P50-SUM($V50:AB50),$P50*$U50/12),0) -> 0.00 | AD50: =IF(AND(AD$16*1>=$R50,AD$16*1<=$D$8,$R50<$D$8,$P50>SUM($V50:AC50)),IF(SUM($P50*$U50/12,$V50:AC50)>$P50,$P50-SUM($V50:AC50),$P50*$U50/12),0) -> 0.00 | AE50: =IF(AND(AE$16*1>=$R50,AE$16*1<=$D$8,$R50<$D$8,$P50>SUM($V50:AD50)),IF(SUM($P50*$U50/12,$V50:AD50)>$P50,$P50-SUM($V50:AD50),$P50*$U50/12),0) -> 0.00 | AF50: =IF(AND(AF$16*1>=$R50,AF$16*1<=$D$8,$R50<$D$8,$P50>SUM($V50:AE50)),IF(SUM($P50*$U50/12,$V50:AE50)>$P50,$P50-SUM($V50:AE50),$P50*$U50/12),0) -> 0.00 | AG50: =IF(AND(AG$16*1>=$R50,AG$16*1<=$D$8,$R50<$D$8,$P50>SUM($V50:AF50)),IF(SUM($P50*$U50/12,$V50:AF50)>$P50,$P50-SUM($V50:AF50),$P50*$U50/12),0) -> 0.00 | AH50: =IF(AND(AH$16*1>=$R50,AH$16*1<=$D$8,$R50<$D$8,$P50>SUM($V50:AG50)),IF(SUM($P50*$U50/12,$V50:AG50)>$P50,$P50-SUM($V50:AG50),$P50*$U50/12),0) -> 0.00 | AI50: 47.27 | AL50: 831.96 | AN50: 831.96
C51: 35 | D51: 335111 | E51: 2 ARMARIOS METAL NEGRO 2 PTAS. | I51: 546.22 | N51: 546.22 | P51: 546.22 | Q51: 2011-11-26 | R51: 2011-12-01 | U51: 10% | V51: 386.89 | W51: =IF(AND(W$16*1>=$R51,W$16*1<=$D$8,$R51<$D$8,$P51>SUM($V51:V51)),IF(SUM($P51*$U51/12,$V51:V51)>$P51,$P51-SUM($V51:V51),$P51*$U51/12),0) -> 4.55 | X51: =IF(AND(X$16*1>=$R51,X$16*1<=$D$8,$R51<$D$8,$P51>SUM($V51:W51)),IF(SUM($P51*$U51/12,$V51:W51)>$P51,$P51-SUM($V51:W51),$P51*$U51/12),0) -> 4.55 | Y51: =IF(AND(Y$16*1>=$R51,Y$16*1<=$D$8,$R51<$D$8,$P51>SUM($V51:X51)),IF(SUM($P51*$U51/12,$V51:X51)>$P51,$P51-SUM($V51:X51),$P51*$U51/12),0) -> 4.55 | Z51: =IF(AND(Z$16*1>=$R51,Z$16*1<=$D$8,$R51<$D$8,$P51>SUM($V51:Y51)),IF(SUM($P51*$U51/12,$V51:Y51)>$P51,$P51-SUM($V51:Y51),$P51*$U51/12),0) -> 4.55 | AA51: =IF(AND(AA$16*1>=$R51,AA$16*1<=$D$8,$R51<$D$8,$P51>SUM($V51:Z51)),IF(SUM($P51*$U51/12,$V51:Z51)>$P51,$P51-SUM($V51:Z51),$P51*$U51/12),0) -> 4.55 | AB51: =IF(AND(AB$16*1>=$R51,AB$16*1<=$D$8,$R51<$D$8,$P51>SUM($V51:AA51)),IF(SUM($P51*$U51/12,$V51:AA51)>$P51,$P51-SUM($V51:AA51),$P51*$U51/12),0) -> 0.00 | AC51: =IF(AND(AC$16*1>=$R51,AC$16*1<=$D$8,$R51<$D$8,$P51>SUM($V51:AB51)),IF(SUM($P51*$U51/12,$V51:AB51)>$P51,$P51-SUM($V51:AB51),$P51*$U51/12),0) -> 0.00 | AD51: =IF(AND(AD$16*1>=$R51,AD$16*1<=$D$8,$R51<$D$8,$P51>SUM($V51:AC51)),IF(SUM($P51*$U51/12,$V51:AC51)>$P51,$P51-SUM($V51:AC51),$P51*$U51/12),0) -> 0.00 | AE51: =IF(AND(AE$16*1>=$R51,AE$16*1<=$D$8,$R51<$D$8,$P51>SUM($V51:AD51)),IF(SUM($P51*$U51/12,$V51:AD51)>$P51,$P51-SUM($V51:AD51),$P51*$U51/12),0) -> 0.00 | AF51: =IF(AND(AF$16*1>=$R51,AF$16*1<=$D$8,$R51<$D$8,$P51>SUM($V51:AE51)),IF(SUM($P51*$U51/12,$V51:AE51)>$P51,$P51-SUM($V51:AE51),$P51*$U51/12),0) -> 0.00 | AG51: =IF(AND(AG$16*1>=$R51,AG$16*1<=$D$8,$R51<$D$8,$P51>SUM($V51:AF51)),IF(SUM($P51*$U51/12,$V51:AF51)>$P51,$P51-SUM($V51:AF51),$P51*$U51/12),0) -> 0.00 | AH51: =IF(AND(AH$16*1>=$R51,AH$16*1<=$D$8,$R51<$D$8,$P51>SUM($V51:AG51)),IF(SUM($P51*$U51/12,$V51:AG51)>$P51,$P51-SUM($V51:AG51),$P51*$U51/12),0) -> 0.00 | AI51: 22.76 | AL51: 400.55 | AN51: 400.55
C52: 36 | D52: 335111 | E52: ARMARIO METAL NEGRO 2 PTAS. | I52: 273.11 | N52: 273.11 | P52: 273.11 | Q52: 2012-04-17 | R52: 2012-05-01 | U52: 10% | V52: 182.07 | W52: =IF(AND(W$16*1>=$R52,W$16*1<=$D$8,$R52<$D$8,$P52>SUM($V52:V52)),IF(SUM($P52*$U52/12,$V52:V52)>$P52,$P52-SUM($V52:V52),$P52*$U52/12),0) -> 2.28 | X52: =IF(AND(X$16*1>=$R52,X$16*1<=$D$8,$R52<$D$8,$P52>SUM($V52:W52)),IF(SUM($P52*$U52/12,$V52:W52)>$P52,$P52-SUM($V52:W52),$P52*$U52/12),0) -> 2.28 | Y52: =IF(AND(Y$16*1>=$R52,Y$16*1<=$D$8,$R52<$D$8,$P52>SUM($V52:X52)),IF(SUM($P52*$U52/12,$V52:X52)>$P52,$P52-SUM($V52:X52),$P52*$U52/12),0) -> 2.28 | Z52: =IF(AND(Z$16*1>=$R52,Z$16*1<=$D$8,$R52<$D$8,$P52>SUM($V52:Y52)),IF(SUM($P52*$U52/12,$V52:Y52)>$P52,$P52-SUM($V52:Y52),$P52*$U52/12),0) -> 2.28 | AA52: =IF(AND(AA$16*1>=$R52,AA$16*1<=$D$8,$R52<$D$8,$P52>SUM($V52:Z52)),IF(SUM($P52*$U52/12,$V52:Z52)>$P52,$P52-SUM($V52:Z52),$P52*$U52/12),0) -> 2.28 | AB52: =IF(AND(AB$16*1>=$R52,AB$16*1<=$D$8,$R52<$D$8,$P52>SUM($V52:AA52)),IF(SUM($P52*$U52/12,$V52:AA52)>$P52,$P52-SUM($V52:AA52),$P52*$U52/12),0) -> 0.00 | AC52: =IF(AND(AC$16*1>=$R52,AC$16*1<=$D$8,$R52<$D$8,$P52>SUM($V52:AB52)),IF(SUM($P52*$U52/12,$V52:AB52)>$P52,$P52-SUM($V52:AB52),$P52*$U52/12),0) -> 0.00 | AD52: =IF(AND(AD$16*1>=$R52,AD$16*1<=$D$8,$R52<$D$8,$P52>SUM($V52:AC52)),IF(SUM($P52*$U52/12,$V52:AC52)>$P52,$P52-SUM($V52:AC52),$P52*$U52/12),0) -> 0.00 | AE52: =IF(AND(AE$16*1>=$R52,AE$16*1<=$D$8,$R52<$D$8,$P52>SUM($V52:AD52)),IF(SUM($P52*$U52/12,$V52:AD52)>$P52,$P52-SUM($V52:AD52),$P52*$U52/12),0) -> 0.00 | AF52: =IF(AND(AF$16*1>=$R52,AF$16*1<=$D$8,$R52<$D$8,$P52>SUM($V52:AE52)),IF(SUM($P52*$U52/12,$V52:AE52)>$P52,$P52-SUM($V52:AE52),$P52*$U52/12),0) -> 0.00 | AG52: =IF(AND(AG$16*1>=$R52,AG$16*1<=$D$8,$R52<$D$8,$P52>SUM($V52:AF52)),IF(SUM($P52*$U52/12,$V52:AF52)>$P52,$P52-SUM($V52:AF52),$P52*$U52/12),0) -> 0.00 | AH52: =IF(AND(AH$16*1>=$R52,AH$16*1<=$D$8,$R52<$D$8,$P52>SUM($V52:AG52)),IF(SUM($P52*$U52/12,$V52:AG52)>$P52,$P52-SUM($V52:AG52),$P52*$U52/12),0) -> 0.00 | AI52: 11.38 | AL52: 188.90 | AN52: 188.90
C53: 37 | D53: 335111 | E53: ARMARIO METAL NEGRO 2 PTAS(contab) | I53: 319.33 | N53: 319.33 | P53: 319.33 | Q53: 2013-08-06 | R53: 2013-09-01 | U53: 10% | V53: 170.29 | W53: =IF(AND(W$16*1>=$R53,W$16*1<=$D$8,$R53<$D$8,$P53>SUM($V53:V53)),IF(SUM($P53*$U53/12,$V53:V53)>$P53,$P53-SUM($V53:V53),$P53*$U53/12),0) -> 2.66 | X53: =IF(AND(X$16*1>=$R53,X$16*1<=$D$8,$R53<$D$8,$P53>SUM($V53:W53)),IF(SUM($P53*$U53/12,$V53:W53)>$P53,$P53-SUM($V53:W53),$P53*$U53/12),0) -> 2.66 | Y53: =IF(AND(Y$16*1>=$R53,Y$16*1<=$D$8,$R53<$D$8,$P53>SUM($V53:X53)),IF(SUM($P53*$U53/12,$V53:X53)>$P53,$P53-SUM($V53:X53),$P53*$U53/12),0) -> 2.66 | Z53: =IF(AND(Z$16*1>=$R53,Z$16*1<=$D$8,$R53<$D$8,$P53>SUM($V53:Y53)),IF(SUM($P53*$U53/12,$V53:Y53)>$P53,$P53-SUM($V53:Y53),$P53*$U53/12),0) -> 2.66 | AA53: =IF(AND(AA$16*1>=$R53,AA$16*1<=$D$8,$R53<$D$8,$P53>SUM($V53:Z53)),IF(SUM($P53*$U53/12,$V53:Z53)>$P53,$P53-SUM($V53:Z53),$P53*$U53/12),0) -> 2.66 | AB53: =IF(AND(AB$16*1>=$R53,AB$16*1<=$D$8,$R53<$D$8,$P53>SUM($V53:AA53)),IF(SUM($P53*$U53/12,$V53:AA53)>$P53,$P53-SUM($V53:AA53),$P53*$U53/12),0) -> 0.00 | AC53: =IF(AND(AC$16*1>=$R53,AC$16*1<=$D$8,$R53<$D$8,$P53>SUM($V53:AB53)),IF(SUM($P53*$U53/12,$V53:AB53)>$P53,$P53-SUM($V53:AB53),$P53*$U53/12),0) -> 0.00 | AD53: =IF(AND(AD$16*1>=$R53,AD$16*1<=$D$8,$R53<$D$8,$P53>SUM($V53:AC53)),IF(SUM($P53*$U53/12,$V53:AC53)>$P53,$P53-SUM($V53:AC53),$P53*$U53/12),0) -> 0.00 | AE53: =IF(AND(AE$16*1>=$R53,AE$16*1<=$D$8,$R53<$D$8,$P53>SUM($V53:AD53)),IF(SUM($P53*$U53/12,$V53:AD53)>$P53,$P53-SUM($V53:AD53),$P53*$U53/12),0) -> 0.00 | AF53: =IF(AND(AF$16*1>=$R53,AF$16*1<=$D$8,$R53<$D$8,$P53>SUM($V53:AE53)),IF(SUM($P53*$U53/12,$V53:AE53)>$P53,$P53-SUM($V53:AE53),$P53*$U53/12),0) -> 0.00 | AG53: =IF(AND(AG$16*1>=$R53,AG$16*1<=$D$8,$R53<$D$8,$P53>SUM($V53:AF53)),IF(SUM($P53*$U53/12,$V53:AF53)>$P53,$P53-SUM($V53:AF53),$P53*$U53/12),0) -> 0.00 | AH53: =IF(AND(AH$16*1>=$R53,AH$16*1<=$D$8,$R53<$D$8,$P53>SUM($V53:AG53)),IF(SUM($P53*$U53/12,$V53:AG53)>$P53,$P53-SUM($V53:AG53),$P53*$U53/12),0) -> 0.00 | AI53: 13.31 | AL53: 178.27 | AN53: 178.27
C54: 38 | D54: 335111 | E54: ARCHIVADOR MADERA MARRON 4 GAVETAS (DR) | I54: 277.31 | N54: 277.31 | P54: 277.31 | Q54: 2015-10-20 | R54: 2015-11-01 | U54: 10% | V54: 87.81 | W54: =IF(AND(W$16*1>=$R54,W$16*1<=$D$8,$R54<$D$8,$P54>SUM($V54:V54)),IF(SUM($P54*$U54/12,$V54:V54)>$P54,$P54-SUM($V54:V54),$P54*$U54/12),0) -> 2.31 | X54: =IF(AND(X$16*1>=$R54,X$16*1<=$D$8,$R54<$D$8,$P54>SUM($V54:W54)),IF(SUM($P54*$U54/12,$V54:W54)>$P54,$P54-SUM($V54:W54),$P54*$U54/12),0) -> 2.31 | Y54: =IF(AND(Y$16*1>=$R54,Y$16*1<=$D$8,$R54<$D$8,$P54>SUM($V54:X54)),IF(SUM($P54*$U54/12,$V54:X54)>$P54,$P54-SUM($V54:X54),$P54*$U54/12),0) -> 2.31 | Z54: =IF(AND(Z$16*1>=$R54,Z$16*1<=$D$8,$R54<$D$8,$P54>SUM($V54:Y54)),IF(SUM($P54*$U54/12,$V54:Y54)>$P54,$P54-SUM($V54:Y54),$P54*$U54/12),0) -> 2.31 | AA54: =IF(AND(AA$16*1>=$R54,AA$16*1<=$D$8,$R54<$D$8,$P54>SUM($V54:Z54)),IF(SUM($P54*$U54/12,$V54:Z54)>$P54,$P54-SUM($V54:Z54),$P54*$U54/12),0) -> 2.31 | AB54: =IF(AND(AB$16*1>=$R54,AB$16*1<=$D$8,$R54<$D$8,$P54>SUM($V54:AA54)),IF(SUM($P54*$U54/12,$V54:AA54)>$P54,$P54-SUM($V54:AA54),$P54*$U54/12),0) -> 0.00 | AC54: =IF(AND(AC$16*1>=$R54,AC$16*1<=$D$8,$R54<$D$8,$P54>SUM($V54:AB54)),IF(SUM($P54*$U54/12,$V54:AB54)>$P54,$P54-SUM($V54:AB54),$P54*$U54/12),0) -> 0.00 | AD54: =IF(AND(AD$16*1>=$R54,AD$16*1<=$D$8,$R54<$D$8,$P54>SUM($V54:AC54)),IF(SUM($P54*$U54/12,$V54:AC54)>$P54,$P54-SUM($V54:AC54),$P54*$U54/12),0) -> 0.00 | AE54: =IF(AND(AE$16*1>=$R54,AE$16*1<=$D$8,$R54<$D$8,$P54>SUM($V54:AD54)),IF(SUM($P54*$U54/12,$V54:AD54)>$P54,$P54-SUM($V54:AD54),$P54*$U54/12),0) -> 0.00 | AF54: =IF(AND(AF$16*1>=$R54,AF$16*1<=$D$8,$R54<$D$8,$P54>SUM($V54:AE54)),IF(SUM($P54*$U54/12,$V54:AE54)>$P54,$P54-SUM($V54:AE54),$P54*$U54/12),0) -> 0.00 | AG54: =IF(AND(AG$16*1>=$R54,AG$16*1<=$D$8,$R54<$D$8,$P54>SUM($V54:AF54)),IF(SUM($P54*$U54/12,$V54:AF54)>$P54,$P54-SUM($V54:AF54),$P54*$U54/12),0) -> 0.00 | AH54: =IF(AND(AH$16*1>=$R54,AH$16*1<=$D$8,$R54<$D$8,$P54>SUM($V54:AG54)),IF(SUM($P54*$U54/12,$V54:AG54)>$P54,$P54-SUM($V54:AG54),$P54*$U54/12),0) -> 0.00 | AI54: 11.55 | AL54: 94.74 | AN54: 94.74
C55: 39 | D55: 335111 | E55: ARCHIVADOR MADERA MARRON 4 GAVETAS (FC) | I55: 277.31 | N55: 277.31 | P55: 277.31 | Q55: 2015-11-14 | R55: 2015-12-01 | U55: 10% | V55: 85.50 | W55: =IF(AND(W$16*1>=$R55,W$16*1<=$D$8,$R55<$D$8,$P55>SUM($V55:V55)),IF(SUM($P55*$U55/12,$V55:V55)>$P55,$P55-SUM($V55:V55),$P55*$U55/12),0) -> 2.31 | X55: =IF(AND(X$16*1>=$R55,X$16*1<=$D$8,$R55<$D$8,$P55>SUM($V55:W55)),IF(SUM($P55*$U55/12,$V55:W55)>$P55,$P55-SUM($V55:W55),$P55*$U55/12),0) -> 2.31 | Y55: =IF(AND(Y$16*1>=$R55,Y$16*1<=$D$8,$R55<$D$8,$P55>SUM($V55:X55)),IF(SUM($P55*$U55/12,$V55:X55)>$P55,$P55-SUM($V55:X55),$P55*$U55/12),0) -> 2.31 | Z55: =IF(AND(Z$16*1>=$R55,Z$16*1<=$D$8,$R55<$D$8,$P55>SUM($V55:Y55)),IF(SUM($P55*$U55/12,$V55:Y55)>$P55,$P55-SUM($V55:Y55),$P55*$U55/12),0) -> 2.31 | AA55: =IF(AND(AA$16*1>=$R55,AA$16*1<=$D$8,$R55<$D$8,$P55>SUM($V55:Z55)),IF(SUM($P55*$U55/12,$V55:Z55)>$P55,$P55-SUM($V55:Z55),$P55*$U55/12),0) -> 2.31 | AB55: =IF(AND(AB$16*1>=$R55,AB$16*1<=$D$8,$R55<$D$8,$P55>SUM($V55:AA55)),IF(SUM($P55*$U55/12,$V55:AA55)>$P55,$P55-SUM($V55:AA55),$P55*$U55/12),0) -> 0.00 | AC55: =IF(AND(AC$16*1>=$R55,AC$16*1<=$D$8,$R55<$D$8,$P55>SUM($V55:AB55)),IF(SUM($P55*$U55/12,$V55:AB55)>$P55,$P55-SUM($V55:AB55),$P55*$U55/12),0) -> 0.00 | AD55: =IF(AND(AD$16*1>=$R55,AD$16*1<=$D$8,$R55<$D$8,$P55>SUM($V55:AC55)),IF(SUM($P55*$U55/12,$V55:AC55)>$P55,$P55-SUM($V55:AC55),$P55*$U55/12),0) -> 0.00 | AE55: =IF(AND(AE$16*1>=$R55,AE$16*1<=$D$8,$R55<$D$8,$P55>SUM($V55:AD55)),IF(SUM($P55*$U55/12,$V55:AD55)>$P55,$P55-SUM($V55:AD55),$P55*$U55/12),0) -> 0.00 | AF55: =IF(AND(AF$16*1>=$R55,AF$16*1<=$D$8,$R55<$D$8,$P55>SUM($V55:AE55)),IF(SUM($P55*$U55/12,$V55:AE55)>$P55,$P55-SUM($V55:AE55),$P55*$U55/12),0) -> 0.00 | AG55: =IF(AND(AG$16*1>=$R55,AG$16*1<=$D$8,$R55<$D$8,$P55>SUM($V55:AF55)),IF(SUM($P55*$U55/12,$V55:AF55)>$P55,$P55-SUM($V55:AF55),$P55*$U55/12),0) -> 0.00 | AH55: =IF(AND(AH$16*1>=$R55,AH$16*1<=$D$8,$R55<$D$8,$P55>SUM($V55:AG55)),IF(SUM($P55*$U55/12,$V55:AG55)>$P55,$P55-SUM($V55:AG55),$P55*$U55/12),0) -> 0.00 | AI55: 11.55 | AL55: 92.43 | AN55: 92.43
C56: 40 | D56: 335111 | E56: COUNTER RECEPC.MOD.LINEAL240 | I56: 1313.56 | N56: 1313.56 | P56: 1,313.56 | Q56: 2016-11-22 | R56: 2016-12-01 | U56: 10% | V56: 273.67 | W56: =IF(AND(W$16*1>=$R56,W$16*1<=$D$8,$R56<$D$8,$P56>SUM($V56:V56)),IF(SUM($P56*$U56/12,$V56:V56)>$P56,$P56-SUM($V56:V56),$P56*$U56/12),0) -> 10.95 | X56: =IF(AND(X$16*1>=$R56,X$16*1<=$D$8,$R56<$D$8,$P56>SUM($V56:W56)),IF(SUM($P56*$U56/12,$V56:W56)>$P56,$P56-SUM($V56:W56),$P56*$U56/12),0) -> 10.95 | Y56: =IF(AND(Y$16*1>=$R56,Y$16*1<=$D$8,$R56<$D$8,$P56>SUM($V56:X56)),IF(SUM($P56*$U56/12,$V56:X56)>$P56,$P56-SUM($V56:X56),$P56*$U56/12),0) -> 10.95 | Z56: =IF(AND(Z$16*1>=$R56,Z$16*1<=$D$8,$R56<$D$8,$P56>SUM($V56:Y56)),IF(SUM($P56*$U56/12,$V56:Y56)>$P56,$P56-SUM($V56:Y56),$P56*$U56/12),0) -> 10.95 | AA56: =IF(AND(AA$16*1>=$R56,AA$16*1<=$D$8,$R56<$D$8,$P56>SUM($V56:Z56)),IF(SUM($P56*$U56/12,$V56:Z56)>$P56,$P56-SUM($V56:Z56),$P56*$U56/12),0) -> 10.95 | AB56: =IF(AND(AB$16*1>=$R56,AB$16*1<=$D$8,$R56<$D$8,$P56>SUM($V56:AA56)),IF(SUM($P56*$U56/12,$V56:AA56)>$P56,$P56-SUM($V56:AA56),$P56*$U56/12),0) -> 0.00 | AC56: =IF(AND(AC$16*1>=$R56,AC$16*1<=$D$8,$R56<$D$8,$P56>SUM($V56:AB56)),IF(SUM($P56*$U56/12,$V56:AB56)>$P56,$P56-SUM($V56:AB56),$P56*$U56/12),0) -> 0.00 | AD56: =IF(AND(AD$16*1>=$R56,AD$16*1<=$D$8,$R56<$D$8,$P56>SUM($V56:AC56)),IF(SUM($P56*$U56/12,$V56:AC56)>$P56,$P56-SUM($V56:AC56),$P56*$U56/12),0) -> 0.00 | AE56: =IF(AND(AE$16*1>=$R56,AE$16*1<=$D$8,$R56<$D$8,$P56>SUM($V56:AD56)),IF(SUM($P56*$U56/12,$V56:AD56)>$P56,$P56-SUM($V56:AD56),$P56*$U56/12),0) -> 0.00 | AF56: =IF(AND(AF$16*1>=$R56,AF$16*1<=$D$8,$R56<$D$8,$P56>SUM($V56:AE56)),IF(SUM($P56*$U56/12,$V56:AE56)>$P56,$P56-SUM($V56:AE56),$P56*$U56/12),0) -> 0.00 | AG56: =IF(AND(AG$16*1>=$R56,AG$16*1<=$D$8,$R56<$D$8,$P56>SUM($V56:AF56)),IF(SUM($P56*$U56/12,$V56:AF56)>$P56,$P56-SUM($V56:AF56),$P56*$U56/12),0) -> 0.00 | AH56: =IF(AND(AH$16*1>=$R56,AH$16*1<=$D$8,$R56<$D$8,$P56>SUM($V56:AG56)),IF(SUM($P56*$U56/12,$V56:AG56)>$P56,$P56-SUM($V56:AG56),$P56*$U56/12),0) -> 0.00 | AI56: 54.73 | AL56: 306.51 | AN56: 306.51
C57: 41 | D57: 335111 | E57: ARMARIO METAL NEGR.2pta.(contab.) | I57: 317.8 | N57: 317.8 | P57: 317.80 | Q57: 2016-12-19 | R57: 2017-01-01 | U57: 10% | V57: 63.56 | W57: =IF(AND(W$16*1>=$R57,W$16*1<=$D$8,$R57<$D$8,$P57>SUM($V57:V57)),IF(SUM($P57*$U57/12,$V57:V57)>$P57,$P57-SUM($V57:V57),$P57*$U57/12),0) -> 2.65 | X57: =IF(AND(X$16*1>=$R57,X$16*1<=$D$8,$R57<$D$8,$P57>SUM($V57:W57)),IF(SUM($P57*$U57/12,$V57:W57)>$P57,$P57-SUM($V57:W57),$P57*$U57/12),0) -> 2.65 | Y57: =IF(AND(Y$16*1>=$R57,Y$16*1<=$D$8,$R57<$D$8,$P57>SUM($V57:X57)),IF(SUM($P57*$U57/12,$V57:X57)>$P57,$P57-SUM($V57:X57),$P57*$U57/12),0) -> 2.65 | Z57: =IF(AND(Z$16*1>=$R57,Z$16*1<=$D$8,$R57<$D$8,$P57>SUM($V57:Y57)),IF(SUM($P57*$U57/12,$V57:Y57)>$P57,$P57-SUM($V57:Y57),$P57*$U57/12),0) -> 2.65 | AA57: =IF(AND(AA$16*1>=$R57,AA$16*1<=$D$8,$R57<$D$8,$P57>SUM($V57:Z57)),IF(SUM($P57*$U57/12,$V57:Z57)>$P57,$P57-SUM($V57:Z57),$P57*$U57/12),0) -> 2.65 | AB57: =IF(AND(AB$16*1>=$R57,AB$16*1<=$D$8,$R57<$D$8,$P57>SUM($V57:AA57)),IF(SUM($P57*$U57/12,$V57:AA57)>$P57,$P57-SUM($V57:AA57),$P57*$U57/12),0) -> 0.00 | AC57: =IF(AND(AC$16*1>=$R57,AC$16*1<=$D$8,$R57<$D$8,$P57>SUM($V57:AB57)),IF(SUM($P57*$U57/12,$V57:AB57)>$P57,$P57-SUM($V57:AB57),$P57*$U57/12),0) -> 0.00 | AD57: =IF(AND(AD$16*1>=$R57,AD$16*1<=$D$8,$R57<$D$8,$P57>SUM($V57:AC57)),IF(SUM($P57*$U57/12,$V57:AC57)>$P57,$P57-SUM($V57:AC57),$P57*$U57/12),0) -> 0.00 | AE57: =IF(AND(AE$16*1>=$R57,AE$16*1<=$D$8,$R57<$D$8,$P57>SUM($V57:AD57)),IF(SUM($P57*$U57/12,$V57:AD57)>$P57,$P57-SUM($V57:AD57),$P57*$U57/12),0) -> 0.00 | AF57: =IF(AND(AF$16*1>=$R57,AF$16*1<=$D$8,$R57<$D$8,$P57>SUM($V57:AE57)),IF(SUM($P57*$U57/12,$V57:AE57)>$P57,$P57-SUM($V57:AE57),$P57*$U57/12),0) -> 0.00 | AG57: =IF(AND(AG$16*1>=$R57,AG$16*1<=$D$8,$R57<$D$8,$P57>SUM($V57:AF57)),IF(SUM($P57*$U57/12,$V57:AF57)>$P57,$P57-SUM($V57:AF57),$P57*$U57/12),0) -> 0.00 | AH57: =IF(AND(AH$16*1>=$R57,AH$16*1<=$D$8,$R57<$D$8,$P57>SUM($V57:AG57)),IF(SUM($P57*$U57/12,$V57:AG57)>$P57,$P57-SUM($V57:AG57),$P57*$U57/12),0) -> 0.00 | AI57: 13.24 | AL57: 71.51 | AN57: 71.51
C58: 42 | D58: 335111 | E58: ARMARIO METAL NEGR.2pta.(contab.) | I58: 317.79 | N58: 317.79 | P58: 317.79 | Q58: 2016-12-19 | R58: 2017-01-01 | U58: 10% | V58: 63.56 | W58: =IF(AND(W$16*1>=$R58,W$16*1<=$D$8,$R58<$D$8,$P58>SUM($V58:V58)),IF(SUM($P58*$U58/12,$V58:V58)>$P58,$P58-SUM($V58:V58),$P58*$U58/12),0) -> 2.65 | X58: =IF(AND(X$16*1>=$R58,X$16*1<=$D$8,$R58<$D$8,$P58>SUM($V58:W58)),IF(SUM($P58*$U58/12,$V58:W58)>$P58,$P58-SUM($V58:W58),$P58*$U58/12),0) -> 2.65 | Y58: =IF(AND(Y$16*1>=$R58,Y$16*1<=$D$8,$R58<$D$8,$P58>SUM($V58:X58)),IF(SUM($P58*$U58/12,$V58:X58)>$P58,$P58-SUM($V58:X58),$P58*$U58/12),0) -> 2.65 | Z58: =IF(AND(Z$16*1>=$R58,Z$16*1<=$D$8,$R58<$D$8,$P58>SUM($V58:Y58)),IF(SUM($P58*$U58/12,$V58:Y58)>$P58,$P58-SUM($V58:Y58),$P58*$U58/12),0) -> 2.65 | AA58: =IF(AND(AA$16*1>=$R58,AA$16*1<=$D$8,$R58<$D$8,$P58>SUM($V58:Z58)),IF(SUM($P58*$U58/12,$V58:Z58)>$P58,$P58-SUM($V58:Z58),$P58*$U58/12),0) -> 2.65 | AB58: =IF(AND(AB$16*1>=$R58,AB$16*1<=$D$8,$R58<$D$8,$P58>SUM($V58:AA58)),IF(SUM($P58*$U58/12,$V58:AA58)>$P58,$P58-SUM($V58:AA58),$P58*$U58/12),0) -> 0.00 | AC58: =IF(AND(AC$16*1>=$R58,AC$16*1<=$D$8,$R58<$D$8,$P58>SUM($V58:AB58)),IF(SUM($P58*$U58/12,$V58:AB58)>$P58,$P58-SUM($V58:AB58),$P58*$U58/12),0) -> 0.00 | AD58: =IF(AND(AD$16*1>=$R58,AD$16*1<=$D$8,$R58<$D$8,$P58>SUM($V58:AC58)),IF(SUM($P58*$U58/12,$V58:AC58)>$P58,$P58-SUM($V58:AC58),$P58*$U58/12),0) -> 0.00 | AE58: =IF(AND(AE$16*1>=$R58,AE$16*1<=$D$8,$R58<$D$8,$P58>SUM($V58:AD58)),IF(SUM($P58*$U58/12,$V58:AD58)>$P58,$P58-SUM($V58:AD58),$P58*$U58/12),0) -> 0.00 | AF58: =IF(AND(AF$16*1>=$R58,AF$16*1<=$D$8,$R58<$D$8,$P58>SUM($V58:AE58)),IF(SUM($P58*$U58/12,$V58:AE58)>$P58,$P58-SUM($V58:AE58),$P58*$U58/12),0) -> 0.00 | AG58: =IF(AND(AG$16*1>=$R58,AG$16*1<=$D$8,$R58<$D$8,$P58>SUM($V58:AF58)),IF(SUM($P58*$U58/12,$V58:AF58)>$P58,$P58-SUM($V58:AF58),$P58*$U58/12),0) -> 0.00 | AH58: =IF(AND(AH$16*1>=$R58,AH$16*1<=$D$8,$R58<$D$8,$P58>SUM($V58:AG58)),IF(SUM($P58*$U58/12,$V58:AG58)>$P58,$P58-SUM($V58:AG58),$P58*$U58/12),0) -> 0.00 | AI58: 13.24 | AL58: 71.50 | AN58: 71.50
C59: 43 | D59: 335111 | E59: ARCHIVADOR METAL NEG.4GAVET(DR) | I59: 279.66 | N59: 279.66 | P59: 279.66 | Q59: 2016-12-20 | R59: 2017-01-01 | U59: 10% | V59: 55.94 | W59: =IF(AND(W$16*1>=$R59,W$16*1<=$D$8,$R59<$D$8,$P59>SUM($V59:V59)),IF(SUM($P59*$U59/12,$V59:V59)>$P59,$P59-SUM($V59:V59),$P59*$U59/12),0) -> 2.33 | X59: =IF(AND(X$16*1>=$R59,X$16*1<=$D$8,$R59<$D$8,$P59>SUM($V59:W59)),IF(SUM($P59*$U59/12,$V59:W59)>$P59,$P59-SUM($V59:W59),$P59*$U59/12),0) -> 2.33 | Y59: =IF(AND(Y$16*1>=$R59,Y$16*1<=$D$8,$R59<$D$8,$P59>SUM($V59:X59)),IF(SUM($P59*$U59/12,$V59:X59)>$P59,$P59-SUM($V59:X59),$P59*$U59/12),0) -> 2.33 | Z59: =IF(AND(Z$16*1>=$R59,Z$16*1<=$D$8,$R59<$D$8,$P59>SUM($V59:Y59)),IF(SUM($P59*$U59/12,$V59:Y59)>$P59,$P59-SUM($V59:Y59),$P59*$U59/12),0) -> 2.33 | AA59: =IF(AND(AA$16*1>=$R59,AA$16*1<=$D$8,$R59<$D$8,$P59>SUM($V59:Z59)),IF(SUM($P59*$U59/12,$V59:Z59)>$P59,$P59-SUM($V59:Z59),$P59*$U59/12),0) -> 2.33 | AB59: =IF(AND(AB$16*1>=$R59,AB$16*1<=$D$8,$R59<$D$8,$P59>SUM($V59:AA59)),IF(SUM($P59*$U59/12,$V59:AA59)>$P59,$P59-SUM($V59:AA59),$P59*$U59/12),0) -> 0.00 | AC59: =IF(AND(AC$16*1>=$R59,AC$16*1<=$D$8,$R59<$D$8,$P59>SUM($V59:AB59)),IF(SUM($P59*$U59/12,$V59:AB59)>$P59,$P59-SUM($V59:AB59),$P59*$U59/12),0) -> 0.00 | AD59: =IF(AND(AD$16*1>=$R59,AD$16*1<=$D$8,$R59<$D$8,$P59>SUM($V59:AC59)),IF(SUM($P59*$U59/12,$V59:AC59)>$P59,$P59-SUM($V59:AC59),$P59*$U59/12),0) -> 0.00 | AE59: =IF(AND(AE$16*1>=$R59,AE$16*1<=$D$8,$R59<$D$8,$P59>SUM($V59:AD59)),IF(SUM($P59*$U59/12,$V59:AD59)>$P59,$P59-SUM($V59:AD59),$P59*$U59/12),0) -> 0.00 | AF59: =IF(AND(AF$16*1>=$R59,AF$16*1<=$D$8,$R59<$D$8,$P59>SUM($V59:AE59)),IF(SUM($P59*$U59/12,$V59:AE59)>$P59,$P59-SUM($V59:AE59),$P59*$U59/12),0) -> 0.00 | AG59: =IF(AND(AG$16*1>=$R59,AG$16*1<=$D$8,$R59<$D$8,$P59>SUM($V59:AF59)),IF(SUM($P59*$U59/12,$V59:AF59)>$P59,$P59-SUM($V59:AF59),$P59*$U59/12),0) -> 0.00 | AH59: =IF(AND(AH$16*1>=$R59,AH$16*1<=$D$8,$R59<$D$8,$P59>SUM($V59:AG59)),IF(SUM($P59*$U59/12,$V59:AG59)>$P59,$P59-SUM($V59:AG59),$P59*$U59/12),0) -> 0.00 | AI59: 11.65 | AL59: 62.93 | AN59: 62.93
C60: 44 | D60: 335111 | E60: ARCHIVADOR METAL NEG.4GAVET(SG) | I60: 279.66 | N60: 279.66 | P60: 279.66 | Q60: 2016-12-20 | R60: 2017-01-01 | U60: 10% | V60: 55.94 | W60: =IF(AND(W$16*1>=$R60,W$16*1<=$D$8,$R60<$D$8,$P60>SUM($V60:V60)),IF(SUM($P60*$U60/12,$V60:V60)>$P60,$P60-SUM($V60:V60),$P60*$U60/12),0) -> 2.33 | X60: =IF(AND(X$16*1>=$R60,X$16*1<=$D$8,$R60<$D$8,$P60>SUM($V60:W60)),IF(SUM($P60*$U60/12,$V60:W60)>$P60,$P60-SUM($V60:W60),$P60*$U60/12),0) -> 2.33 | Y60: =IF(AND(Y$16*1>=$R60,Y$16*1<=$D$8,$R60<$D$8,$P60>SUM($V60:X60)),IF(SUM($P60*$U60/12,$V60:X60)>$P60,$P60-SUM($V60:X60),$P60*$U60/12),0) -> 2.33 | Z60: =IF(AND(Z$16*1>=$R60,Z$16*1<=$D$8,$R60<$D$8,$P60>SUM($V60:Y60)),IF(SUM($P60*$U60/12,$V60:Y60)>$P60,$P60-SUM($V60:Y60),$P60*$U60/12),0) -> 2.33 | AA60: =IF(AND(AA$16*1>=$R60,AA$16*1<=$D$8,$R60<$D$8,$P60>SUM($V60:Z60)),IF(SUM($P60*$U60/12,$V60:Z60)>$P60,$P60-SUM($V60:Z60),$P60*$U60/12),0) -> 2.33 | AB60: =IF(AND(AB$16*1>=$R60,AB$16*1<=$D$8,$R60<$D$8,$P60>SUM($V60:AA60)),IF(SUM($P60*$U60/12,$V60:AA60)>$P60,$P60-SUM($V60:AA60),$P60*$U60/12),0) -> 0.00 | AC60: =IF(AND(AC$16*1>=$R60,AC$16*1<=$D$8,$R60<$D$8,$P60>SUM($V60:AB60)),IF(SUM($P60*$U60/12,$V60:AB60)>$P60,$P60-SUM($V60:AB60),$P60*$U60/12),0) -> 0.00 | AD60: =IF(AND(AD$16*1>=$R60,AD$16*1<=$D$8,$R60<$D$8,$P60>SUM($V60:AC60)),IF(SUM($P60*$U60/12,$V60:AC60)>$P60,$P60-SUM($V60:AC60),$P60*$U60/12),0) -> 0.00 | AE60: =IF(AND(AE$16*1>=$R60,AE$16*1<=$D$8,$R60<$D$8,$P60>SUM($V60:AD60)),IF(SUM($P60*$U60/12,$V60:AD60)>$P60,$P60-SUM($V60:AD60),$P60*$U60/12),0) -> 0.00 | AF60: =IF(AND(AF$16*1>=$R60,AF$16*1<=$D$8,$R60<$D$8,$P60>SUM($V60:AE60)),IF(SUM($P60*$U60/12,$V60:AE60)>$P60,$P60-SUM($V60:AE60),$P60*$U60/12),0) -> 0.00 | AG60: =IF(AND(AG$16*1>=$R60,AG$16*1<=$D$8,$R60<$D$8,$P60>SUM($V60:AF60)),IF(SUM($P60*$U60/12,$V60:AF60)>$P60,$P60-SUM($V60:AF60),$P60*$U60/12),0) -> 0.00 | AH60: =IF(AND(AH$16*1>=$R60,AH$16*1<=$D$8,$R60<$D$8,$P60>SUM($V60:AG60)),IF(SUM($P60*$U60/12,$V60:AG60)>$P60,$P60-SUM($V60:AG60),$P60*$U60/12),0) -> 0.00 | AI60: 11.65 | AL60: 62.93 | AN60: 62.93
C61: 45 | D61: 335111 | E61: ARCHIVAD.METAL NEG.4GAV.(Recepc) | I61: 279.66 | N61: 279.66 | P61: 279.66 | Q61: 2016-12-20 | R61: 2017-01-01 | U61: 10% | V61: 55.94 | W61: =IF(AND(W$16*1>=$R61,W$16*1<=$D$8,$R61<$D$8,$P61>SUM($V61:V61)),IF(SUM($P61*$U61/12,$V61:V61)>$P61,$P61-SUM($V61:V61),$P61*$U61/12),0) -> 2.33 | X61: =IF(AND(X$16*1>=$R61,X$16*1<=$D$8,$R61<$D$8,$P61>SUM($V61:W61)),IF(SUM($P61*$U61/12,$V61:W61)>$P61,$P61-SUM($V61:W61),$P61*$U61/12),0) -> 2.33 | Y61: =IF(AND(Y$16*1>=$R61,Y$16*1<=$D$8,$R61<$D$8,$P61>SUM($V61:X61)),IF(SUM($P61*$U61/12,$V61:X61)>$P61,$P61-SUM($V61:X61),$P61*$U61/12),0) -> 2.33 | Z61: =IF(AND(Z$16*1>=$R61,Z$16*1<=$D$8,$R61<$D$8,$P61>SUM($V61:Y61)),IF(SUM($P61*$U61/12,$V61:Y61)>$P61,$P61-SUM($V61:Y61),$P61*$U61/12),0) -> 2.33 | AA61: =IF(AND(AA$16*1>=$R61,AA$16*1<=$D$8,$R61<$D$8,$P61>SUM($V61:Z61)),IF(SUM($P61*$U61/12,$V61:Z61)>$P61,$P61-SUM($V61:Z61),$P61*$U61/12),0) -> 2.33 | AB61: =IF(AND(AB$16*1>=$R61,AB$16*1<=$D$8,$R61<$D$8,$P61>SUM($V61:AA61)),IF(SUM($P61*$U61/12,$V61:AA61)>$P61,$P61-SUM($V61:AA61),$P61*$U61/12),0) -> 0.00 | AC61: =IF(AND(AC$16*1>=$R61,AC$16*1<=$D$8,$R61<$D$8,$P61>SUM($V61:AB61)),IF(SUM($P61*$U61/12,$V61:AB61)>$P61,$P61-SUM($V61:AB61),$P61*$U61/12),0) -> 0.00 | AD61: =IF(AND(AD$16*1>=$R61,AD$16*1<=$D$8,$R61<$D$8,$P61>SUM($V61:AC61)),IF(SUM($P61*$U61/12,$V61:AC61)>$P61,$P61-SUM($V61:AC61),$P61*$U61/12),0) -> 0.00 | AE61: =IF(AND(AE$16*1>=$R61,AE$16*1<=$D$8,$R61<$D$8,$P61>SUM($V61:AD61)),IF(SUM($P61*$U61/12,$V61:AD61)>$P61,$P61-SUM($V61:AD61),$P61*$U61/12),0) -> 0.00 | AF61: =IF(AND(AF$16*1>=$R61,AF$16*1<=$D$8,$R61<$D$8,$P61>SUM($V61:AE61)),IF(SUM($P61*$U61/12,$V61:AE61)>$P61,$P61-SUM($V61:AE61),$P61*$U61/12),0) -> 0.00 | AG61: =IF(AND(AG$16*1>=$R61,AG$16*1<=$D$8,$R61<$D$8,$P61>SUM($V61:AF61)),IF(SUM($P61*$U61/12,$V61:AF61)>$P61,$P61-SUM($V61:AF61),$P61*$U61/12),0) -> 0.00 | AH61: =IF(AND(AH$16*1>=$R61,AH$16*1<=$D$8,$R61<$D$8,$P61>SUM($V61:AG61)),IF(SUM($P61*$U61/12,$V61:AG61)>$P61,$P61-SUM($V61:AG61),$P61*$U61/12),0) -> 0.00 | AI61: 11.65 | AL61: 62.93 | AN61: 62.93
C62: 46 | D62: 335111 | E62: ARCHIVAD.METAL NEG.4GAV(Marcas) | I62: 279.66 | N62: 279.66 | P62: 279.66 | Q62: 2016-12-20 | R62: 2017-01-01 | U62: 10% | V62: 55.94 | W62: =IF(AND(W$16*1>=$R62,W$16*1<=$D$8,$R62<$D$8,$P62>SUM($V62:V62)),IF(SUM($P62*$U62/12,$V62:V62)>$P62,$P62-SUM($V62:V62),$P62*$U62/12),0) -> 2.33 | X62: =IF(AND(X$16*1>=$R62,X$16*1<=$D$8,$R62<$D$8,$P62>SUM($V62:W62)),IF(SUM($P62*$U62/12,$V62:W62)>$P62,$P62-SUM($V62:W62),$P62*$U62/12),0) -> 2.33 | Y62: =IF(AND(Y$16*1>=$R62,Y$16*1<=$D$8,$R62<$D$8,$P62>SUM($V62:X62)),IF(SUM($P62*$U62/12,$V62:X62)>$P62,$P62-SUM($V62:X62),$P62*$U62/12),0) -> 2.33 | Z62: =IF(AND(Z$16*1>=$R62,Z$16*1<=$D$8,$R62<$D$8,$P62>SUM($V62:Y62)),IF(SUM($P62*$U62/12,$V62:Y62)>$P62,$P62-SUM($V62:Y62),$P62*$U62/12),0) -> 2.33 | AA62: =IF(AND(AA$16*1>=$R62,AA$16*1<=$D$8,$R62<$D$8,$P62>SUM($V62:Z62)),IF(SUM($P62*$U62/12,$V62:Z62)>$P62,$P62-SUM($V62:Z62),$P62*$U62/12),0) -> 2.33 | AB62: =IF(AND(AB$16*1>=$R62,AB$16*1<=$D$8,$R62<$D$8,$P62>SUM($V62:AA62)),IF(SUM($P62*$U62/12,$V62:AA62)>$P62,$P62-SUM($V62:AA62),$P62*$U62/12),0) -> 0.00 | AC62: =IF(AND(AC$16*1>=$R62,AC$16*1<=$D$8,$R62<$D$8,$P62>SUM($V62:AB62)),IF(SUM($P62*$U62/12,$V62:AB62)>$P62,$P62-SUM($V62:AB62),$P62*$U62/12),0) -> 0.00 | AD62: =IF(AND(AD$16*1>=$R62,AD$16*1<=$D$8,$R62<$D$8,$P62>SUM($V62:AC62)),IF(SUM($P62*$U62/12,$V62:AC62)>$P62,$P62-SUM($V62:AC62),$P62*$U62/12),0) -> 0.00 | AE62: =IF(AND(AE$16*1>=$R62,AE$16*1<=$D$8,$R62<$D$8,$P62>SUM($V62:AD62)),IF(SUM($P62*$U62/12,$V62:AD62)>$P62,$P62-SUM($V62:AD62),$P62*$U62/12),0) -> 0.00 | AF62: =IF(AND(AF$16*1>=$R62,AF$16*1<=$D$8,$R62<$D$8,$P62>SUM($V62:AE62)),IF(SUM($P62*$U62/12,$V62:AE62)>$P62,$P62-SUM($V62:AE62),$P62*$U62/12),0) -> 0.00 | AG62: =IF(AND(AG$16*1>=$R62,AG$16*1<=$D$8,$R62<$D$8,$P62>SUM($V62:AF62)),IF(SUM($P62*$U62/12,$V62:AF62)>$P62,$P62-SUM($V62:AF62),$P62*$U62/12),0) -> 0.00 | AH62: =IF(AND(AH$16*1>=$R62,AH$16*1<=$D$8,$R62<$D$8,$P62>SUM($V62:AG62)),IF(SUM($P62*$U62/12,$V62:AG62)>$P62,$P62-SUM($V62:AG62),$P62*$U62/12),0) -> 0.00 | AI62: 11.65 | AL62: 62.93 | AN62: 62.93
C63: 47 | D63: 335111 | E63: ARCHIV.METAL NEG.4GAV(ARCH.GRL) | I63: 279.66 | N63: 279.66 | P63: 279.66 | Q63: 2016-12-20 | R63: 2017-01-01 | U63: 10% | V63: 55.94 | W63: =IF(AND(W$16*1>=$R63,W$16*1<=$D$8,$R63<$D$8,$P63>SUM($V63:V63)),IF(SUM($P63*$U63/12,$V63:V63)>$P63,$P63-SUM($V63:V63),$P63*$U63/12),0) -> 2.33 | X63: =IF(AND(X$16*1>=$R63,X$16*1<=$D$8,$R63<$D$8,$P63>SUM($V63:W63)),IF(SUM($P63*$U63/12,$V63:W63)>$P63,$P63-SUM($V63:W63),$P63*$U63/12),0) -> 2.33 | Y63: =IF(AND(Y$16*1>=$R63,Y$16*1<=$D$8,$R63<$D$8,$P63>SUM($V63:X63)),IF(SUM($P63*$U63/12,$V63:X63)>$P63,$P63-SUM($V63:X63),$P63*$U63/12),0) -> 2.33 | Z63: =IF(AND(Z$16*1>=$R63,Z$16*1<=$D$8,$R63<$D$8,$P63>SUM($V63:Y63)),IF(SUM($P63*$U63/12,$V63:Y63)>$P63,$P63-SUM($V63:Y63),$P63*$U63/12),0) -> 2.33 | AA63: =IF(AND(AA$16*1>=$R63,AA$16*1<=$D$8,$R63<$D$8,$P63>SUM($V63:Z63)),IF(SUM($P63*$U63/12,$V63:Z63)>$P63,$P63-SUM($V63:Z63),$P63*$U63/12),0) -> 2.33 | AB63: =IF(AND(AB$16*1>=$R63,AB$16*1<=$D$8,$R63<$D$8,$P63>SUM($V63:AA63)),IF(SUM($P63*$U63/12,$V63:AA63)>$P63,$P63-SUM($V63:AA63),$P63*$U63/12),0) -> 0.00 | AC63: =IF(AND(AC$16*1>=$R63,AC$16*1<=$D$8,$R63<$D$8,$P63>SUM($V63:AB63)),IF(SUM($P63*$U63/12,$V63:AB63)>$P63,$P63-SUM($V63:AB63),$P63*$U63/12),0) -> 0.00 | AD63: =IF(AND(AD$16*1>=$R63,AD$16*1<=$D$8,$R63<$D$8,$P63>SUM($V63:AC63)),IF(SUM($P63*$U63/12,$V63:AC63)>$P63,$P63-SUM($V63:AC63),$P63*$U63/12),0) -> 0.00 | AE63: =IF(AND(AE$16*1>=$R63,AE$16*1<=$D$8,$R63<$D$8,$P63>SUM($V63:AD63)),IF(SUM($P63*$U63/12,$V63:AD63)>$P63,$P63-SUM($V63:AD63),$P63*$U63/12),0) -> 0.00 | AF63: =IF(AND(AF$16*1>=$R63,AF$16*1<=$D$8,$R63<$D$8,$P63>SUM($V63:AE63)),IF(SUM($P63*$U63/12,$V63:AE63)>$P63,$P63-SUM($V63:AE63),$P63*$U63/12),0) -> 0.00 | AG63: =IF(AND(AG$16*1>=$R63,AG$16*1<=$D$8,$R63<$D$8,$P63>SUM($V63:AF63)),IF(SUM($P63*$U63/12,$V63:AF63)>$P63,$P63-SUM($V63:AF63),$P63*$U63/12),0) -> 0.00 | AH63: =IF(AND(AH$16*1>=$R63,AH$16*1<=$D$8,$R63<$D$8,$P63>SUM($V63:AG63)),IF(SUM($P63*$U63/12,$V63:AG63)>$P63,$P63-SUM($V63:AG63),$P63*$U63/12),0) -> 0.00 | AI63: 11.65 | AL63: 62.93 | AN63: 62.93
C64: 48 | D64: 335111 | E64: ARCHIV.METAL NEG.4GAV(ARCH.GRL) | I64: 279.67 | N64: 279.67 | P64: 279.67 | Q64: 2016-12-20 | R64: 2017-01-01 | U64: 10% | V64: 55.94 | W64: =IF(AND(W$16*1>=$R64,W$16*1<=$D$8,$R64<$D$8,$P64>SUM($V64:V64)),IF(SUM($P64*$U64/12,$V64:V64)>$P64,$P64-SUM($V64:V64),$P64*$U64/12),0) -> 2.33 | X64: =IF(AND(X$16*1>=$R64,X$16*1<=$D$8,$R64<$D$8,$P64>SUM($V64:W64)),IF(SUM($P64*$U64/12,$V64:W64)>$P64,$P64-SUM($V64:W64),$P64*$U64/12),0) -> 2.33 | Y64: =IF(AND(Y$16*1>=$R64,Y$16*1<=$D$8,$R64<$D$8,$P64>SUM($V64:X64)),IF(SUM($P64*$U64/12,$V64:X64)>$P64,$P64-SUM($V64:X64),$P64*$U64/12),0) -> 2.33 | Z64: =IF(AND(Z$16*1>=$R64,Z$16*1<=$D$8,$R64<$D$8,$P64>SUM($V64:Y64)),IF(SUM($P64*$U64/12,$V64:Y64)>$P64,$P64-SUM($V64:Y64),$P64*$U64/12),0) -> 2.33 | AA64: =IF(AND(AA$16*1>=$R64,AA$16*1<=$D$8,$R64<$D$8,$P64>SUM($V64:Z64)),IF(SUM($P64*$U64/12,$V64:Z64)>$P64,$P64-SUM($V64:Z64),$P64*$U64/12),0) -> 2.33 | AB64: =IF(AND(AB$16*1>=$R64,AB$16*1<=$D$8,$R64<$D$8,$P64>SUM($V64:AA64)),IF(SUM($P64*$U64/12,$V64:AA64)>$P64,$P64-SUM($V64:AA64),$P64*$U64/12),0) -> 0.00 | AC64: =IF(AND(AC$16*1>=$R64,AC$16*1<=$D$8,$R64<$D$8,$P64>SUM($V64:AB64)),IF(SUM($P64*$U64/12,$V64:AB64)>$P64,$P64-SUM($V64:AB64),$P64*$U64/12),0) -> 0.00 | AD64: =IF(AND(AD$16*1>=$R64,AD$16*1<=$D$8,$R64<$D$8,$P64>SUM($V64:AC64)),IF(SUM($P64*$U64/12,$V64:AC64)>$P64,$P64-SUM($V64:AC64),$P64*$U64/12),0) -> 0.00 | AE64: =IF(AND(AE$16*1>=$R64,AE$16*1<=$D$8,$R64<$D$8,$P64>SUM($V64:AD64)),IF(SUM($P64*$U64/12,$V64:AD64)>$P64,$P64-SUM($V64:AD64),$P64*$U64/12),0) -> 0.00 | AF64: =IF(AND(AF$16*1>=$R64,AF$16*1<=$D$8,$R64<$D$8,$P64>SUM($V64:AE64)),IF(SUM($P64*$U64/12,$V64:AE64)>$P64,$P64-SUM($V64:AE64),$P64*$U64/12),0) -> 0.00 | AG64: =IF(AND(AG$16*1>=$R64,AG$16*1<=$D$8,$R64<$D$8,$P64>SUM($V64:AF64)),IF(SUM($P64*$U64/12,$V64:AF64)>$P64,$P64-SUM($V64:AF64),$P64*$U64/12),0) -> 0.00 | AH64: =IF(AND(AH$16*1>=$R64,AH$16*1<=$D$8,$R64<$D$8,$P64>SUM($V64:AG64)),IF(SUM($P64*$U64/12,$V64:AG64)>$P64,$P64-SUM($V64:AG64),$P64*$U64/12),0) -> 0.00 | AI64: 11.65 | AL64: 62.93 | AN64: 62.93
C65: 49 | D65: 335111 | E65: ESCRITORIO"U" NEGRO MELAM.(MCH) | I65: 775.42 | N65: 775.42 | P65: 775.42 | Q65: 2016-12-28 | R65: 2017-01-01 | U65: 10% | V65: 155.08 | W65: =IF(AND(W$16*1>=$R65,W$16*1<=$D$8,$R65<$D$8,$P65>SUM($V65:V65)),IF(SUM($P65*$U65/12,$V65:V65)>$P65,$P65-SUM($V65:V65),$P65*$U65/12),0) -> 6.46 | X65: =IF(AND(X$16*1>=$R65,X$16*1<=$D$8,$R65<$D$8,$P65>SUM($V65:W65)),IF(SUM($P65*$U65/12,$V65:W65)>$P65,$P65-SUM($V65:W65),$P65*$U65/12),0) -> 6.46 | Y65: =IF(AND(Y$16*1>=$R65,Y$16*1<=$D$8,$R65<$D$8,$P65>SUM($V65:X65)),IF(SUM($P65*$U65/12,$V65:X65)>$P65,$P65-SUM($V65:X65),$P65*$U65/12),0) -> 6.46 | Z65: =IF(AND(Z$16*1>=$R65,Z$16*1<=$D$8,$R65<$D$8,$P65>SUM($V65:Y65)),IF(SUM($P65*$U65/12,$V65:Y65)>$P65,$P65-SUM($V65:Y65),$P65*$U65/12),0) -> 6.46 | AA65: =IF(AND(AA$16*1>=$R65,AA$16*1<=$D$8,$R65<$D$8,$P65>SUM($V65:Z65)),IF(SUM($P65*$U65/12,$V65:Z65)>$P65,$P65-SUM($V65:Z65),$P65*$U65/12),0) -> 6.46 | AB65: =IF(AND(AB$16*1>=$R65,AB$16*1<=$D$8,$R65<$D$8,$P65>SUM($V65:AA65)),IF(SUM($P65*$U65/12,$V65:AA65)>$P65,$P65-SUM($V65:AA65),$P65*$U65/12),0) -> 0.00 | AC65: =IF(AND(AC$16*1>=$R65,AC$16*1<=$D$8,$R65<$D$8,$P65>SUM($V65:AB65)),IF(SUM($P65*$U65/12,$V65:AB65)>$P65,$P65-SUM($V65:AB65),$P65*$U65/12),0) -> 0.00 | AD65: =IF(AND(AD$16*1>=$R65,AD$16*1<=$D$8,$R65<$D$8,$P65>SUM($V65:AC65)),IF(SUM($P65*$U65/12,$V65:AC65)>$P65,$P65-SUM($V65:AC65),$P65*$U65/12),0) -> 0.00 | AE65: =IF(AND(AE$16*1>=$R65,AE$16*1<=$D$8,$R65<$D$8,$P65>SUM($V65:AD65)),IF(SUM($P65*$U65/12,$V65:AD65)>$P65,$P65-SUM($V65:AD65),$P65*$U65/12),0) -> 0.00 | AF65: =IF(AND(AF$16*1>=$R65,AF$16*1<=$D$8,$R65<$D$8,$P65>SUM($V65:AE65)),IF(SUM($P65*$U65/12,$V65:AE65)>$P65,$P65-SUM($V65:AE65),$P65*$U65/12),0) -> 0.00 | AG65: =IF(AND(AG$16*1>=$R65,AG$16*1<=$D$8,$R65<$D$8,$P65>SUM($V65:AF65)),IF(SUM($P65*$U65/12,$V65:AF65)>$P65,$P65-SUM($V65:AF65),$P65*$U65/12),0) -> 0.00 | AH65: =IF(AND(AH$16*1>=$R65,AH$16*1<=$D$8,$R65<$D$8,$P65>SUM($V65:AG65)),IF(SUM($P65*$U65/12,$V65:AG65)>$P65,$P65-SUM($V65:AG65),$P65*$U65/12),0) -> 0.00 | AI65: 32.31 | AL65: 174.47 | AN65: 174.47
C66: 50 | D66: 335111 | E66: ESCRITORIO"U" NEGRO MELAM(Marcas) | I66: 775.43 | N66: 775.43 | P66: 775.43 | Q66: 2016-12-28 | R66: 2017-01-01 | U66: 10% | V66: 155.08 | W66: =IF(AND(W$16*1>=$R66,W$16*1<=$D$8,$R66<$D$8,$P66>SUM($V66:V66)),IF(SUM($P66*$U66/12,$V66:V66)>$P66,$P66-SUM($V66:V66),$P66*$U66/12),0) -> 6.46 | X66: =IF(AND(X$16*1>=$R66,X$16*1<=$D$8,$R66<$D$8,$P66>SUM($V66:W66)),IF(SUM($P66*$U66/12,$V66:W66)>$P66,$P66-SUM($V66:W66),$P66*$U66/12),0) -> 6.46 | Y66: =IF(AND(Y$16*1>=$R66,Y$16*1<=$D$8,$R66<$D$8,$P66>SUM($V66:X66)),IF(SUM($P66*$U66/12,$V66:X66)>$P66,$P66-SUM($V66:X66),$P66*$U66/12),0) -> 6.46 | Z66: =IF(AND(Z$16*1>=$R66,Z$16*1<=$D$8,$R66<$D$8,$P66>SUM($V66:Y66)),IF(SUM($P66*$U66/12,$V66:Y66)>$P66,$P66-SUM($V66:Y66),$P66*$U66/12),0) -> 6.46 | AA66: =IF(AND(AA$16*1>=$R66,AA$16*1<=$D$8,$R66<$D$8,$P66>SUM($V66:Z66)),IF(SUM($P66*$U66/12,$V66:Z66)>$P66,$P66-SUM($V66:Z66),$P66*$U66/12),0) -> 6.46 | AB66: =IF(AND(AB$16*1>=$R66,AB$16*1<=$D$8,$R66<$D$8,$P66>SUM($V66:AA66)),IF(SUM($P66*$U66/12,$V66:AA66)>$P66,$P66-SUM($V66:AA66),$P66*$U66/12),0) -> 0.00 | AC66: =IF(AND(AC$16*1>=$R66,AC$16*1<=$D$8,$R66<$D$8,$P66>SUM($V66:AB66)),IF(SUM($P66*$U66/12,$V66:AB66)>$P66,$P66-SUM($V66:AB66),$P66*$U66/12),0) -> 0.00 | AD66: =IF(AND(AD$16*1>=$R66,AD$16*1<=$D$8,$R66<$D$8,$P66>SUM($V66:AC66)),IF(SUM($P66*$U66/12,$V66:AC66)>$P66,$P66-SUM($V66:AC66),$P66*$U66/12),0) -> 0.00 | AE66: =IF(AND(AE$16*1>=$R66,AE$16*1<=$D$8,$R66<$D$8,$P66>SUM($V66:AD66)),IF(SUM($P66*$U66/12,$V66:AD66)>$P66,$P66-SUM($V66:AD66),$P66*$U66/12),0) -> 0.00 | AF66: =IF(AND(AF$16*1>=$R66,AF$16*1<=$D$8,$R66<$D$8,$P66>SUM($V66:AE66)),IF(SUM($P66*$U66/12,$V66:AE66)>$P66,$P66-SUM($V66:AE66),$P66*$U66/12),0) -> 0.00 | AG66: =IF(AND(AG$16*1>=$R66,AG$16*1<=$D$8,$R66<$D$8,$P66>SUM($V66:AF66)),IF(SUM($P66*$U66/12,$V66:AF66)>$P66,$P66-SUM($V66:AF66),$P66*$U66/12),0) -> 0.00 | AH66: =IF(AND(AH$16*1>=$R66,AH$16*1<=$D$8,$R66<$D$8,$P66>SUM($V66:AG66)),IF(SUM($P66*$U66/12,$V66:AG66)>$P66,$P66-SUM($V66:AG66),$P66*$U66/12),0) -> 0.00 | AI66: 32.31 | AL66: 174.47 | AN66: 174.47
C67: 51 | D67: 335111 | E67: 9 SILLONES NEGROS GIRAT.c/BRAZOS | I67: 1694.24 | N67: 1694.24 | P67: 1,694.24 | Q67: 2017-03-07 | R67: 2017-04-01 | U67: 10% | V67: 296.49 | W67: =IF(AND(W$16*1>=$R67,W$16*1<=$D$8,$R67<$D$8,$P67>SUM($V67:V67)),IF(SUM($P67*$U67/12,$V67:V67)>$P67,$P67-SUM($V67:V67),$P67*$U67/12),0) -> 14.12 | X67: =IF(AND(X$16*1>=$R67,X$16*1<=$D$8,$R67<$D$8,$P67>SUM($V67:W67)),IF(SUM($P67*$U67/12,$V67:W67)>$P67,$P67-SUM($V67:W67),$P67*$U67/12),0) -> 14.12 | Y67: =IF(AND(Y$16*1>=$R67,Y$16*1<=$D$8,$R67<$D$8,$P67>SUM($V67:X67)),IF(SUM($P67*$U67/12,$V67:X67)>$P67,$P67-SUM($V67:X67),$P67*$U67/12),0) -> 14.12 | Z67: =IF(AND(Z$16*1>=$R67,Z$16*1<=$D$8,$R67<$D$8,$P67>SUM($V67:Y67)),IF(SUM($P67*$U67/12,$V67:Y67)>$P67,$P67-SUM($V67:Y67),$P67*$U67/12),0) -> 14.12 | AA67: =IF(AND(AA$16*1>=$R67,AA$16*1<=$D$8,$R67<$D$8,$P67>SUM($V67:Z67)),IF(SUM($P67*$U67/12,$V67:Z67)>$P67,$P67-SUM($V67:Z67),$P67*$U67/12),0) -> 14.12 | AB67: =IF(AND(AB$16*1>=$R67,AB$16*1<=$D$8,$R67<$D$8,$P67>SUM($V67:AA67)),IF(SUM($P67*$U67/12,$V67:AA67)>$P67,$P67-SUM($V67:AA67),$P67*$U67/12),0) -> 0.00 | AC67: =IF(AND(AC$16*1>=$R67,AC$16*1<=$D$8,$R67<$D$8,$P67>SUM($V67:AB67)),IF(SUM($P67*$U67/12,$V67:AB67)>$P67,$P67-SUM($V67:AB67),$P67*$U67/12),0) -> 0.00 | AD67: =IF(AND(AD$16*1>=$R67,AD$16*1<=$D$8,$R67<$D$8,$P67>SUM($V67:AC67)),IF(SUM($P67*$U67/12,$V67:AC67)>$P67,$P67-SUM($V67:AC67),$P67*$U67/12),0) -> 0.00 | AE67: =IF(AND(AE$16*1>=$R67,AE$16*1<=$D$8,$R67<$D$8,$P67>SUM($V67:AD67)),IF(SUM($P67*$U67/12,$V67:AD67)>$P67,$P67-SUM($V67:AD67),$P67*$U67/12),0) -> 0.00 | AF67: =IF(AND(AF$16*1>=$R67,AF$16*1<=$D$8,$R67<$D$8,$P67>SUM($V67:AE67)),IF(SUM($P67*$U67/12,$V67:AE67)>$P67,$P67-SUM($V67:AE67),$P67*$U67/12),0) -> 0.00 | AG67: =IF(AND(AG$16*1>=$R67,AG$16*1<=$D$8,$R67<$D$8,$P67>SUM($V67:AF67)),IF(SUM($P67*$U67/12,$V67:AF67)>$P67,$P67-SUM($V67:AF67),$P67*$U67/12),0) -> 0.00 | AH67: =IF(AND(AH$16*1>=$R67,AH$16*1<=$D$8,$R67<$D$8,$P67>SUM($V67:AG67)),IF(SUM($P67*$U67/12,$V67:AG67)>$P67,$P67-SUM($V67:AG67),$P67*$U67/12),0) -> 0.00 | AI67: 70.59 | AL67: 338.85 | AN67: 338.85
C68: 52 | D68: 335111 | E68: 6 SILLAS FIJAS NEGRAS (OFICINAS) | I68: 736.78 | N68: 736.78 | P68: 736.78 | Q68: 2017-03-07 | R68: 2017-04-01 | U68: 10% | V68: 128.94 | W68: =IF(AND(W$16*1>=$R68,W$16*1<=$D$8,$R68<$D$8,$P68>SUM($V68:V68)),IF(SUM($P68*$U68/12,$V68:V68)>$P68,$P68-SUM($V68:V68),$P68*$U68/12),0) -> 6.14 | X68: =IF(AND(X$16*1>=$R68,X$16*1<=$D$8,$R68<$D$8,$P68>SUM($V68:W68)),IF(SUM($P68*$U68/12,$V68:W68)>$P68,$P68-SUM($V68:W68),$P68*$U68/12),0) -> 6.14 | Y68: =IF(AND(Y$16*1>=$R68,Y$16*1<=$D$8,$R68<$D$8,$P68>SUM($V68:X68)),IF(SUM($P68*$U68/12,$V68:X68)>$P68,$P68-SUM($V68:X68),$P68*$U68/12),0) -> 6.14 | Z68: =IF(AND(Z$16*1>=$R68,Z$16*1<=$D$8,$R68<$D$8,$P68>SUM($V68:Y68)),IF(SUM($P68*$U68/12,$V68:Y68)>$P68,$P68-SUM($V68:Y68),$P68*$U68/12),0) -> 6.14 | AA68: =IF(AND(AA$16*1>=$R68,AA$16*1<=$D$8,$R68<$D$8,$P68>SUM($V68:Z68)),IF(SUM($P68*$U68/12,$V68:Z68)>$P68,$P68-SUM($V68:Z68),$P68*$U68/12),0) -> 6.14 | AB68: =IF(AND(AB$16*1>=$R68,AB$16*1<=$D$8,$R68<$D$8,$P68>SUM($V68:AA68)),IF(SUM($P68*$U68/12,$V68:AA68)>$P68,$P68-SUM($V68:AA68),$P68*$U68/12),0) -> 0.00 | AC68: =IF(AND(AC$16*1>=$R68,AC$16*1<=$D$8,$R68<$D$8,$P68>SUM($V68:AB68)),IF(SUM($P68*$U68/12,$V68:AB68)>$P68,$P68-SUM($V68:AB68),$P68*$U68/12),0) -> 0.00 | AD68: =IF(AND(AD$16*1>=$R68,AD$16*1<=$D$8,$R68<$D$8,$P68>SUM($V68:AC68)),IF(SUM($P68*$U68/12,$V68:AC68)>$P68,$P68-SUM($V68:AC68),$P68*$U68/12),0) -> 0.00 | AE68: =IF(AND(AE$16*1>=$R68,AE$16*1<=$D$8,$R68<$D$8,$P68>SUM($V68:AD68)),IF(SUM($P68*$U68/12,$V68:AD68)>$P68,$P68-SUM($V68:AD68),$P68*$U68/12),0) -> 0.00 | AF68: =IF(AND(AF$16*1>=$R68,AF$16*1<=$D$8,$R68<$D$8,$P68>SUM($V68:AE68)),IF(SUM($P68*$U68/12,$V68:AE68)>$P68,$P68-SUM($V68:AE68),$P68*$U68/12),0) -> 0.00 | AG68: =IF(AND(AG$16*1>=$R68,AG$16*1<=$D$8,$R68<$D$8,$P68>SUM($V68:AF68)),IF(SUM($P68*$U68/12,$V68:AF68)>$P68,$P68-SUM($V68:AF68),$P68*$U68/12),0) -> 0.00 | AH68: =IF(AND(AH$16*1>=$R68,AH$16*1<=$D$8,$R68<$D$8,$P68>SUM($V68:AG68)),IF(SUM($P68*$U68/12,$V68:AG68)>$P68,$P68-SUM($V68:AG68),$P68*$U68/12),0) -> 0.00 | AI68: 30.70 | AL68: 147.36 | AN68: 147.36
C69: 53 | D69: 335111 | E69: 2 ARCHIVAD.4 GAV.METAL NEGRO(SG-LLT) | I69: 635.59 | N69: 635.59 | P69: 635.59 | Q69: 2017-09-04 | R69: 2017-10-01 | U69: 10% | V69: 79.45 | W69: =IF(AND(W$16*1>=$R69,W$16*1<=$D$8,$R69<$D$8,$P69>SUM($V69:V69)),IF(SUM($P69*$U69/12,$V69:V69)>$P69,$P69-SUM($V69:V69),$P69*$U69/12),0) -> 5.30 | X69: =IF(AND(X$16*1>=$R69,X$16*1<=$D$8,$R69<$D$8,$P69>SUM($V69:W69)),IF(SUM($P69*$U69/12,$V69:W69)>$P69,$P69-SUM($V69:W69),$P69*$U69/12),0) -> 5.30 | Y69: =IF(AND(Y$16*1>=$R69,Y$16*1<=$D$8,$R69<$D$8,$P69>SUM($V69:X69)),IF(SUM($P69*$U69/12,$V69:X69)>$P69,$P69-SUM($V69:X69),$P69*$U69/12),0) -> 5.30 | Z69: =IF(AND(Z$16*1>=$R69,Z$16*1<=$D$8,$R69<$D$8,$P69>SUM($V69:Y69)),IF(SUM($P69*$U69/12,$V69:Y69)>$P69,$P69-SUM($V69:Y69),$P69*$U69/12),0) -> 5.30 | AA69: =IF(AND(AA$16*1>=$R69,AA$16*1<=$D$8,$R69<$D$8,$P69>SUM($V69:Z69)),IF(SUM($P69*$U69/12,$V69:Z69)>$P69,$P69-SUM($V69:Z69),$P69*$U69/12),0) -> 5.30 | AB69: =IF(AND(AB$16*1>=$R69,AB$16*1<=$D$8,$R69<$D$8,$P69>SUM($V69:AA69)),IF(SUM($P69*$U69/12,$V69:AA69)>$P69,$P69-SUM($V69:AA69),$P69*$U69/12),0) -> 0.00 | AC69: =IF(AND(AC$16*1>=$R69,AC$16*1<=$D$8,$R69<$D$8,$P69>SUM($V69:AB69)),IF(SUM($P69*$U69/12,$V69:AB69)>$P69,$P69-SUM($V69:AB69),$P69*$U69/12),0) -> 0.00 | AD69: =IF(AND(AD$16*1>=$R69,AD$16*1<=$D$8,$R69<$D$8,$P69>SUM($V69:AC69)),IF(SUM($P69*$U69/12,$V69:AC69)>$P69,$P69-SUM($V69:AC69),$P69*$U69/12),0) -> 0.00 | AE69: =IF(AND(AE$16*1>=$R69,AE$16*1<=$D$8,$R69<$D$8,$P69>SUM($V69:AD69)),IF(SUM($P69*$U69/12,$V69:AD69)>$P69,$P69-SUM($V69:AD69),$P69*$U69/12),0) -> 0.00 | AF69: =IF(AND(AF$16*1>=$R69,AF$16*1<=$D$8,$R69<$D$8,$P69>SUM($V69:AE69)),IF(SUM($P69*$U69/12,$V69:AE69)>$P69,$P69-SUM($V69:AE69),$P69*$U69/12),0) -> 0.00 | AG69: =IF(AND(AG$16*1>=$R69,AG$16*1<=$D$8,$R69<$D$8,$P69>SUM($V69:AF69)),IF(SUM($P69*$U69/12,$V69:AF69)>$P69,$P69-SUM($V69:AF69),$P69*$U69/12),0) -> 0.00 | AH69: =IF(AND(AH$16*1>=$R69,AH$16*1<=$D$8,$R69<$D$8,$P69>SUM($V69:AG69)),IF(SUM($P69*$U69/12,$V69:AG69)>$P69,$P69-SUM($V69:AG69),$P69*$U69/12),0) -> 0.00 | AI69: 26.48 | AL69: 95.34 | AN69: 95.34
C70: 54 | D70: 335111 | E70: ESTANTE 4 NIVELES NEGRO DE MADERA(LLT) | I70: 300.85 | N70: 300.85 | P70: 300.85 | Q70: 2017-09-04 | R70: 2017-10-01 | U70: 10% | V70: 37.61 | W70: =IF(AND(W$16*1>=$R70,W$16*1<=$D$8,$R70<$D$8,$P70>SUM($V70:V70)),IF(SUM($P70*$U70/12,$V70:V70)>$P70,$P70-SUM($V70:V70),$P70*$U70/12),0) -> 2.51 | X70: =IF(AND(X$16*1>=$R70,X$16*1<=$D$8,$R70<$D$8,$P70>SUM($V70:W70)),IF(SUM($P70*$U70/12,$V70:W70)>$P70,$P70-SUM($V70:W70),$P70*$U70/12),0) -> 2.51 | Y70: =IF(AND(Y$16*1>=$R70,Y$16*1<=$D$8,$R70<$D$8,$P70>SUM($V70:X70)),IF(SUM($P70*$U70/12,$V70:X70)>$P70,$P70-SUM($V70:X70),$P70*$U70/12),0) -> 2.51 | Z70: =IF(AND(Z$16*1>=$R70,Z$16*1<=$D$8,$R70<$D$8,$P70>SUM($V70:Y70)),IF(SUM($P70*$U70/12,$V70:Y70)>$P70,$P70-SUM($V70:Y70),$P70*$U70/12),0) -> 2.51 | AA70: =IF(AND(AA$16*1>=$R70,AA$16*1<=$D$8,$R70<$D$8,$P70>SUM($V70:Z70)),IF(SUM($P70*$U70/12,$V70:Z70)>$P70,$P70-SUM($V70:Z70),$P70*$U70/12),0) -> 2.51 | AB70: =IF(AND(AB$16*1>=$R70,AB$16*1<=$D$8,$R70<$D$8,$P70>SUM($V70:AA70)),IF(SUM($P70*$U70/12,$V70:AA70)>$P70,$P70-SUM($V70:AA70),$P70*$U70/12),0) -> 0.00 | AC70: =IF(AND(AC$16*1>=$R70,AC$16*1<=$D$8,$R70<$D$8,$P70>SUM($V70:AB70)),IF(SUM($P70*$U70/12,$V70:AB70)>$P70,$P70-SUM($V70:AB70),$P70*$U70/12),0) -> 0.00 | AD70: =IF(AND(AD$16*1>=$R70,AD$16*1<=$D$8,$R70<$D$8,$P70>SUM($V70:AC70)),IF(SUM($P70*$U70/12,$V70:AC70)>$P70,$P70-SUM($V70:AC70),$P70*$U70/12),0) -> 0.00 | AE70: =IF(AND(AE$16*1>=$R70,AE$16*1<=$D$8,$R70<$D$8,$P70>SUM($V70:AD70)),IF(SUM($P70*$U70/12,$V70:AD70)>$P70,$P70-SUM($V70:AD70),$P70*$U70/12),0) -> 0.00 | AF70: =IF(AND(AF$16*1>=$R70,AF$16*1<=$D$8,$R70<$D$8,$P70>SUM($V70:AE70)),IF(SUM($P70*$U70/12,$V70:AE70)>$P70,$P70-SUM($V70:AE70),$P70*$U70/12),0) -> 0.00 | AG70: =IF(AND(AG$16*1>=$R70,AG$16*1<=$D$8,$R70<$D$8,$P70>SUM($V70:AF70)),IF(SUM($P70*$U70/12,$V70:AF70)>$P70,$P70-SUM($V70:AF70),$P70*$U70/12),0) -> 0.00 | AH70: =IF(AND(AH$16*1>=$R70,AH$16*1<=$D$8,$R70<$D$8,$P70>SUM($V70:AG70)),IF(SUM($P70*$U70/12,$V70:AG70)>$P70,$P70-SUM($V70:AG70),$P70*$U70/12),0) -> 0.00 | AI70: 12.54 | AL70: 45.13 | AN70: 45.13
C71: 55 | D71: 335111 | E71: ESCRITORIO DE VIDRIO NEGRO (PAT.) | I71: 637.72 | N71: 637.72 | P71: 637.72 | Q71: 2018-03-15 | R71: 2018-04-01 | U71: 10% | V71: 47.83 | W71: =IF(AND(W$16*1>=$R71,W$16*1<=$D$8,$R71<$D$8,$P71>SUM($V71:V71)),IF(SUM($P71*$U71/12,$V71:V71)>$P71,$P71-SUM($V71:V71),$P71*$U71/12),0) -> 5.31 | X71: =IF(AND(X$16*1>=$R71,X$16*1<=$D$8,$R71<$D$8,$P71>SUM($V71:W71)),IF(SUM($P71*$U71/12,$V71:W71)>$P71,$P71-SUM($V71:W71),$P71*$U71/12),0) -> 5.31 | Y71: =IF(AND(Y$16*1>=$R71,Y$16*1<=$D$8,$R71<$D$8,$P71>SUM($V71:X71)),IF(SUM($P71*$U71/12,$V71:X71)>$P71,$P71-SUM($V71:X71),$P71*$U71/12),0) -> 5.31 | Z71: =IF(AND(Z$16*1>=$R71,Z$16*1<=$D$8,$R71<$D$8,$P71>SUM($V71:Y71)),IF(SUM($P71*$U71/12,$V71:Y71)>$P71,$P71-SUM($V71:Y71),$P71*$U71/12),0) -> 5.31 | AA71: =IF(AND(AA$16*1>=$R71,AA$16*1<=$D$8,$R71<$D$8,$P71>SUM($V71:Z71)),IF(SUM($P71*$U71/12,$V71:Z71)>$P71,$P71-SUM($V71:Z71),$P71*$U71/12),0) -> 5.31 | AB71: =IF(AND(AB$16*1>=$R71,AB$16*1<=$D$8,$R71<$D$8,$P71>SUM($V71:AA71)),IF(SUM($P71*$U71/12,$V71:AA71)>$P71,$P71-SUM($V71:AA71),$P71*$U71/12),0) -> 0.00 | AC71: =IF(AND(AC$16*1>=$R71,AC$16*1<=$D$8,$R71<$D$8,$P71>SUM($V71:AB71)),IF(SUM($P71*$U71/12,$V71:AB71)>$P71,$P71-SUM($V71:AB71),$P71*$U71/12),0) -> 0.00 | AD71: =IF(AND(AD$16*1>=$R71,AD$16*1<=$D$8,$R71<$D$8,$P71>SUM($V71:AC71)),IF(SUM($P71*$U71/12,$V71:AC71)>$P71,$P71-SUM($V71:AC71),$P71*$U71/12),0) -> 0.00 | AE71: =IF(AND(AE$16*1>=$R71,AE$16*1<=$D$8,$R71<$D$8,$P71>SUM($V71:AD71)),IF(SUM($P71*$U71/12,$V71:AD71)>$P71,$P71-SUM($V71:AD71),$P71*$U71/12),0) -> 0.00 | AF71: =IF(AND(AF$16*1>=$R71,AF$16*1<=$D$8,$R71<$D$8,$P71>SUM($V71:AE71)),IF(SUM($P71*$U71/12,$V71:AE71)>$P71,$P71-SUM($V71:AE71),$P71*$U71/12),0) -> 0.00 | AG71: =IF(AND(AG$16*1>=$R71,AG$16*1<=$D$8,$R71<$D$8,$P71>SUM($V71:AF71)),IF(SUM($P71*$U71/12,$V71:AF71)>$P71,$P71-SUM($V71:AF71),$P71*$U71/12),0) -> 0.00 | AH71: =IF(AND(AH$16*1>=$R71,AH$16*1<=$D$8,$R71<$D$8,$P71>SUM($V71:AG71)),IF(SUM($P71*$U71/12,$V71:AG71)>$P71,$P71-SUM($V71:AG71),$P71*$U71/12),0) -> 0.00 | AI71: 26.57 | AL71: 63.77 | AN71: 63.77
C72: 56 | D72: 335111 | E72: ESCRITORIO DE VIDRIO NEGRO (PAT.) | I72: 637.72 | N72: 637.72 | P72: 637.72 | Q72: 2018-03-15 | R72: 2018-04-01 | U72: 10% | V72: 47.83 | W72: =IF(AND(W$16*1>=$R72,W$16*1<=$D$8,$R72<$D$8,$P72>SUM($V72:V72)),IF(SUM($P72*$U72/12,$V72:V72)>$P72,$P72-SUM($V72:V72),$P72*$U72/12),0) -> 5.31 | X72: =IF(AND(X$16*1>=$R72,X$16*1<=$D$8,$R72<$D$8,$P72>SUM($V72:W72)),IF(SUM($P72*$U72/12,$V72:W72)>$P72,$P72-SUM($V72:W72),$P72*$U72/12),0) -> 5.31 | Y72: =IF(AND(Y$16*1>=$R72,Y$16*1<=$D$8,$R72<$D$8,$P72>SUM($V72:X72)),IF(SUM($P72*$U72/12,$V72:X72)>$P72,$P72-SUM($V72:X72),$P72*$U72/12),0) -> 5.31 | Z72: =IF(AND(Z$16*1>=$R72,Z$16*1<=$D$8,$R72<$D$8,$P72>SUM($V72:Y72)),IF(SUM($P72*$U72/12,$V72:Y72)>$P72,$P72-SUM($V72:Y72),$P72*$U72/12),0) -> 5.31 | AA72: =IF(AND(AA$16*1>=$R72,AA$16*1<=$D$8,$R72<$D$8,$P72>SUM($V72:Z72)),IF(SUM($P72*$U72/12,$V72:Z72)>$P72,$P72-SUM($V72:Z72),$P72*$U72/12),0) -> 5.31 | AB72: =IF(AND(AB$16*1>=$R72,AB$16*1<=$D$8,$R72<$D$8,$P72>SUM($V72:AA72)),IF(SUM($P72*$U72/12,$V72:AA72)>$P72,$P72-SUM($V72:AA72),$P72*$U72/12),0) -> 0.00 | AC72: =IF(AND(AC$16*1>=$R72,AC$16*1<=$D$8,$R72<$D$8,$P72>SUM($V72:AB72)),IF(SUM($P72*$U72/12,$V72:AB72)>$P72,$P72-SUM($V72:AB72),$P72*$U72/12),0) -> 0.00 | AD72: =IF(AND(AD$16*1>=$R72,AD$16*1<=$D$8,$R72<$D$8,$P72>SUM($V72:AC72)),IF(SUM($P72*$U72/12,$V72:AC72)>$P72,$P72-SUM($V72:AC72),$P72*$U72/12),0) -> 0.00 | AE72: =IF(AND(AE$16*1>=$R72,AE$16*1<=$D$8,$R72<$D$8,$P72>SUM($V72:AD72)),IF(SUM($P72*$U72/12,$V72:AD72)>$P72,$P72-SUM($V72:AD72),$P72*$U72/12),0) -> 0.00 | AF72: =IF(AND(AF$16*1>=$R72,AF$16*1<=$D$8,$R72<$D$8,$P72>SUM($V72:AE72)),IF(SUM($P72*$U72/12,$V72:AE72)>$P72,$P72-SUM($V72:AE72),$P72*$U72/12),0) -> 0.00 | AG72: =IF(AND(AG$16*1>=$R72,AG$16*1<=$D$8,$R72<$D$8,$P72>SUM($V72:AF72)),IF(SUM($P72*$U72/12,$V72:AF72)>$P72,$P72-SUM($V72:AF72),$P72*$U72/12),0) -> 0.00 | AH72: =IF(AND(AH$16*1>=$R72,AH$16*1<=$D$8,$R72<$D$8,$P72>SUM($V72:AG72)),IF(SUM($P72*$U72/12,$V72:AG72)>$P72,$P72-SUM($V72:AG72),$P72*$U72/12),0) -> 0.00 | AI72: 26.57 | AL72: 63.77 | AN72: 63.77
C73: 57 | D73: 335111 | E73: ESCRITORIO DE VIDRIO NEGRO (MARCA) | I73: 637.71 | N73: 637.71 | P73: 637.71 | Q73: 2018-03-15 | R73: 2018-04-01 | U73: 10% | V73: 47.83 | W73: =IF(AND(W$16*1>=$R73,W$16*1<=$D$8,$R73<$D$8,$P73>SUM($V73:V73)),IF(SUM($P73*$U73/12,$V73:V73)>$P73,$P73-SUM($V73:V73),$P73*$U73/12),0) -> 5.31 | X73: =IF(AND(X$16*1>=$R73,X$16*1<=$D$8,$R73<$D$8,$P73>SUM($V73:W73)),IF(SUM($P73*$U73/12,$V73:W73)>$P73,$P73-SUM($V73:W73),$P73*$U73/12),0) -> 5.31 | Y73: =IF(AND(Y$16*1>=$R73,Y$16*1<=$D$8,$R73<$D$8,$P73>SUM($V73:X73)),IF(SUM($P73*$U73/12,$V73:X73)>$P73,$P73-SUM($V73:X73),$P73*$U73/12),0) -> 5.31 | Z73: =IF(AND(Z$16*1>=$R73,Z$16*1<=$D$8,$R73<$D$8,$P73>SUM($V73:Y73)),IF(SUM($P73*$U73/12,$V73:Y73)>$P73,$P73-SUM($V73:Y73),$P73*$U73/12),0) -> 5.31 | AA73: =IF(AND(AA$16*1>=$R73,AA$16*1<=$D$8,$R73<$D$8,$P73>SUM($V73:Z73)),IF(SUM($P73*$U73/12,$V73:Z73)>$P73,$P73-SUM($V73:Z73),$P73*$U73/12),0) -> 5.31 | AB73: =IF(AND(AB$16*1>=$R73,AB$16*1<=$D$8,$R73<$D$8,$P73>SUM($V73:AA73)),IF(SUM($P73*$U73/12,$V73:AA73)>$P73,$P73-SUM($V73:AA73),$P73*$U73/12),0) -> 0.00 | AC73: =IF(AND(AC$16*1>=$R73,AC$16*1<=$D$8,$R73<$D$8,$P73>SUM($V73:AB73)),IF(SUM($P73*$U73/12,$V73:AB73)>$P73,$P73-SUM($V73:AB73),$P73*$U73/12),0) -> 0.00 | AD73: =IF(AND(AD$16*1>=$R73,AD$16*1<=$D$8,$R73<$D$8,$P73>SUM($V73:AC73)),IF(SUM($P73*$U73/12,$V73:AC73)>$P73,$P73-SUM($V73:AC73),$P73*$U73/12),0) -> 0.00 | AE73: =IF(AND(AE$16*1>=$R73,AE$16*1<=$D$8,$R73<$D$8,$P73>SUM($V73:AD73)),IF(SUM($P73*$U73/12,$V73:AD73)>$P73,$P73-SUM($V73:AD73),$P73*$U73/12),0) -> 0.00 | AF73: =IF(AND(AF$16*1>=$R73,AF$16*1<=$D$8,$R73<$D$8,$P73>SUM($V73:AE73)),IF(SUM($P73*$U73/12,$V73:AE73)>$P73,$P73-SUM($V73:AE73),$P73*$U73/12),0) -> 0.00 | AG73: =IF(AND(AG$16*1>=$R73,AG$16*1<=$D$8,$R73<$D$8,$P73>SUM($V73:AF73)),IF(SUM($P73*$U73/12,$V73:AF73)>$P73,$P73-SUM($V73:AF73),$P73*$U73/12),0) -> 0.00 | AH73: =IF(AND(AH$16*1>=$R73,AH$16*1<=$D$8,$R73<$D$8,$P73>SUM($V73:AG73)),IF(SUM($P73*$U73/12,$V73:AG73)>$P73,$P73-SUM($V73:AG73),$P73*$U73/12),0) -> 0.00 | AI73: 26.57 | AL73: 63.77 | AN73: 63.77
C74: 58 | D74: 335111 | E74: ESTANTE ALUMINIO DE 4 TABL.(MARC.) | I74: 187.65 | N74: 187.65 | P74: 187.65 | Q74: 2018-03-15 | R74: 2018-04-01 | U74: 10% | V74: 14.07 | W74: =IF(AND(W$16*1>=$R74,W$16*1<=$D$8,$R74<$D$8,$P74>SUM($V74:V74)),IF(SUM($P74*$U74/12,$V74:V74)>$P74,$P74-SUM($V74:V74),$P74*$U74/12),0) -> 1.56 | X74: =IF(AND(X$16*1>=$R74,X$16*1<=$D$8,$R74<$D$8,$P74>SUM($V74:W74)),IF(SUM($P74*$U74/12,$V74:W74)>$P74,$P74-SUM($V74:W74),$P74*$U74/12),0) -> 1.56 | Y74: =IF(AND(Y$16*1>=$R74,Y$16*1<=$D$8,$R74<$D$8,$P74>SUM($V74:X74)),IF(SUM($P74*$U74/12,$V74:X74)>$P74,$P74-SUM($V74:X74),$P74*$U74/12),0) -> 1.56 | Z74: =IF(AND(Z$16*1>=$R74,Z$16*1<=$D$8,$R74<$D$8,$P74>SUM($V74:Y74)),IF(SUM($P74*$U74/12,$V74:Y74)>$P74,$P74-SUM($V74:Y74),$P74*$U74/12),0) -> 1.56 | AA74: =IF(AND(AA$16*1>=$R74,AA$16*1<=$D$8,$R74<$D$8,$P74>SUM($V74:Z74)),IF(SUM($P74*$U74/12,$V74:Z74)>$P74,$P74-SUM($V74:Z74),$P74*$U74/12),0) -> 1.56 | AB74: =IF(AND(AB$16*1>=$R74,AB$16*1<=$D$8,$R74<$D$8,$P74>SUM($V74:AA74)),IF(SUM($P74*$U74/12,$V74:AA74)>$P74,$P74-SUM($V74:AA74),$P74*$U74/12),0) -> 0.00 | AC74: =IF(AND(AC$16*1>=$R74,AC$16*1<=$D$8,$R74<$D$8,$P74>SUM($V74:AB74)),IF(SUM($P74*$U74/12,$V74:AB74)>$P74,$P74-SUM($V74:AB74),$P74*$U74/12),0) -> 0.00 | AD74: =IF(AND(AD$16*1>=$R74,AD$16*1<=$D$8,$R74<$D$8,$P74>SUM($V74:AC74)),IF(SUM($P74*$U74/12,$V74:AC74)>$P74,$P74-SUM($V74:AC74),$P74*$U74/12),0) -> 0.00 | AE74: =IF(AND(AE$16*1>=$R74,AE$16*1<=$D$8,$R74<$D$8,$P74>SUM($V74:AD74)),IF(SUM($P74*$U74/12,$V74:AD74)>$P74,$P74-SUM($V74:AD74),$P74*$U74/12),0) -> 0.00 | AF74: =IF(AND(AF$16*1>=$R74,AF$16*1<=$D$8,$R74<$D$8,$P74>SUM($V74:AE74)),IF(SUM($P74*$U74/12,$V74:AE74)>$P74,$P74-SUM($V74:AE74),$P74*$U74/12),0) -> 0.00 | AG74: =IF(AND(AG$16*1>=$R74,AG$16*1<=$D$8,$R74<$D$8,$P74>SUM($V74:AF74)),IF(SUM($P74*$U74/12,$V74:AF74)>$P74,$P74-SUM($V74:AF74),$P74*$U74/12),0) -> 0.00 | AH74: =IF(AND(AH$16*1>=$R74,AH$16*1<=$D$8,$R74<$D$8,$P74>SUM($V74:AG74)),IF(SUM($P74*$U74/12,$V74:AG74)>$P74,$P74-SUM($V74:AG74),$P74*$U74/12),0) -> 0.00 | AI74: 7.82 | AL74: 18.76 | AN74: 18.76
C75: 59 | D75: 335111 | E75: ESTANTE ALUMINIO DE 4 TABL.(CONTAB) | I75: 187.65 | N75: 187.65 | P75: 187.65 | Q75: 2018-03-15 | R75: 2018-04-01 | U75: 10% | V75: 14.07 | W75: =IF(AND(W$16*1>=$R75,W$16*1<=$D$8,$R75<$D$8,$P75>SUM($V75:V75)),IF(SUM($P75*$U75/12,$V75:V75)>$P75,$P75-SUM($V75:V75),$P75*$U75/12),0) -> 1.56 | X75: =IF(AND(X$16*1>=$R75,X$16*1<=$D$8,$R75<$D$8,$P75>SUM($V75:W75)),IF(SUM($P75*$U75/12,$V75:W75)>$P75,$P75-SUM($V75:W75),$P75*$U75/12),0) -> 1.56 | Y75: =IF(AND(Y$16*1>=$R75,Y$16*1<=$D$8,$R75<$D$8,$P75>SUM($V75:X75)),IF(SUM($P75*$U75/12,$V75:X75)>$P75,$P75-SUM($V75:X75),$P75*$U75/12),0) -> 1.56 | Z75: =IF(AND(Z$16*1>=$R75,Z$16*1<=$D$8,$R75<$D$8,$P75>SUM($V75:Y75)),IF(SUM($P75*$U75/12,$V75:Y75)>$P75,$P75-SUM($V75:Y75),$P75*$U75/12),0) -> 1.56 | AA75: =IF(AND(AA$16*1>=$R75,AA$16*1<=$D$8,$R75<$D$8,$P75>SUM($V75:Z75)),IF(SUM($P75*$U75/12,$V75:Z75)>$P75,$P75-SUM($V75:Z75),$P75*$U75/12),0) -> 1.56 | AB75: =IF(AND(AB$16*1>=$R75,AB$16*1<=$D$8,$R75<$D$8,$P75>SUM($V75:AA75)),IF(SUM($P75*$U75/12,$V75:AA75)>$P75,$P75-SUM($V75:AA75),$P75*$U75/12),0) -> 0.00 | AC75: =IF(AND(AC$16*1>=$R75,AC$16*1<=$D$8,$R75<$D$8,$P75>SUM($V75:AB75)),IF(SUM($P75*$U75/12,$V75:AB75)>$P75,$P75-SUM($V75:AB75),$P75*$U75/12),0) -> 0.00 | AD75: =IF(AND(AD$16*1>=$R75,AD$16*1<=$D$8,$R75<$D$8,$P75>SUM($V75:AC75)),IF(SUM($P75*$U75/12,$V75:AC75)>$P75,$P75-SUM($V75:AC75),$P75*$U75/12),0) -> 0.00 | AE75: =IF(AND(AE$16*1>=$R75,AE$16*1<=$D$8,$R75<$D$8,$P75>SUM($V75:AD75)),IF(SUM($P75*$U75/12,$V75:AD75)>$P75,$P75-SUM($V75:AD75),$P75*$U75/12),0) -> 0.00 | AF75: =IF(AND(AF$16*1>=$R75,AF$16*1<=$D$8,$R75<$D$8,$P75>SUM($V75:AE75)),IF(SUM($P75*$U75/12,$V75:AE75)>$P75,$P75-SUM($V75:AE75),$P75*$U75/12),0) -> 0.00 | AG75: =IF(AND(AG$16*1>=$R75,AG$16*1<=$D$8,$R75<$D$8,$P75>SUM($V75:AF75)),IF(SUM($P75*$U75/12,$V75:AF75)>$P75,$P75-SUM($V75:AF75),$P75*$U75/12),0) -> 0.00 | AH75: =IF(AND(AH$16*1>=$R75,AH$16*1<=$D$8,$R75<$D$8,$P75>SUM($V75:AG75)),IF(SUM($P75*$U75/12,$V75:AG75)>$P75,$P75-SUM($V75:AG75),$P75*$U75/12),0) -> 0.00 | AI75: 7.82 | AL75: 18.76 | AN75: 18.76
C76: 60 | D76: 335111 | E76: SILLON NEGRO CUERINA | I76: 190.2 | N76: 190.2 | P76: 190.20 | Q76: 2018-03-15 | R76: 2018-04-01 | U76: 10% | V76: 14.27 | W76: =IF(AND(W$16*1>=$R76,W$16*1<=$D$8,$R76<$D$8,$P76>SUM($V76:V76)),IF(SUM($P76*$U76/12,$V76:V76)>$P76,$P76-SUM($V76:V76),$P76*$U76/12),0) -> 1.59 | X76: =IF(AND(X$16*1>=$R76,X$16*1<=$D$8,$R76<$D$8,$P76>SUM($V76:W76)),IF(SUM($P76*$U76/12,$V76:W76)>$P76,$P76-SUM($V76:W76),$P76*$U76/12),0) -> 1.59 | Y76: =IF(AND(Y$16*1>=$R76,Y$16*1<=$D$8,$R76<$D$8,$P76>SUM($V76:X76)),IF(SUM($P76*$U76/12,$V76:X76)>$P76,$P76-SUM($V76:X76),$P76*$U76/12),0) -> 1.59 | Z76: =IF(AND(Z$16*1>=$R76,Z$16*1<=$D$8,$R76<$D$8,$P76>SUM($V76:Y76)),IF(SUM($P76*$U76/12,$V76:Y76)>$P76,$P76-SUM($V76:Y76),$P76*$U76/12),0) -> 1.59 | AA76: =IF(AND(AA$16*1>=$R76,AA$16*1<=$D$8,$R76<$D$8,$P76>SUM($V76:Z76)),IF(SUM($P76*$U76/12,$V76:Z76)>$P76,$P76-SUM($V76:Z76),$P76*$U76/12),0) -> 1.59 | AB76: =IF(AND(AB$16*1>=$R76,AB$16*1<=$D$8,$R76<$D$8,$P76>SUM($V76:AA76)),IF(SUM($P76*$U76/12,$V76:AA76)>$P76,$P76-SUM($V76:AA76),$P76*$U76/12),0) -> 0.00 | AC76: =IF(AND(AC$16*1>=$R76,AC$16*1<=$D$8,$R76<$D$8,$P76>SUM($V76:AB76)),IF(SUM($P76*$U76/12,$V76:AB76)>$P76,$P76-SUM($V76:AB76),$P76*$U76/12),0) -> 0.00 | AD76: =IF(AND(AD$16*1>=$R76,AD$16*1<=$D$8,$R76<$D$8,$P76>SUM($V76:AC76)),IF(SUM($P76*$U76/12,$V76:AC76)>$P76,$P76-SUM($V76:AC76),$P76*$U76/12),0) -> 0.00 | AE76: =IF(AND(AE$16*1>=$R76,AE$16*1<=$D$8,$R76<$D$8,$P76>SUM($V76:AD76)),IF(SUM($P76*$U76/12,$V76:AD76)>$P76,$P76-SUM($V76:AD76),$P76*$U76/12),0) -> 0.00 | AF76: =IF(AND(AF$16*1>=$R76,AF$16*1<=$D$8,$R76<$D$8,$P76>SUM($V76:AE76)),IF(SUM($P76*$U76/12,$V76:AE76)>$P76,$P76-SUM($V76:AE76),$P76*$U76/12),0) -> 0.00 | AG76: =IF(AND(AG$16*1>=$R76,AG$16*1<=$D$8,$R76<$D$8,$P76>SUM($V76:AF76)),IF(SUM($P76*$U76/12,$V76:AF76)>$P76,$P76-SUM($V76:AF76),$P76*$U76/12),0) -> 0.00 | AH76: =IF(AND(AH$16*1>=$R76,AH$16*1<=$D$8,$R76<$D$8,$P76>SUM($V76:AG76)),IF(SUM($P76*$U76/12,$V76:AG76)>$P76,$P76-SUM($V76:AG76),$P76*$U76/12),0) -> 0.00 | AI76: 7.93 | AL76: 19.03 | AN76: 19.03
C77: 61 | D77: 335111 | E77: SILLON NEGRO CUERINA | I77: 190.19 | N77: 190.19 | P77: 190.19 | Q77: 2018-03-15 | R77: 2018-04-01 | U77: 10% | V77: 14.26 | W77: =IF(AND(W$16*1>=$R77,W$16*1<=$D$8,$R77<$D$8,$P77>SUM($V77:V77)),IF(SUM($P77*$U77/12,$V77:V77)>$P77,$P77-SUM($V77:V77),$P77*$U77/12),0) -> 1.58 | X77: =IF(AND(X$16*1>=$R77,X$16*1<=$D$8,$R77<$D$8,$P77>SUM($V77:W77)),IF(SUM($P77*$U77/12,$V77:W77)>$P77,$P77-SUM($V77:W77),$P77*$U77/12),0) -> 1.58 | Y77: =IF(AND(Y$16*1>=$R77,Y$16*1<=$D$8,$R77<$D$8,$P77>SUM($V77:X77)),IF(SUM($P77*$U77/12,$V77:X77)>$P77,$P77-SUM($V77:X77),$P77*$U77/12),0) -> 1.58 | Z77: =IF(AND(Z$16*1>=$R77,Z$16*1<=$D$8,$R77<$D$8,$P77>SUM($V77:Y77)),IF(SUM($P77*$U77/12,$V77:Y77)>$P77,$P77-SUM($V77:Y77),$P77*$U77/12),0) -> 1.58 | AA77: =IF(AND(AA$16*1>=$R77,AA$16*1<=$D$8,$R77<$D$8,$P77>SUM($V77:Z77)),IF(SUM($P77*$U77/12,$V77:Z77)>$P77,$P77-SUM($V77:Z77),$P77*$U77/12),0) -> 1.58 | AB77: =IF(AND(AB$16*1>=$R77,AB$16*1<=$D$8,$R77<$D$8,$P77>SUM($V77:AA77)),IF(SUM($P77*$U77/12,$V77:AA77)>$P77,$P77-SUM($V77:AA77),$P77*$U77/12),0) -> 0.00 | AC77: =IF(AND(AC$16*1>=$R77,AC$16*1<=$D$8,$R77<$D$8,$P77>SUM($V77:AB77)),IF(SUM($P77*$U77/12,$V77:AB77)>$P77,$P77-SUM($V77:AB77),$P77*$U77/12),0) -> 0.00 | AD77: =IF(AND(AD$16*1>=$R77,AD$16*1<=$D$8,$R77<$D$8,$P77>SUM($V77:AC77)),IF(SUM($P77*$U77/12,$V77:AC77)>$P77,$P77-SUM($V77:AC77),$P77*$U77/12),0) -> 0.00 | AE77: =IF(AND(AE$16*1>=$R77,AE$16*1<=$D$8,$R77<$D$8,$P77>SUM($V77:AD77)),IF(SUM($P77*$U77/12,$V77:AD77)>$P77,$P77-SUM($V77:AD77),$P77*$U77/12),0) -> 0.00 | AF77: =IF(AND(AF$16*1>=$R77,AF$16*1<=$D$8,$R77<$D$8,$P77>SUM($V77:AE77)),IF(SUM($P77*$U77/12,$V77:AE77)>$P77,$P77-SUM($V77:AE77),$P77*$U77/12),0) -> 0.00 | AG77: =IF(AND(AG$16*1>=$R77,AG$16*1<=$D$8,$R77<$D$8,$P77>SUM($V77:AF77)),IF(SUM($P77*$U77/12,$V77:AF77)>$P77,$P77-SUM($V77:AF77),$P77*$U77/12),0) -> 0.00 | AH77: =IF(AND(AH$16*1>=$R77,AH$16*1<=$D$8,$R77<$D$8,$P77>SUM($V77:AG77)),IF(SUM($P77*$U77/12,$V77:AG77)>$P77,$P77-SUM($V77:AG77),$P77*$U77/12),0) -> 0.00 | AI77: 7.92 | AL77: 19.01 | AN77: 19.01
C78: 62 | D78: 335111 | E78: ARCHIVAD. DE 4 GAV. METAL NEGR.(SG) | I78: 326.27 | N78: 326.27 | P78: 326.27 | Q78: 2018-03-20 | R78: 2018-04-01 | U78: 10% | V78: 24.47 | W78: =IF(AND(W$16*1>=$R78,W$16*1<=$D$8,$R78<$D$8,$P78>SUM($V78:V78)),IF(SUM($P78*$U78/12,$V78:V78)>$P78,$P78-SUM($V78:V78),$P78*$U78/12),0) -> 2.72 | X78: =IF(AND(X$16*1>=$R78,X$16*1<=$D$8,$R78<$D$8,$P78>SUM($V78:W78)),IF(SUM($P78*$U78/12,$V78:W78)>$P78,$P78-SUM($V78:W78),$P78*$U78/12),0) -> 2.72 | Y78: =IF(AND(Y$16*1>=$R78,Y$16*1<=$D$8,$R78<$D$8,$P78>SUM($V78:X78)),IF(SUM($P78*$U78/12,$V78:X78)>$P78,$P78-SUM($V78:X78),$P78*$U78/12),0) -> 2.72 | Z78: =IF(AND(Z$16*1>=$R78,Z$16*1<=$D$8,$R78<$D$8,$P78>SUM($V78:Y78)),IF(SUM($P78*$U78/12,$V78:Y78)>$P78,$P78-SUM($V78:Y78),$P78*$U78/12),0) -> 2.72 | AA78: =IF(AND(AA$16*1>=$R78,AA$16*1<=$D$8,$R78<$D$8,$P78>SUM($V78:Z78)),IF(SUM($P78*$U78/12,$V78:Z78)>$P78,$P78-SUM($V78:Z78),$P78*$U78/12),0) -> 2.72 | AB78: =IF(AND(AB$16*1>=$R78,AB$16*1<=$D$8,$R78<$D$8,$P78>SUM($V78:AA78)),IF(SUM($P78*$U78/12,$V78:AA78)>$P78,$P78-SUM($V78:AA78),$P78*$U78/12),0) -> 0.00 | AC78: =IF(AND(AC$16*1>=$R78,AC$16*1<=$D$8,$R78<$D$8,$P78>SUM($V78:AB78)),IF(SUM($P78*$U78/12,$V78:AB78)>$P78,$P78-SUM($V78:AB78),$P78*$U78/12),0) -> 0.00 | AD78: =IF(AND(AD$16*1>=$R78,AD$16*1<=$D$8,$R78<$D$8,$P78>SUM($V78:AC78)),IF(SUM($P78*$U78/12,$V78:AC78)>$P78,$P78-SUM($V78:AC78),$P78*$U78/12),0) -> 0.00 | AE78: =IF(AND(AE$16*1>=$R78,AE$16*1<=$D$8,$R78<$D$8,$P78>SUM($V78:AD78)),IF(SUM($P78*$U78/12,$V78:AD78)>$P78,$P78-SUM($V78:AD78),$P78*$U78/12),0) -> 0.00 | AF78: =IF(AND(AF$16*1>=$R78,AF$16*1<=$D$8,$R78<$D$8,$P78>SUM($V78:AE78)),IF(SUM($P78*$U78/12,$V78:AE78)>$P78,$P78-SUM($V78:AE78),$P78*$U78/12),0) -> 0.00 | AG78: =IF(AND(AG$16*1>=$R78,AG$16*1<=$D$8,$R78<$D$8,$P78>SUM($V78:AF78)),IF(SUM($P78*$U78/12,$V78:AF78)>$P78,$P78-SUM($V78:AF78),$P78*$U78/12),0) -> 0.00 | AH78: =IF(AND(AH$16*1>=$R78,AH$16*1<=$D$8,$R78<$D$8,$P78>SUM($V78:AG78)),IF(SUM($P78*$U78/12,$V78:AG78)>$P78,$P78-SUM($V78:AG78),$P78*$U78/12),0) -> 0.00 | AI78: 13.59 | AL78: 32.63 | AN78: 32.63
C79: 63 | D79: 335111 | E79: ARCHIVAD. DE 4 GAV. METAL NEGR.(LLT) | I79: 326.27 | N79: 326.27 | P79: 326.27 | Q79: 2018-03-20 | R79: 2018-04-01 | U79: 10% | V79: 24.47 | W79: =IF(AND(W$16*1>=$R79,W$16*1<=$D$8,$R79<$D$8,$P79>SUM($V79:V79)),IF(SUM($P79*$U79/12,$V79:V79)>$P79,$P79-SUM($V79:V79),$P79*$U79/12),0) -> 2.72 | X79: =IF(AND(X$16*1>=$R79,X$16*1<=$D$8,$R79<$D$8,$P79>SUM($V79:W79)),IF(SUM($P79*$U79/12,$V79:W79)>$P79,$P79-SUM($V79:W79),$P79*$U79/12),0) -> 2.72 | Y79: =IF(AND(Y$16*1>=$R79,Y$16*1<=$D$8,$R79<$D$8,$P79>SUM($V79:X79)),IF(SUM($P79*$U79/12,$V79:X79)>$P79,$P79-SUM($V79:X79),$P79*$U79/12),0) -> 2.72 | Z79: =IF(AND(Z$16*1>=$R79,Z$16*1<=$D$8,$R79<$D$8,$P79>SUM($V79:Y79)),IF(SUM($P79*$U79/12,$V79:Y79)>$P79,$P79-SUM($V79:Y79),$P79*$U79/12),0) -> 2.72 | AA79: =IF(AND(AA$16*1>=$R79,AA$16*1<=$D$8,$R79<$D$8,$P79>SUM($V79:Z79)),IF(SUM($P79*$U79/12,$V79:Z79)>$P79,$P79-SUM($V79:Z79),$P79*$U79/12),0) -> 2.72 | AB79: =IF(AND(AB$16*1>=$R79,AB$16*1<=$D$8,$R79<$D$8,$P79>SUM($V79:AA79)),IF(SUM($P79*$U79/12,$V79:AA79)>$P79,$P79-SUM($V79:AA79),$P79*$U79/12),0) -> 0.00 | AC79: =IF(AND(AC$16*1>=$R79,AC$16*1<=$D$8,$R79<$D$8,$P79>SUM($V79:AB79)),IF(SUM($P79*$U79/12,$V79:AB79)>$P79,$P79-SUM($V79:AB79),$P79*$U79/12),0) -> 0.00 | AD79: =IF(AND(AD$16*1>=$R79,AD$16*1<=$D$8,$R79<$D$8,$P79>SUM($V79:AC79)),IF(SUM($P79*$U79/12,$V79:AC79)>$P79,$P79-SUM($V79:AC79),$P79*$U79/12),0) -> 0.00 | AE79: =IF(AND(AE$16*1>=$R79,AE$16*1<=$D$8,$R79<$D$8,$P79>SUM($V79:AD79)),IF(SUM($P79*$U79/12,$V79:AD79)>$P79,$P79-SUM($V79:AD79),$P79*$U79/12),0) -> 0.00 | AF79: =IF(AND(AF$16*1>=$R79,AF$16*1<=$D$8,$R79<$D$8,$P79>SUM($V79:AE79)),IF(SUM($P79*$U79/12,$V79:AE79)>$P79,$P79-SUM($V79:AE79),$P79*$U79/12),0) -> 0.00 | AG79: =IF(AND(AG$16*1>=$R79,AG$16*1<=$D$8,$R79<$D$8,$P79>SUM($V79:AF79)),IF(SUM($P79*$U79/12,$V79:AF79)>$P79,$P79-SUM($V79:AF79),$P79*$U79/12),0) -> 0.00 | AH79: =IF(AND(AH$16*1>=$R79,AH$16*1<=$D$8,$R79<$D$8,$P79>SUM($V79:AG79)),IF(SUM($P79*$U79/12,$V79:AG79)>$P79,$P79-SUM($V79:AG79),$P79*$U79/12),0) -> 0.00 | AI79: 13.59 | AL79: 32.63 | AN79: 32.63
C80: 64 | D80: 335111 | E80: ARCHIVAD. DE 4 GAV. METAL NEGR.(PAT) | I80: 326.27 | N80: 326.27 | P80: 326.27 | Q80: 2018-03-20 | R80: 2018-04-01 | U80: 10% | V80: 24.47 | W80: =IF(AND(W$16*1>=$R80,W$16*1<=$D$8,$R80<$D$8,$P80>SUM($V80:V80)),IF(SUM($P80*$U80/12,$V80:V80)>$P80,$P80-SUM($V80:V80),$P80*$U80/12),0) -> 2.72 | X80: =IF(AND(X$16*1>=$R80,X$16*1<=$D$8,$R80<$D$8,$P80>SUM($V80:W80)),IF(SUM($P80*$U80/12,$V80:W80)>$P80,$P80-SUM($V80:W80),$P80*$U80/12),0) -> 2.72 | Y80: =IF(AND(Y$16*1>=$R80,Y$16*1<=$D$8,$R80<$D$8,$P80>SUM($V80:X80)),IF(SUM($P80*$U80/12,$V80:X80)>$P80,$P80-SUM($V80:X80),$P80*$U80/12),0) -> 2.72 | Z80: =IF(AND(Z$16*1>=$R80,Z$16*1<=$D$8,$R80<$D$8,$P80>SUM($V80:Y80)),IF(SUM($P80*$U80/12,$V80:Y80)>$P80,$P80-SUM($V80:Y80),$P80*$U80/12),0) -> 2.72 | AA80: =IF(AND(AA$16*1>=$R80,AA$16*1<=$D$8,$R80<$D$8,$P80>SUM($V80:Z80)),IF(SUM($P80*$U80/12,$V80:Z80)>$P80,$P80-SUM($V80:Z80),$P80*$U80/12),0) -> 2.72 | AB80: =IF(AND(AB$16*1>=$R80,AB$16*1<=$D$8,$R80<$D$8,$P80>SUM($V80:AA80)),IF(SUM($P80*$U80/12,$V80:AA80)>$P80,$P80-SUM($V80:AA80),$P80*$U80/12),0) -> 0.00 | AC80: =IF(AND(AC$16*1>=$R80,AC$16*1<=$D$8,$R80<$D$8,$P80>SUM($V80:AB80)),IF(SUM($P80*$U80/12,$V80:AB80)>$P80,$P80-SUM($V80:AB80),$P80*$U80/12),0) -> 0.00 | AD80: =IF(AND(AD$16*1>=$R80,AD$16*1<=$D$8,$R80<$D$8,$P80>SUM($V80:AC80)),IF(SUM($P80*$U80/12,$V80:AC80)>$P80,$P80-SUM($V80:AC80),$P80*$U80/12),0) -> 0.00 | AE80: =IF(AND(AE$16*1>=$R80,AE$16*1<=$D$8,$R80<$D$8,$P80>SUM($V80:AD80)),IF(SUM($P80*$U80/12,$V80:AD80)>$P80,$P80-SUM($V80:AD80),$P80*$U80/12),0) -> 0.00 | AF80: =IF(AND(AF$16*1>=$R80,AF$16*1<=$D$8,$R80<$D$8,$P80>SUM($V80:AE80)),IF(SUM($P80*$U80/12,$V80:AE80)>$P80,$P80-SUM($V80:AE80),$P80*$U80/12),0) -> 0.00 | AG80: =IF(AND(AG$16*1>=$R80,AG$16*1<=$D$8,$R80<$D$8,$P80>SUM($V80:AF80)),IF(SUM($P80*$U80/12,$V80:AF80)>$P80,$P80-SUM($V80:AF80),$P80*$U80/12),0) -> 0.00 | AH80: =IF(AND(AH$16*1>=$R80,AH$16*1<=$D$8,$R80<$D$8,$P80>SUM($V80:AG80)),IF(SUM($P80*$U80/12,$V80:AG80)>$P80,$P80-SUM($V80:AG80),$P80*$U80/12),0) -> 0.00 | AI80: 13.59 | AL80: 32.63 | AN80: 32.63
C81: 65 | D81: 335111 | E81: ARCHIVAD. DE 4 GAV. METAL NEGR.(ARCH) | I81: 326.27 | N81: 326.27 | P81: 326.27 | Q81: 2018-03-20 | R81: 2018-04-01 | U81: 10% | V81: 24.47 | W81: =IF(AND(W$16*1>=$R81,W$16*1<=$D$8,$R81<$D$8,$P81>SUM($V81:V81)),IF(SUM($P81*$U81/12,$V81:V81)>$P81,$P81-SUM($V81:V81),$P81*$U81/12),0) -> 2.72 | X81: =IF(AND(X$16*1>=$R81,X$16*1<=$D$8,$R81<$D$8,$P81>SUM($V81:W81)),IF(SUM($P81*$U81/12,$V81:W81)>$P81,$P81-SUM($V81:W81),$P81*$U81/12),0) -> 2.72 | Y81: =IF(AND(Y$16*1>=$R81,Y$16*1<=$D$8,$R81<$D$8,$P81>SUM($V81:X81)),IF(SUM($P81*$U81/12,$V81:X81)>$P81,$P81-SUM($V81:X81),$P81*$U81/12),0) -> 2.72 | Z81: =IF(AND(Z$16*1>=$R81,Z$16*1<=$D$8,$R81<$D$8,$P81>SUM($V81:Y81)),IF(SUM($P81*$U81/12,$V81:Y81)>$P81,$P81-SUM($V81:Y81),$P81*$U81/12),0) -> 2.72 | AA81: =IF(AND(AA$16*1>=$R81,AA$16*1<=$D$8,$R81<$D$8,$P81>SUM($V81:Z81)),IF(SUM($P81*$U81/12,$V81:Z81)>$P81,$P81-SUM($V81:Z81),$P81*$U81/12),0) -> 2.72 | AB81: =IF(AND(AB$16*1>=$R81,AB$16*1<=$D$8,$R81<$D$8,$P81>SUM($V81:AA81)),IF(SUM($P81*$U81/12,$V81:AA81)>$P81,$P81-SUM($V81:AA81),$P81*$U81/12),0) -> 0.00 | AC81: =IF(AND(AC$16*1>=$R81,AC$16*1<=$D$8,$R81<$D$8,$P81>SUM($V81:AB81)),IF(SUM($P81*$U81/12,$V81:AB81)>$P81,$P81-SUM($V81:AB81),$P81*$U81/12),0) -> 0.00 | AD81: =IF(AND(AD$16*1>=$R81,AD$16*1<=$D$8,$R81<$D$8,$P81>SUM($V81:AC81)),IF(SUM($P81*$U81/12,$V81:AC81)>$P81,$P81-SUM($V81:AC81),$P81*$U81/12),0) -> 0.00 | AE81: =IF(AND(AE$16*1>=$R81,AE$16*1<=$D$8,$R81<$D$8,$P81>SUM($V81:AD81)),IF(SUM($P81*$U81/12,$V81:AD81)>$P81,$P81-SUM($V81:AD81),$P81*$U81/12),0) -> 0.00 | AF81: =IF(AND(AF$16*1>=$R81,AF$16*1<=$D$8,$R81<$D$8,$P81>SUM($V81:AE81)),IF(SUM($P81*$U81/12,$V81:AE81)>$P81,$P81-SUM($V81:AE81),$P81*$U81/12),0) -> 0.00 | AG81: =IF(AND(AG$16*1>=$R81,AG$16*1<=$D$8,$R81<$D$8,$P81>SUM($V81:AF81)),IF(SUM($P81*$U81/12,$V81:AF81)>$P81,$P81-SUM($V81:AF81),$P81*$U81/12),0) -> 0.00 | AH81: =IF(AND(AH$16*1>=$R81,AH$16*1<=$D$8,$R81<$D$8,$P81>SUM($V81:AG81)),IF(SUM($P81*$U81/12,$V81:AG81)>$P81,$P81-SUM($V81:AG81),$P81*$U81/12),0) -> 0.00 | AI81: =SUM(W81:AH81) -> 13.59 | AL81: 32.63 | AN81: 32.63
C82: 66 | D82: 335111 | E82: ARCHIVAD. DE 4 GAV. METAL NEGR.(ARCH) | I82: 326.27 | N82: 326.27 | P82: 326.27 | Q82: 2018-03-20 | R82: 2018-04-01 | U82: 10% | V82: 24.47 | W82: =IF(AND(W$16*1>=$R82,W$16*1<=$D$8,$R82<$D$8,$P82>SUM($V82:V82)),IF(SUM($P82*$U82/12,$V82:V82)>$P82,$P82-SUM($V82:V82),$P82*$U82/12),0) -> 2.72 | X82: =IF(AND(X$16*1>=$R82,X$16*1<=$D$8,$R82<$D$8,$P82>SUM($V82:W82)),IF(SUM($P82*$U82/12,$V82:W82)>$P82,$P82-SUM($V82:W82),$P82*$U82/12),0) -> 2.72 | Y82: =IF(AND(Y$16*1>=$R82,Y$16*1<=$D$8,$R82<$D$8,$P82>SUM($V82:X82)),IF(SUM($P82*$U82/12,$V82:X82)>$P82,$P82-SUM($V82:X82),$P82*$U82/12),0) -> 2.72 | Z82: =IF(AND(Z$16*1>=$R82,Z$16*1<=$D$8,$R82<$D$8,$P82>SUM($V82:Y82)),IF(SUM($P82*$U82/12,$V82:Y82)>$P82,$P82-SUM($V82:Y82),$P82*$U82/12),0) -> 2.72 | AA82: =IF(AND(AA$16*1>=$R82,AA$16*1<=$D$8,$R82<$D$8,$P82>SUM($V82:Z82)),IF(SUM($P82*$U82/12,$V82:Z82)>$P82,$P82-SUM($V82:Z82),$P82*$U82/12),0) -> 2.72 | AB82: =IF(AND(AB$16*1>=$R82,AB$16*1<=$D$8,$R82<$D$8,$P82>SUM($V82:AA82)),IF(SUM($P82*$U82/12,$V82:AA82)>$P82,$P82-SUM($V82:AA82),$P82*$U82/12),0) -> 0.00 | AC82: =IF(AND(AC$16*1>=$R82,AC$16*1<=$D$8,$R82<$D$8,$P82>SUM($V82:AB82)),IF(SUM($P82*$U82/12,$V82:AB82)>$P82,$P82-SUM($V82:AB82),$P82*$U82/12),0) -> 0.00 | AD82: =IF(AND(AD$16*1>=$R82,AD$16*1<=$D$8,$R82<$D$8,$P82>SUM($V82:AC82)),IF(SUM($P82*$U82/12,$V82:AC82)>$P82,$P82-SUM($V82:AC82),$P82*$U82/12),0) -> 0.00 | AE82: =IF(AND(AE$16*1>=$R82,AE$16*1<=$D$8,$R82<$D$8,$P82>SUM($V82:AD82)),IF(SUM($P82*$U82/12,$V82:AD82)>$P82,$P82-SUM($V82:AD82),$P82*$U82/12),0) -> 0.00 | AF82: =IF(AND(AF$16*1>=$R82,AF$16*1<=$D$8,$R82<$D$8,$P82>SUM($V82:AE82)),IF(SUM($P82*$U82/12,$V82:AE82)>$P82,$P82-SUM($V82:AE82),$P82*$U82/12),0) -> 0.00 | AG82: =IF(AND(AG$16*1>=$R82,AG$16*1<=$D$8,$R82<$D$8,$P82>SUM($V82:AF82)),IF(SUM($P82*$U82/12,$V82:AF82)>$P82,$P82-SUM($V82:AF82),$P82*$U82/12),0) -> 0.00 | AH82: =IF(AND(AH$16*1>=$R82,AH$16*1<=$D$8,$R82<$D$8,$P82>SUM($V82:AG82)),IF(SUM($P82*$U82/12,$V82:AG82)>$P82,$P82-SUM($V82:AG82),$P82*$U82/12),0) -> 0.00 | AI82: 13.59 | AL82: 32.63 | AN82: 32.63
C83: 67 | D83: 335111 | E83: ESCRITORIO DE VIDRIO OF. PARALEGAL | I83: 586.63 | N83: 586.63 | P83: 586.63 | Q83: 2018-08-22 | R83: 2018-09-01 | U83: 10% | V83: 19.55 | W83: =IF(AND(W$16*1>=$R83,W$16*1<=$D$8,$R83<$D$8,$P83>SUM($V83:V83)),IF(SUM($P83*$U83/12,$V83:V83)>$P83,$P83-SUM($V83:V83),$P83*$U83/12),0) -> 4.89 | X83: =IF(AND(X$16*1>=$R83,X$16*1<=$D$8,$R83<$D$8,$P83>SUM($V83:W83)),IF(SUM($P83*$U83/12,$V83:W83)>$P83,$P83-SUM($V83:W83),$P83*$U83/12),0) -> 4.89 | Y83: =IF(AND(Y$16*1>=$R83,Y$16*1<=$D$8,$R83<$D$8,$P83>SUM($V83:X83)),IF(SUM($P83*$U83/12,$V83:X83)>$P83,$P83-SUM($V83:X83),$P83*$U83/12),0) -> 4.89 | Z83: =IF(AND(Z$16*1>=$R83,Z$16*1<=$D$8,$R83<$D$8,$P83>SUM($V83:Y83)),IF(SUM($P83*$U83/12,$V83:Y83)>$P83,$P83-SUM($V83:Y83),$P83*$U83/12),0) -> 4.89 | AA83: =IF(AND(AA$16*1>=$R83,AA$16*1<=$D$8,$R83<$D$8,$P83>SUM($V83:Z83)),IF(SUM($P83*$U83/12,$V83:Z83)>$P83,$P83-SUM($V83:Z83),$P83*$U83/12),0) -> 4.89 | AB83: =IF(AND(AB$16*1>=$R83,AB$16*1<=$D$8,$R83<$D$8,$P83>SUM($V83:AA83)),IF(SUM($P83*$U83/12,$V83:AA83)>$P83,$P83-SUM($V83:AA83),$P83*$U83/12),0) -> 0.00 | AC83: =IF(AND(AC$16*1>=$R83,AC$16*1<=$D$8,$R83<$D$8,$P83>SUM($V83:AB83)),IF(SUM($P83*$U83/12,$V83:AB83)>$P83,$P83-SUM($V83:AB83),$P83*$U83/12),0) -> 0.00 | AD83: =IF(AND(AD$16*1>=$R83,AD$16*1<=$D$8,$R83<$D$8,$P83>SUM($V83:AC83)),IF(SUM($P83*$U83/12,$V83:AC83)>$P83,$P83-SUM($V83:AC83),$P83*$U83/12),0) -> 0.00 | AE83: =IF(AND(AE$16*1>=$R83,AE$16*1<=$D$8,$R83<$D$8,$P83>SUM($V83:AD83)),IF(SUM($P83*$U83/12,$V83:AD83)>$P83,$P83-SUM($V83:AD83),$P83*$U83/12),0) -> 0.00 | AF83: =IF(AND(AF$16*1>=$R83,AF$16*1<=$D$8,$R83<$D$8,$P83>SUM($V83:AE83)),IF(SUM($P83*$U83/12,$V83:AE83)>$P83,$P83-SUM($V83:AE83),$P83*$U83/12),0) -> 0.00 | AG83: =IF(AND(AG$16*1>=$R83,AG$16*1<=$D$8,$R83<$D$8,$P83>SUM($V83:AF83)),IF(SUM($P83*$U83/12,$V83:AF83)>$P83,$P83-SUM($V83:AF83),$P83*$U83/12),0) -> 0.00 | AH83: =IF(AND(AH$16*1>=$R83,AH$16*1<=$D$8,$R83<$D$8,$P83>SUM($V83:AG83)),IF(SUM($P83*$U83/12,$V83:AG83)>$P83,$P83-SUM($V83:AG83),$P83*$U83/12),0) -> 0.00 | AI83: 24.44 | AL83: 34.22 | AN83: 34.22
C84: 68 | D84: 335111 | E84: ESCRITORIO VIDRIO OF. CONTABILIDAD | I84: 586.63 | N84: 586.63 | P84: 586.63 | Q84: 2018-08-22 | R84: 2018-09-01 | U84: 10% | V84: 19.55 | W84: =IF(AND(W$16*1>=$R84,W$16*1<=$D$8,$R84<$D$8,$P84>SUM($V84:V84)),IF(SUM($P84*$U84/12,$V84:V84)>$P84,$P84-SUM($V84:V84),$P84*$U84/12),0) -> 4.89 | X84: =IF(AND(X$16*1>=$R84,X$16*1<=$D$8,$R84<$D$8,$P84>SUM($V84:W84)),IF(SUM($P84*$U84/12,$V84:W84)>$P84,$P84-SUM($V84:W84),$P84*$U84/12),0) -> 4.89 | Y84: =IF(AND(Y$16*1>=$R84,Y$16*1<=$D$8,$R84<$D$8,$P84>SUM($V84:X84)),IF(SUM($P84*$U84/12,$V84:X84)>$P84,$P84-SUM($V84:X84),$P84*$U84/12),0) -> 4.89 | Z84: =IF(AND(Z$16*1>=$R84,Z$16*1<=$D$8,$R84<$D$8,$P84>SUM($V84:Y84)),IF(SUM($P84*$U84/12,$V84:Y84)>$P84,$P84-SUM($V84:Y84),$P84*$U84/12),0) -> 4.89 | AA84: =IF(AND(AA$16*1>=$R84,AA$16*1<=$D$8,$R84<$D$8,$P84>SUM($V84:Z84)),IF(SUM($P84*$U84/12,$V84:Z84)>$P84,$P84-SUM($V84:Z84),$P84*$U84/12),0) -> 4.89 | AB84: =IF(AND(AB$16*1>=$R84,AB$16*1<=$D$8,$R84<$D$8,$P84>SUM($V84:AA84)),IF(SUM($P84*$U84/12,$V84:AA84)>$P84,$P84-SUM($V84:AA84),$P84*$U84/12),0) -> 0.00 | AC84: =IF(AND(AC$16*1>=$R84,AC$16*1<=$D$8,$R84<$D$8,$P84>SUM($V84:AB84)),IF(SUM($P84*$U84/12,$V84:AB84)>$P84,$P84-SUM($V84:AB84),$P84*$U84/12),0) -> 0.00 | AD84: =IF(AND(AD$16*1>=$R84,AD$16*1<=$D$8,$R84<$D$8,$P84>SUM($V84:AC84)),IF(SUM($P84*$U84/12,$V84:AC84)>$P84,$P84-SUM($V84:AC84),$P84*$U84/12),0) -> 0.00 | AE84: =IF(AND(AE$16*1>=$R84,AE$16*1<=$D$8,$R84<$D$8,$P84>SUM($V84:AD84)),IF(SUM($P84*$U84/12,$V84:AD84)>$P84,$P84-SUM($V84:AD84),$P84*$U84/12),0) -> 0.00 | AF84: =IF(AND(AF$16*1>=$R84,AF$16*1<=$D$8,$R84<$D$8,$P84>SUM($V84:AE84)),IF(SUM($P84*$U84/12,$V84:AE84)>$P84,$P84-SUM($V84:AE84),$P84*$U84/12),0) -> 0.00 | AG84: =IF(AND(AG$16*1>=$R84,AG$16*1<=$D$8,$R84<$D$8,$P84>SUM($V84:AF84)),IF(SUM($P84*$U84/12,$V84:AF84)>$P84,$P84-SUM($V84:AF84),$P84*$U84/12),0) -> 0.00 | AH84: =IF(AND(AH$16*1>=$R84,AH$16*1<=$D$8,$R84<$D$8,$P84>SUM($V84:AG84)),IF(SUM($P84*$U84/12,$V84:AG84)>$P84,$P84-SUM($V84:AG84),$P84*$U84/12),0) -> 0.00 | AI84: 24.44 | AL84: 34.22 | AN84: 34.22
C85: 69 | D85: 335111 | E85: ARCHIVADOR METALICO: CK | I85: 326.27 | N85: 326.27 | P85: 326.27 | Q85: 2018-10-06 | R85: 2018-11-01 | U85: 10% | V85: 5.44 | W85: =IF(AND(W$16*1>=$R85,W$16*1<=$D$8,$R85<$D$8,$P85>SUM($V85:V85)),IF(SUM($P85*$U85/12,$V85:V85)>$P85,$P85-SUM($V85:V85),$P85*$U85/12),0) -> 2.72 | X85: =IF(AND(X$16*1>=$R85,X$16*1<=$D$8,$R85<$D$8,$P85>SUM($V85:W85)),IF(SUM($P85*$U85/12,$V85:W85)>$P85,$P85-SUM($V85:W85),$P85*$U85/12),0) -> 2.72 | Y85: =IF(AND(Y$16*1>=$R85,Y$16*1<=$D$8,$R85<$D$8,$P85>SUM($V85:X85)),IF(SUM($P85*$U85/12,$V85:X85)>$P85,$P85-SUM($V85:X85),$P85*$U85/12),0) -> 2.72 | Z85: =IF(AND(Z$16*1>=$R85,Z$16*1<=$D$8,$R85<$D$8,$P85>SUM($V85:Y85)),IF(SUM($P85*$U85/12,$V85:Y85)>$P85,$P85-SUM($V85:Y85),$P85*$U85/12),0) -> 2.72 | AA85: =IF(AND(AA$16*1>=$R85,AA$16*1<=$D$8,$R85<$D$8,$P85>SUM($V85:Z85)),IF(SUM($P85*$U85/12,$V85:Z85)>$P85,$P85-SUM($V85:Z85),$P85*$U85/12),0) -> 2.72 | AB85: =IF(AND(AB$16*1>=$R85,AB$16*1<=$D$8,$R85<$D$8,$P85>SUM($V85:AA85)),IF(SUM($P85*$U85/12,$V85:AA85)>$P85,$P85-SUM($V85:AA85),$P85*$U85/12),0) -> 0.00 | AC85: =IF(AND(AC$16*1>=$R85,AC$16*1<=$D$8,$R85<$D$8,$P85>SUM($V85:AB85)),IF(SUM($P85*$U85/12,$V85:AB85)>$P85,$P85-SUM($V85:AB85),$P85*$U85/12),0) -> 0.00 | AD85: =IF(AND(AD$16*1>=$R85,AD$16*1<=$D$8,$R85<$D$8,$P85>SUM($V85:AC85)),IF(SUM($P85*$U85/12,$V85:AC85)>$P85,$P85-SUM($V85:AC85),$P85*$U85/12),0) -> 0.00 | AE85: =IF(AND(AE$16*1>=$R85,AE$16*1<=$D$8,$R85<$D$8,$P85>SUM($V85:AD85)),IF(SUM($P85*$U85/12,$V85:AD85)>$P85,$P85-SUM($V85:AD85),$P85*$U85/12),0) -> 0.00 | AF85: =IF(AND(AF$16*1>=$R85,AF$16*1<=$D$8,$R85<$D$8,$P85>SUM($V85:AE85)),IF(SUM($P85*$U85/12,$V85:AE85)>$P85,$P85-SUM($V85:AE85),$P85*$U85/12),0) -> 0.00 | AG85: =IF(AND(AG$16*1>=$R85,AG$16*1<=$D$8,$R85<$D$8,$P85>SUM($V85:AF85)),IF(SUM($P85*$U85/12,$V85:AF85)>$P85,$P85-SUM($V85:AF85),$P85*$U85/12),0) -> 0.00 | AH85: =IF(AND(AH$16*1>=$R85,AH$16*1<=$D$8,$R85<$D$8,$P85>SUM($V85:AG85)),IF(SUM($P85*$U85/12,$V85:AG85)>$P85,$P85-SUM($V85:AG85),$P85*$U85/12),0) -> 0.00 | AI85: 13.59 | AL85: 13.60 | AN85: 13.60
C86: 70 | D86: 335111 | E86: ARCHIVADOR METALICO: SG | I86: 326.27 | N86: 326.27 | P86: 326.27 | Q86: 2018-10-06 | R86: 2018-11-01 | U86: 10% | V86: 5.44 | W86: =IF(AND(W$16*1>=$R86,W$16*1<=$D$8,$R86<$D$8,$P86>SUM($V86:V86)),IF(SUM($P86*$U86/12,$V86:V86)>$P86,$P86-SUM($V86:V86),$P86*$U86/12),0) -> 2.72 | X86: =IF(AND(X$16*1>=$R86,X$16*1<=$D$8,$R86<$D$8,$P86>SUM($V86:W86)),IF(SUM($P86*$U86/12,$V86:W86)>$P86,$P86-SUM($V86:W86),$P86*$U86/12),0) -> 2.72 | Y86: =IF(AND(Y$16*1>=$R86,Y$16*1<=$D$8,$R86<$D$8,$P86>SUM($V86:X86)),IF(SUM($P86*$U86/12,$V86:X86)>$P86,$P86-SUM($V86:X86),$P86*$U86/12),0) -> 2.72 | Z86: =IF(AND(Z$16*1>=$R86,Z$16*1<=$D$8,$R86<$D$8,$P86>SUM($V86:Y86)),IF(SUM($P86*$U86/12,$V86:Y86)>$P86,$P86-SUM($V86:Y86),$P86*$U86/12),0) -> 2.72 | AA86: =IF(AND(AA$16*1>=$R86,AA$16*1<=$D$8,$R86<$D$8,$P86>SUM($V86:Z86)),IF(SUM($P86*$U86/12,$V86:Z86)>$P86,$P86-SUM($V86:Z86),$P86*$U86/12),0) -> 2.72 | AB86: =IF(AND(AB$16*1>=$R86,AB$16*1<=$D$8,$R86<$D$8,$P86>SUM($V86:AA86)),IF(SUM($P86*$U86/12,$V86:AA86)>$P86,$P86-SUM($V86:AA86),$P86*$U86/12),0) -> 0.00 | AC86: =IF(AND(AC$16*1>=$R86,AC$16*1<=$D$8,$R86<$D$8,$P86>SUM($V86:AB86)),IF(SUM($P86*$U86/12,$V86:AB86)>$P86,$P86-SUM($V86:AB86),$P86*$U86/12),0) -> 0.00 | AD86: =IF(AND(AD$16*1>=$R86,AD$16*1<=$D$8,$R86<$D$8,$P86>SUM($V86:AC86)),IF(SUM($P86*$U86/12,$V86:AC86)>$P86,$P86-SUM($V86:AC86),$P86*$U86/12),0) -> 0.00 | AE86: =IF(AND(AE$16*1>=$R86,AE$16*1<=$D$8,$R86<$D$8,$P86>SUM($V86:AD86)),IF(SUM($P86*$U86/12,$V86:AD86)>$P86,$P86-SUM($V86:AD86),$P86*$U86/12),0) -> 0.00 | AF86: =IF(AND(AF$16*1>=$R86,AF$16*1<=$D$8,$R86<$D$8,$P86>SUM($V86:AE86)),IF(SUM($P86*$U86/12,$V86:AE86)>$P86,$P86-SUM($V86:AE86),$P86*$U86/12),0) -> 0.00 | AG86: =IF(AND(AG$16*1>=$R86,AG$16*1<=$D$8,$R86<$D$8,$P86>SUM($V86:AF86)),IF(SUM($P86*$U86/12,$V86:AF86)>$P86,$P86-SUM($V86:AF86),$P86*$U86/12),0) -> 0.00 | AH86: =IF(AND(AH$16*1>=$R86,AH$16*1<=$D$8,$R86<$D$8,$P86>SUM($V86:AG86)),IF(SUM($P86*$U86/12,$V86:AG86)>$P86,$P86-SUM($V86:AG86),$P86*$U86/12),0) -> 0.00 | AI86: 13.59 | AL86: 13.60 | AN86: 13.60
C87: 71 | D87: 335111 | E87: MESA SIMPLEX DA60 1LY/90 | I87: 304.32 | N87: 304.32 | P87: 304.32 | Q87: 2018-10-10 | R87: 2018-11-01 | U87: 10% | V87: 5.07 | W87: =IF(AND(W$16*1>=$R87,W$16*1<=$D$8,$R87<$D$8,$P87>SUM($V87:V87)),IF(SUM($P87*$U87/12,$V87:V87)>$P87,$P87-SUM($V87:V87),$P87*$U87/12),0) -> 2.54 | X87: =IF(AND(X$16*1>=$R87,X$16*1<=$D$8,$R87<$D$8,$P87>SUM($V87:W87)),IF(SUM($P87*$U87/12,$V87:W87)>$P87,$P87-SUM($V87:W87),$P87*$U87/12),0) -> 2.54 | Y87: =IF(AND(Y$16*1>=$R87,Y$16*1<=$D$8,$R87<$D$8,$P87>SUM($V87:X87)),IF(SUM($P87*$U87/12,$V87:X87)>$P87,$P87-SUM($V87:X87),$P87*$U87/12),0) -> 2.54 | Z87: =IF(AND(Z$16*1>=$R87,Z$16*1<=$D$8,$R87<$D$8,$P87>SUM($V87:Y87)),IF(SUM($P87*$U87/12,$V87:Y87)>$P87,$P87-SUM($V87:Y87),$P87*$U87/12),0) -> 2.54 | AA87: =IF(AND(AA$16*1>=$R87,AA$16*1<=$D$8,$R87<$D$8,$P87>SUM($V87:Z87)),IF(SUM($P87*$U87/12,$V87:Z87)>$P87,$P87-SUM($V87:Z87),$P87*$U87/12),0) -> 2.54 | AB87: =IF(AND(AB$16*1>=$R87,AB$16*1<=$D$8,$R87<$D$8,$P87>SUM($V87:AA87)),IF(SUM($P87*$U87/12,$V87:AA87)>$P87,$P87-SUM($V87:AA87),$P87*$U87/12),0) -> 0.00 | AC87: =IF(AND(AC$16*1>=$R87,AC$16*1<=$D$8,$R87<$D$8,$P87>SUM($V87:AB87)),IF(SUM($P87*$U87/12,$V87:AB87)>$P87,$P87-SUM($V87:AB87),$P87*$U87/12),0) -> 0.00 | AD87: =IF(AND(AD$16*1>=$R87,AD$16*1<=$D$8,$R87<$D$8,$P87>SUM($V87:AC87)),IF(SUM($P87*$U87/12,$V87:AC87)>$P87,$P87-SUM($V87:AC87),$P87*$U87/12),0) -> 0.00 | AE87: =IF(AND(AE$16*1>=$R87,AE$16*1<=$D$8,$R87<$D$8,$P87>SUM($V87:AD87)),IF(SUM($P87*$U87/12,$V87:AD87)>$P87,$P87-SUM($V87:AD87),$P87*$U87/12),0) -> 0.00 | AF87: =IF(AND(AF$16*1>=$R87,AF$16*1<=$D$8,$R87<$D$8,$P87>SUM($V87:AE87)),IF(SUM($P87*$U87/12,$V87:AE87)>$P87,$P87-SUM($V87:AE87),$P87*$U87/12),0) -> 0.00 | AG87: =IF(AND(AG$16*1>=$R87,AG$16*1<=$D$8,$R87<$D$8,$P87>SUM($V87:AF87)),IF(SUM($P87*$U87/12,$V87:AF87)>$P87,$P87-SUM($V87:AF87),$P87*$U87/12),0) -> 0.00 | AH87: =IF(AND(AH$16*1>=$R87,AH$16*1<=$D$8,$R87<$D$8,$P87>SUM($V87:AG87)),IF(SUM($P87*$U87/12,$V87:AG87)>$P87,$P87-SUM($V87:AG87),$P87*$U87/12),0) -> 0.00 | AI87: 12.68 | AL87: 12.68 | AN87: 12.68
C88: 72 | D88: 335111 | E88: MESA TRIPOD DA60 1LY | I88: 177.54 | N88: 177.54 | P88: 177.54 | Q88: 2018-10-10 | R88: 2018-11-01 | U88: 10% | V88: 2.96 | W88: =IF(AND(W$16*1>=$R88,W$16*1<=$D$8,$R88<$D$8,$P88>SUM($V88:V88)),IF(SUM($P88*$U88/12,$V88:V88)>$P88,$P88-SUM($V88:V88),$P88*$U88/12),0) -> 1.48 | X88: =IF(AND(X$16*1>=$R88,X$16*1<=$D$8,$R88<$D$8,$P88>SUM($V88:W88)),IF(SUM($P88*$U88/12,$V88:W88)>$P88,$P88-SUM($V88:W88),$P88*$U88/12),0) -> 1.48 | Y88: =IF(AND(Y$16*1>=$R88,Y$16*1<=$D$8,$R88<$D$8,$P88>SUM($V88:X88)),IF(SUM($P88*$U88/12,$V88:X88)>$P88,$P88-SUM($V88:X88),$P88*$U88/12),0) -> 1.48 | Z88: =IF(AND(Z$16*1>=$R88,Z$16*1<=$D$8,$R88<$D$8,$P88>SUM($V88:Y88)),IF(SUM($P88*$U88/12,$V88:Y88)>$P88,$P88-SUM($V88:Y88),$P88*$U88/12),0) -> 1.48 | AA88: =IF(AND(AA$16*1>=$R88,AA$16*1<=$D$8,$R88<$D$8,$P88>SUM($V88:Z88)),IF(SUM($P88*$U88/12,$V88:Z88)>$P88,$P88-SUM($V88:Z88),$P88*$U88/12),0) -> 1.48 | AB88: =IF(AND(AB$16*1>=$R88,AB$16*1<=$D$8,$R88<$D$8,$P88>SUM($V88:AA88)),IF(SUM($P88*$U88/12,$V88:AA88)>$P88,$P88-SUM($V88:AA88),$P88*$U88/12),0) -> 0.00 | AC88: =IF(AND(AC$16*1>=$R88,AC$16*1<=$D$8,$R88<$D$8,$P88>SUM($V88:AB88)),IF(SUM($P88*$U88/12,$V88:AB88)>$P88,$P88-SUM($V88:AB88),$P88*$U88/12),0) -> 0.00 | AD88: =IF(AND(AD$16*1>=$R88,AD$16*1<=$D$8,$R88<$D$8,$P88>SUM($V88:AC88)),IF(SUM($P88*$U88/12,$V88:AC88)>$P88,$P88-SUM($V88:AC88),$P88*$U88/12),0) -> 0.00 | AE88: =IF(AND(AE$16*1>=$R88,AE$16*1<=$D$8,$R88<$D$8,$P88>SUM($V88:AD88)),IF(SUM($P88*$U88/12,$V88:AD88)>$P88,$P88-SUM($V88:AD88),$P88*$U88/12),0) -> 0.00 | AF88: =IF(AND(AF$16*1>=$R88,AF$16*1<=$D$8,$R88<$D$8,$P88>SUM($V88:AE88)),IF(SUM($P88*$U88/12,$V88:AE88)>$P88,$P88-SUM($V88:AE88),$P88*$U88/12),0) -> 0.00 | AG88: =IF(AND(AG$16*1>=$R88,AG$16*1<=$D$8,$R88<$D$8,$P88>SUM($V88:AF88)),IF(SUM($P88*$U88/12,$V88:AF88)>$P88,$P88-SUM($V88:AF88),$P88*$U88/12),0) -> 0.00 | AH88: =IF(AND(AH$16*1>=$R88,AH$16*1<=$D$8,$R88<$D$8,$P88>SUM($V88:AG88)),IF(SUM($P88*$U88/12,$V88:AG88)>$P88,$P88-SUM($V88:AG88),$P88*$U88/12),0) -> 0.00 | AI88: 7.40 | AL88: 7.40 | AN88: 7.40
C89: 73 | D89: 335111 | E89: BANCO PLATON GRIS | I89: 281.44 | N89: 281.44 | P89: 281.44 | Q89: 2018-10-10 | R89: 2018-11-01 | U89: 10% | V89: 4.69 | W89: =IF(AND(W$16*1>=$R89,W$16*1<=$D$8,$R89<$D$8,$P89>SUM($V89:V89)),IF(SUM($P89*$U89/12,$V89:V89)>$P89,$P89-SUM($V89:V89),$P89*$U89/12),0) -> 2.35 | X89: =IF(AND(X$16*1>=$R89,X$16*1<=$D$8,$R89<$D$8,$P89>SUM($V89:W89)),IF(SUM($P89*$U89/12,$V89:W89)>$P89,$P89-SUM($V89:W89),$P89*$U89/12),0) -> 2.35 | Y89: =IF(AND(Y$16*1>=$R89,Y$16*1<=$D$8,$R89<$D$8,$P89>SUM($V89:X89)),IF(SUM($P89*$U89/12,$V89:X89)>$P89,$P89-SUM($V89:X89),$P89*$U89/12),0) -> 2.35 | Z89: =IF(AND(Z$16*1>=$R89,Z$16*1<=$D$8,$R89<$D$8,$P89>SUM($V89:Y89)),IF(SUM($P89*$U89/12,$V89:Y89)>$P89,$P89-SUM($V89:Y89),$P89*$U89/12),0) -> 2.35 | AA89: =IF(AND(AA$16*1>=$R89,AA$16*1<=$D$8,$R89<$D$8,$P89>SUM($V89:Z89)),IF(SUM($P89*$U89/12,$V89:Z89)>$P89,$P89-SUM($V89:Z89),$P89*$U89/12),0) -> 2.35 | AB89: =IF(AND(AB$16*1>=$R89,AB$16*1<=$D$8,$R89<$D$8,$P89>SUM($V89:AA89)),IF(SUM($P89*$U89/12,$V89:AA89)>$P89,$P89-SUM($V89:AA89),$P89*$U89/12),0) -> 0.00 | AC89: =IF(AND(AC$16*1>=$R89,AC$16*1<=$D$8,$R89<$D$8,$P89>SUM($V89:AB89)),IF(SUM($P89*$U89/12,$V89:AB89)>$P89,$P89-SUM($V89:AB89),$P89*$U89/12),0) -> 0.00 | AD89: =IF(AND(AD$16*1>=$R89,AD$16*1<=$D$8,$R89<$D$8,$P89>SUM($V89:AC89)),IF(SUM($P89*$U89/12,$V89:AC89)>$P89,$P89-SUM($V89:AC89),$P89*$U89/12),0) -> 0.00 | AE89: =IF(AND(AE$16*1>=$R89,AE$16*1<=$D$8,$R89<$D$8,$P89>SUM($V89:AD89)),IF(SUM($P89*$U89/12,$V89:AD89)>$P89,$P89-SUM($V89:AD89),$P89*$U89/12),0) -> 0.00 | AF89: =IF(AND(AF$16*1>=$R89,AF$16*1<=$D$8,$R89<$D$8,$P89>SUM($V89:AE89)),IF(SUM($P89*$U89/12,$V89:AE89)>$P89,$P89-SUM($V89:AE89),$P89*$U89/12),0) -> 0.00 | AG89: =IF(AND(AG$16*1>=$R89,AG$16*1<=$D$8,$R89<$D$8,$P89>SUM($V89:AF89)),IF(SUM($P89*$U89/12,$V89:AF89)>$P89,$P89-SUM($V89:AF89),$P89*$U89/12),0) -> 0.00 | AH89: =IF(AND(AH$16*1>=$R89,AH$16*1<=$D$8,$R89<$D$8,$P89>SUM($V89:AG89)),IF(SUM($P89*$U89/12,$V89:AG89)>$P89,$P89-SUM($V89:AG89),$P89*$U89/12),0) -> 0.00 | AI89: 11.73 | AL89: 11.73 | AN89: 11.73
C90: 74 | D90: 335111 | E90: BANCO PLATON GRIS | I90: 281.44 | N90: 281.44 | P90: 281.44 | Q90: 2018-10-10 | R90: 2018-11-01 | U90: 10% | V90: 4.69 | W90: =IF(AND(W$16*1>=$R90,W$16*1<=$D$8,$R90<$D$8,$P90>SUM($V90:V90)),IF(SUM($P90*$U90/12,$V90:V90)>$P90,$P90-SUM($V90:V90),$P90*$U90/12),0) -> 2.35 | X90: =IF(AND(X$16*1>=$R90,X$16*1<=$D$8,$R90<$D$8,$P90>SUM($V90:W90)),IF(SUM($P90*$U90/12,$V90:W90)>$P90,$P90-SUM($V90:W90),$P90*$U90/12),0) -> 2.35 | Y90: =IF(AND(Y$16*1>=$R90,Y$16*1<=$D$8,$R90<$D$8,$P90>SUM($V90:X90)),IF(SUM($P90*$U90/12,$V90:X90)>$P90,$P90-SUM($V90:X90),$P90*$U90/12),0) -> 2.35 | Z90: =IF(AND(Z$16*1>=$R90,Z$16*1<=$D$8,$R90<$D$8,$P90>SUM($V90:Y90)),IF(SUM($P90*$U90/12,$V90:Y90)>$P90,$P90-SUM($V90:Y90),$P90*$U90/12),0) -> 2.35 | AA90: =IF(AND(AA$16*1>=$R90,AA$16*1<=$D$8,$R90<$D$8,$P90>SUM($V90:Z90)),IF(SUM($P90*$U90/12,$V90:Z90)>$P90,$P90-SUM($V90:Z90),$P90*$U90/12),0) -> 2.35 | AB90: =IF(AND(AB$16*1>=$R90,AB$16*1<=$D$8,$R90<$D$8,$P90>SUM($V90:AA90)),IF(SUM($P90*$U90/12,$V90:AA90)>$P90,$P90-SUM($V90:AA90),$P90*$U90/12),0) -> 0.00 | AC90: =IF(AND(AC$16*1>=$R90,AC$16*1<=$D$8,$R90<$D$8,$P90>SUM($V90:AB90)),IF(SUM($P90*$U90/12,$V90:AB90)>$P90,$P90-SUM($V90:AB90),$P90*$U90/12),0) -> 0.00 | AD90: =IF(AND(AD$16*1>=$R90,AD$16*1<=$D$8,$R90<$D$8,$P90>SUM($V90:AC90)),IF(SUM($P90*$U90/12,$V90:AC90)>$P90,$P90-SUM($V90:AC90),$P90*$U90/12),0) -> 0.00 | AE90: =IF(AND(AE$16*1>=$R90,AE$16*1<=$D$8,$R90<$D$8,$P90>SUM($V90:AD90)),IF(SUM($P90*$U90/12,$V90:AD90)>$P90,$P90-SUM($V90:AD90),$P90*$U90/12),0) -> 0.00 | AF90: =IF(AND(AF$16*1>=$R90,AF$16*1<=$D$8,$R90<$D$8,$P90>SUM($V90:AE90)),IF(SUM($P90*$U90/12,$V90:AE90)>$P90,$P90-SUM($V90:AE90),$P90*$U90/12),0) -> 0.00 | AG90: =IF(AND(AG$16*1>=$R90,AG$16*1<=$D$8,$R90<$D$8,$P90>SUM($V90:AF90)),IF(SUM($P90*$U90/12,$V90:AF90)>$P90,$P90-SUM($V90:AF90),$P90*$U90/12),0) -> 0.00 | AH90: =IF(AND(AH$16*1>=$R90,AH$16*1<=$D$8,$R90<$D$8,$P90>SUM($V90:AG90)),IF(SUM($P90*$U90/12,$V90:AG90)>$P90,$P90-SUM($V90:AG90),$P90*$U90/12),0) -> 0.00 | AI90: 11.73 | AL90: 11.73 | AN90: 11.73
C91: 75 | D91: 335211 | E91: LAMPARA DE PIE HALOGENA NEGRA | I91: 76.87 | N91: 76.87 | P91: 76.87 | Q91: 2000-06-26 | R91: 2000-07-01 | U91: 10% | V91: 76.87 | W91: =IF(AND(W$16*1>=$R91,W$16*1<=$D$8,$R91<$D$8,$P91>SUM($V91:V91)),IF(SUM($P91*$U91/12,$V91:V91)>$P91,$P91-SUM($V91:V91),$P91*$U91/12),0) -> 0.00 | X91: =IF(AND(X$16*1>=$R91,X$16*1<=$D$8,$R91<$D$8,$P91>SUM($V91:W91)),IF(SUM($P91*$U91/12,$V91:W91)>$P91,$P91-SUM($V91:W91),$P91*$U91/12),0) -> 0.00 | Y91: =IF(AND(Y$16*1>=$R91,Y$16*1<=$D$8,$R91<$D$8,$P91>SUM($V91:X91)),IF(SUM($P91*$U91/12,$V91:X91)>$P91,$P91-SUM($V91:X91),$P91*$U91/12),0) -> 0.00 | Z91: =IF(AND(Z$16*1>=$R91,Z$16*1<=$D$8,$R91<$D$8,$P91>SUM($V91:Y91)),IF(SUM($P91*$U91/12,$V91:Y91)>$P91,$P91-SUM($V91:Y91),$P91*$U91/12),0) -> 0.00 | AA91: =IF(AND(AA$16*1>=$R91,AA$16*1<=$D$8,$R91<$D$8,$P91>SUM($V91:Z91)),IF(SUM($P91*$U91/12,$V91:Z91)>$P91,$P91-SUM($V91:Z91),$P91*$U91/12),0) -> 0.00 | AB91: =IF(AND(AB$16*1>=$R91,AB$16*1<=$D$8,$R91<$D$8,$P91>SUM($V91:AA91)),IF(SUM($P91*$U91/12,$V91:AA91)>$P91,$P91-SUM($V91:AA91),$P91*$U91/12),0) -> 0.00 | AC91: =IF(AND(AC$16*1>=$R91,AC$16*1<=$D$8,$R91<$D$8,$P91>SUM($V91:AB91)),IF(SUM($P91*$U91/12,$V91:AB91)>$P91,$P91-SUM($V91:AB91),$P91*$U91/12),0) -> 0.00 | AD91: =IF(AND(AD$16*1>=$R91,AD$16*1<=$D$8,$R91<$D$8,$P91>SUM($V91:AC91)),IF(SUM($P91*$U91/12,$V91:AC91)>$P91,$P91-SUM($V91:AC91),$P91*$U91/12),0) -> 0.00 | AE91: =IF(AND(AE$16*1>=$R91,AE$16*1<=$D$8,$R91<$D$8,$P91>SUM($V91:AD91)),IF(SUM($P91*$U91/12,$V91:AD91)>$P91,$P91-SUM($V91:AD91),$P91*$U91/12),0) -> 0.00 | AF91: =IF(AND(AF$16*1>=$R91,AF$16*1<=$D$8,$R91<$D$8,$P91>SUM($V91:AE91)),IF(SUM($P91*$U91/12,$V91:AE91)>$P91,$P91-SUM($V91:AE91),$P91*$U91/12),0) -> 0.00 | AG91: =IF(AND(AG$16*1>=$R91,AG$16*1<=$D$8,$R91<$D$8,$P91>SUM($V91:AF91)),IF(SUM($P91*$U91/12,$V91:AF91)>$P91,$P91-SUM($V91:AF91),$P91*$U91/12),0) -> 0.00 | AH91: =IF(AND(AH$16*1>=$R91,AH$16*1<=$D$8,$R91<$D$8,$P91>SUM($V91:AG91)),IF(SUM($P91*$U91/12,$V91:AG91)>$P91,$P91-SUM($V91:AG91),$P91*$U91/12),0) -> 0.00 | AI91: 0.00 | AL91: 76.87 | AN91: 76.87
C92: 76 | D92: 335211 | E92: LAMPARA HALOGENA 500 W | I92: 14.77 | N92: 14.77 | P92: 14.77 | Q92: 2000-09-03 | R92: 2000-10-01 | U92: 10% | V92: 14.77 | W92: =IF(AND(W$16*1>=$R92,W$16*1<=$D$8,$R92<$D$8,$P92>SUM($V92:V92)),IF(SUM($P92*$U92/12,$V92:V92)>$P92,$P92-SUM($V92:V92),$P92*$U92/12),0) -> 0.00 | X92: =IF(AND(X$16*1>=$R92,X$16*1<=$D$8,$R92<$D$8,$P92>SUM($V92:W92)),IF(SUM($P92*$U92/12,$V92:W92)>$P92,$P92-SUM($V92:W92),$P92*$U92/12),0) -> 0.00 | Y92: =IF(AND(Y$16*1>=$R92,Y$16*1<=$D$8,$R92<$D$8,$P92>SUM($V92:X92)),IF(SUM($P92*$U92/12,$V92:X92)>$P92,$P92-SUM($V92:X92),$P92*$U92/12),0) -> 0.00 | Z92: =IF(AND(Z$16*1>=$R92,Z$16*1<=$D$8,$R92<$D$8,$P92>SUM($V92:Y92)),IF(SUM($P92*$U92/12,$V92:Y92)>$P92,$P92-SUM($V92:Y92),$P92*$U92/12),0) -> 0.00 | AA92: =IF(AND(AA$16*1>=$R92,AA$16*1<=$D$8,$R92<$D$8,$P92>SUM($V92:Z92)),IF(SUM($P92*$U92/12,$V92:Z92)>$P92,$P92-SUM($V92:Z92),$P92*$U92/12),0) -> 0.00 | AB92: =IF(AND(AB$16*1>=$R92,AB$16*1<=$D$8,$R92<$D$8,$P92>SUM($V92:AA92)),IF(SUM($P92*$U92/12,$V92:AA92)>$P92,$P92-SUM($V92:AA92),$P92*$U92/12),0) -> 0.00 | AC92: =IF(AND(AC$16*1>=$R92,AC$16*1<=$D$8,$R92<$D$8,$P92>SUM($V92:AB92)),IF(SUM($P92*$U92/12,$V92:AB92)>$P92,$P92-SUM($V92:AB92),$P92*$U92/12),0) -> 0.00 | AD92: =IF(AND(AD$16*1>=$R92,AD$16*1<=$D$8,$R92<$D$8,$P92>SUM($V92:AC92)),IF(SUM($P92*$U92/12,$V92:AC92)>$P92,$P92-SUM($V92:AC92),$P92*$U92/12),0) -> 0.00 | AE92: =IF(AND(AE$16*1>=$R92,AE$16*1<=$D$8,$R92<$D$8,$P92>SUM($V92:AD92)),IF(SUM($P92*$U92/12,$V92:AD92)>$P92,$P92-SUM($V92:AD92),$P92*$U92/12),0) -> 0.00 | AF92: =IF(AND(AF$16*1>=$R92,AF$16*1<=$D$8,$R92<$D$8,$P92>SUM($V92:AE92)),IF(SUM($P92*$U92/12,$V92:AE92)>$P92,$P92-SUM($V92:AE92),$P92*$U92/12),0) -> 0.00 | AG92: =IF(AND(AG$16*1>=$R92,AG$16*1<=$D$8,$R92<$D$8,$P92>SUM($V92:AF92)),IF(SUM($P92*$U92/12,$V92:AF92)>$P92,$P92-SUM($V92:AF92),$P92*$U92/12),0) -> 0.00 | AH92: =IF(AND(AH$16*1>=$R92,AH$16*1<=$D$8,$R92<$D$8,$P92>SUM($V92:AG92)),IF(SUM($P92*$U92/12,$V92:AG92)>$P92,$P92-SUM($V92:AG92),$P92*$U92/12),0) -> 0.00 | AI92: 0.00 | AL92: 14.77 | AN92: 14.77
C93: 77 | D93: 335211 | E93: LAMPARA PL-C 11 W OSTAN | I93: 55.36 | N93: 55.36 | P93: 55.36 | Q93: 2000-09-03 | R93: 2000-10-01 | U93: 10% | V93: 55.36 | W93: =IF(AND(W$16*1>=$R93,W$16*1<=$D$8,$R93<$D$8,$P93>SUM($V93:V93)),IF(SUM($P93*$U93/12,$V93:V93)>$P93,$P93-SUM($V93:V93),$P93*$U93/12),0) -> 0.00 | X93: =IF(AND(X$16*1>=$R93,X$16*1<=$D$8,$R93<$D$8,$P93>SUM($V93:W93)),IF(SUM($P93*$U93/12,$V93:W93)>$P93,$P93-SUM($V93:W93),$P93*$U93/12),0) -> 0.00 | Y93: =IF(AND(Y$16*1>=$R93,Y$16*1<=$D$8,$R93<$D$8,$P93>SUM($V93:X93)),IF(SUM($P93*$U93/12,$V93:X93)>$P93,$P93-SUM($V93:X93),$P93*$U93/12),0) -> 0.00 | Z93: =IF(AND(Z$16*1>=$R93,Z$16*1<=$D$8,$R93<$D$8,$P93>SUM($V93:Y93)),IF(SUM($P93*$U93/12,$V93:Y93)>$P93,$P93-SUM($V93:Y93),$P93*$U93/12),0) -> 0.00 | AA93: =IF(AND(AA$16*1>=$R93,AA$16*1<=$D$8,$R93<$D$8,$P93>SUM($V93:Z93)),IF(SUM($P93*$U93/12,$V93:Z93)>$P93,$P93-SUM($V93:Z93),$P93*$U93/12),0) -> 0.00 | AB93: =IF(AND(AB$16*1>=$R93,AB$16*1<=$D$8,$R93<$D$8,$P93>SUM($V93:AA93)),IF(SUM($P93*$U93/12,$V93:AA93)>$P93,$P93-SUM($V93:AA93),$P93*$U93/12),0) -> 0.00 | AC93: =IF(AND(AC$16*1>=$R93,AC$16*1<=$D$8,$R93<$D$8,$P93>SUM($V93:AB93)),IF(SUM($P93*$U93/12,$V93:AB93)>$P93,$P93-SUM($V93:AB93),$P93*$U93/12),0) -> 0.00 | AD93: =IF(AND(AD$16*1>=$R93,AD$16*1<=$D$8,$R93<$D$8,$P93>SUM($V93:AC93)),IF(SUM($P93*$U93/12,$V93:AC93)>$P93,$P93-SUM($V93:AC93),$P93*$U93/12),0) -> 0.00 | AE93: =IF(AND(AE$16*1>=$R93,AE$16*1<=$D$8,$R93<$D$8,$P93>SUM($V93:AD93)),IF(SUM($P93*$U93/12,$V93:AD93)>$P93,$P93-SUM($V93:AD93),$P93*$U93/12),0) -> 0.00 | AF93: =IF(AND(AF$16*1>=$R93,AF$16*1<=$D$8,$R93<$D$8,$P93>SUM($V93:AE93)),IF(SUM($P93*$U93/12,$V93:AE93)>$P93,$P93-SUM($V93:AE93),$P93*$U93/12),0) -> 0.00 | AG93: =IF(AND(AG$16*1>=$R93,AG$16*1<=$D$8,$R93<$D$8,$P93>SUM($V93:AF93)),IF(SUM($P93*$U93/12,$V93:AF93)>$P93,$P93-SUM($V93:AF93),$P93*$U93/12),0) -> 0.00 | AH93: =IF(AND(AH$16*1>=$R93,AH$16*1<=$D$8,$R93<$D$8,$P93>SUM($V93:AG93)),IF(SUM($P93*$U93/12,$V93:AG93)>$P93,$P93-SUM($V93:AG93),$P93*$U93/12),0) -> 0.00 | AI93: 0.00 | AL93: 55.36 | AN93: 55.36
C94: 78 | D94: 335211 | E94: FOLDER COLGANTE ESCRIB | I94: 57.67 | N94: 57.67 | P94: 57.67 | Q94: 2000-09-30 | R94: 2000-10-01 | U94: 10% | V94: 57.67 | W94: =IF(AND(W$16*1>=$R94,W$16*1<=$D$8,$R94<$D$8,$P94>SUM($V94:V94)),IF(SUM($P94*$U94/12,$V94:V94)>$P94,$P94-SUM($V94:V94),$P94*$U94/12),0) -> 0.00 | X94: =IF(AND(X$16*1>=$R94,X$16*1<=$D$8,$R94<$D$8,$P94>SUM($V94:W94)),IF(SUM($P94*$U94/12,$V94:W94)>$P94,$P94-SUM($V94:W94),$P94*$U94/12),0) -> 0.00 | Y94: =IF(AND(Y$16*1>=$R94,Y$16*1<=$D$8,$R94<$D$8,$P94>SUM($V94:X94)),IF(SUM($P94*$U94/12,$V94:X94)>$P94,$P94-SUM($V94:X94),$P94*$U94/12),0) -> 0.00 | Z94: =IF(AND(Z$16*1>=$R94,Z$16*1<=$D$8,$R94<$D$8,$P94>SUM($V94:Y94)),IF(SUM($P94*$U94/12,$V94:Y94)>$P94,$P94-SUM($V94:Y94),$P94*$U94/12),0) -> 0.00 | AA94: =IF(AND(AA$16*1>=$R94,AA$16*1<=$D$8,$R94<$D$8,$P94>SUM($V94:Z94)),IF(SUM($P94*$U94/12,$V94:Z94)>$P94,$P94-SUM($V94:Z94),$P94*$U94/12),0) -> 0.00 | AB94: =IF(AND(AB$16*1>=$R94,AB$16*1<=$D$8,$R94<$D$8,$P94>SUM($V94:AA94)),IF(SUM($P94*$U94/12,$V94:AA94)>$P94,$P94-SUM($V94:AA94),$P94*$U94/12),0) -> 0.00 | AC94: =IF(AND(AC$16*1>=$R94,AC$16*1<=$D$8,$R94<$D$8,$P94>SUM($V94:AB94)),IF(SUM($P94*$U94/12,$V94:AB94)>$P94,$P94-SUM($V94:AB94),$P94*$U94/12),0) -> 0.00 | AD94: =IF(AND(AD$16*1>=$R94,AD$16*1<=$D$8,$R94<$D$8,$P94>SUM($V94:AC94)),IF(SUM($P94*$U94/12,$V94:AC94)>$P94,$P94-SUM($V94:AC94),$P94*$U94/12),0) -> 0.00 | AE94: =IF(AND(AE$16*1>=$R94,AE$16*1<=$D$8,$R94<$D$8,$P94>SUM($V94:AD94)),IF(SUM($P94*$U94/12,$V94:AD94)>$P94,$P94-SUM($V94:AD94),$P94*$U94/12),0) -> 0.00 | AF94: =IF(AND(AF$16*1>=$R94,AF$16*1<=$D$8,$R94<$D$8,$P94>SUM($V94:AE94)),IF(SUM($P94*$U94/12,$V94:AE94)>$P94,$P94-SUM($V94:AE94),$P94*$U94/12),0) -> 0.00 | AG94: =IF(AND(AG$16*1>=$R94,AG$16*1<=$D$8,$R94<$D$8,$P94>SUM($V94:AF94)),IF(SUM($P94*$U94/12,$V94:AF94)>$P94,$P94-SUM($V94:AF94),$P94*$U94/12),0) -> 0.00 | AH94: =IF(AND(AH$16*1>=$R94,AH$16*1<=$D$8,$R94<$D$8,$P94>SUM($V94:AG94)),IF(SUM($P94*$U94/12,$V94:AG94)>$P94,$P94-SUM($V94:AG94),$P94*$U94/12),0) -> 0.00 | AI94: 0.00 | AL94: 57.67 | AN94: 57.67
C95: 79 | D95: 335211 | E95: TELEFONO DE MESA GENERAL ELECTRIC | I95: 120.39 | N95: 120.39 | P95: 120.39 | Q95: 2000-12-18 | R95: 2001-01-01 | U95: 10% | V95: 120.39 | W95: =IF(AND(W$16*1>=$R95,W$16*1<=$D$8,$R95<$D$8,$P95>SUM($V95:V95)),IF(SUM($P95*$U95/12,$V95:V95)>$P95,$P95-SUM($V95:V95),$P95*$U95/12),0) -> 0.00 | X95: =IF(AND(X$16*1>=$R95,X$16*1<=$D$8,$R95<$D$8,$P95>SUM($V95:W95)),IF(SUM($P95*$U95/12,$V95:W95)>$P95,$P95-SUM($V95:W95),$P95*$U95/12),0) -> 0.00 | Y95: =IF(AND(Y$16*1>=$R95,Y$16*1<=$D$8,$R95<$D$8,$P95>SUM($V95:X95)),IF(SUM($P95*$U95/12,$V95:X95)>$P95,$P95-SUM($V95:X95),$P95*$U95/12),0) -> 0.00 | Z95: =IF(AND(Z$16*1>=$R95,Z$16*1<=$D$8,$R95<$D$8,$P95>SUM($V95:Y95)),IF(SUM($P95*$U95/12,$V95:Y95)>$P95,$P95-SUM($V95:Y95),$P95*$U95/12),0) -> 0.00 | AA95: =IF(AND(AA$16*1>=$R95,AA$16*1<=$D$8,$R95<$D$8,$P95>SUM($V95:Z95)),IF(SUM($P95*$U95/12,$V95:Z95)>$P95,$P95-SUM($V95:Z95),$P95*$U95/12),0) -> 0.00 | AB95: =IF(AND(AB$16*1>=$R95,AB$16*1<=$D$8,$R95<$D$8,$P95>SUM($V95:AA95)),IF(SUM($P95*$U95/12,$V95:AA95)>$P95,$P95-SUM($V95:AA95),$P95*$U95/12),0) -> 0.00 | AC95: =IF(AND(AC$16*1>=$R95,AC$16*1<=$D$8,$R95<$D$8,$P95>SUM($V95:AB95)),IF(SUM($P95*$U95/12,$V95:AB95)>$P95,$P95-SUM($V95:AB95),$P95*$U95/12),0) -> 0.00 | AD95: =IF(AND(AD$16*1>=$R95,AD$16*1<=$D$8,$R95<$D$8,$P95>SUM($V95:AC95)),IF(SUM($P95*$U95/12,$V95:AC95)>$P95,$P95-SUM($V95:AC95),$P95*$U95/12),0) -> 0.00 | AE95: =IF(AND(AE$16*1>=$R95,AE$16*1<=$D$8,$R95<$D$8,$P95>SUM($V95:AD95)),IF(SUM($P95*$U95/12,$V95:AD95)>$P95,$P95-SUM($V95:AD95),$P95*$U95/12),0) -> 0.00 | AF95: =IF(AND(AF$16*1>=$R95,AF$16*1<=$D$8,$R95<$D$8,$P95>SUM($V95:AE95)),IF(SUM($P95*$U95/12,$V95:AE95)>$P95,$P95-SUM($V95:AE95),$P95*$U95/12),0) -> 0.00 | AG95: =IF(AND(AG$16*1>=$R95,AG$16*1<=$D$8,$R95<$D$8,$P95>SUM($V95:AF95)),IF(SUM($P95*$U95/12,$V95:AF95)>$P95,$P95-SUM($V95:AF95),$P95*$U95/12),0) -> 0.00 | AH95: =IF(AND(AH$16*1>=$R95,AH$16*1<=$D$8,$R95<$D$8,$P95>SUM($V95:AG95)),IF(SUM($P95*$U95/12,$V95:AG95)>$P95,$P95-SUM($V95:AG95),$P95*$U95/12),0) -> 0.00 | AI95: 0.00 | AL95: 120.39 | AN95: 120.39
C96: 80 | D96: 335211 | E96: RELOJ DE MESA CASIO | I96: 31.39 | N96: 31.39 | P96: 31.39 | Q96: 2000-12-17 | R96: 2001-01-01 | U96: 10% | V96: 31.39 | W96: =IF(AND(W$16*1>=$R96,W$16*1<=$D$8,$R96<$D$8,$P96>SUM($V96:V96)),IF(SUM($P96*$U96/12,$V96:V96)>$P96,$P96-SUM($V96:V96),$P96*$U96/12),0) -> 0.00 | X96: =IF(AND(X$16*1>=$R96,X$16*1<=$D$8,$R96<$D$8,$P96>SUM($V96:W96)),IF(SUM($P96*$U96/12,$V96:W96)>$P96,$P96-SUM($V96:W96),$P96*$U96/12),0) -> 0.00 | Y96: =IF(AND(Y$16*1>=$R96,Y$16*1<=$D$8,$R96<$D$8,$P96>SUM($V96:X96)),IF(SUM($P96*$U96/12,$V96:X96)>$P96,$P96-SUM($V96:X96),$P96*$U96/12),0) -> 0.00 | Z96: =IF(AND(Z$16*1>=$R96,Z$16*1<=$D$8,$R96<$D$8,$P96>SUM($V96:Y96)),IF(SUM($P96*$U96/12,$V96:Y96)>$P96,$P96-SUM($V96:Y96),$P96*$U96/12),0) -> 0.00 | AA96: =IF(AND(AA$16*1>=$R96,AA$16*1<=$D$8,$R96<$D$8,$P96>SUM($V96:Z96)),IF(SUM($P96*$U96/12,$V96:Z96)>$P96,$P96-SUM($V96:Z96),$P96*$U96/12),0) -> 0.00 | AB96: =IF(AND(AB$16*1>=$R96,AB$16*1<=$D$8,$R96<$D$8,$P96>SUM($V96:AA96)),IF(SUM($P96*$U96/12,$V96:AA96)>$P96,$P96-SUM($V96:AA96),$P96*$U96/12),0) -> 0.00 | AC96: =IF(AND(AC$16*1>=$R96,AC$16*1<=$D$8,$R96<$D$8,$P96>SUM($V96:AB96)),IF(SUM($P96*$U96/12,$V96:AB96)>$P96,$P96-SUM($V96:AB96),$P96*$U96/12),0) -> 0.00 | AD96: =IF(AND(AD$16*1>=$R96,AD$16*1<=$D$8,$R96<$D$8,$P96>SUM($V96:AC96)),IF(SUM($P96*$U96/12,$V96:AC96)>$P96,$P96-SUM($V96:AC96),$P96*$U96/12),0) -> 0.00 | AE96: =IF(AND(AE$16*1>=$R96,AE$16*1<=$D$8,$R96<$D$8,$P96>SUM($V96:AD96)),IF(SUM($P96*$U96/12,$V96:AD96)>$P96,$P96-SUM($V96:AD96),$P96*$U96/12),0) -> 0.00 | AF96: =IF(AND(AF$16*1>=$R96,AF$16*1<=$D$8,$R96<$D$8,$P96>SUM($V96:AE96)),IF(SUM($P96*$U96/12,$V96:AE96)>$P96,$P96-SUM($V96:AE96),$P96*$U96/12),0) -> 0.00 | AG96: =IF(AND(AG$16*1>=$R96,AG$16*1<=$D$8,$R96<$D$8,$P96>SUM($V96:AF96)),IF(SUM($P96*$U96/12,$V96:AF96)>$P96,$P96-SUM($V96:AF96),$P96*$U96/12),0) -> 0.00 | AH96: =IF(AND(AH$16*1>=$R96,AH$16*1<=$D$8,$R96<$D$8,$P96>SUM($V96:AG96)),IF(SUM($P96*$U96/12,$V96:AG96)>$P96,$P96-SUM($V96:AG96),$P96*$U96/12),0) -> 0.00 | AI96: 0.00 | AL96: 31.39 | AN96: 31.39
C97: 81 | D97: 335211 | E97: CUADRO ENMARCADO EN ACRILICO | I97: 945.18 | N97: 945.18 | P97: 945.18 | Q97: 2004-09-22 | R97: 2004-10-01 | U97: 10% | V97: 945.18 | W97: =IF(AND(W$16*1>=$R97,W$16*1<=$D$8,$R97<$D$8,$P97>SUM($V97:V97)),IF(SUM($P97*$U97/12,$V97:V97)>$P97,$P97-SUM($V97:V97),$P97*$U97/12),0) -> 0.00 | X97: =IF(AND(X$16*1>=$R97,X$16*1<=$D$8,$R97<$D$8,$P97>SUM($V97:W97)),IF(SUM($P97*$U97/12,$V97:W97)>$P97,$P97-SUM($V97:W97),$P97*$U97/12),0) -> 0.00 | Y97: =IF(AND(Y$16*1>=$R97,Y$16*1<=$D$8,$R97<$D$8,$P97>SUM($V97:X97)),IF(SUM($P97*$U97/12,$V97:X97)>$P97,$P97-SUM($V97:X97),$P97*$U97/12),0) -> 0.00 | Z97: =IF(AND(Z$16*1>=$R97,Z$16*1<=$D$8,$R97<$D$8,$P97>SUM($V97:Y97)),IF(SUM($P97*$U97/12,$V97:Y97)>$P97,$P97-SUM($V97:Y97),$P97*$U97/12),0) -> 0.00 | AA97: =IF(AND(AA$16*1>=$R97,AA$16*1<=$D$8,$R97<$D$8,$P97>SUM($V97:Z97)),IF(SUM($P97*$U97/12,$V97:Z97)>$P97,$P97-SUM($V97:Z97),$P97*$U97/12),0) -> 0.00 | AB97: =IF(AND(AB$16*1>=$R97,AB$16*1<=$D$8,$R97<$D$8,$P97>SUM($V97:AA97)),IF(SUM($P97*$U97/12,$V97:AA97)>$P97,$P97-SUM($V97:AA97),$P97*$U97/12),0) -> 0.00 | AC97: =IF(AND(AC$16*1>=$R97,AC$16*1<=$D$8,$R97<$D$8,$P97>SUM($V97:AB97)),IF(SUM($P97*$U97/12,$V97:AB97)>$P97,$P97-SUM($V97:AB97),$P97*$U97/12),0) -> 0.00 | AD97: =IF(AND(AD$16*1>=$R97,AD$16*1<=$D$8,$R97<$D$8,$P97>SUM($V97:AC97)),IF(SUM($P97*$U97/12,$V97:AC97)>$P97,$P97-SUM($V97:AC97),$P97*$U97/12),0) -> 0.00 | AE97: =IF(AND(AE$16*1>=$R97,AE$16*1<=$D$8,$R97<$D$8,$P97>SUM($V97:AD97)),IF(SUM($P97*$U97/12,$V97:AD97)>$P97,$P97-SUM($V97:AD97),$P97*$U97/12),0) -> 0.00 | AF97: =IF(AND(AF$16*1>=$R97,AF$16*1<=$D$8,$R97<$D$8,$P97>SUM($V97:AE97)),IF(SUM($P97*$U97/12,$V97:AE97)>$P97,$P97-SUM($V97:AE97),$P97*$U97/12),0) -> 0.00 | AG97: =IF(AND(AG$16*1>=$R97,AG$16*1<=$D$8,$R97<$D$8,$P97>SUM($V97:AF97)),IF(SUM($P97*$U97/12,$V97:AF97)>$P97,$P97-SUM($V97:AF97),$P97*$U97/12),0) -> 0.00 | AH97: =IF(AND(AH$16*1>=$R97,AH$16*1<=$D$8,$R97<$D$8,$P97>SUM($V97:AG97)),IF(SUM($P97*$U97/12,$V97:AG97)>$P97,$P97-SUM($V97:AG97),$P97*$U97/12),0) -> 0.00 | AI97: 0.00 | AL97: 945.18 | AN97: 945.18
C98: 82 | D98: 335211 | E98: PINTURA OLEO ABSTRACTO | I98: 1138.44 | N98: 1138.44 | P98: 1,138.44 | Q98: 2005-03-23 | R98: 2005-04-01 | U98: 10% | V98: 1,138.44 | W98: =IF(AND(W$16*1>=$R98,W$16*1<=$D$8,$R98<$D$8,$P98>SUM($V98:V98)),IF(SUM($P98*$U98/12,$V98:V98)>$P98,$P98-SUM($V98:V98),$P98*$U98/12),0) -> 0.00 | X98: =IF(AND(X$16*1>=$R98,X$16*1<=$D$8,$R98<$D$8,$P98>SUM($V98:W98)),IF(SUM($P98*$U98/12,$V98:W98)>$P98,$P98-SUM($V98:W98),$P98*$U98/12),0) -> 0.00 | Y98: =IF(AND(Y$16*1>=$R98,Y$16*1<=$D$8,$R98<$D$8,$P98>SUM($V98:X98)),IF(SUM($P98*$U98/12,$V98:X98)>$P98,$P98-SUM($V98:X98),$P98*$U98/12),0) -> 0.00 | Z98: =IF(AND(Z$16*1>=$R98,Z$16*1<=$D$8,$R98<$D$8,$P98>SUM($V98:Y98)),IF(SUM($P98*$U98/12,$V98:Y98)>$P98,$P98-SUM($V98:Y98),$P98*$U98/12),0) -> 0.00 | AA98: =IF(AND(AA$16*1>=$R98,AA$16*1<=$D$8,$R98<$D$8,$P98>SUM($V98:Z98)),IF(SUM($P98*$U98/12,$V98:Z98)>$P98,$P98-SUM($V98:Z98),$P98*$U98/12),0) -> 0.00 | AB98: =IF(AND(AB$16*1>=$R98,AB$16*1<=$D$8,$R98<$D$8,$P98>SUM($V98:AA98)),IF(SUM($P98*$U98/12,$V98:AA98)>$P98,$P98-SUM($V98:AA98),$P98*$U98/12),0) -> 0.00 | AC98: =IF(AND(AC$16*1>=$R98,AC$16*1<=$D$8,$R98<$D$8,$P98>SUM($V98:AB98)),IF(SUM($P98*$U98/12,$V98:AB98)>$P98,$P98-SUM($V98:AB98),$P98*$U98/12),0) -> 0.00 | AD98: =IF(AND(AD$16*1>=$R98,AD$16*1<=$D$8,$R98<$D$8,$P98>SUM($V98:AC98)),IF(SUM($P98*$U98/12,$V98:AC98)>$P98,$P98-SUM($V98:AC98),$P98*$U98/12),0) -> 0.00 | AE98: =IF(AND(AE$16*1>=$R98,AE$16*1<=$D$8,$R98<$D$8,$P98>SUM($V98:AD98)),IF(SUM($P98*$U98/12,$V98:AD98)>$P98,$P98-SUM($V98:AD98),$P98*$U98/12),0) -> 0.00 | AF98: =IF(AND(AF$16*1>=$R98,AF$16*1<=$D$8,$R98<$D$8,$P98>SUM($V98:AE98)),IF(SUM($P98*$U98/12,$V98:AE98)>$P98,$P98-SUM($V98:AE98),$P98*$U98/12),0) -> 0.00 | AG98: =IF(AND(AG$16*1>=$R98,AG$16*1<=$D$8,$R98<$D$8,$P98>SUM($V98:AF98)),IF(SUM($P98*$U98/12,$V98:AF98)>$P98,$P98-SUM($V98:AF98),$P98*$U98/12),0) -> 0.00 | AH98: =IF(AND(AH$16*1>=$R98,AH$16*1<=$D$8,$R98<$D$8,$P98>SUM($V98:AG98)),IF(SUM($P98*$U98/12,$V98:AG98)>$P98,$P98-SUM($V98:AG98),$P98*$U98/12),0) -> 0.00 | AI98: 0.00 | AL98: 1,138.44 | AN98: 1,138.44
C99: 83 | D99: 335211 | E99: TAPIZON ACANALADO DIRECTORIO | I99: 1600.28 | N99: 1600.28 | P99: 1,600.28 | Q99: 2005-06-30 | R99: 2005-07-01 | U99: 10% | V99: 1,600.28 | W99: =IF(AND(W$16*1>=$R99,W$16*1<=$D$8,$R99<$D$8,$P99>SUM($V99:V99)),IF(SUM($P99*$U99/12,$V99:V99)>$P99,$P99-SUM($V99:V99),$P99*$U99/12),0) -> 0.00 | X99: =IF(AND(X$16*1>=$R99,X$16*1<=$D$8,$R99<$D$8,$P99>SUM($V99:W99)),IF(SUM($P99*$U99/12,$V99:W99)>$P99,$P99-SUM($V99:W99),$P99*$U99/12),0) -> 0.00 | Y99: =IF(AND(Y$16*1>=$R99,Y$16*1<=$D$8,$R99<$D$8,$P99>SUM($V99:X99)),IF(SUM($P99*$U99/12,$V99:X99)>$P99,$P99-SUM($V99:X99),$P99*$U99/12),0) -> 0.00 | Z99: =IF(AND(Z$16*1>=$R99,Z$16*1<=$D$8,$R99<$D$8,$P99>SUM($V99:Y99)),IF(SUM($P99*$U99/12,$V99:Y99)>$P99,$P99-SUM($V99:Y99),$P99*$U99/12),0) -> 0.00 | AA99: =IF(AND(AA$16*1>=$R99,AA$16*1<=$D$8,$R99<$D$8,$P99>SUM($V99:Z99)),IF(SUM($P99*$U99/12,$V99:Z99)>$P99,$P99-SUM($V99:Z99),$P99*$U99/12),0) -> 0.00 | AB99: =IF(AND(AB$16*1>=$R99,AB$16*1<=$D$8,$R99<$D$8,$P99>SUM($V99:AA99)),IF(SUM($P99*$U99/12,$V99:AA99)>$P99,$P99-SUM($V99:AA99),$P99*$U99/12),0) -> 0.00 | AC99: =IF(AND(AC$16*1>=$R99,AC$16*1<=$D$8,$R99<$D$8,$P99>SUM($V99:AB99)),IF(SUM($P99*$U99/12,$V99:AB99)>$P99,$P99-SUM($V99:AB99),$P99*$U99/12),0) -> 0.00 | AD99: =IF(AND(AD$16*1>=$R99,AD$16*1<=$D$8,$R99<$D$8,$P99>SUM($V99:AC99)),IF(SUM($P99*$U99/12,$V99:AC99)>$P99,$P99-SUM($V99:AC99),$P99*$U99/12),0) -> 0.00 | AE99: =IF(AND(AE$16*1>=$R99,AE$16*1<=$D$8,$R99<$D$8,$P99>SUM($V99:AD99)),IF(SUM($P99*$U99/12,$V99:AD99)>$P99,$P99-SUM($V99:AD99),$P99*$U99/12),0) -> 0.00 | AF99: =IF(AND(AF$16*1>=$R99,AF$16*1<=$D$8,$R99<$D$8,$P99>SUM($V99:AE99)),IF(SUM($P99*$U99/12,$V99:AE99)>$P99,$P99-SUM($V99:AE99),$P99*$U99/12),0) -> 0.00 | AG99: =IF(AND(AG$16*1>=$R99,AG$16*1<=$D$8,$R99<$D$8,$P99>SUM($V99:AF99)),IF(SUM($P99*$U99/12,$V99:AF99)>$P99,$P99-SUM($V99:AF99),$P99*$U99/12),0) -> 0.00 | AH99: =IF(AND(AH$16*1>=$R99,AH$16*1<=$D$8,$R99<$D$8,$P99>SUM($V99:AG99)),IF(SUM($P99*$U99/12,$V99:AG99)>$P99,$P99-SUM($V99:AG99),$P99*$U99/12),0) -> 0.00 | AI99: 0.00 | AL99: 1,600.28 | AN99: 1,600.28
C100: 84 | D100: 335211 | E100: 2 CUADROS AL OLEO CON MARCO | I100: 2565.46 | N100: 2565.46 | P100: 2,565.46 | Q100: 2006-08-26 | R100: 2006-09-01 | U100: 10% | V100: 2,565.46 | W100: =IF(AND(W$16*1>=$R100,W$16*1<=$D$8,$R100<$D$8,$P100>SUM($V100:V100)),IF(SUM($P100*$U100/12,$V100:V100)>$P100,$P100-SUM($V100:V100),$P100*$U100/12),0) -> 0.00 | X100: =IF(AND(X$16*1>=$R100,X$16*1<=$D$8,$R100<$D$8,$P100>SUM($V100:W100)),IF(SUM($P100*$U100/12,$V100:W100)>$P100,$P100-SUM($V100:W100),$P100*$U100/12),0) -> 0.00 | Y100: =IF(AND(Y$16*1>=$R100,Y$16*1<=$D$8,$R100<$D$8,$P100>SUM($V100:X100)),IF(SUM($P100*$U100/12,$V100:X100)>$P100,$P100-SUM($V100:X100),$P100*$U100/12),0) -> 0.00 | Z100: =IF(AND(Z$16*1>=$R100,Z$16*1<=$D$8,$R100<$D$8,$P100>SUM($V100:Y100)),IF(SUM($P100*$U100/12,$V100:Y100)>$P100,$P100-SUM($V100:Y100),$P100*$U100/12),0) -> 0.00 | AA100: =IF(AND(AA$16*1>=$R100,AA$16*1<=$D$8,$R100<$D$8,$P100>SUM($V100:Z100)),IF(SUM($P100*$U100/12,$V100:Z100)>$P100,$P100-SUM($V100:Z100),$P100*$U100/12),0) -> 0.00 | AB100: =IF(AND(AB$16*1>=$R100,AB$16*1<=$D$8,$R100<$D$8,$P100>SUM($V100:AA100)),IF(SUM($P100*$U100/12,$V100:AA100)>$P100,$P100-SUM($V100:AA100),$P100*$U100/12),0) -> 0.00 | AC100: =IF(AND(AC$16*1>=$R100,AC$16*1<=$D$8,$R100<$D$8,$P100>SUM($V100:AB100)),IF(SUM($P100*$U100/12,$V100:AB100)>$P100,$P100-SUM($V100:AB100),$P100*$U100/12),0) -> 0.00 | AD100: =IF(AND(AD$16*1>=$R100,AD$16*1<=$D$8,$R100<$D$8,$P100>SUM($V100:AC100)),IF(SUM($P100*$U100/12,$V100:AC100)>$P100,$P100-SUM($V100:AC100),$P100*$U100/12),0) -> 0.00 | AE100: =IF(AND(AE$16*1>=$R100,AE$16*1<=$D$8,$R100<$D$8,$P100>SUM($V100:AD100)),IF(SUM($P100*$U100/12,$V100:AD100)>$P100,$P100-SUM($V100:AD100),$P100*$U100/12),0) -> 0.00 | AF100: =IF(AND(AF$16*1>=$R100,AF$16*1<=$D$8,$R100<$D$8,$P100>SUM($V100:AE100)),IF(SUM($P100*$U100/12,$V100:AE100)>$P100,$P100-SUM($V100:AE100),$P100*$U100/12),0) -> 0.00 | AG100: =IF(AND(AG$16*1>=$R100,AG$16*1<=$D$8,$R100<$D$8,$P100>SUM($V100:AF100)),IF(SUM($P100*$U100/12,$V100:AF100)>$P100,$P100-SUM($V100:AF100),$P100*$U100/12),0) -> 0.00 | AH100: =IF(AND(AH$16*1>=$R100,AH$16*1<=$D$8,$R100<$D$8,$P100>SUM($V100:AG100)),IF(SUM($P100*$U100/12,$V100:AG100)>$P100,$P100-SUM($V100:AG100),$P100*$U100/12),0) -> 0.00 | AI100: 0.00 | AL100: 2,565.46 | AN100: 2,565.46
C101: 85 | D101: 336111 | E101: IMPRESORA EPSON FX-1180 | I101: 1732.3 | N101: 1732.3 | P101: 1,732.30 | Q101: 2004-09-28 | R101: 2004-10-01 | U101: 25% | V101: 1,732.30 | W101: =IF(AND(W$16*1>=$R101,W$16*1<=$D$8,$R101<$D$8,$P101>SUM($V101:V101)),IF(SUM($P101*$U101/12,$V101:V101)>$P101,$P101-SUM($V101:V101),$P101*$U101/12),0) -> 0.00 | X101: =IF(AND(X$16*1>=$R101,X$16*1<=$D$8,$R101<$D$8,$P101>SUM($V101:W101)),IF(SUM($P101*$U101/12,$V101:W101)>$P101,$P101-SUM($V101:W101),$P101*$U101/12),0) -> 0.00 | Y101: =IF(AND(Y$16*1>=$R101,Y$16*1<=$D$8,$R101<$D$8,$P101>SUM($V101:X101)),IF(SUM($P101*$U101/12,$V101:X101)>$P101,$P101-SUM($V101:X101),$P101*$U101/12),0) -> 0.00 | Z101: =IF(AND(Z$16*1>=$R101,Z$16*1<=$D$8,$R101<$D$8,$P101>SUM($V101:Y101)),IF(SUM($P101*$U101/12,$V101:Y101)>$P101,$P101-SUM($V101:Y101),$P101*$U101/12),0) -> 0.00 | AA101: =IF(AND(AA$16*1>=$R101,AA$16*1<=$D$8,$R101<$D$8,$P101>SUM($V101:Z101)),IF(SUM($P101*$U101/12,$V101:Z101)>$P101,$P101-SUM($V101:Z101),$P101*$U101/12),0) -> 0.00 | AB101: =IF(AND(AB$16*1>=$R101,AB$16*1<=$D$8,$R101<$D$8,$P101>SUM($V101:AA101)),IF(SUM($P101*$U101/12,$V101:AA101)>$P101,$P101-SUM($V101:AA101),$P101*$U101/12),0) -> 0.00 | AC101: =IF(AND(AC$16*1>=$R101,AC$16*1<=$D$8,$R101<$D$8,$P101>SUM($V101:AB101)),IF(SUM($P101*$U101/12,$V101:AB101)>$P101,$P101-SUM($V101:AB101),$P101*$U101/12),0) -> 0.00 | AD101: =IF(AND(AD$16*1>=$R101,AD$16*1<=$D$8,$R101<$D$8,$P101>SUM($V101:AC101)),IF(SUM($P101*$U101/12,$V101:AC101)>$P101,$P101-SUM($V101:AC101),$P101*$U101/12),0) -> 0.00 | AE101: =IF(AND(AE$16*1>=$R101,AE$16*1<=$D$8,$R101<$D$8,$P101>SUM($V101:AD101)),IF(SUM($P101*$U101/12,$V101:AD101)>$P101,$P101-SUM($V101:AD101),$P101*$U101/12),0) -> 0.00 | AF101: =IF(AND(AF$16*1>=$R101,AF$16*1<=$D$8,$R101<$D$8,$P101>SUM($V101:AE101)),IF(SUM($P101*$U101/12,$V101:AE101)>$P101,$P101-SUM($V101:AE101),$P101*$U101/12),0) -> 0.00 | AG101: =IF(AND(AG$16*1>=$R101,AG$16*1<=$D$8,$R101<$D$8,$P101>SUM($V101:AF101)),IF(SUM($P101*$U101/12,$V101:AF101)>$P101,$P101-SUM($V101:AF101),$P101*$U101/12),0) -> 0.00 | AH101: =IF(AND(AH$16*1>=$R101,AH$16*1<=$D$8,$R101<$D$8,$P101>SUM($V101:AG101)),IF(SUM($P101*$U101/12,$V101:AG101)>$P101,$P101-SUM($V101:AG101),$P101*$U101/12),0) -> 0.00 | AI101: 0.00 | AL101: 1,732.30 | AN101: 1,732.30
C102: 86 | D102: 336111 | E102: MONITOR 14" VIEWSONIC | I102: 576.92 | N102: 576.92 | P102: 576.92 | Q102: 2005-02-16 | R102: 2005-03-01 | U102: 25% | V102: 576.92 | W102: =IF(AND(W$16*1>=$R102,W$16*1<=$D$8,$R102<$D$8,$P102>SUM($V102:V102)),IF(SUM($P102*$U102/12,$V102:V102)>$P102,$P102-SUM($V102:V102),$P102*$U102/12),0) -> 0.00 | X102: =IF(AND(X$16*1>=$R102,X$16*1<=$D$8,$R102<$D$8,$P102>SUM($V102:W102)),IF(SUM($P102*$U102/12,$V102:W102)>$P102,$P102-SUM($V102:W102),$P102*$U102/12),0) -> 0.00 | Y102: =IF(AND(Y$16*1>=$R102,Y$16*1<=$D$8,$R102<$D$8,$P102>SUM($V102:X102)),IF(SUM($P102*$U102/12,$V102:X102)>$P102,$P102-SUM($V102:X102),$P102*$U102/12),0) -> 0.00 | Z102: =IF(AND(Z$16*1>=$R102,Z$16*1<=$D$8,$R102<$D$8,$P102>SUM($V102:Y102)),IF(SUM($P102*$U102/12,$V102:Y102)>$P102,$P102-SUM($V102:Y102),$P102*$U102/12),0) -> 0.00 | AA102: =IF(AND(AA$16*1>=$R102,AA$16*1<=$D$8,$R102<$D$8,$P102>SUM($V102:Z102)),IF(SUM($P102*$U102/12,$V102:Z102)>$P102,$P102-SUM($V102:Z102),$P102*$U102/12),0) -> 0.00 | AB102: =IF(AND(AB$16*1>=$R102,AB$16*1<=$D$8,$R102<$D$8,$P102>SUM($V102:AA102)),IF(SUM($P102*$U102/12,$V102:AA102)>$P102,$P102-SUM($V102:AA102),$P102*$U102/12),0) -> 0.00 | AC102: =IF(AND(AC$16*1>=$R102,AC$16*1<=$D$8,$R102<$D$8,$P102>SUM($V102:AB102)),IF(SUM($P102*$U102/12,$V102:AB102)>$P102,$P102-SUM($V102:AB102),$P102*$U102/12),0) -> 0.00 | AD102: =IF(AND(AD$16*1>=$R102,AD$16*1<=$D$8,$R102<$D$8,$P102>SUM($V102:AC102)),IF(SUM($P102*$U102/12,$V102:AC102)>$P102,$P102-SUM($V102:AC102),$P102*$U102/12),0) -> 0.00 | AE102: =IF(AND(AE$16*1>=$R102,AE$16*1<=$D$8,$R102<$D$8,$P102>SUM($V102:AD102)),IF(SUM($P102*$U102/12,$V102:AD102)>$P102,$P102-SUM($V102:AD102),$P102*$U102/12),0) -> 0.00 | AF102: =IF(AND(AF$16*1>=$R102,AF$16*1<=$D$8,$R102<$D$8,$P102>SUM($V102:AE102)),IF(SUM($P102*$U102/12,$V102:AE102)>$P102,$P102-SUM($V102:AE102),$P102*$U102/12),0) -> 0.00 | AG102: =IF(AND(AG$16*1>=$R102,AG$16*1<=$D$8,$R102<$D$8,$P102>SUM($V102:AF102)),IF(SUM($P102*$U102/12,$V102:AF102)>$P102,$P102-SUM($V102:AF102),$P102*$U102/12),0) -> 0.00 | AH102: =IF(AND(AH$16*1>=$R102,AH$16*1<=$D$8,$R102<$D$8,$P102>SUM($V102:AG102)),IF(SUM($P102*$U102/12,$V102:AG102)>$P102,$P102-SUM($V102:AG102),$P102*$U102/12),0) -> 0.00 | AI102: 0.00 | AL102: 576.92 | AN102: 576.92
C103: 87 | D103: 336111 | E103: COMPUTADORA PORTATIL | I103: 6121.52 | N103: 6121.52 | P103: 6,121.52 | Q103: 2005-08-02 | R103: 2005-09-01 | U103: 25% | V103: 6,121.52 | W103: =IF(AND(W$16*1>=$R103,W$16*1<=$D$8,$R103<$D$8,$P103>SUM($V103:V103)),IF(SUM($P103*$U103/12,$V103:V103)>$P103,$P103-SUM($V103:V103),$P103*$U103/12),0) -> 0.00 | X103: =IF(AND(X$16*1>=$R103,X$16*1<=$D$8,$R103<$D$8,$P103>SUM($V103:W103)),IF(SUM($P103*$U103/12,$V103:W103)>$P103,$P103-SUM($V103:W103),$P103*$U103/12),0) -> 0.00 | Y103: =IF(AND(Y$16*1>=$R103,Y$16*1<=$D$8,$R103<$D$8,$P103>SUM($V103:X103)),IF(SUM($P103*$U103/12,$V103:X103)>$P103,$P103-SUM($V103:X103),$P103*$U103/12),0) -> 0.00 | Z103: =IF(AND(Z$16*1>=$R103,Z$16*1<=$D$8,$R103<$D$8,$P103>SUM($V103:Y103)),IF(SUM($P103*$U103/12,$V103:Y103)>$P103,$P103-SUM($V103:Y103),$P103*$U103/12),0) -> 0.00 | AA103: =IF(AND(AA$16*1>=$R103,AA$16*1<=$D$8,$R103<$D$8,$P103>SUM($V103:Z103)),IF(SUM($P103*$U103/12,$V103:Z103)>$P103,$P103-SUM($V103:Z103),$P103*$U103/12),0) -> 0.00 | AB103: =IF(AND(AB$16*1>=$R103,AB$16*1<=$D$8,$R103<$D$8,$P103>SUM($V103:AA103)),IF(SUM($P103*$U103/12,$V103:AA103)>$P103,$P103-SUM($V103:AA103),$P103*$U103/12),0) -> 0.00 | AC103: =IF(AND(AC$16*1>=$R103,AC$16*1<=$D$8,$R103<$D$8,$P103>SUM($V103:AB103)),IF(SUM($P103*$U103/12,$V103:AB103)>$P103,$P103-SUM($V103:AB103),$P103*$U103/12),0) -> 0.00 | AD103: =IF(AND(AD$16*1>=$R103,AD$16*1<=$D$8,$R103<$D$8,$P103>SUM($V103:AC103)),IF(SUM($P103*$U103/12,$V103:AC103)>$P103,$P103-SUM($V103:AC103),$P103*$U103/12),0) -> 0.00 | AE103: =IF(AND(AE$16*1>=$R103,AE$16*1<=$D$8,$R103<$D$8,$P103>SUM($V103:AD103)),IF(SUM($P103*$U103/12,$V103:AD103)>$P103,$P103-SUM($V103:AD103),$P103*$U103/12),0) -> 0.00 | AF103: =IF(AND(AF$16*1>=$R103,AF$16*1<=$D$8,$R103<$D$8,$P103>SUM($V103:AE103)),IF(SUM($P103*$U103/12,$V103:AE103)>$P103,$P103-SUM($V103:AE103),$P103*$U103/12),0) -> 0.00 | AG103: =IF(AND(AG$16*1>=$R103,AG$16*1<=$D$8,$R103<$D$8,$P103>SUM($V103:AF103)),IF(SUM($P103*$U103/12,$V103:AF103)>$P103,$P103-SUM($V103:AF103),$P103*$U103/12),0) -> 0.00 | AH103: =IF(AND(AH$16*1>=$R103,AH$16*1<=$D$8,$R103<$D$8,$P103>SUM($V103:AG103)),IF(SUM($P103*$U103/12,$V103:AG103)>$P103,$P103-SUM($V103:AG103),$P103*$U103/12),0) -> 0.00 | AI103: 0.00 | AL103: 6,121.52 | AN103: 6,121.52
C104: 88 | D104: 336111 | E104: IMPRESORA ART JET 10 OLIVETTI | I104: 313.2 | N104: 313.2 | P104: 313.20 | Q104: 2006-03-13 | R104: 2006-04-01 | U104: 25% | V104: 313.20 | W104: =IF(AND(W$16*1>=$R104,W$16*1<=$D$8,$R104<$D$8,$P104>SUM($V104:V104)),IF(SUM($P104*$U104/12,$V104:V104)>$P104,$P104-SUM($V104:V104),$P104*$U104/12),0) -> 0.00 | X104: =IF(AND(X$16*1>=$R104,X$16*1<=$D$8,$R104<$D$8,$P104>SUM($V104:W104)),IF(SUM($P104*$U104/12,$V104:W104)>$P104,$P104-SUM($V104:W104),$P104*$U104/12),0) -> 0.00 | Y104: =IF(AND(Y$16*1>=$R104,Y$16*1<=$D$8,$R104<$D$8,$P104>SUM($V104:X104)),IF(SUM($P104*$U104/12,$V104:X104)>$P104,$P104-SUM($V104:X104),$P104*$U104/12),0) -> 0.00 | Z104: =IF(AND(Z$16*1>=$R104,Z$16*1<=$D$8,$R104<$D$8,$P104>SUM($V104:Y104)),IF(SUM($P104*$U104/12,$V104:Y104)>$P104,$P104-SUM($V104:Y104),$P104*$U104/12),0) -> 0.00 | AA104: =IF(AND(AA$16*1>=$R104,AA$16*1<=$D$8,$R104<$D$8,$P104>SUM($V104:Z104)),IF(SUM($P104*$U104/12,$V104:Z104)>$P104,$P104-SUM($V104:Z104),$P104*$U104/12),0) -> 0.00 | AB104: =IF(AND(AB$16*1>=$R104,AB$16*1<=$D$8,$R104<$D$8,$P104>SUM($V104:AA104)),IF(SUM($P104*$U104/12,$V104:AA104)>$P104,$P104-SUM($V104:AA104),$P104*$U104/12),0) -> 0.00 | AC104: =IF(AND(AC$16*1>=$R104,AC$16*1<=$D$8,$R104<$D$8,$P104>SUM($V104:AB104)),IF(SUM($P104*$U104/12,$V104:AB104)>$P104,$P104-SUM($V104:AB104),$P104*$U104/12),0) -> 0.00 | AD104: =IF(AND(AD$16*1>=$R104,AD$16*1<=$D$8,$R104<$D$8,$P104>SUM($V104:AC104)),IF(SUM($P104*$U104/12,$V104:AC104)>$P104,$P104-SUM($V104:AC104),$P104*$U104/12),0) -> 0.00 | AE104: =IF(AND(AE$16*1>=$R104,AE$16*1<=$D$8,$R104<$D$8,$P104>SUM($V104:AD104)),IF(SUM($P104*$U104/12,$V104:AD104)>$P104,$P104-SUM($V104:AD104),$P104*$U104/12),0) -> 0.00 | AF104: =IF(AND(AF$16*1>=$R104,AF$16*1<=$D$8,$R104<$D$8,$P104>SUM($V104:AE104)),IF(SUM($P104*$U104/12,$V104:AE104)>$P104,$P104-SUM($V104:AE104),$P104*$U104/12),0) -> 0.00 | AG104: =IF(AND(AG$16*1>=$R104,AG$16*1<=$D$8,$R104<$D$8,$P104>SUM($V104:AF104)),IF(SUM($P104*$U104/12,$V104:AF104)>$P104,$P104-SUM($V104:AF104),$P104*$U104/12),0) -> 0.00 | AH104: =IF(AND(AH$16*1>=$R104,AH$16*1<=$D$8,$R104<$D$8,$P104>SUM($V104:AG104)),IF(SUM($P104*$U104/12,$V104:AG104)>$P104,$P104-SUM($V104:AG104),$P104*$U104/12),0) -> 0.00 | AI104: 0.00 | AL104: 313.20 | AN104: 313.20
C105: 89 | D105: 336111 | E105: ZIP DRIVE 250 MB IOMEGA | I105: 716.72 | N105: 716.72 | P105: 716.72 | Q105: 2006-04-05 | R105: 2006-05-01 | U105: 25% | V105: 716.72 | W105: =IF(AND(W$16*1>=$R105,W$16*1<=$D$8,$R105<$D$8,$P105>SUM($V105:V105)),IF(SUM($P105*$U105/12,$V105:V105)>$P105,$P105-SUM($V105:V105),$P105*$U105/12),0) -> 0.00 | X105: =IF(AND(X$16*1>=$R105,X$16*1<=$D$8,$R105<$D$8,$P105>SUM($V105:W105)),IF(SUM($P105*$U105/12,$V105:W105)>$P105,$P105-SUM($V105:W105),$P105*$U105/12),0) -> 0.00 | Y105: =IF(AND(Y$16*1>=$R105,Y$16*1<=$D$8,$R105<$D$8,$P105>SUM($V105:X105)),IF(SUM($P105*$U105/12,$V105:X105)>$P105,$P105-SUM($V105:X105),$P105*$U105/12),0) -> 0.00 | Z105: =IF(AND(Z$16*1>=$R105,Z$16*1<=$D$8,$R105<$D$8,$P105>SUM($V105:Y105)),IF(SUM($P105*$U105/12,$V105:Y105)>$P105,$P105-SUM($V105:Y105),$P105*$U105/12),0) -> 0.00 | AA105: =IF(AND(AA$16*1>=$R105,AA$16*1<=$D$8,$R105<$D$8,$P105>SUM($V105:Z105)),IF(SUM($P105*$U105/12,$V105:Z105)>$P105,$P105-SUM($V105:Z105),$P105*$U105/12),0) -> 0.00 | AB105: =IF(AND(AB$16*1>=$R105,AB$16*1<=$D$8,$R105<$D$8,$P105>SUM($V105:AA105)),IF(SUM($P105*$U105/12,$V105:AA105)>$P105,$P105-SUM($V105:AA105),$P105*$U105/12),0) -> 0.00 | AC105: =IF(AND(AC$16*1>=$R105,AC$16*1<=$D$8,$R105<$D$8,$P105>SUM($V105:AB105)),IF(SUM($P105*$U105/12,$V105:AB105)>$P105,$P105-SUM($V105:AB105),$P105*$U105/12),0) -> 0.00 | AD105: =IF(AND(AD$16*1>=$R105,AD$16*1<=$D$8,$R105<$D$8,$P105>SUM($V105:AC105)),IF(SUM($P105*$U105/12,$V105:AC105)>$P105,$P105-SUM($V105:AC105),$P105*$U105/12),0) -> 0.00 | AE105: =IF(AND(AE$16*1>=$R105,AE$16*1<=$D$8,$R105<$D$8,$P105>SUM($V105:AD105)),IF(SUM($P105*$U105/12,$V105:AD105)>$P105,$P105-SUM($V105:AD105),$P105*$U105/12),0) -> 0.00 | AF105: =IF(AND(AF$16*1>=$R105,AF$16*1<=$D$8,$R105<$D$8,$P105>SUM($V105:AE105)),IF(SUM($P105*$U105/12,$V105:AE105)>$P105,$P105-SUM($V105:AE105),$P105*$U105/12),0) -> 0.00 | AG105: =IF(AND(AG$16*1>=$R105,AG$16*1<=$D$8,$R105<$D$8,$P105>SUM($V105:AF105)),IF(SUM($P105*$U105/12,$V105:AF105)>$P105,$P105-SUM($V105:AF105),$P105*$U105/12),0) -> 0.00 | AH105: =IF(AND(AH$16*1>=$R105,AH$16*1<=$D$8,$R105<$D$8,$P105>SUM($V105:AG105)),IF(SUM($P105*$U105/12,$V105:AG105)>$P105,$P105-SUM($V105:AG105),$P105*$U105/12),0) -> 0.00 | AI105: 0.00 | AL105: 716.72 | AN105: 716.72
C106: 90 | D106: 336111 | E106: IMPRESORA LEXMARK X83 | I106: 506.12 | N106: 506.12 | P106: 506.12 | Q106: 2008-07-16 | R106: 2008-08-01 | U106: 25% | V106: 506.12 | W106: =IF(AND(W$16*1>=$R106,W$16*1<=$D$8,$R106<$D$8,$P106>SUM($V106:V106)),IF(SUM($P106*$U106/12,$V106:V106)>$P106,$P106-SUM($V106:V106),$P106*$U106/12),0) -> 0.00 | X106: =IF(AND(X$16*1>=$R106,X$16*1<=$D$8,$R106<$D$8,$P106>SUM($V106:W106)),IF(SUM($P106*$U106/12,$V106:W106)>$P106,$P106-SUM($V106:W106),$P106*$U106/12),0) -> 0.00 | Y106: =IF(AND(Y$16*1>=$R106,Y$16*1<=$D$8,$R106<$D$8,$P106>SUM($V106:X106)),IF(SUM($P106*$U106/12,$V106:X106)>$P106,$P106-SUM($V106:X106),$P106*$U106/12),0) -> 0.00 | Z106: =IF(AND(Z$16*1>=$R106,Z$16*1<=$D$8,$R106<$D$8,$P106>SUM($V106:Y106)),IF(SUM($P106*$U106/12,$V106:Y106)>$P106,$P106-SUM($V106:Y106),$P106*$U106/12),0) -> 0.00 | AA106: =IF(AND(AA$16*1>=$R106,AA$16*1<=$D$8,$R106<$D$8,$P106>SUM($V106:Z106)),IF(SUM($P106*$U106/12,$V106:Z106)>$P106,$P106-SUM($V106:Z106),$P106*$U106/12),0) -> 0.00 | AB106: =IF(AND(AB$16*1>=$R106,AB$16*1<=$D$8,$R106<$D$8,$P106>SUM($V106:AA106)),IF(SUM($P106*$U106/12,$V106:AA106)>$P106,$P106-SUM($V106:AA106),$P106*$U106/12),0) -> 0.00 | AC106: =IF(AND(AC$16*1>=$R106,AC$16*1<=$D$8,$R106<$D$8,$P106>SUM($V106:AB106)),IF(SUM($P106*$U106/12,$V106:AB106)>$P106,$P106-SUM($V106:AB106),$P106*$U106/12),0) -> 0.00 | AD106: =IF(AND(AD$16*1>=$R106,AD$16*1<=$D$8,$R106<$D$8,$P106>SUM($V106:AC106)),IF(SUM($P106*$U106/12,$V106:AC106)>$P106,$P106-SUM($V106:AC106),$P106*$U106/12),0) -> 0.00 | AE106: =IF(AND(AE$16*1>=$R106,AE$16*1<=$D$8,$R106<$D$8,$P106>SUM($V106:AD106)),IF(SUM($P106*$U106/12,$V106:AD106)>$P106,$P106-SUM($V106:AD106),$P106*$U106/12),0) -> 0.00 | AF106: =IF(AND(AF$16*1>=$R106,AF$16*1<=$D$8,$R106<$D$8,$P106>SUM($V106:AE106)),IF(SUM($P106*$U106/12,$V106:AE106)>$P106,$P106-SUM($V106:AE106),$P106*$U106/12),0) -> 0.00 | AG106: =IF(AND(AG$16*1>=$R106,AG$16*1<=$D$8,$R106<$D$8,$P106>SUM($V106:AF106)),IF(SUM($P106*$U106/12,$V106:AF106)>$P106,$P106-SUM($V106:AF106),$P106*$U106/12),0) -> 0.00 | AH106: =IF(AND(AH$16*1>=$R106,AH$16*1<=$D$8,$R106<$D$8,$P106>SUM($V106:AG106)),IF(SUM($P106*$U106/12,$V106:AG106)>$P106,$P106-SUM($V106:AG106),$P106*$U106/12),0) -> 0.00 | AI106: 0.00 | AL106: 506.12 | AN106: 506.12
C107: 91 | D107: 336111 | E107: COMPUTADORA PORTATIL DELL | I107: 8809.31 | N107: 8809.31 | P107: 8,809.31 | Q107: 2008-11-23 | R107: 2008-12-01 | U107: 25% | V107: 8,809.31 | W107: =IF(AND(W$16*1>=$R107,W$16*1<=$D$8,$R107<$D$8,$P107>SUM($V107:V107)),IF(SUM($P107*$U107/12,$V107:V107)>$P107,$P107-SUM($V107:V107),$P107*$U107/12),0) -> 0.00 | X107: =IF(AND(X$16*1>=$R107,X$16*1<=$D$8,$R107<$D$8,$P107>SUM($V107:W107)),IF(SUM($P107*$U107/12,$V107:W107)>$P107,$P107-SUM($V107:W107),$P107*$U107/12),0) -> 0.00 | Y107: =IF(AND(Y$16*1>=$R107,Y$16*1<=$D$8,$R107<$D$8,$P107>SUM($V107:X107)),IF(SUM($P107*$U107/12,$V107:X107)>$P107,$P107-SUM($V107:X107),$P107*$U107/12),0) -> 0.00 | Z107: =IF(AND(Z$16*1>=$R107,Z$16*1<=$D$8,$R107<$D$8,$P107>SUM($V107:Y107)),IF(SUM($P107*$U107/12,$V107:Y107)>$P107,$P107-SUM($V107:Y107),$P107*$U107/12),0) -> 0.00 | AA107: =IF(AND(AA$16*1>=$R107,AA$16*1<=$D$8,$R107<$D$8,$P107>SUM($V107:Z107)),IF(SUM($P107*$U107/12,$V107:Z107)>$P107,$P107-SUM($V107:Z107),$P107*$U107/12),0) -> 0.00 | AB107: =IF(AND(AB$16*1>=$R107,AB$16*1<=$D$8,$R107<$D$8,$P107>SUM($V107:AA107)),IF(SUM($P107*$U107/12,$V107:AA107)>$P107,$P107-SUM($V107:AA107),$P107*$U107/12),0) -> 0.00 | AC107: =IF(AND(AC$16*1>=$R107,AC$16*1<=$D$8,$R107<$D$8,$P107>SUM($V107:AB107)),IF(SUM($P107*$U107/12,$V107:AB107)>$P107,$P107-SUM($V107:AB107),$P107*$U107/12),0) -> 0.00 | AD107: =IF(AND(AD$16*1>=$R107,AD$16*1<=$D$8,$R107<$D$8,$P107>SUM($V107:AC107)),IF(SUM($P107*$U107/12,$V107:AC107)>$P107,$P107-SUM($V107:AC107),$P107*$U107/12),0) -> 0.00 | AE107: =IF(AND(AE$16*1>=$R107,AE$16*1<=$D$8,$R107<$D$8,$P107>SUM($V107:AD107)),IF(SUM($P107*$U107/12,$V107:AD107)>$P107,$P107-SUM($V107:AD107),$P107*$U107/12),0) -> 0.00 | AF107: =IF(AND(AF$16*1>=$R107,AF$16*1<=$D$8,$R107<$D$8,$P107>SUM($V107:AE107)),IF(SUM($P107*$U107/12,$V107:AE107)>$P107,$P107-SUM($V107:AE107),$P107*$U107/12),0) -> 0.00 | AG107: =IF(AND(AG$16*1>=$R107,AG$16*1<=$D$8,$R107<$D$8,$P107>SUM($V107:AF107)),IF(SUM($P107*$U107/12,$V107:AF107)>$P107,$P107-SUM($V107:AF107),$P107*$U107/12),0) -> 0.00 | AH107: =IF(AND(AH$16*1>=$R107,AH$16*1<=$D$8,$R107<$D$8,$P107>SUM($V107:AG107)),IF(SUM($P107*$U107/12,$V107:AG107)>$P107,$P107-SUM($V107:AG107),$P107*$U107/12),0) -> 0.00 | AI107: 0.00 | AL107: 8,809.31 | AN107: 8,809.31
C108: 92 | D108: 336111 | E108: COMPUTADORA DELL | I108: 4796.13 | N108: 4796.13 | P108: 4,796.13 | Q108: 2008-11-23 | R108: 2008-12-01 | U108: 25% | V108: 4,796.13 | W108: =IF(AND(W$16*1>=$R108,W$16*1<=$D$8,$R108<$D$8,$P108>SUM($V108:V108)),IF(SUM($P108*$U108/12,$V108:V108)>$P108,$P108-SUM($V108:V108),$P108*$U108/12),0) -> 0.00 | X108: =IF(AND(X$16*1>=$R108,X$16*1<=$D$8,$R108<$D$8,$P108>SUM($V108:W108)),IF(SUM($P108*$U108/12,$V108:W108)>$P108,$P108-SUM($V108:W108),$P108*$U108/12),0) -> 0.00 | Y108: =IF(AND(Y$16*1>=$R108,Y$16*1<=$D$8,$R108<$D$8,$P108>SUM($V108:X108)),IF(SUM($P108*$U108/12,$V108:X108)>$P108,$P108-SUM($V108:X108),$P108*$U108/12),0) -> 0.00 | Z108: =IF(AND(Z$16*1>=$R108,Z$16*1<=$D$8,$R108<$D$8,$P108>SUM($V108:Y108)),IF(SUM($P108*$U108/12,$V108:Y108)>$P108,$P108-SUM($V108:Y108),$P108*$U108/12),0) -> 0.00 | AA108: =IF(AND(AA$16*1>=$R108,AA$16*1<=$D$8,$R108<$D$8,$P108>SUM($V108:Z108)),IF(SUM($P108*$U108/12,$V108:Z108)>$P108,$P108-SUM($V108:Z108),$P108*$U108/12),0) -> 0.00 | AB108: =IF(AND(AB$16*1>=$R108,AB$16*1<=$D$8,$R108<$D$8,$P108>SUM($V108:AA108)),IF(SUM($P108*$U108/12,$V108:AA108)>$P108,$P108-SUM($V108:AA108),$P108*$U108/12),0) -> 0.00 | AC108: =IF(AND(AC$16*1>=$R108,AC$16*1<=$D$8,$R108<$D$8,$P108>SUM($V108:AB108)),IF(SUM($P108*$U108/12,$V108:AB108)>$P108,$P108-SUM($V108:AB108),$P108*$U108/12),0) -> 0.00 | AD108: =IF(AND(AD$16*1>=$R108,AD$16*1<=$D$8,$R108<$D$8,$P108>SUM($V108:AC108)),IF(SUM($P108*$U108/12,$V108:AC108)>$P108,$P108-SUM($V108:AC108),$P108*$U108/12),0) -> 0.00 | AE108: =IF(AND(AE$16*1>=$R108,AE$16*1<=$D$8,$R108<$D$8,$P108>SUM($V108:AD108)),IF(SUM($P108*$U108/12,$V108:AD108)>$P108,$P108-SUM($V108:AD108),$P108*$U108/12),0) -> 0.00 | AF108: =IF(AND(AF$16*1>=$R108,AF$16*1<=$D$8,$R108<$D$8,$P108>SUM($V108:AE108)),IF(SUM($P108*$U108/12,$V108:AE108)>$P108,$P108-SUM($V108:AE108),$P108*$U108/12),0) -> 0.00 | AG108: =IF(AND(AG$16*1>=$R108,AG$16*1<=$D$8,$R108<$D$8,$P108>SUM($V108:AF108)),IF(SUM($P108*$U108/12,$V108:AF108)>$P108,$P108-SUM($V108:AF108),$P108*$U108/12),0) -> 0.00 | AH108: =IF(AND(AH$16*1>=$R108,AH$16*1<=$D$8,$R108<$D$8,$P108>SUM($V108:AG108)),IF(SUM($P108*$U108/12,$V108:AG108)>$P108,$P108-SUM($V108:AG108),$P108*$U108/12),0) -> 0.00 | AI108: 0.00 | AL108: 4,796.13 | AN108: 4,796.13
C109: 93 | D109: 336111 | E109: COMPUTADORA DELL | I109: 4796.13 | N109: 4796.13 | P109: 4,796.13 | Q109: 2008-11-23 | R109: 2008-12-01 | U109: 25% | V109: 4,796.13 | W109: =IF(AND(W$16*1>=$R109,W$16*1<=$D$8,$R109<$D$8,$P109>SUM($V109:V109)),IF(SUM($P109*$U109/12,$V109:V109)>$P109,$P109-SUM($V109:V109),$P109*$U109/12),0) -> 0.00 | X109: =IF(AND(X$16*1>=$R109,X$16*1<=$D$8,$R109<$D$8,$P109>SUM($V109:W109)),IF(SUM($P109*$U109/12,$V109:W109)>$P109,$P109-SUM($V109:W109),$P109*$U109/12),0) -> 0.00 | Y109: =IF(AND(Y$16*1>=$R109,Y$16*1<=$D$8,$R109<$D$8,$P109>SUM($V109:X109)),IF(SUM($P109*$U109/12,$V109:X109)>$P109,$P109-SUM($V109:X109),$P109*$U109/12),0) -> 0.00 | Z109: =IF(AND(Z$16*1>=$R109,Z$16*1<=$D$8,$R109<$D$8,$P109>SUM($V109:Y109)),IF(SUM($P109*$U109/12,$V109:Y109)>$P109,$P109-SUM($V109:Y109),$P109*$U109/12),0) -> 0.00 | AA109: =IF(AND(AA$16*1>=$R109,AA$16*1<=$D$8,$R109<$D$8,$P109>SUM($V109:Z109)),IF(SUM($P109*$U109/12,$V109:Z109)>$P109,$P109-SUM($V109:Z109),$P109*$U109/12),0) -> 0.00 | AB109: =IF(AND(AB$16*1>=$R109,AB$16*1<=$D$8,$R109<$D$8,$P109>SUM($V109:AA109)),IF(SUM($P109*$U109/12,$V109:AA109)>$P109,$P109-SUM($V109:AA109),$P109*$U109/12),0) -> 0.00 | AC109: =IF(AND(AC$16*1>=$R109,AC$16*1<=$D$8,$R109<$D$8,$P109>SUM($V109:AB109)),IF(SUM($P109*$U109/12,$V109:AB109)>$P109,$P109-SUM($V109:AB109),$P109*$U109/12),0) -> 0.00 | AD109: =IF(AND(AD$16*1>=$R109,AD$16*1<=$D$8,$R109<$D$8,$P109>SUM($V109:AC109)),IF(SUM($P109*$U109/12,$V109:AC109)>$P109,$P109-SUM($V109:AC109),$P109*$U109/12),0) -> 0.00 | AE109: =IF(AND(AE$16*1>=$R109,AE$16*1<=$D$8,$R109<$D$8,$P109>SUM($V109:AD109)),IF(SUM($P109*$U109/12,$V109:AD109)>$P109,$P109-SUM($V109:AD109),$P109*$U109/12),0) -> 0.00 | AF109: =IF(AND(AF$16*1>=$R109,AF$16*1<=$D$8,$R109<$D$8,$P109>SUM($V109:AE109)),IF(SUM($P109*$U109/12,$V109:AE109)>$P109,$P109-SUM($V109:AE109),$P109*$U109/12),0) -> 0.00 | AG109: =IF(AND(AG$16*1>=$R109,AG$16*1<=$D$8,$R109<$D$8,$P109>SUM($V109:AF109)),IF(SUM($P109*$U109/12,$V109:AF109)>$P109,$P109-SUM($V109:AF109),$P109*$U109/12),0) -> 0.00 | AH109: =IF(AND(AH$16*1>=$R109,AH$16*1<=$D$8,$R109<$D$8,$P109>SUM($V109:AG109)),IF(SUM($P109*$U109/12,$V109:AG109)>$P109,$P109-SUM($V109:AG109),$P109*$U109/12),0) -> 0.00 | AI109: 0.00 | AL109: 4,796.13 | AN109: 4,796.13
C110: 94 | D110: 336111 | E110: COMPUTADORA DELL | I110: 4796.13 | N110: 4796.13 | P110: 4,796.13 | Q110: 2008-11-23 | R110: 2008-12-01 | U110: 25% | V110: 4,796.13 | W110: =IF(AND(W$16*1>=$R110,W$16*1<=$D$8,$R110<$D$8,$P110>SUM($V110:V110)),IF(SUM($P110*$U110/12,$V110:V110)>$P110,$P110-SUM($V110:V110),$P110*$U110/12),0) -> 0.00 | X110: =IF(AND(X$16*1>=$R110,X$16*1<=$D$8,$R110<$D$8,$P110>SUM($V110:W110)),IF(SUM($P110*$U110/12,$V110:W110)>$P110,$P110-SUM($V110:W110),$P110*$U110/12),0) -> 0.00 | Y110: =IF(AND(Y$16*1>=$R110,Y$16*1<=$D$8,$R110<$D$8,$P110>SUM($V110:X110)),IF(SUM($P110*$U110/12,$V110:X110)>$P110,$P110-SUM($V110:X110),$P110*$U110/12),0) -> 0.00 | Z110: =IF(AND(Z$16*1>=$R110,Z$16*1<=$D$8,$R110<$D$8,$P110>SUM($V110:Y110)),IF(SUM($P110*$U110/12,$V110:Y110)>$P110,$P110-SUM($V110:Y110),$P110*$U110/12),0) -> 0.00 | AA110: =IF(AND(AA$16*1>=$R110,AA$16*1<=$D$8,$R110<$D$8,$P110>SUM($V110:Z110)),IF(SUM($P110*$U110/12,$V110:Z110)>$P110,$P110-SUM($V110:Z110),$P110*$U110/12),0) -> 0.00 | AB110: =IF(AND(AB$16*1>=$R110,AB$16*1<=$D$8,$R110<$D$8,$P110>SUM($V110:AA110)),IF(SUM($P110*$U110/12,$V110:AA110)>$P110,$P110-SUM($V110:AA110),$P110*$U110/12),0) -> 0.00 | AC110: =IF(AND(AC$16*1>=$R110,AC$16*1<=$D$8,$R110<$D$8,$P110>SUM($V110:AB110)),IF(SUM($P110*$U110/12,$V110:AB110)>$P110,$P110-SUM($V110:AB110),$P110*$U110/12),0) -> 0.00 | AD110: =IF(AND(AD$16*1>=$R110,AD$16*1<=$D$8,$R110<$D$8,$P110>SUM($V110:AC110)),IF(SUM($P110*$U110/12,$V110:AC110)>$P110,$P110-SUM($V110:AC110),$P110*$U110/12),0) -> 0.00 | AE110: =IF(AND(AE$16*1>=$R110,AE$16*1<=$D$8,$R110<$D$8,$P110>SUM($V110:AD110)),IF(SUM($P110*$U110/12,$V110:AD110)>$P110,$P110-SUM($V110:AD110),$P110*$U110/12),0) -> 0.00 | AF110: =IF(AND(AF$16*1>=$R110,AF$16*1<=$D$8,$R110<$D$8,$P110>SUM($V110:AE110)),IF(SUM($P110*$U110/12,$V110:AE110)>$P110,$P110-SUM($V110:AE110),$P110*$U110/12),0) -> 0.00 | AG110: =IF(AND(AG$16*1>=$R110,AG$16*1<=$D$8,$R110<$D$8,$P110>SUM($V110:AF110)),IF(SUM($P110*$U110/12,$V110:AF110)>$P110,$P110-SUM($V110:AF110),$P110*$U110/12),0) -> 0.00 | AH110: =IF(AND(AH$16*1>=$R110,AH$16*1<=$D$8,$R110<$D$8,$P110>SUM($V110:AG110)),IF(SUM($P110*$U110/12,$V110:AG110)>$P110,$P110-SUM($V110:AG110),$P110*$U110/12),0) -> 0.00 | AI110: 0.00 | AL110: 4,796.13 | AN110: 4,796.13
C111: 95 | D111: 336111 | E111: COMPUTADORA DELL | I111: 4796.13 | N111: 4796.13 | P111: 4,796.13 | Q111: 2008-11-23 | R111: 2008-12-01 | U111: 25% | V111: 4,796.13 | W111: =IF(AND(W$16*1>=$R111,W$16*1<=$D$8,$R111<$D$8,$P111>SUM($V111:V111)),IF(SUM($P111*$U111/12,$V111:V111)>$P111,$P111-SUM($V111:V111),$P111*$U111/12),0) -> 0.00 | X111: =IF(AND(X$16*1>=$R111,X$16*1<=$D$8,$R111<$D$8,$P111>SUM($V111:W111)),IF(SUM($P111*$U111/12,$V111:W111)>$P111,$P111-SUM($V111:W111),$P111*$U111/12),0) -> 0.00 | Y111: =IF(AND(Y$16*1>=$R111,Y$16*1<=$D$8,$R111<$D$8,$P111>SUM($V111:X111)),IF(SUM($P111*$U111/12,$V111:X111)>$P111,$P111-SUM($V111:X111),$P111*$U111/12),0) -> 0.00 | Z111: =IF(AND(Z$16*1>=$R111,Z$16*1<=$D$8,$R111<$D$8,$P111>SUM($V111:Y111)),IF(SUM($P111*$U111/12,$V111:Y111)>$P111,$P111-SUM($V111:Y111),$P111*$U111/12),0) -> 0.00 | AA111: =IF(AND(AA$16*1>=$R111,AA$16*1<=$D$8,$R111<$D$8,$P111>SUM($V111:Z111)),IF(SUM($P111*$U111/12,$V111:Z111)>$P111,$P111-SUM($V111:Z111),$P111*$U111/12),0) -> 0.00 | AB111: =IF(AND(AB$16*1>=$R111,AB$16*1<=$D$8,$R111<$D$8,$P111>SUM($V111:AA111)),IF(SUM($P111*$U111/12,$V111:AA111)>$P111,$P111-SUM($V111:AA111),$P111*$U111/12),0) -> 0.00 | AC111: =IF(AND(AC$16*1>=$R111,AC$16*1<=$D$8,$R111<$D$8,$P111>SUM($V111:AB111)),IF(SUM($P111*$U111/12,$V111:AB111)>$P111,$P111-SUM($V111:AB111),$P111*$U111/12),0) -> 0.00 | AD111: =IF(AND(AD$16*1>=$R111,AD$16*1<=$D$8,$R111<$D$8,$P111>SUM($V111:AC111)),IF(SUM($P111*$U111/12,$V111:AC111)>$P111,$P111-SUM($V111:AC111),$P111*$U111/12),0) -> 0.00 | AE111: =IF(AND(AE$16*1>=$R111,AE$16*1<=$D$8,$R111<$D$8,$P111>SUM($V111:AD111)),IF(SUM($P111*$U111/12,$V111:AD111)>$P111,$P111-SUM($V111:AD111),$P111*$U111/12),0) -> 0.00 | AF111: =IF(AND(AF$16*1>=$R111,AF$16*1<=$D$8,$R111<$D$8,$P111>SUM($V111:AE111)),IF(SUM($P111*$U111/12,$V111:AE111)>$P111,$P111-SUM($V111:AE111),$P111*$U111/12),0) -> 0.00 | AG111: =IF(AND(AG$16*1>=$R111,AG$16*1<=$D$8,$R111<$D$8,$P111>SUM($V111:AF111)),IF(SUM($P111*$U111/12,$V111:AF111)>$P111,$P111-SUM($V111:AF111),$P111*$U111/12),0) -> 0.00 | AH111: =IF(AND(AH$16*1>=$R111,AH$16*1<=$D$8,$R111<$D$8,$P111>SUM($V111:AG111)),IF(SUM($P111*$U111/12,$V111:AG111)>$P111,$P111-SUM($V111:AG111),$P111*$U111/12),0) -> 0.00 | AI111: 0.00 | AL111: 4,796.13 | AN111: 4,796.13
C112: 96 | D112: 336111 | E112: COMPUTADORA DELL | I112: 4796.12 | N112: 4796.12 | P112: 4,796.12 | Q112: 2008-11-23 | R112: 2008-12-01 | U112: 25% | V112: 4,796.12 | W112: =IF(AND(W$16*1>=$R112,W$16*1<=$D$8,$R112<$D$8,$P112>SUM($V112:V112)),IF(SUM($P112*$U112/12,$V112:V112)>$P112,$P112-SUM($V112:V112),$P112*$U112/12),0) -> 0.00 | X112: =IF(AND(X$16*1>=$R112,X$16*1<=$D$8,$R112<$D$8,$P112>SUM($V112:W112)),IF(SUM($P112*$U112/12,$V112:W112)>$P112,$P112-SUM($V112:W112),$P112*$U112/12),0) -> 0.00 | Y112: =IF(AND(Y$16*1>=$R112,Y$16*1<=$D$8,$R112<$D$8,$P112>SUM($V112:X112)),IF(SUM($P112*$U112/12,$V112:X112)>$P112,$P112-SUM($V112:X112),$P112*$U112/12),0) -> 0.00 | Z112: =IF(AND(Z$16*1>=$R112,Z$16*1<=$D$8,$R112<$D$8,$P112>SUM($V112:Y112)),IF(SUM($P112*$U112/12,$V112:Y112)>$P112,$P112-SUM($V112:Y112),$P112*$U112/12),0) -> 0.00 | AA112: =IF(AND(AA$16*1>=$R112,AA$16*1<=$D$8,$R112<$D$8,$P112>SUM($V112:Z112)),IF(SUM($P112*$U112/12,$V112:Z112)>$P112,$P112-SUM($V112:Z112),$P112*$U112/12),0) -> 0.00 | AB112: =IF(AND(AB$16*1>=$R112,AB$16*1<=$D$8,$R112<$D$8,$P112>SUM($V112:AA112)),IF(SUM($P112*$U112/12,$V112:AA112)>$P112,$P112-SUM($V112:AA112),$P112*$U112/12),0) -> 0.00 | AC112: =IF(AND(AC$16*1>=$R112,AC$16*1<=$D$8,$R112<$D$8,$P112>SUM($V112:AB112)),IF(SUM($P112*$U112/12,$V112:AB112)>$P112,$P112-SUM($V112:AB112),$P112*$U112/12),0) -> 0.00 | AD112: =IF(AND(AD$16*1>=$R112,AD$16*1<=$D$8,$R112<$D$8,$P112>SUM($V112:AC112)),IF(SUM($P112*$U112/12,$V112:AC112)>$P112,$P112-SUM($V112:AC112),$P112*$U112/12),0) -> 0.00 | AE112: =IF(AND(AE$16*1>=$R112,AE$16*1<=$D$8,$R112<$D$8,$P112>SUM($V112:AD112)),IF(SUM($P112*$U112/12,$V112:AD112)>$P112,$P112-SUM($V112:AD112),$P112*$U112/12),0) -> 0.00 | AF112: =IF(AND(AF$16*1>=$R112,AF$16*1<=$D$8,$R112<$D$8,$P112>SUM($V112:AE112)),IF(SUM($P112*$U112/12,$V112:AE112)>$P112,$P112-SUM($V112:AE112),$P112*$U112/12),0) -> 0.00 | AG112: =IF(AND(AG$16*1>=$R112,AG$16*1<=$D$8,$R112<$D$8,$P112>SUM($V112:AF112)),IF(SUM($P112*$U112/12,$V112:AF112)>$P112,$P112-SUM($V112:AF112),$P112*$U112/12),0) -> 0.00 | AH112: =IF(AND(AH$16*1>=$R112,AH$16*1<=$D$8,$R112<$D$8,$P112>SUM($V112:AG112)),IF(SUM($P112*$U112/12,$V112:AG112)>$P112,$P112-SUM($V112:AG112),$P112*$U112/12),0) -> 0.00 | AI112: 0.00 | AL112: 4,796.12 | AN112: 4,796.12
C113: 97 | D113: 336111 | E113: COMPUTADORA SERVIDOR DELL | I113: 14988.52 | N113: 14988.52 | P113: 14,988.52 | Q113: 2008-11-23 | R113: 2008-12-01 | U113: 25% | V113: 14,988.52 | W113: =IF(AND(W$16*1>=$R113,W$16*1<=$D$8,$R113<$D$8,$P113>SUM($V113:V113)),IF(SUM($P113*$U113/12,$V113:V113)>$P113,$P113-SUM($V113:V113),$P113*$U113/12),0) -> 0.00 | X113: =IF(AND(X$16*1>=$R113,X$16*1<=$D$8,$R113<$D$8,$P113>SUM($V113:W113)),IF(SUM($P113*$U113/12,$V113:W113)>$P113,$P113-SUM($V113:W113),$P113*$U113/12),0) -> 0.00 | Y113: =IF(AND(Y$16*1>=$R113,Y$16*1<=$D$8,$R113<$D$8,$P113>SUM($V113:X113)),IF(SUM($P113*$U113/12,$V113:X113)>$P113,$P113-SUM($V113:X113),$P113*$U113/12),0) -> 0.00 | Z113: =IF(AND(Z$16*1>=$R113,Z$16*1<=$D$8,$R113<$D$8,$P113>SUM($V113:Y113)),IF(SUM($P113*$U113/12,$V113:Y113)>$P113,$P113-SUM($V113:Y113),$P113*$U113/12),0) -> 0.00 | AA113: =IF(AND(AA$16*1>=$R113,AA$16*1<=$D$8,$R113<$D$8,$P113>SUM($V113:Z113)),IF(SUM($P113*$U113/12,$V113:Z113)>$P113,$P113-SUM($V113:Z113),$P113*$U113/12),0) -> 0.00 | AB113: =IF(AND(AB$16*1>=$R113,AB$16*1<=$D$8,$R113<$D$8,$P113>SUM($V113:AA113)),IF(SUM($P113*$U113/12,$V113:AA113)>$P113,$P113-SUM($V113:AA113),$P113*$U113/12),0) -> 0.00 | AC113: =IF(AND(AC$16*1>=$R113,AC$16*1<=$D$8,$R113<$D$8,$P113>SUM($V113:AB113)),IF(SUM($P113*$U113/12,$V113:AB113)>$P113,$P113-SUM($V113:AB113),$P113*$U113/12),0) -> 0.00 | AD113: =IF(AND(AD$16*1>=$R113,AD$16*1<=$D$8,$R113<$D$8,$P113>SUM($V113:AC113)),IF(SUM($P113*$U113/12,$V113:AC113)>$P113,$P113-SUM($V113:AC113),$P113*$U113/12),0) -> 0.00 | AE113: =IF(AND(AE$16*1>=$R113,AE$16*1<=$D$8,$R113<$D$8,$P113>SUM($V113:AD113)),IF(SUM($P113*$U113/12,$V113:AD113)>$P113,$P113-SUM($V113:AD113),$P113*$U113/12),0) -> 0.00 | AF113: =IF(AND(AF$16*1>=$R113,AF$16*1<=$D$8,$R113<$D$8,$P113>SUM($V113:AE113)),IF(SUM($P113*$U113/12,$V113:AE113)>$P113,$P113-SUM($V113:AE113),$P113*$U113/12),0) -> 0.00 | AG113: =IF(AND(AG$16*1>=$R113,AG$16*1<=$D$8,$R113<$D$8,$P113>SUM($V113:AF113)),IF(SUM($P113*$U113/12,$V113:AF113)>$P113,$P113-SUM($V113:AF113),$P113*$U113/12),0) -> 0.00 | AH113: =IF(AND(AH$16*1>=$R113,AH$16*1<=$D$8,$R113<$D$8,$P113>SUM($V113:AG113)),IF(SUM($P113*$U113/12,$V113:AG113)>$P113,$P113-SUM($V113:AG113),$P113*$U113/12),0) -> 0.00 | AI113: 0.00 | AL113: 14,988.52 | AN113: 14,988.52
C114: 98 | D114: 336111 | E114: DISCO DURO | I114: 543.32 | N114: 543.32 | P114: 543.32 | Q114: 2010-12-22 | R114: 2011-01-01 | U114: 25% | V114: 543.32 | W114: =IF(AND(W$16*1>=$R114,W$16*1<=$D$8,$R114<$D$8,$P114>SUM($V114:V114)),IF(SUM($P114*$U114/12,$V114:V114)>$P114,$P114-SUM($V114:V114),$P114*$U114/12),0) -> 0.00 | X114: =IF(AND(X$16*1>=$R114,X$16*1<=$D$8,$R114<$D$8,$P114>SUM($V114:W114)),IF(SUM($P114*$U114/12,$V114:W114)>$P114,$P114-SUM($V114:W114),$P114*$U114/12),0) -> 0.00 | Y114: =IF(AND(Y$16*1>=$R114,Y$16*1<=$D$8,$R114<$D$8,$P114>SUM($V114:X114)),IF(SUM($P114*$U114/12,$V114:X114)>$P114,$P114-SUM($V114:X114),$P114*$U114/12),0) -> 0.00 | Z114: =IF(AND(Z$16*1>=$R114,Z$16*1<=$D$8,$R114<$D$8,$P114>SUM($V114:Y114)),IF(SUM($P114*$U114/12,$V114:Y114)>$P114,$P114-SUM($V114:Y114),$P114*$U114/12),0) -> 0.00 | AA114: =IF(AND(AA$16*1>=$R114,AA$16*1<=$D$8,$R114<$D$8,$P114>SUM($V114:Z114)),IF(SUM($P114*$U114/12,$V114:Z114)>$P114,$P114-SUM($V114:Z114),$P114*$U114/12),0) -> 0.00 | AB114: =IF(AND(AB$16*1>=$R114,AB$16*1<=$D$8,$R114<$D$8,$P114>SUM($V114:AA114)),IF(SUM($P114*$U114/12,$V114:AA114)>$P114,$P114-SUM($V114:AA114),$P114*$U114/12),0) -> 0.00 | AC114: =IF(AND(AC$16*1>=$R114,AC$16*1<=$D$8,$R114<$D$8,$P114>SUM($V114:AB114)),IF(SUM($P114*$U114/12,$V114:AB114)>$P114,$P114-SUM($V114:AB114),$P114*$U114/12),0) -> 0.00 | AD114: =IF(AND(AD$16*1>=$R114,AD$16*1<=$D$8,$R114<$D$8,$P114>SUM($V114:AC114)),IF(SUM($P114*$U114/12,$V114:AC114)>$P114,$P114-SUM($V114:AC114),$P114*$U114/12),0) -> 0.00 | AE114: =IF(AND(AE$16*1>=$R114,AE$16*1<=$D$8,$R114<$D$8,$P114>SUM($V114:AD114)),IF(SUM($P114*$U114/12,$V114:AD114)>$P114,$P114-SUM($V114:AD114),$P114*$U114/12),0) -> 0.00 | AF114: =IF(AND(AF$16*1>=$R114,AF$16*1<=$D$8,$R114<$D$8,$P114>SUM($V114:AE114)),IF(SUM($P114*$U114/12,$V114:AE114)>$P114,$P114-SUM($V114:AE114),$P114*$U114/12),0) -> 0.00 | AG114: =IF(AND(AG$16*1>=$R114,AG$16*1<=$D$8,$R114<$D$8,$P114>SUM($V114:AF114)),IF(SUM($P114*$U114/12,$V114:AF114)>$P114,$P114-SUM($V114:AF114),$P114*$U114/12),0) -> 0.00 | AH114: =IF(AND(AH$16*1>=$R114,AH$16*1<=$D$8,$R114<$D$8,$P114>SUM($V114:AG114)),IF(SUM($P114*$U114/12,$V114:AG114)>$P114,$P114-SUM($V114:AG114),$P114*$U114/12),0) -> 0.00 | AI114: 0.00 | AL114: 543.32 | AN114: 543.32
C115: 99 | D115: 336111 | E115: IMPRESORA LASER MARCA EPSON | I115: 839.5 | N115: 839.5 | P115: 839.50 | Q115: 2011-09-12 | R115: 2011-10-01 | U115: 25% | V115: 839.50 | W115: =IF(AND(W$16*1>=$R115,W$16*1<=$D$8,$R115<$D$8,$P115>SUM($V115:V115)),IF(SUM($P115*$U115/12,$V115:V115)>$P115,$P115-SUM($V115:V115),$P115*$U115/12),0) -> 0.00 | X115: =IF(AND(X$16*1>=$R115,X$16*1<=$D$8,$R115<$D$8,$P115>SUM($V115:W115)),IF(SUM($P115*$U115/12,$V115:W115)>$P115,$P115-SUM($V115:W115),$P115*$U115/12),0) -> 0.00 | Y115: =IF(AND(Y$16*1>=$R115,Y$16*1<=$D$8,$R115<$D$8,$P115>SUM($V115:X115)),IF(SUM($P115*$U115/12,$V115:X115)>$P115,$P115-SUM($V115:X115),$P115*$U115/12),0) -> 0.00 | Z115: =IF(AND(Z$16*1>=$R115,Z$16*1<=$D$8,$R115<$D$8,$P115>SUM($V115:Y115)),IF(SUM($P115*$U115/12,$V115:Y115)>$P115,$P115-SUM($V115:Y115),$P115*$U115/12),0) -> 0.00 | AA115: =IF(AND(AA$16*1>=$R115,AA$16*1<=$D$8,$R115<$D$8,$P115>SUM($V115:Z115)),IF(SUM($P115*$U115/12,$V115:Z115)>$P115,$P115-SUM($V115:Z115),$P115*$U115/12),0) -> 0.00 | AB115: =IF(AND(AB$16*1>=$R115,AB$16*1<=$D$8,$R115<$D$8,$P115>SUM($V115:AA115)),IF(SUM($P115*$U115/12,$V115:AA115)>$P115,$P115-SUM($V115:AA115),$P115*$U115/12),0) -> 0.00 | AC115: =IF(AND(AC$16*1>=$R115,AC$16*1<=$D$8,$R115<$D$8,$P115>SUM($V115:AB115)),IF(SUM($P115*$U115/12,$V115:AB115)>$P115,$P115-SUM($V115:AB115),$P115*$U115/12),0) -> 0.00 | AD115: =IF(AND(AD$16*1>=$R115,AD$16*1<=$D$8,$R115<$D$8,$P115>SUM($V115:AC115)),IF(SUM($P115*$U115/12,$V115:AC115)>$P115,$P115-SUM($V115:AC115),$P115*$U115/12),0) -> 0.00 | AE115: =IF(AND(AE$16*1>=$R115,AE$16*1<=$D$8,$R115<$D$8,$P115>SUM($V115:AD115)),IF(SUM($P115*$U115/12,$V115:AD115)>$P115,$P115-SUM($V115:AD115),$P115*$U115/12),0) -> 0.00 | AF115: =IF(AND(AF$16*1>=$R115,AF$16*1<=$D$8,$R115<$D$8,$P115>SUM($V115:AE115)),IF(SUM($P115*$U115/12,$V115:AE115)>$P115,$P115-SUM($V115:AE115),$P115*$U115/12),0) -> 0.00 | AG115: =IF(AND(AG$16*1>=$R115,AG$16*1<=$D$8,$R115<$D$8,$P115>SUM($V115:AF115)),IF(SUM($P115*$U115/12,$V115:AF115)>$P115,$P115-SUM($V115:AF115),$P115*$U115/12),0) -> 0.00 | AH115: =IF(AND(AH$16*1>=$R115,AH$16*1<=$D$8,$R115<$D$8,$P115>SUM($V115:AG115)),IF(SUM($P115*$U115/12,$V115:AG115)>$P115,$P115-SUM($V115:AG115),$P115*$U115/12),0) -> 0.00 | AI115: 0.00 | AL115: 839.50 | AN115: 839.50
C116: 100 | D116: 336111 | E116: MONITOR LCD 17" MARCA LG | I116: 755.46 | N116: 755.46 | P116: 755.46 | Q116: 2011-09-12 | R116: 2011-10-01 | U116: 25% | V116: 755.46 | W116: =IF(AND(W$16*1>=$R116,W$16*1<=$D$8,$R116<$D$8,$P116>SUM($V116:V116)),IF(SUM($P116*$U116/12,$V116:V116)>$P116,$P116-SUM($V116:V116),$P116*$U116/12),0) -> 0.00 | X116: =IF(AND(X$16*1>=$R116,X$16*1<=$D$8,$R116<$D$8,$P116>SUM($V116:W116)),IF(SUM($P116*$U116/12,$V116:W116)>$P116,$P116-SUM($V116:W116),$P116*$U116/12),0) -> 0.00 | Y116: =IF(AND(Y$16*1>=$R116,Y$16*1<=$D$8,$R116<$D$8,$P116>SUM($V116:X116)),IF(SUM($P116*$U116/12,$V116:X116)>$P116,$P116-SUM($V116:X116),$P116*$U116/12),0) -> 0.00 | Z116: =IF(AND(Z$16*1>=$R116,Z$16*1<=$D$8,$R116<$D$8,$P116>SUM($V116:Y116)),IF(SUM($P116*$U116/12,$V116:Y116)>$P116,$P116-SUM($V116:Y116),$P116*$U116/12),0) -> 0.00 | AA116: =IF(AND(AA$16*1>=$R116,AA$16*1<=$D$8,$R116<$D$8,$P116>SUM($V116:Z116)),IF(SUM($P116*$U116/12,$V116:Z116)>$P116,$P116-SUM($V116:Z116),$P116*$U116/12),0) -> 0.00 | AB116: =IF(AND(AB$16*1>=$R116,AB$16*1<=$D$8,$R116<$D$8,$P116>SUM($V116:AA116)),IF(SUM($P116*$U116/12,$V116:AA116)>$P116,$P116-SUM($V116:AA116),$P116*$U116/12),0) -> 0.00 | AC116: =IF(AND(AC$16*1>=$R116,AC$16*1<=$D$8,$R116<$D$8,$P116>SUM($V116:AB116)),IF(SUM($P116*$U116/12,$V116:AB116)>$P116,$P116-SUM($V116:AB116),$P116*$U116/12),0) -> 0.00 | AD116: =IF(AND(AD$16*1>=$R116,AD$16*1<=$D$8,$R116<$D$8,$P116>SUM($V116:AC116)),IF(SUM($P116*$U116/12,$V116:AC116)>$P116,$P116-SUM($V116:AC116),$P116*$U116/12),0) -> 0.00 | AE116: =IF(AND(AE$16*1>=$R116,AE$16*1<=$D$8,$R116<$D$8,$P116>SUM($V116:AD116)),IF(SUM($P116*$U116/12,$V116:AD116)>$P116,$P116-SUM($V116:AD116),$P116*$U116/12),0) -> 0.00 | AF116: =IF(AND(AF$16*1>=$R116,AF$16*1<=$D$8,$R116<$D$8,$P116>SUM($V116:AE116)),IF(SUM($P116*$U116/12,$V116:AE116)>$P116,$P116-SUM($V116:AE116),$P116*$U116/12),0) -> 0.00 | AG116: =IF(AND(AG$16*1>=$R116,AG$16*1<=$D$8,$R116<$D$8,$P116>SUM($V116:AF116)),IF(SUM($P116*$U116/12,$V116:AF116)>$P116,$P116-SUM($V116:AF116),$P116*$U116/12),0) -> 0.00 | AH116: =IF(AND(AH$16*1>=$R116,AH$16*1<=$D$8,$R116<$D$8,$P116>SUM($V116:AG116)),IF(SUM($P116*$U116/12,$V116:AG116)>$P116,$P116-SUM($V116:AG116),$P116*$U116/12),0) -> 0.00 | AI116: 0.00 | AL116: 755.46 | AN116: 755.46
C117: 101 | D117: 336111 | E117: COMPUTADORA COMPATIBLE (MG) | I117: 1876.49 | N117: 1876.49 | P117: 1,876.49 | Q117: 2012-01-16 | R117: 2012-02-01 | U117: 25% | V117: 1,876.49 | W117: =IF(AND(W$16*1>=$R117,W$16*1<=$D$8,$R117<$D$8,$P117>SUM($V117:V117)),IF(SUM($P117*$U117/12,$V117:V117)>$P117,$P117-SUM($V117:V117),$P117*$U117/12),0) -> 0.00 | X117: =IF(AND(X$16*1>=$R117,X$16*1<=$D$8,$R117<$D$8,$P117>SUM($V117:W117)),IF(SUM($P117*$U117/12,$V117:W117)>$P117,$P117-SUM($V117:W117),$P117*$U117/12),0) -> 0.00 | Y117: =IF(AND(Y$16*1>=$R117,Y$16*1<=$D$8,$R117<$D$8,$P117>SUM($V117:X117)),IF(SUM($P117*$U117/12,$V117:X117)>$P117,$P117-SUM($V117:X117),$P117*$U117/12),0) -> 0.00 | Z117: =IF(AND(Z$16*1>=$R117,Z$16*1<=$D$8,$R117<$D$8,$P117>SUM($V117:Y117)),IF(SUM($P117*$U117/12,$V117:Y117)>$P117,$P117-SUM($V117:Y117),$P117*$U117/12),0) -> 0.00 | AA117: =IF(AND(AA$16*1>=$R117,AA$16*1<=$D$8,$R117<$D$8,$P117>SUM($V117:Z117)),IF(SUM($P117*$U117/12,$V117:Z117)>$P117,$P117-SUM($V117:Z117),$P117*$U117/12),0) -> 0.00 | AB117: =IF(AND(AB$16*1>=$R117,AB$16*1<=$D$8,$R117<$D$8,$P117>SUM($V117:AA117)),IF(SUM($P117*$U117/12,$V117:AA117)>$P117,$P117-SUM($V117:AA117),$P117*$U117/12),0) -> 0.00 | AC117: =IF(AND(AC$16*1>=$R117,AC$16*1<=$D$8,$R117<$D$8,$P117>SUM($V117:AB117)),IF(SUM($P117*$U117/12,$V117:AB117)>$P117,$P117-SUM($V117:AB117),$P117*$U117/12),0) -> 0.00 | AD117: =IF(AND(AD$16*1>=$R117,AD$16*1<=$D$8,$R117<$D$8,$P117>SUM($V117:AC117)),IF(SUM($P117*$U117/12,$V117:AC117)>$P117,$P117-SUM($V117:AC117),$P117*$U117/12),0) -> 0.00 | AE117: =IF(AND(AE$16*1>=$R117,AE$16*1<=$D$8,$R117<$D$8,$P117>SUM($V117:AD117)),IF(SUM($P117*$U117/12,$V117:AD117)>$P117,$P117-SUM($V117:AD117),$P117*$U117/12),0) -> 0.00 | AF117: =IF(AND(AF$16*1>=$R117,AF$16*1<=$D$8,$R117<$D$8,$P117>SUM($V117:AE117)),IF(SUM($P117*$U117/12,$V117:AE117)>$P117,$P117-SUM($V117:AE117),$P117*$U117/12),0) -> 0.00 | AG117: =IF(AND(AG$16*1>=$R117,AG$16*1<=$D$8,$R117<$D$8,$P117>SUM($V117:AF117)),IF(SUM($P117*$U117/12,$V117:AF117)>$P117,$P117-SUM($V117:AF117),$P117*$U117/12),0) -> 0.00 | AH117: =IF(AND(AH$16*1>=$R117,AH$16*1<=$D$8,$R117<$D$8,$P117>SUM($V117:AG117)),IF(SUM($P117*$U117/12,$V117:AG117)>$P117,$P117-SUM($V117:AG117),$P117*$U117/12),0) -> 0.00 | AI117: 0.00 | AL117: 1,876.49 | AN117: 1,876.49
C118: 102 | D118: 336111 | E118: IMPRESORA MARCA LEXMARK (CF) | I118: 200.84 | N118: 200.84 | P118: 200.84 | Q118: 2012-01-21 | R118: 2012-02-01 | U118: 25% | V118: 200.84 | W118: =IF(AND(W$16*1>=$R118,W$16*1<=$D$8,$R118<$D$8,$P118>SUM($V118:V118)),IF(SUM($P118*$U118/12,$V118:V118)>$P118,$P118-SUM($V118:V118),$P118*$U118/12),0) -> 0.00 | X118: =IF(AND(X$16*1>=$R118,X$16*1<=$D$8,$R118<$D$8,$P118>SUM($V118:W118)),IF(SUM($P118*$U118/12,$V118:W118)>$P118,$P118-SUM($V118:W118),$P118*$U118/12),0) -> 0.00 | Y118: =IF(AND(Y$16*1>=$R118,Y$16*1<=$D$8,$R118<$D$8,$P118>SUM($V118:X118)),IF(SUM($P118*$U118/12,$V118:X118)>$P118,$P118-SUM($V118:X118),$P118*$U118/12),0) -> 0.00 | Z118: =IF(AND(Z$16*1>=$R118,Z$16*1<=$D$8,$R118<$D$8,$P118>SUM($V118:Y118)),IF(SUM($P118*$U118/12,$V118:Y118)>$P118,$P118-SUM($V118:Y118),$P118*$U118/12),0) -> 0.00 | AA118: =IF(AND(AA$16*1>=$R118,AA$16*1<=$D$8,$R118<$D$8,$P118>SUM($V118:Z118)),IF(SUM($P118*$U118/12,$V118:Z118)>$P118,$P118-SUM($V118:Z118),$P118*$U118/12),0) -> 0.00 | AB118: =IF(AND(AB$16*1>=$R118,AB$16*1<=$D$8,$R118<$D$8,$P118>SUM($V118:AA118)),IF(SUM($P118*$U118/12,$V118:AA118)>$P118,$P118-SUM($V118:AA118),$P118*$U118/12),0) -> 0.00 | AC118: =IF(AND(AC$16*1>=$R118,AC$16*1<=$D$8,$R118<$D$8,$P118>SUM($V118:AB118)),IF(SUM($P118*$U118/12,$V118:AB118)>$P118,$P118-SUM($V118:AB118),$P118*$U118/12),0) -> 0.00 | AD118: =IF(AND(AD$16*1>=$R118,AD$16*1<=$D$8,$R118<$D$8,$P118>SUM($V118:AC118)),IF(SUM($P118*$U118/12,$V118:AC118)>$P118,$P118-SUM($V118:AC118),$P118*$U118/12),0) -> 0.00 | AE118: =IF(AND(AE$16*1>=$R118,AE$16*1<=$D$8,$R118<$D$8,$P118>SUM($V118:AD118)),IF(SUM($P118*$U118/12,$V118:AD118)>$P118,$P118-SUM($V118:AD118),$P118*$U118/12),0) -> 0.00 | AF118: =IF(AND(AF$16*1>=$R118,AF$16*1<=$D$8,$R118<$D$8,$P118>SUM($V118:AE118)),IF(SUM($P118*$U118/12,$V118:AE118)>$P118,$P118-SUM($V118:AE118),$P118*$U118/12),0) -> 0.00 | AG118: =IF(AND(AG$16*1>=$R118,AG$16*1<=$D$8,$R118<$D$8,$P118>SUM($V118:AF118)),IF(SUM($P118*$U118/12,$V118:AF118)>$P118,$P118-SUM($V118:AF118),$P118*$U118/12),0) -> 0.00 | AH118: =IF(AND(AH$16*1>=$R118,AH$16*1<=$D$8,$R118<$D$8,$P118>SUM($V118:AG118)),IF(SUM($P118*$U118/12,$V118:AG118)>$P118,$P118-SUM($V118:AG118),$P118*$U118/12),0) -> 0.00 | AI118: 0.00 | AL118: 200.84 | AN118: 200.84
C119: 103 | D119: 336111 | E119: COMPUT.NOTEBOOK LENOVO (CF) | I119: 5368.04 | N119: 5368.04 | P119: 5,368.04 | Q119: 2012-08-26 | R119: 2012-09-01 | U119: 25% | V119: 5,368.04 | W119: =IF(AND(W$16*1>=$R119,W$16*1<=$D$8,$R119<$D$8,$P119>SUM($V119:V119)),IF(SUM($P119*$U119/12,$V119:V119)>$P119,$P119-SUM($V119:V119),$P119*$U119/12),0) -> 0.00 | X119: =IF(AND(X$16*1>=$R119,X$16*1<=$D$8,$R119<$D$8,$P119>SUM($V119:W119)),IF(SUM($P119*$U119/12,$V119:W119)>$P119,$P119-SUM($V119:W119),$P119*$U119/12),0) -> 0.00 | Y119: =IF(AND(Y$16*1>=$R119,Y$16*1<=$D$8,$R119<$D$8,$P119>SUM($V119:X119)),IF(SUM($P119*$U119/12,$V119:X119)>$P119,$P119-SUM($V119:X119),$P119*$U119/12),0) -> 0.00 | Z119: =IF(AND(Z$16*1>=$R119,Z$16*1<=$D$8,$R119<$D$8,$P119>SUM($V119:Y119)),IF(SUM($P119*$U119/12,$V119:Y119)>$P119,$P119-SUM($V119:Y119),$P119*$U119/12),0) -> 0.00 | AA119: =IF(AND(AA$16*1>=$R119,AA$16*1<=$D$8,$R119<$D$8,$P119>SUM($V119:Z119)),IF(SUM($P119*$U119/12,$V119:Z119)>$P119,$P119-SUM($V119:Z119),$P119*$U119/12),0) -> 0.00 | AB119: =IF(AND(AB$16*1>=$R119,AB$16*1<=$D$8,$R119<$D$8,$P119>SUM($V119:AA119)),IF(SUM($P119*$U119/12,$V119:AA119)>$P119,$P119-SUM($V119:AA119),$P119*$U119/12),0) -> 0.00 | AC119: =IF(AND(AC$16*1>=$R119,AC$16*1<=$D$8,$R119<$D$8,$P119>SUM($V119:AB119)),IF(SUM($P119*$U119/12,$V119:AB119)>$P119,$P119-SUM($V119:AB119),$P119*$U119/12),0) -> 0.00 | AD119: =IF(AND(AD$16*1>=$R119,AD$16*1<=$D$8,$R119<$D$8,$P119>SUM($V119:AC119)),IF(SUM($P119*$U119/12,$V119:AC119)>$P119,$P119-SUM($V119:AC119),$P119*$U119/12),0) -> 0.00 | AE119: =IF(AND(AE$16*1>=$R119,AE$16*1<=$D$8,$R119<$D$8,$P119>SUM($V119:AD119)),IF(SUM($P119*$U119/12,$V119:AD119)>$P119,$P119-SUM($V119:AD119),$P119*$U119/12),0) -> 0.00 | AF119: =IF(AND(AF$16*1>=$R119,AF$16*1<=$D$8,$R119<$D$8,$P119>SUM($V119:AE119)),IF(SUM($P119*$U119/12,$V119:AE119)>$P119,$P119-SUM($V119:AE119),$P119*$U119/12),0) -> 0.00 | AG119: =IF(AND(AG$16*1>=$R119,AG$16*1<=$D$8,$R119<$D$8,$P119>SUM($V119:AF119)),IF(SUM($P119*$U119/12,$V119:AF119)>$P119,$P119-SUM($V119:AF119),$P119*$U119/12),0) -> 0.00 | AH119: =IF(AND(AH$16*1>=$R119,AH$16*1<=$D$8,$R119<$D$8,$P119>SUM($V119:AG119)),IF(SUM($P119*$U119/12,$V119:AG119)>$P119,$P119-SUM($V119:AG119),$P119*$U119/12),0) -> 0.00 | AI119: 0.00 | AL119: 5,368.04 | AN119: 5,368.04
C120: 104 | D120: 336111 | E120: IMPRESORA XEROX PHASER 6110N (MG) | I120: 1041.25 | N120: 1041.25 | P120: 1,041.25 | Q120: 2012-12-18 | R120: 2013-01-01 | U120: 25% | V120: 1,041.25 | W120: =IF(AND(W$16*1>=$R120,W$16*1<=$D$8,$R120<$D$8,$P120>SUM($V120:V120)),IF(SUM($P120*$U120/12,$V120:V120)>$P120,$P120-SUM($V120:V120),$P120*$U120/12),0) -> 0.00 | X120: =IF(AND(X$16*1>=$R120,X$16*1<=$D$8,$R120<$D$8,$P120>SUM($V120:W120)),IF(SUM($P120*$U120/12,$V120:W120)>$P120,$P120-SUM($V120:W120),$P120*$U120/12),0) -> 0.00 | Y120: =IF(AND(Y$16*1>=$R120,Y$16*1<=$D$8,$R120<$D$8,$P120>SUM($V120:X120)),IF(SUM($P120*$U120/12,$V120:X120)>$P120,$P120-SUM($V120:X120),$P120*$U120/12),0) -> 0.00 | Z120: =IF(AND(Z$16*1>=$R120,Z$16*1<=$D$8,$R120<$D$8,$P120>SUM($V120:Y120)),IF(SUM($P120*$U120/12,$V120:Y120)>$P120,$P120-SUM($V120:Y120),$P120*$U120/12),0) -> 0.00 | AA120: =IF(AND(AA$16*1>=$R120,AA$16*1<=$D$8,$R120<$D$8,$P120>SUM($V120:Z120)),IF(SUM($P120*$U120/12,$V120:Z120)>$P120,$P120-SUM($V120:Z120),$P120*$U120/12),0) -> 0.00 | AB120: =IF(AND(AB$16*1>=$R120,AB$16*1<=$D$8,$R120<$D$8,$P120>SUM($V120:AA120)),IF(SUM($P120*$U120/12,$V120:AA120)>$P120,$P120-SUM($V120:AA120),$P120*$U120/12),0) -> 0.00 | AC120: =IF(AND(AC$16*1>=$R120,AC$16*1<=$D$8,$R120<$D$8,$P120>SUM($V120:AB120)),IF(SUM($P120*$U120/12,$V120:AB120)>$P120,$P120-SUM($V120:AB120),$P120*$U120/12),0) -> 0.00 | AD120: =IF(AND(AD$16*1>=$R120,AD$16*1<=$D$8,$R120<$D$8,$P120>SUM($V120:AC120)),IF(SUM($P120*$U120/12,$V120:AC120)>$P120,$P120-SUM($V120:AC120),$P120*$U120/12),0) -> 0.00 | AE120: =IF(AND(AE$16*1>=$R120,AE$16*1<=$D$8,$R120<$D$8,$P120>SUM($V120:AD120)),IF(SUM($P120*$U120/12,$V120:AD120)>$P120,$P120-SUM($V120:AD120),$P120*$U120/12),0) -> 0.00 | AF120: =IF(AND(AF$16*1>=$R120,AF$16*1<=$D$8,$R120<$D$8,$P120>SUM($V120:AE120)),IF(SUM($P120*$U120/12,$V120:AE120)>$P120,$P120-SUM($V120:AE120),$P120*$U120/12),0) -> 0.00 | AG120: =IF(AND(AG$16*1>=$R120,AG$16*1<=$D$8,$R120<$D$8,$P120>SUM($V120:AF120)),IF(SUM($P120*$U120/12,$V120:AF120)>$P120,$P120-SUM($V120:AF120),$P120*$U120/12),0) -> 0.00 | AH120: =IF(AND(AH$16*1>=$R120,AH$16*1<=$D$8,$R120<$D$8,$P120>SUM($V120:AG120)),IF(SUM($P120*$U120/12,$V120:AG120)>$P120,$P120-SUM($V120:AG120),$P120*$U120/12),0) -> 0.00 | AI120: 0.00 | AL120: 1,041.25 | AN120: 1,041.25
C121: 105 | D121: 336111 | E121: IMPRESORA MULTIFUNCIONAL HP(Recepc.) | I121: 489.92 | N121: 489.92 | P121: 489.92 | Q121: 2013-04-02 | R121: 2013-05-01 | U121: 25% | V121: 489.92 | W121: =IF(AND(W$16*1>=$R121,W$16*1<=$D$8,$R121<$D$8,$P121>SUM($V121:V121)),IF(SUM($P121*$U121/12,$V121:V121)>$P121,$P121-SUM($V121:V121),$P121*$U121/12),0) -> 0.00 | X121: =IF(AND(X$16*1>=$R121,X$16*1<=$D$8,$R121<$D$8,$P121>SUM($V121:W121)),IF(SUM($P121*$U121/12,$V121:W121)>$P121,$P121-SUM($V121:W121),$P121*$U121/12),0) -> 0.00 | Y121: =IF(AND(Y$16*1>=$R121,Y$16*1<=$D$8,$R121<$D$8,$P121>SUM($V121:X121)),IF(SUM($P121*$U121/12,$V121:X121)>$P121,$P121-SUM($V121:X121),$P121*$U121/12),0) -> 0.00 | Z121: =IF(AND(Z$16*1>=$R121,Z$16*1<=$D$8,$R121<$D$8,$P121>SUM($V121:Y121)),IF(SUM($P121*$U121/12,$V121:Y121)>$P121,$P121-SUM($V121:Y121),$P121*$U121/12),0) -> 0.00 | AA121: =IF(AND(AA$16*1>=$R121,AA$16*1<=$D$8,$R121<$D$8,$P121>SUM($V121:Z121)),IF(SUM($P121*$U121/12,$V121:Z121)>$P121,$P121-SUM($V121:Z121),$P121*$U121/12),0) -> 0.00 | AB121: =IF(AND(AB$16*1>=$R121,AB$16*1<=$D$8,$R121<$D$8,$P121>SUM($V121:AA121)),IF(SUM($P121*$U121/12,$V121:AA121)>$P121,$P121-SUM($V121:AA121),$P121*$U121/12),0) -> 0.00 | AC121: =IF(AND(AC$16*1>=$R121,AC$16*1<=$D$8,$R121<$D$8,$P121>SUM($V121:AB121)),IF(SUM($P121*$U121/12,$V121:AB121)>$P121,$P121-SUM($V121:AB121),$P121*$U121/12),0) -> 0.00 | AD121: =IF(AND(AD$16*1>=$R121,AD$16*1<=$D$8,$R121<$D$8,$P121>SUM($V121:AC121)),IF(SUM($P121*$U121/12,$V121:AC121)>$P121,$P121-SUM($V121:AC121),$P121*$U121/12),0) -> 0.00 | AE121: =IF(AND(AE$16*1>=$R121,AE$16*1<=$D$8,$R121<$D$8,$P121>SUM($V121:AD121)),IF(SUM($P121*$U121/12,$V121:AD121)>$P121,$P121-SUM($V121:AD121),$P121*$U121/12),0) -> 0.00 | AF121: =IF(AND(AF$16*1>=$R121,AF$16*1<=$D$8,$R121<$D$8,$P121>SUM($V121:AE121)),IF(SUM($P121*$U121/12,$V121:AE121)>$P121,$P121-SUM($V121:AE121),$P121*$U121/12),0) -> 0.00 | AG121: =IF(AND(AG$16*1>=$R121,AG$16*1<=$D$8,$R121<$D$8,$P121>SUM($V121:AF121)),IF(SUM($P121*$U121/12,$V121:AF121)>$P121,$P121-SUM($V121:AF121),$P121*$U121/12),0) -> 0.00 | AH121: =IF(AND(AH$16*1>=$R121,AH$16*1<=$D$8,$R121<$D$8,$P121>SUM($V121:AG121)),IF(SUM($P121*$U121/12,$V121:AG121)>$P121,$P121-SUM($V121:AG121),$P121*$U121/12),0) -> 0.00 | AI121: 0.00 | AL121: 489.92 | AN121: 489.92
C122: 106 | D122: 336111 | E122: CPU PROCESADOR INTEL, 2 GBH | I122: 1254.2 | N122: 1254.2 | P122: 1,254.20 | Q122: 2013-10-02 | R122: 2013-11-01 | U122: 25% | V122: 1,254.20 | W122: =IF(AND(W$16*1>=$R122,W$16*1<=$D$8,$R122<$D$8,$P122>SUM($V122:V122)),IF(SUM($P122*$U122/12,$V122:V122)>$P122,$P122-SUM($V122:V122),$P122*$U122/12),0) -> 0.00 | X122: =IF(AND(X$16*1>=$R122,X$16*1<=$D$8,$R122<$D$8,$P122>SUM($V122:W122)),IF(SUM($P122*$U122/12,$V122:W122)>$P122,$P122-SUM($V122:W122),$P122*$U122/12),0) -> 0.00 | Y122: =IF(AND(Y$16*1>=$R122,Y$16*1<=$D$8,$R122<$D$8,$P122>SUM($V122:X122)),IF(SUM($P122*$U122/12,$V122:X122)>$P122,$P122-SUM($V122:X122),$P122*$U122/12),0) -> 0.00 | Z122: =IF(AND(Z$16*1>=$R122,Z$16*1<=$D$8,$R122<$D$8,$P122>SUM($V122:Y122)),IF(SUM($P122*$U122/12,$V122:Y122)>$P122,$P122-SUM($V122:Y122),$P122*$U122/12),0) -> 0.00 | AA122: =IF(AND(AA$16*1>=$R122,AA$16*1<=$D$8,$R122<$D$8,$P122>SUM($V122:Z122)),IF(SUM($P122*$U122/12,$V122:Z122)>$P122,$P122-SUM($V122:Z122),$P122*$U122/12),0) -> 0.00 | AB122: =IF(AND(AB$16*1>=$R122,AB$16*1<=$D$8,$R122<$D$8,$P122>SUM($V122:AA122)),IF(SUM($P122*$U122/12,$V122:AA122)>$P122,$P122-SUM($V122:AA122),$P122*$U122/12),0) -> 0.00 | AC122: =IF(AND(AC$16*1>=$R122,AC$16*1<=$D$8,$R122<$D$8,$P122>SUM($V122:AB122)),IF(SUM($P122*$U122/12,$V122:AB122)>$P122,$P122-SUM($V122:AB122),$P122*$U122/12),0) -> 0.00 | AD122: =IF(AND(AD$16*1>=$R122,AD$16*1<=$D$8,$R122<$D$8,$P122>SUM($V122:AC122)),IF(SUM($P122*$U122/12,$V122:AC122)>$P122,$P122-SUM($V122:AC122),$P122*$U122/12),0) -> 0.00 | AE122: =IF(AND(AE$16*1>=$R122,AE$16*1<=$D$8,$R122<$D$8,$P122>SUM($V122:AD122)),IF(SUM($P122*$U122/12,$V122:AD122)>$P122,$P122-SUM($V122:AD122),$P122*$U122/12),0) -> 0.00 | AF122: =IF(AND(AF$16*1>=$R122,AF$16*1<=$D$8,$R122<$D$8,$P122>SUM($V122:AE122)),IF(SUM($P122*$U122/12,$V122:AE122)>$P122,$P122-SUM($V122:AE122),$P122*$U122/12),0) -> 0.00 | AG122: =IF(AND(AG$16*1>=$R122,AG$16*1<=$D$8,$R122<$D$8,$P122>SUM($V122:AF122)),IF(SUM($P122*$U122/12,$V122:AF122)>$P122,$P122-SUM($V122:AF122),$P122*$U122/12),0) -> 0.00 | AH122: =IF(AND(AH$16*1>=$R122,AH$16*1<=$D$8,$R122<$D$8,$P122>SUM($V122:AG122)),IF(SUM($P122*$U122/12,$V122:AG122)>$P122,$P122-SUM($V122:AG122),$P122*$U122/12),0) -> 0.00 | AI122: 0.00 | AL122: 1,254.20 | AN122: 1,254.20
C123: 107 | D123: 336111 | E123: CPU INTEL CORE (DR) | I123: 1186.73 | N123: 1186.73 | P123: 1,186.73 | Q123: 2015-02-11 | R123: 2015-03-01 | U123: 25% | V123: 1,137.28 | W123: =IF(AND(W$16*1>=$R123,W$16*1<=$D$8,$R123<$D$8,$P123>SUM($V123:V123)),IF(SUM($P123*$U123/12,$V123:V123)>$P123,$P123-SUM($V123:V123),$P123*$U123/12),0) -> 24.72 | X123: =IF(AND(X$16*1>=$R123,X$16*1<=$D$8,$R123<$D$8,$P123>SUM($V123:W123)),IF(SUM($P123*$U123/12,$V123:W123)>$P123,$P123-SUM($V123:W123),$P123*$U123/12),0) -> 24.72 | Y123: =IF(AND(Y$16*1>=$R123,Y$16*1<=$D$8,$R123<$D$8,$P123>SUM($V123:X123)),IF(SUM($P123*$U123/12,$V123:X123)>$P123,$P123-SUM($V123:X123),$P123*$U123/12),0) -> 0.00 | Z123: =IF(AND(Z$16*1>=$R123,Z$16*1<=$D$8,$R123<$D$8,$P123>SUM($V123:Y123)),IF(SUM($P123*$U123/12,$V123:Y123)>$P123,$P123-SUM($V123:Y123),$P123*$U123/12),0) -> 0.00 | AA123: =IF(AND(AA$16*1>=$R123,AA$16*1<=$D$8,$R123<$D$8,$P123>SUM($V123:Z123)),IF(SUM($P123*$U123/12,$V123:Z123)>$P123,$P123-SUM($V123:Z123),$P123*$U123/12),0) -> 0.00 | AB123: =IF(AND(AB$16*1>=$R123,AB$16*1<=$D$8,$R123<$D$8,$P123>SUM($V123:AA123)),IF(SUM($P123*$U123/12,$V123:AA123)>$P123,$P123-SUM($V123:AA123),$P123*$U123/12),0) -> 0.00 | AC123: =IF(AND(AC$16*1>=$R123,AC$16*1<=$D$8,$R123<$D$8,$P123>SUM($V123:AB123)),IF(SUM($P123*$U123/12,$V123:AB123)>$P123,$P123-SUM($V123:AB123),$P123*$U123/12),0) -> 0.00 | AD123: =IF(AND(AD$16*1>=$R123,AD$16*1<=$D$8,$R123<$D$8,$P123>SUM($V123:AC123)),IF(SUM($P123*$U123/12,$V123:AC123)>$P123,$P123-SUM($V123:AC123),$P123*$U123/12),0) -> 0.00 | AE123: =IF(AND(AE$16*1>=$R123,AE$16*1<=$D$8,$R123<$D$8,$P123>SUM($V123:AD123)),IF(SUM($P123*$U123/12,$V123:AD123)>$P123,$P123-SUM($V123:AD123),$P123*$U123/12),0) -> 0.00 | AF123: =IF(AND(AF$16*1>=$R123,AF$16*1<=$D$8,$R123<$D$8,$P123>SUM($V123:AE123)),IF(SUM($P123*$U123/12,$V123:AE123)>$P123,$P123-SUM($V123:AE123),$P123*$U123/12),0) -> 0.00 | AG123: =IF(AND(AG$16*1>=$R123,AG$16*1<=$D$8,$R123<$D$8,$P123>SUM($V123:AF123)),IF(SUM($P123*$U123/12,$V123:AF123)>$P123,$P123-SUM($V123:AF123),$P123*$U123/12),0) -> 0.00 | AH123: =IF(AND(AH$16*1>=$R123,AH$16*1<=$D$8,$R123<$D$8,$P123>SUM($V123:AG123)),IF(SUM($P123*$U123/12,$V123:AG123)>$P123,$P123-SUM($V123:AG123),$P123*$U123/12),0) -> 0.00 | AI123: 49.45 | AL123: 1,186.73 | AN123: 1,186.73
C124: 108 | D124: 336111 | E124: CPU INTEL CORE (CF) | I124: 1268.89 | N124: 1268.89 | P124: 1,268.89 | Q124: 2015-06-06 | R124: 2015-07-01 | U124: 25% | V124: 1,110.27 | W124: =IF(AND(W$16*1>=$R124,W$16*1<=$D$8,$R124<$D$8,$P124>SUM($V124:V124)),IF(SUM($P124*$U124/12,$V124:V124)>$P124,$P124-SUM($V124:V124),$P124*$U124/12),0) -> 26.44 | X124: =IF(AND(X$16*1>=$R124,X$16*1<=$D$8,$R124<$D$8,$P124>SUM($V124:W124)),IF(SUM($P124*$U124/12,$V124:W124)>$P124,$P124-SUM($V124:W124),$P124*$U124/12),0) -> 26.44 | Y124: =IF(AND(Y$16*1>=$R124,Y$16*1<=$D$8,$R124<$D$8,$P124>SUM($V124:X124)),IF(SUM($P124*$U124/12,$V124:X124)>$P124,$P124-SUM($V124:X124),$P124*$U124/12),0) -> 26.44 | Z124: =IF(AND(Z$16*1>=$R124,Z$16*1<=$D$8,$R124<$D$8,$P124>SUM($V124:Y124)),IF(SUM($P124*$U124/12,$V124:Y124)>$P124,$P124-SUM($V124:Y124),$P124*$U124/12),0) -> 26.44 | AA124: =IF(AND(AA$16*1>=$R124,AA$16*1<=$D$8,$R124<$D$8,$P124>SUM($V124:Z124)),IF(SUM($P124*$U124/12,$V124:Z124)>$P124,$P124-SUM($V124:Z124),$P124*$U124/12),0) -> 26.44 | AB124: =IF(AND(AB$16*1>=$R124,AB$16*1<=$D$8,$R124<$D$8,$P124>SUM($V124:AA124)),IF(SUM($P124*$U124/12,$V124:AA124)>$P124,$P124-SUM($V124:AA124),$P124*$U124/12),0) -> 0.00 | AC124: =IF(AND(AC$16*1>=$R124,AC$16*1<=$D$8,$R124<$D$8,$P124>SUM($V124:AB124)),IF(SUM($P124*$U124/12,$V124:AB124)>$P124,$P124-SUM($V124:AB124),$P124*$U124/12),0) -> 0.00 | AD124: =IF(AND(AD$16*1>=$R124,AD$16*1<=$D$8,$R124<$D$8,$P124>SUM($V124:AC124)),IF(SUM($P124*$U124/12,$V124:AC124)>$P124,$P124-SUM($V124:AC124),$P124*$U124/12),0) -> 0.00 | AE124: =IF(AND(AE$16*1>=$R124,AE$16*1<=$D$8,$R124<$D$8,$P124>SUM($V124:AD124)),IF(SUM($P124*$U124/12,$V124:AD124)>$P124,$P124-SUM($V124:AD124),$P124*$U124/12),0) -> 0.00 | AF124: =IF(AND(AF$16*1>=$R124,AF$16*1<=$D$8,$R124<$D$8,$P124>SUM($V124:AE124)),IF(SUM($P124*$U124/12,$V124:AE124)>$P124,$P124-SUM($V124:AE124),$P124*$U124/12),0) -> 0.00 | AG124: =IF(AND(AG$16*1>=$R124,AG$16*1<=$D$8,$R124<$D$8,$P124>SUM($V124:AF124)),IF(SUM($P124*$U124/12,$V124:AF124)>$P124,$P124-SUM($V124:AF124),$P124*$U124/12),0) -> 0.00 | AH124: =IF(AND(AH$16*1>=$R124,AH$16*1<=$D$8,$R124<$D$8,$P124>SUM($V124:AG124)),IF(SUM($P124*$U124/12,$V124:AG124)>$P124,$P124-SUM($V124:AG124),$P124*$U124/12),0) -> 0.00 | AI124: 132.18 | AL124: 1,189.58 | AN124: 1,189.58
C125: 109 | D125: 336111 | E125: CPU INTEL CORE (MCH) | I125: 1268.86 | N125: 1268.86 | P125: 1,268.86 | Q125: 2015-06-06 | R125: 2015-07-01 | U125: 25% | V125: 1,110.27 | W125: =IF(AND(W$16*1>=$R125,W$16*1<=$D$8,$R125<$D$8,$P125>SUM($V125:V125)),IF(SUM($P125*$U125/12,$V125:V125)>$P125,$P125-SUM($V125:V125),$P125*$U125/12),0) -> 26.43 | X125: =IF(AND(X$16*1>=$R125,X$16*1<=$D$8,$R125<$D$8,$P125>SUM($V125:W125)),IF(SUM($P125*$U125/12,$V125:W125)>$P125,$P125-SUM($V125:W125),$P125*$U125/12),0) -> 26.43 | Y125: =IF(AND(Y$16*1>=$R125,Y$16*1<=$D$8,$R125<$D$8,$P125>SUM($V125:X125)),IF(SUM($P125*$U125/12,$V125:X125)>$P125,$P125-SUM($V125:X125),$P125*$U125/12),0) -> 26.43 | Z125: =IF(AND(Z$16*1>=$R125,Z$16*1<=$D$8,$R125<$D$8,$P125>SUM($V125:Y125)),IF(SUM($P125*$U125/12,$V125:Y125)>$P125,$P125-SUM($V125:Y125),$P125*$U125/12),0) -> 26.43 | AA125: =IF(AND(AA$16*1>=$R125,AA$16*1<=$D$8,$R125<$D$8,$P125>SUM($V125:Z125)),IF(SUM($P125*$U125/12,$V125:Z125)>$P125,$P125-SUM($V125:Z125),$P125*$U125/12),0) -> 26.43 | AB125: =IF(AND(AB$16*1>=$R125,AB$16*1<=$D$8,$R125<$D$8,$P125>SUM($V125:AA125)),IF(SUM($P125*$U125/12,$V125:AA125)>$P125,$P125-SUM($V125:AA125),$P125*$U125/12),0) -> 0.00 | AC125: =IF(AND(AC$16*1>=$R125,AC$16*1<=$D$8,$R125<$D$8,$P125>SUM($V125:AB125)),IF(SUM($P125*$U125/12,$V125:AB125)>$P125,$P125-SUM($V125:AB125),$P125*$U125/12),0) -> 0.00 | AD125: =IF(AND(AD$16*1>=$R125,AD$16*1<=$D$8,$R125<$D$8,$P125>SUM($V125:AC125)),IF(SUM($P125*$U125/12,$V125:AC125)>$P125,$P125-SUM($V125:AC125),$P125*$U125/12),0) -> 0.00 | AE125: =IF(AND(AE$16*1>=$R125,AE$16*1<=$D$8,$R125<$D$8,$P125>SUM($V125:AD125)),IF(SUM($P125*$U125/12,$V125:AD125)>$P125,$P125-SUM($V125:AD125),$P125*$U125/12),0) -> 0.00 | AF125: =IF(AND(AF$16*1>=$R125,AF$16*1<=$D$8,$R125<$D$8,$P125>SUM($V125:AE125)),IF(SUM($P125*$U125/12,$V125:AE125)>$P125,$P125-SUM($V125:AE125),$P125*$U125/12),0) -> 0.00 | AG125: =IF(AND(AG$16*1>=$R125,AG$16*1<=$D$8,$R125<$D$8,$P125>SUM($V125:AF125)),IF(SUM($P125*$U125/12,$V125:AF125)>$P125,$P125-SUM($V125:AF125),$P125*$U125/12),0) -> 0.00 | AH125: =IF(AND(AH$16*1>=$R125,AH$16*1<=$D$8,$R125<$D$8,$P125>SUM($V125:AG125)),IF(SUM($P125*$U125/12,$V125:AG125)>$P125,$P125-SUM($V125:AG125),$P125*$U125/12),0) -> 0.00 | AI125: 132.17 | AL125: 1,189.57 | AN125: 1,189.57
C126: 110 | D126: 336111 | E126: MONITOR HYNDAI (JM) | I126: 411.14 | N126: 411.14 | P126: 411.14 | Q126: 2015-08-03 | R126: 2015-09-01 | U126: 25% | V126: 342.63 | W126: =IF(AND(W$16*1>=$R126,W$16*1<=$D$8,$R126<$D$8,$P126>SUM($V126:V126)),IF(SUM($P126*$U126/12,$V126:V126)>$P126,$P126-SUM($V126:V126),$P126*$U126/12),0) -> 8.57 | X126: =IF(AND(X$16*1>=$R126,X$16*1<=$D$8,$R126<$D$8,$P126>SUM($V126:W126)),IF(SUM($P126*$U126/12,$V126:W126)>$P126,$P126-SUM($V126:W126),$P126*$U126/12),0) -> 8.57 | Y126: =IF(AND(Y$16*1>=$R126,Y$16*1<=$D$8,$R126<$D$8,$P126>SUM($V126:X126)),IF(SUM($P126*$U126/12,$V126:X126)>$P126,$P126-SUM($V126:X126),$P126*$U126/12),0) -> 8.57 | Z126: =IF(AND(Z$16*1>=$R126,Z$16*1<=$D$8,$R126<$D$8,$P126>SUM($V126:Y126)),IF(SUM($P126*$U126/12,$V126:Y126)>$P126,$P126-SUM($V126:Y126),$P126*$U126/12),0) -> 8.57 | AA126: =IF(AND(AA$16*1>=$R126,AA$16*1<=$D$8,$R126<$D$8,$P126>SUM($V126:Z126)),IF(SUM($P126*$U126/12,$V126:Z126)>$P126,$P126-SUM($V126:Z126),$P126*$U126/12),0) -> 8.57 | AB126: =IF(AND(AB$16*1>=$R126,AB$16*1<=$D$8,$R126<$D$8,$P126>SUM($V126:AA126)),IF(SUM($P126*$U126/12,$V126:AA126)>$P126,$P126-SUM($V126:AA126),$P126*$U126/12),0) -> 0.00 | AC126: =IF(AND(AC$16*1>=$R126,AC$16*1<=$D$8,$R126<$D$8,$P126>SUM($V126:AB126)),IF(SUM($P126*$U126/12,$V126:AB126)>$P126,$P126-SUM($V126:AB126),$P126*$U126/12),0) -> 0.00 | AD126: =IF(AND(AD$16*1>=$R126,AD$16*1<=$D$8,$R126<$D$8,$P126>SUM($V126:AC126)),IF(SUM($P126*$U126/12,$V126:AC126)>$P126,$P126-SUM($V126:AC126),$P126*$U126/12),0) -> 0.00 | AE126: =IF(AND(AE$16*1>=$R126,AE$16*1<=$D$8,$R126<$D$8,$P126>SUM($V126:AD126)),IF(SUM($P126*$U126/12,$V126:AD126)>$P126,$P126-SUM($V126:AD126),$P126*$U126/12),0) -> 0.00 | AF126: =IF(AND(AF$16*1>=$R126,AF$16*1<=$D$8,$R126<$D$8,$P126>SUM($V126:AE126)),IF(SUM($P126*$U126/12,$V126:AE126)>$P126,$P126-SUM($V126:AE126),$P126*$U126/12),0) -> 0.00 | AG126: =IF(AND(AG$16*1>=$R126,AG$16*1<=$D$8,$R126<$D$8,$P126>SUM($V126:AF126)),IF(SUM($P126*$U126/12,$V126:AF126)>$P126,$P126-SUM($V126:AF126),$P126*$U126/12),0) -> 0.00 | AH126: =IF(AND(AH$16*1>=$R126,AH$16*1<=$D$8,$R126<$D$8,$P126>SUM($V126:AG126)),IF(SUM($P126*$U126/12,$V126:AG126)>$P126,$P126-SUM($V126:AG126),$P126*$U126/12),0) -> 0.00 | AI126: 42.83 | AL126: 368.33 | AN126: 368.33
C127: 111 | D127: 336111 | E127: LAPTOP TOSHIBA (CF) | I127: 2683.89 | N127: 2683.89 | P127: 2,683.89 | Q127: 2015-11-16 | R127: 2015-12-01 | U127: 25% | V127: 2,068.82 | W127: =IF(AND(W$16*1>=$R127,W$16*1<=$D$8,$R127<$D$8,$P127>SUM($V127:V127)),IF(SUM($P127*$U127/12,$V127:V127)>$P127,$P127-SUM($V127:V127),$P127*$U127/12),0) -> 55.91 | X127: =IF(AND(X$16*1>=$R127,X$16*1<=$D$8,$R127<$D$8,$P127>SUM($V127:W127)),IF(SUM($P127*$U127/12,$V127:W127)>$P127,$P127-SUM($V127:W127),$P127*$U127/12),0) -> 55.91 | Y127: =IF(AND(Y$16*1>=$R127,Y$16*1<=$D$8,$R127<$D$8,$P127>SUM($V127:X127)),IF(SUM($P127*$U127/12,$V127:X127)>$P127,$P127-SUM($V127:X127),$P127*$U127/12),0) -> 55.91 | Z127: =IF(AND(Z$16*1>=$R127,Z$16*1<=$D$8,$R127<$D$8,$P127>SUM($V127:Y127)),IF(SUM($P127*$U127/12,$V127:Y127)>$P127,$P127-SUM($V127:Y127),$P127*$U127/12),0) -> 55.91 | AA127: =IF(AND(AA$16*1>=$R127,AA$16*1<=$D$8,$R127<$D$8,$P127>SUM($V127:Z127)),IF(SUM($P127*$U127/12,$V127:Z127)>$P127,$P127-SUM($V127:Z127),$P127*$U127/12),0) -> 55.91 | AB127: =IF(AND(AB$16*1>=$R127,AB$16*1<=$D$8,$R127<$D$8,$P127>SUM($V127:AA127)),IF(SUM($P127*$U127/12,$V127:AA127)>$P127,$P127-SUM($V127:AA127),$P127*$U127/12),0) -> 0.00 | AC127: =IF(AND(AC$16*1>=$R127,AC$16*1<=$D$8,$R127<$D$8,$P127>SUM($V127:AB127)),IF(SUM($P127*$U127/12,$V127:AB127)>$P127,$P127-SUM($V127:AB127),$P127*$U127/12),0) -> 0.00 | AD127: =IF(AND(AD$16*1>=$R127,AD$16*1<=$D$8,$R127<$D$8,$P127>SUM($V127:AC127)),IF(SUM($P127*$U127/12,$V127:AC127)>$P127,$P127-SUM($V127:AC127),$P127*$U127/12),0) -> 0.00 | AE127: =IF(AND(AE$16*1>=$R127,AE$16*1<=$D$8,$R127<$D$8,$P127>SUM($V127:AD127)),IF(SUM($P127*$U127/12,$V127:AD127)>$P127,$P127-SUM($V127:AD127),$P127*$U127/12),0) -> 0.00 | AF127: =IF(AND(AF$16*1>=$R127,AF$16*1<=$D$8,$R127<$D$8,$P127>SUM($V127:AE127)),IF(SUM($P127*$U127/12,$V127:AE127)>$P127,$P127-SUM($V127:AE127),$P127*$U127/12),0) -> 0.00 | AG127: =IF(AND(AG$16*1>=$R127,AG$16*1<=$D$8,$R127<$D$8,$P127>SUM($V127:AF127)),IF(SUM($P127*$U127/12,$V127:AF127)>$P127,$P127-SUM($V127:AF127),$P127*$U127/12),0) -> 0.00 | AH127: =IF(AND(AH$16*1>=$R127,AH$16*1<=$D$8,$R127<$D$8,$P127>SUM($V127:AG127)),IF(SUM($P127*$U127/12,$V127:AG127)>$P127,$P127-SUM($V127:AG127),$P127*$U127/12),0) -> 0.00 | AI127: 279.57 | AL127: 2,236.56 | AN127: 2,236.56
C128: 112 | D128: 336111 | E128: 2 DISCO DURO EXT.(SERVIDOR) | I128: 987.99 | N128: 987.99 | P128: 987.99 | Q128: 2015-11-18 | R128: 2015-12-01 | U128: 25% | V128: 761.58 | W128: =IF(AND(W$16*1>=$R128,W$16*1<=$D$8,$R128<$D$8,$P128>SUM($V128:V128)),IF(SUM($P128*$U128/12,$V128:V128)>$P128,$P128-SUM($V128:V128),$P128*$U128/12),0) -> 20.58 | X128: =IF(AND(X$16*1>=$R128,X$16*1<=$D$8,$R128<$D$8,$P128>SUM($V128:W128)),IF(SUM($P128*$U128/12,$V128:W128)>$P128,$P128-SUM($V128:W128),$P128*$U128/12),0) -> 20.58 | Y128: =IF(AND(Y$16*1>=$R128,Y$16*1<=$D$8,$R128<$D$8,$P128>SUM($V128:X128)),IF(SUM($P128*$U128/12,$V128:X128)>$P128,$P128-SUM($V128:X128),$P128*$U128/12),0) -> 20.58 | Z128: =IF(AND(Z$16*1>=$R128,Z$16*1<=$D$8,$R128<$D$8,$P128>SUM($V128:Y128)),IF(SUM($P128*$U128/12,$V128:Y128)>$P128,$P128-SUM($V128:Y128),$P128*$U128/12),0) -> 20.58 | AA128: =IF(AND(AA$16*1>=$R128,AA$16*1<=$D$8,$R128<$D$8,$P128>SUM($V128:Z128)),IF(SUM($P128*$U128/12,$V128:Z128)>$P128,$P128-SUM($V128:Z128),$P128*$U128/12),0) -> 20.58 | AB128: =IF(AND(AB$16*1>=$R128,AB$16*1<=$D$8,$R128<$D$8,$P128>SUM($V128:AA128)),IF(SUM($P128*$U128/12,$V128:AA128)>$P128,$P128-SUM($V128:AA128),$P128*$U128/12),0) -> 0.00 | AC128: =IF(AND(AC$16*1>=$R128,AC$16*1<=$D$8,$R128<$D$8,$P128>SUM($V128:AB128)),IF(SUM($P128*$U128/12,$V128:AB128)>$P128,$P128-SUM($V128:AB128),$P128*$U128/12),0) -> 0.00 | AD128: =IF(AND(AD$16*1>=$R128,AD$16*1<=$D$8,$R128<$D$8,$P128>SUM($V128:AC128)),IF(SUM($P128*$U128/12,$V128:AC128)>$P128,$P128-SUM($V128:AC128),$P128*$U128/12),0) -> 0.00 | AE128: =IF(AND(AE$16*1>=$R128,AE$16*1<=$D$8,$R128<$D$8,$P128>SUM($V128:AD128)),IF(SUM($P128*$U128/12,$V128:AD128)>$P128,$P128-SUM($V128:AD128),$P128*$U128/12),0) -> 0.00 | AF128: =IF(AND(AF$16*1>=$R128,AF$16*1<=$D$8,$R128<$D$8,$P128>SUM($V128:AE128)),IF(SUM($P128*$U128/12,$V128:AE128)>$P128,$P128-SUM($V128:AE128),$P128*$U128/12),0) -> 0.00 | AG128: =IF(AND(AG$16*1>=$R128,AG$16*1<=$D$8,$R128<$D$8,$P128>SUM($V128:AF128)),IF(SUM($P128*$U128/12,$V128:AF128)>$P128,$P128-SUM($V128:AF128),$P128*$U128/12),0) -> 0.00 | AH128: =IF(AND(AH$16*1>=$R128,AH$16*1<=$D$8,$R128<$D$8,$P128>SUM($V128:AG128)),IF(SUM($P128*$U128/12,$V128:AG128)>$P128,$P128-SUM($V128:AG128),$P128*$U128/12),0) -> 0.00 | AI128: 102.92 | AL128: 823.33 | AN128: 823.33
C129: 113 | D129: 336111 | E129: CPU Servidor HP | I129: 2681.39 | N129: 2681.39 | P129: 2,681.39 | Q129: 2016-05-07 | R129: 2016-06-01 | U129: 25% | V129: 1,731.74 | W129: =IF(AND(W$16*1>=$R129,W$16*1<=$D$8,$R129<$D$8,$P129>SUM($V129:V129)),IF(SUM($P129*$U129/12,$V129:V129)>$P129,$P129-SUM($V129:V129),$P129*$U129/12),0) -> 55.86 | X129: =IF(AND(X$16*1>=$R129,X$16*1<=$D$8,$R129<$D$8,$P129>SUM($V129:W129)),IF(SUM($P129*$U129/12,$V129:W129)>$P129,$P129-SUM($V129:W129),$P129*$U129/12),0) -> 55.86 | Y129: =IF(AND(Y$16*1>=$R129,Y$16*1<=$D$8,$R129<$D$8,$P129>SUM($V129:X129)),IF(SUM($P129*$U129/12,$V129:X129)>$P129,$P129-SUM($V129:X129),$P129*$U129/12),0) -> 55.86 | Z129: =IF(AND(Z$16*1>=$R129,Z$16*1<=$D$8,$R129<$D$8,$P129>SUM($V129:Y129)),IF(SUM($P129*$U129/12,$V129:Y129)>$P129,$P129-SUM($V129:Y129),$P129*$U129/12),0) -> 55.86 | AA129: =IF(AND(AA$16*1>=$R129,AA$16*1<=$D$8,$R129<$D$8,$P129>SUM($V129:Z129)),IF(SUM($P129*$U129/12,$V129:Z129)>$P129,$P129-SUM($V129:Z129),$P129*$U129/12),0) -> 55.86 | AB129: =IF(AND(AB$16*1>=$R129,AB$16*1<=$D$8,$R129<$D$8,$P129>SUM($V129:AA129)),IF(SUM($P129*$U129/12,$V129:AA129)>$P129,$P129-SUM($V129:AA129),$P129*$U129/12),0) -> 0.00 | AC129: =IF(AND(AC$16*1>=$R129,AC$16*1<=$D$8,$R129<$D$8,$P129>SUM($V129:AB129)),IF(SUM($P129*$U129/12,$V129:AB129)>$P129,$P129-SUM($V129:AB129),$P129*$U129/12),0) -> 0.00 | AD129: =IF(AND(AD$16*1>=$R129,AD$16*1<=$D$8,$R129<$D$8,$P129>SUM($V129:AC129)),IF(SUM($P129*$U129/12,$V129:AC129)>$P129,$P129-SUM($V129:AC129),$P129*$U129/12),0) -> 0.00 | AE129: =IF(AND(AE$16*1>=$R129,AE$16*1<=$D$8,$R129<$D$8,$P129>SUM($V129:AD129)),IF(SUM($P129*$U129/12,$V129:AD129)>$P129,$P129-SUM($V129:AD129),$P129*$U129/12),0) -> 0.00 | AF129: =IF(AND(AF$16*1>=$R129,AF$16*1<=$D$8,$R129<$D$8,$P129>SUM($V129:AE129)),IF(SUM($P129*$U129/12,$V129:AE129)>$P129,$P129-SUM($V129:AE129),$P129*$U129/12),0) -> 0.00 | AG129: =IF(AND(AG$16*1>=$R129,AG$16*1<=$D$8,$R129<$D$8,$P129>SUM($V129:AF129)),IF(SUM($P129*$U129/12,$V129:AF129)>$P129,$P129-SUM($V129:AF129),$P129*$U129/12),0) -> 0.00 | AH129: =IF(AND(AH$16*1>=$R129,AH$16*1<=$D$8,$R129<$D$8,$P129>SUM($V129:AG129)),IF(SUM($P129*$U129/12,$V129:AG129)>$P129,$P129-SUM($V129:AG129),$P129*$U129/12),0) -> 0.00 | AI129: 279.31 | AL129: 1,899.33 | AN129: 1,899.33
C130: 114 | D130: 336111 | E130: MONITOR LG 20" (OFIC.MARCAS) | I130: 363.56 | N130: 363.56 | P130: 363.56 | Q130: 2017-01-08 | R130: 2017-02-01 | U130: 25% | V130: 174.21 | W130: =IF(AND(W$16*1>=$R130,W$16*1<=$D$8,$R130<$D$8,$P130>SUM($V130:V130)),IF(SUM($P130*$U130/12,$V130:V130)>$P130,$P130-SUM($V130:V130),$P130*$U130/12),0) -> 7.57 | X130: =IF(AND(X$16*1>=$R130,X$16*1<=$D$8,$R130<$D$8,$P130>SUM($V130:W130)),IF(SUM($P130*$U130/12,$V130:W130)>$P130,$P130-SUM($V130:W130),$P130*$U130/12),0) -> 7.57 | Y130: =IF(AND(Y$16*1>=$R130,Y$16*1<=$D$8,$R130<$D$8,$P130>SUM($V130:X130)),IF(SUM($P130*$U130/12,$V130:X130)>$P130,$P130-SUM($V130:X130),$P130*$U130/12),0) -> 7.57 | Z130: =IF(AND(Z$16*1>=$R130,Z$16*1<=$D$8,$R130<$D$8,$P130>SUM($V130:Y130)),IF(SUM($P130*$U130/12,$V130:Y130)>$P130,$P130-SUM($V130:Y130),$P130*$U130/12),0) -> 7.57 | AA130: =IF(AND(AA$16*1>=$R130,AA$16*1<=$D$8,$R130<$D$8,$P130>SUM($V130:Z130)),IF(SUM($P130*$U130/12,$V130:Z130)>$P130,$P130-SUM($V130:Z130),$P130*$U130/12),0) -> 7.57 | AB130: =IF(AND(AB$16*1>=$R130,AB$16*1<=$D$8,$R130<$D$8,$P130>SUM($V130:AA130)),IF(SUM($P130*$U130/12,$V130:AA130)>$P130,$P130-SUM($V130:AA130),$P130*$U130/12),0) -> 0.00 | AC130: =IF(AND(AC$16*1>=$R130,AC$16*1<=$D$8,$R130<$D$8,$P130>SUM($V130:AB130)),IF(SUM($P130*$U130/12,$V130:AB130)>$P130,$P130-SUM($V130:AB130),$P130*$U130/12),0) -> 0.00 | AD130: =IF(AND(AD$16*1>=$R130,AD$16*1<=$D$8,$R130<$D$8,$P130>SUM($V130:AC130)),IF(SUM($P130*$U130/12,$V130:AC130)>$P130,$P130-SUM($V130:AC130),$P130*$U130/12),0) -> 0.00 | AE130: =IF(AND(AE$16*1>=$R130,AE$16*1<=$D$8,$R130<$D$8,$P130>SUM($V130:AD130)),IF(SUM($P130*$U130/12,$V130:AD130)>$P130,$P130-SUM($V130:AD130),$P130*$U130/12),0) -> 0.00 | AF130: =IF(AND(AF$16*1>=$R130,AF$16*1<=$D$8,$R130<$D$8,$P130>SUM($V130:AE130)),IF(SUM($P130*$U130/12,$V130:AE130)>$P130,$P130-SUM($V130:AE130),$P130*$U130/12),0) -> 0.00 | AG130: =IF(AND(AG$16*1>=$R130,AG$16*1<=$D$8,$R130<$D$8,$P130>SUM($V130:AF130)),IF(SUM($P130*$U130/12,$V130:AF130)>$P130,$P130-SUM($V130:AF130),$P130*$U130/12),0) -> 0.00 | AH130: =IF(AND(AH$16*1>=$R130,AH$16*1<=$D$8,$R130<$D$8,$P130>SUM($V130:AG130)),IF(SUM($P130*$U130/12,$V130:AG130)>$P130,$P130-SUM($V130:AG130),$P130*$U130/12),0) -> 0.00 | AI130: 37.87 | AL130: 196.93 | AN130: 196.93
C131: 115 | D131: 336111 | E131: MONITOR SAMSUNG LED 20" S200300 (SG) | I131: 362.71 | N131: 362.71 | P131: 362.71 | Q131: 2017-01-31 | R131: 2017-02-01 | U131: 25% | V131: 166.24 | W131: =IF(AND(W$16*1>=$R131,W$16*1<=$D$8,$R131<$D$8,$P131>SUM($V131:V131)),IF(SUM($P131*$U131/12,$V131:V131)>$P131,$P131-SUM($V131:V131),$P131*$U131/12),0) -> 7.56 | X131: =IF(AND(X$16*1>=$R131,X$16*1<=$D$8,$R131<$D$8,$P131>SUM($V131:W131)),IF(SUM($P131*$U131/12,$V131:W131)>$P131,$P131-SUM($V131:W131),$P131*$U131/12),0) -> 7.56 | Y131: =IF(AND(Y$16*1>=$R131,Y$16*1<=$D$8,$R131<$D$8,$P131>SUM($V131:X131)),IF(SUM($P131*$U131/12,$V131:X131)>$P131,$P131-SUM($V131:X131),$P131*$U131/12),0) -> 7.56 | Z131: =IF(AND(Z$16*1>=$R131,Z$16*1<=$D$8,$R131<$D$8,$P131>SUM($V131:Y131)),IF(SUM($P131*$U131/12,$V131:Y131)>$P131,$P131-SUM($V131:Y131),$P131*$U131/12),0) -> 7.56 | AA131: =IF(AND(AA$16*1>=$R131,AA$16*1<=$D$8,$R131<$D$8,$P131>SUM($V131:Z131)),IF(SUM($P131*$U131/12,$V131:Z131)>$P131,$P131-SUM($V131:Z131),$P131*$U131/12),0) -> 7.56 | AB131: =IF(AND(AB$16*1>=$R131,AB$16*1<=$D$8,$R131<$D$8,$P131>SUM($V131:AA131)),IF(SUM($P131*$U131/12,$V131:AA131)>$P131,$P131-SUM($V131:AA131),$P131*$U131/12),0) -> 0.00 | AC131: =IF(AND(AC$16*1>=$R131,AC$16*1<=$D$8,$R131<$D$8,$P131>SUM($V131:AB131)),IF(SUM($P131*$U131/12,$V131:AB131)>$P131,$P131-SUM($V131:AB131),$P131*$U131/12),0) -> 0.00 | AD131: =IF(AND(AD$16*1>=$R131,AD$16*1<=$D$8,$R131<$D$8,$P131>SUM($V131:AC131)),IF(SUM($P131*$U131/12,$V131:AC131)>$P131,$P131-SUM($V131:AC131),$P131*$U131/12),0) -> 0.00 | AE131: =IF(AND(AE$16*1>=$R131,AE$16*1<=$D$8,$R131<$D$8,$P131>SUM($V131:AD131)),IF(SUM($P131*$U131/12,$V131:AD131)>$P131,$P131-SUM($V131:AD131),$P131*$U131/12),0) -> 0.00 | AF131: =IF(AND(AF$16*1>=$R131,AF$16*1<=$D$8,$R131<$D$8,$P131>SUM($V131:AE131)),IF(SUM($P131*$U131/12,$V131:AE131)>$P131,$P131-SUM($V131:AE131),$P131*$U131/12),0) -> 0.00 | AG131: =IF(AND(AG$16*1>=$R131,AG$16*1<=$D$8,$R131<$D$8,$P131>SUM($V131:AF131)),IF(SUM($P131*$U131/12,$V131:AF131)>$P131,$P131-SUM($V131:AF131),$P131*$U131/12),0) -> 0.00 | AH131: =IF(AND(AH$16*1>=$R131,AH$16*1<=$D$8,$R131<$D$8,$P131>SUM($V131:AG131)),IF(SUM($P131*$U131/12,$V131:AG131)>$P131,$P131-SUM($V131:AG131),$P131*$U131/12),0) -> 0.00 | AI131: 37.78 | AL131: 188.91 | AN131: 188.91
C132: 116 | D132: 336111 | E132: COMPUT.INTEL CORE 4GB(ADM.MN) | I132: 1628.81 | N132: 1628.81 | P132: 1,628.81 | Q132: 2017-07-15 | R132: 2017-08-01 | U132: 25% | V132: 576.87 | W132: =IF(AND(W$16*1>=$R132,W$16*1<=$D$8,$R132<$D$8,$P132>SUM($V132:V132)),IF(SUM($P132*$U132/12,$V132:V132)>$P132,$P132-SUM($V132:V132),$P132*$U132/12),0) -> 33.93 | X132: =IF(AND(X$16*1>=$R132,X$16*1<=$D$8,$R132<$D$8,$P132>SUM($V132:W132)),IF(SUM($P132*$U132/12,$V132:W132)>$P132,$P132-SUM($V132:W132),$P132*$U132/12),0) -> 33.93 | Y132: =IF(AND(Y$16*1>=$R132,Y$16*1<=$D$8,$R132<$D$8,$P132>SUM($V132:X132)),IF(SUM($P132*$U132/12,$V132:X132)>$P132,$P132-SUM($V132:X132),$P132*$U132/12),0) -> 33.93 | Z132: =IF(AND(Z$16*1>=$R132,Z$16*1<=$D$8,$R132<$D$8,$P132>SUM($V132:Y132)),IF(SUM($P132*$U132/12,$V132:Y132)>$P132,$P132-SUM($V132:Y132),$P132*$U132/12),0) -> 33.93 | AA132: =IF(AND(AA$16*1>=$R132,AA$16*1<=$D$8,$R132<$D$8,$P132>SUM($V132:Z132)),IF(SUM($P132*$U132/12,$V132:Z132)>$P132,$P132-SUM($V132:Z132),$P132*$U132/12),0) -> 33.93 | AB132: =IF(AND(AB$16*1>=$R132,AB$16*1<=$D$8,$R132<$D$8,$P132>SUM($V132:AA132)),IF(SUM($P132*$U132/12,$V132:AA132)>$P132,$P132-SUM($V132:AA132),$P132*$U132/12),0) -> 0.00 | AC132: =IF(AND(AC$16*1>=$R132,AC$16*1<=$D$8,$R132<$D$8,$P132>SUM($V132:AB132)),IF(SUM($P132*$U132/12,$V132:AB132)>$P132,$P132-SUM($V132:AB132),$P132*$U132/12),0) -> 0.00 | AD132: =IF(AND(AD$16*1>=$R132,AD$16*1<=$D$8,$R132<$D$8,$P132>SUM($V132:AC132)),IF(SUM($P132*$U132/12,$V132:AC132)>$P132,$P132-SUM($V132:AC132),$P132*$U132/12),0) -> 0.00 | AE132: =IF(AND(AE$16*1>=$R132,AE$16*1<=$D$8,$R132<$D$8,$P132>SUM($V132:AD132)),IF(SUM($P132*$U132/12,$V132:AD132)>$P132,$P132-SUM($V132:AD132),$P132*$U132/12),0) -> 0.00 | AF132: =IF(AND(AF$16*1>=$R132,AF$16*1<=$D$8,$R132<$D$8,$P132>SUM($V132:AE132)),IF(SUM($P132*$U132/12,$V132:AE132)>$P132,$P132-SUM($V132:AE132),$P132*$U132/12),0) -> 0.00 | AG132: =IF(AND(AG$16*1>=$R132,AG$16*1<=$D$8,$R132<$D$8,$P132>SUM($V132:AF132)),IF(SUM($P132*$U132/12,$V132:AF132)>$P132,$P132-SUM($V132:AF132),$P132*$U132/12),0) -> 0.00 | AH132: =IF(AND(AH$16*1>=$R132,AH$16*1<=$D$8,$R132<$D$8,$P132>SUM($V132:AG132)),IF(SUM($P132*$U132/12,$V132:AG132)>$P132,$P132-SUM($V132:AG132),$P132*$U132/12),0) -> 0.00 | AI132: 169.67 | AL132: 678.67 | AN132: 678.67
C133: 117 | D133: 336111 | E133: DISCO DURO HP DISCO DURO HP(1000GB)SERVIDOR | I133: 687.29 | N133: 687.29 | P133: 687.29 | Q133: 2017-10-21 | R133: 2017-11-01 | U133: 25% | V133: 200.46 | W133: =IF(AND(W$16*1>=$R133,W$16*1<=$D$8,$R133<$D$8,$P133>SUM($V133:V133)),IF(SUM($P133*$U133/12,$V133:V133)>$P133,$P133-SUM($V133:V133),$P133*$U133/12),0) -> 14.32 | X133: =IF(AND(X$16*1>=$R133,X$16*1<=$D$8,$R133<$D$8,$P133>SUM($V133:W133)),IF(SUM($P133*$U133/12,$V133:W133)>$P133,$P133-SUM($V133:W133),$P133*$U133/12),0) -> 14.32 | Y133: =IF(AND(Y$16*1>=$R133,Y$16*1<=$D$8,$R133<$D$8,$P133>SUM($V133:X133)),IF(SUM($P133*$U133/12,$V133:X133)>$P133,$P133-SUM($V133:X133),$P133*$U133/12),0) -> 14.32 | Z133: =IF(AND(Z$16*1>=$R133,Z$16*1<=$D$8,$R133<$D$8,$P133>SUM($V133:Y133)),IF(SUM($P133*$U133/12,$V133:Y133)>$P133,$P133-SUM($V133:Y133),$P133*$U133/12),0) -> 14.32 | AA133: =IF(AND(AA$16*1>=$R133,AA$16*1<=$D$8,$R133<$D$8,$P133>SUM($V133:Z133)),IF(SUM($P133*$U133/12,$V133:Z133)>$P133,$P133-SUM($V133:Z133),$P133*$U133/12),0) -> 14.32 | AB133: =IF(AND(AB$16*1>=$R133,AB$16*1<=$D$8,$R133<$D$8,$P133>SUM($V133:AA133)),IF(SUM($P133*$U133/12,$V133:AA133)>$P133,$P133-SUM($V133:AA133),$P133*$U133/12),0) -> 0.00 | AC133: =IF(AND(AC$16*1>=$R133,AC$16*1<=$D$8,$R133<$D$8,$P133>SUM($V133:AB133)),IF(SUM($P133*$U133/12,$V133:AB133)>$P133,$P133-SUM($V133:AB133),$P133*$U133/12),0) -> 0.00 | AD133: =IF(AND(AD$16*1>=$R133,AD$16*1<=$D$8,$R133<$D$8,$P133>SUM($V133:AC133)),IF(SUM($P133*$U133/12,$V133:AC133)>$P133,$P133-SUM($V133:AC133),$P133*$U133/12),0) -> 0.00 | AE133: =IF(AND(AE$16*1>=$R133,AE$16*1<=$D$8,$R133<$D$8,$P133>SUM($V133:AD133)),IF(SUM($P133*$U133/12,$V133:AD133)>$P133,$P133-SUM($V133:AD133),$P133*$U133/12),0) -> 0.00 | AF133: =IF(AND(AF$16*1>=$R133,AF$16*1<=$D$8,$R133<$D$8,$P133>SUM($V133:AE133)),IF(SUM($P133*$U133/12,$V133:AE133)>$P133,$P133-SUM($V133:AE133),$P133*$U133/12),0) -> 0.00 | AG133: =IF(AND(AG$16*1>=$R133,AG$16*1<=$D$8,$R133<$D$8,$P133>SUM($V133:AF133)),IF(SUM($P133*$U133/12,$V133:AF133)>$P133,$P133-SUM($V133:AF133),$P133*$U133/12),0) -> 0.00 | AH133: =IF(AND(AH$16*1>=$R133,AH$16*1<=$D$8,$R133<$D$8,$P133>SUM($V133:AG133)),IF(SUM($P133*$U133/12,$V133:AG133)>$P133,$P133-SUM($V133:AG133),$P133*$U133/12),0) -> 0.00 | AI133: 71.59 | AL133: 243.42 | AN133: 243.42
C134: 118 | D134: 336111 | E134: COMPUT.INTEL CORE 4GB,DD 500 GB | I134: 1338.98 | N134: 1338.98 | P134: 1,338.98 | Q134: 2017-10-24 | R134: 2017-11-01 | U134: 25% | V134: 390.54 | W134: =IF(AND(W$16*1>=$R134,W$16*1<=$D$8,$R134<$D$8,$P134>SUM($V134:V134)),IF(SUM($P134*$U134/12,$V134:V134)>$P134,$P134-SUM($V134:V134),$P134*$U134/12),0) -> 27.90 | X134: =IF(AND(X$16*1>=$R134,X$16*1<=$D$8,$R134<$D$8,$P134>SUM($V134:W134)),IF(SUM($P134*$U134/12,$V134:W134)>$P134,$P134-SUM($V134:W134),$P134*$U134/12),0) -> 27.90 | Y134: =IF(AND(Y$16*1>=$R134,Y$16*1<=$D$8,$R134<$D$8,$P134>SUM($V134:X134)),IF(SUM($P134*$U134/12,$V134:X134)>$P134,$P134-SUM($V134:X134),$P134*$U134/12),0) -> 27.90 | Z134: =IF(AND(Z$16*1>=$R134,Z$16*1<=$D$8,$R134<$D$8,$P134>SUM($V134:Y134)),IF(SUM($P134*$U134/12,$V134:Y134)>$P134,$P134-SUM($V134:Y134),$P134*$U134/12),0) -> 27.90 | AA134: =IF(AND(AA$16*1>=$R134,AA$16*1<=$D$8,$R134<$D$8,$P134>SUM($V134:Z134)),IF(SUM($P134*$U134/12,$V134:Z134)>$P134,$P134-SUM($V134:Z134),$P134*$U134/12),0) -> 27.90 | AB134: =IF(AND(AB$16*1>=$R134,AB$16*1<=$D$8,$R134<$D$8,$P134>SUM($V134:AA134)),IF(SUM($P134*$U134/12,$V134:AA134)>$P134,$P134-SUM($V134:AA134),$P134*$U134/12),0) -> 0.00 | AC134: =IF(AND(AC$16*1>=$R134,AC$16*1<=$D$8,$R134<$D$8,$P134>SUM($V134:AB134)),IF(SUM($P134*$U134/12,$V134:AB134)>$P134,$P134-SUM($V134:AB134),$P134*$U134/12),0) -> 0.00 | AD134: =IF(AND(AD$16*1>=$R134,AD$16*1<=$D$8,$R134<$D$8,$P134>SUM($V134:AC134)),IF(SUM($P134*$U134/12,$V134:AC134)>$P134,$P134-SUM($V134:AC134),$P134*$U134/12),0) -> 0.00 | AE134: =IF(AND(AE$16*1>=$R134,AE$16*1<=$D$8,$R134<$D$8,$P134>SUM($V134:AD134)),IF(SUM($P134*$U134/12,$V134:AD134)>$P134,$P134-SUM($V134:AD134),$P134*$U134/12),0) -> 0.00 | AF134: =IF(AND(AF$16*1>=$R134,AF$16*1<=$D$8,$R134<$D$8,$P134>SUM($V134:AE134)),IF(SUM($P134*$U134/12,$V134:AE134)>$P134,$P134-SUM($V134:AE134),$P134*$U134/12),0) -> 0.00 | AG134: =IF(AND(AG$16*1>=$R134,AG$16*1<=$D$8,$R134<$D$8,$P134>SUM($V134:AF134)),IF(SUM($P134*$U134/12,$V134:AF134)>$P134,$P134-SUM($V134:AF134),$P134*$U134/12),0) -> 0.00 | AH134: =IF(AND(AH$16*1>=$R134,AH$16*1<=$D$8,$R134<$D$8,$P134>SUM($V134:AG134)),IF(SUM($P134*$U134/12,$V134:AG134)>$P134,$P134-SUM($V134:AG134),$P134*$U134/12),0) -> 0.00 | AI134: 139.48 | AL134: 474.23 | AN134: 474.23
C135: 119 | D135: 336111 | E135: COMPUT.INTEL c/MONITOR LG | I135: 1586.44 | N135: 1586.44 | P135: 1,586.44 | Q135: 2017-11-13 | R135: 2017-12-01 | U135: 25% | V135: 429.66 | W135: =IF(AND(W$16*1>=$R135,W$16*1<=$D$8,$R135<$D$8,$P135>SUM($V135:V135)),IF(SUM($P135*$U135/12,$V135:V135)>$P135,$P135-SUM($V135:V135),$P135*$U135/12),0) -> 33.05 | X135: =IF(AND(X$16*1>=$R135,X$16*1<=$D$8,$R135<$D$8,$P135>SUM($V135:W135)),IF(SUM($P135*$U135/12,$V135:W135)>$P135,$P135-SUM($V135:W135),$P135*$U135/12),0) -> 33.05 | Y135: =IF(AND(Y$16*1>=$R135,Y$16*1<=$D$8,$R135<$D$8,$P135>SUM($V135:X135)),IF(SUM($P135*$U135/12,$V135:X135)>$P135,$P135-SUM($V135:X135),$P135*$U135/12),0) -> 33.05 | Z135: =IF(AND(Z$16*1>=$R135,Z$16*1<=$D$8,$R135<$D$8,$P135>SUM($V135:Y135)),IF(SUM($P135*$U135/12,$V135:Y135)>$P135,$P135-SUM($V135:Y135),$P135*$U135/12),0) -> 33.05 | AA135: =IF(AND(AA$16*1>=$R135,AA$16*1<=$D$8,$R135<$D$8,$P135>SUM($V135:Z135)),IF(SUM($P135*$U135/12,$V135:Z135)>$P135,$P135-SUM($V135:Z135),$P135*$U135/12),0) -> 33.05 | AB135: =IF(AND(AB$16*1>=$R135,AB$16*1<=$D$8,$R135<$D$8,$P135>SUM($V135:AA135)),IF(SUM($P135*$U135/12,$V135:AA135)>$P135,$P135-SUM($V135:AA135),$P135*$U135/12),0) -> 0.00 | AC135: =IF(AND(AC$16*1>=$R135,AC$16*1<=$D$8,$R135<$D$8,$P135>SUM($V135:AB135)),IF(SUM($P135*$U135/12,$V135:AB135)>$P135,$P135-SUM($V135:AB135),$P135*$U135/12),0) -> 0.00 | AD135: =IF(AND(AD$16*1>=$R135,AD$16*1<=$D$8,$R135<$D$8,$P135>SUM($V135:AC135)),IF(SUM($P135*$U135/12,$V135:AC135)>$P135,$P135-SUM($V135:AC135),$P135*$U135/12),0) -> 0.00 | AE135: =IF(AND(AE$16*1>=$R135,AE$16*1<=$D$8,$R135<$D$8,$P135>SUM($V135:AD135)),IF(SUM($P135*$U135/12,$V135:AD135)>$P135,$P135-SUM($V135:AD135),$P135*$U135/12),0) -> 0.00 | AF135: =IF(AND(AF$16*1>=$R135,AF$16*1<=$D$8,$R135<$D$8,$P135>SUM($V135:AE135)),IF(SUM($P135*$U135/12,$V135:AE135)>$P135,$P135-SUM($V135:AE135),$P135*$U135/12),0) -> 0.00 | AG135: =IF(AND(AG$16*1>=$R135,AG$16*1<=$D$8,$R135<$D$8,$P135>SUM($V135:AF135)),IF(SUM($P135*$U135/12,$V135:AF135)>$P135,$P135-SUM($V135:AF135),$P135*$U135/12),0) -> 0.00 | AH135: =IF(AND(AH$16*1>=$R135,AH$16*1<=$D$8,$R135<$D$8,$P135>SUM($V135:AG135)),IF(SUM($P135*$U135/12,$V135:AG135)>$P135,$P135-SUM($V135:AG135),$P135*$U135/12),0) -> 0.00 | AI135: 165.25 | AL135: 528.81 | AN135: 528.81
C136: 120 | D136: 336111 | E136: COMPUT. INTEL 4GB , MONITOR 19" LG | I136: 1561.86 | N136: 1561.86 | P136: 1,561.86 | Q136: 2018-03-06 | R136: 2018-04-01 | U136: 25% | V136: 292.85 | W136: =IF(AND(W$16*1>=$R136,W$16*1<=$D$8,$R136<$D$8,$P136>SUM($V136:V136)),IF(SUM($P136*$U136/12,$V136:V136)>$P136,$P136-SUM($V136:V136),$P136*$U136/12),0) -> 32.54 | X136: =IF(AND(X$16*1>=$R136,X$16*1<=$D$8,$R136<$D$8,$P136>SUM($V136:W136)),IF(SUM($P136*$U136/12,$V136:W136)>$P136,$P136-SUM($V136:W136),$P136*$U136/12),0) -> 32.54 | Y136: =IF(AND(Y$16*1>=$R136,Y$16*1<=$D$8,$R136<$D$8,$P136>SUM($V136:X136)),IF(SUM($P136*$U136/12,$V136:X136)>$P136,$P136-SUM($V136:X136),$P136*$U136/12),0) -> 32.54 | Z136: =IF(AND(Z$16*1>=$R136,Z$16*1<=$D$8,$R136<$D$8,$P136>SUM($V136:Y136)),IF(SUM($P136*$U136/12,$V136:Y136)>$P136,$P136-SUM($V136:Y136),$P136*$U136/12),0) -> 32.54 | AA136: =IF(AND(AA$16*1>=$R136,AA$16*1<=$D$8,$R136<$D$8,$P136>SUM($V136:Z136)),IF(SUM($P136*$U136/12,$V136:Z136)>$P136,$P136-SUM($V136:Z136),$P136*$U136/12),0) -> 32.54 | AB136: =IF(AND(AB$16*1>=$R136,AB$16*1<=$D$8,$R136<$D$8,$P136>SUM($V136:AA136)),IF(SUM($P136*$U136/12,$V136:AA136)>$P136,$P136-SUM($V136:AA136),$P136*$U136/12),0) -> 0.00 | AC136: =IF(AND(AC$16*1>=$R136,AC$16*1<=$D$8,$R136<$D$8,$P136>SUM($V136:AB136)),IF(SUM($P136*$U136/12,$V136:AB136)>$P136,$P136-SUM($V136:AB136),$P136*$U136/12),0) -> 0.00 | AD136: =IF(AND(AD$16*1>=$R136,AD$16*1<=$D$8,$R136<$D$8,$P136>SUM($V136:AC136)),IF(SUM($P136*$U136/12,$V136:AC136)>$P136,$P136-SUM($V136:AC136),$P136*$U136/12),0) -> 0.00 | AE136: =IF(AND(AE$16*1>=$R136,AE$16*1<=$D$8,$R136<$D$8,$P136>SUM($V136:AD136)),IF(SUM($P136*$U136/12,$V136:AD136)>$P136,$P136-SUM($V136:AD136),$P136*$U136/12),0) -> 0.00 | AF136: =IF(AND(AF$16*1>=$R136,AF$16*1<=$D$8,$R136<$D$8,$P136>SUM($V136:AE136)),IF(SUM($P136*$U136/12,$V136:AE136)>$P136,$P136-SUM($V136:AE136),$P136*$U136/12),0) -> 0.00 | AG136: =IF(AND(AG$16*1>=$R136,AG$16*1<=$D$8,$R136<$D$8,$P136>SUM($V136:AF136)),IF(SUM($P136*$U136/12,$V136:AF136)>$P136,$P136-SUM($V136:AF136),$P136*$U136/12),0) -> 0.00 | AH136: =IF(AND(AH$16*1>=$R136,AH$16*1<=$D$8,$R136<$D$8,$P136>SUM($V136:AG136)),IF(SUM($P136*$U136/12,$V136:AG136)>$P136,$P136-SUM($V136:AG136),$P136*$U136/12),0) -> 0.00 | AI136: 162.69 | AL136: 390.47 | AN136: 390.47
C137: 121 | D137: 336111 | E137: COMPUT. INTEL CORE , DD 500GB | I137: 1248.3 | N137: 1248.3 | P137: 1,248.30 | Q137: 2018-03-06 | R137: 2018-04-01 | U137: 25% | V137: 234.06 | W137: =IF(AND(W$16*1>=$R137,W$16*1<=$D$8,$R137<$D$8,$P137>SUM($V137:V137)),IF(SUM($P137*$U137/12,$V137:V137)>$P137,$P137-SUM($V137:V137),$P137*$U137/12),0) -> 26.01 | X137: =IF(AND(X$16*1>=$R137,X$16*1<=$D$8,$R137<$D$8,$P137>SUM($V137:W137)),IF(SUM($P137*$U137/12,$V137:W137)>$P137,$P137-SUM($V137:W137),$P137*$U137/12),0) -> 26.01 | Y137: =IF(AND(Y$16*1>=$R137,Y$16*1<=$D$8,$R137<$D$8,$P137>SUM($V137:X137)),IF(SUM($P137*$U137/12,$V137:X137)>$P137,$P137-SUM($V137:X137),$P137*$U137/12),0) -> 26.01 | Z137: =IF(AND(Z$16*1>=$R137,Z$16*1<=$D$8,$R137<$D$8,$P137>SUM($V137:Y137)),IF(SUM($P137*$U137/12,$V137:Y137)>$P137,$P137-SUM($V137:Y137),$P137*$U137/12),0) -> 26.01 | AA137: =IF(AND(AA$16*1>=$R137,AA$16*1<=$D$8,$R137<$D$8,$P137>SUM($V137:Z137)),IF(SUM($P137*$U137/12,$V137:Z137)>$P137,$P137-SUM($V137:Z137),$P137*$U137/12),0) -> 26.01 | AB137: =IF(AND(AB$16*1>=$R137,AB$16*1<=$D$8,$R137<$D$8,$P137>SUM($V137:AA137)),IF(SUM($P137*$U137/12,$V137:AA137)>$P137,$P137-SUM($V137:AA137),$P137*$U137/12),0) -> 0.00 | AC137: =IF(AND(AC$16*1>=$R137,AC$16*1<=$D$8,$R137<$D$8,$P137>SUM($V137:AB137)),IF(SUM($P137*$U137/12,$V137:AB137)>$P137,$P137-SUM($V137:AB137),$P137*$U137/12),0) -> 0.00 | AD137: =IF(AND(AD$16*1>=$R137,AD$16*1<=$D$8,$R137<$D$8,$P137>SUM($V137:AC137)),IF(SUM($P137*$U137/12,$V137:AC137)>$P137,$P137-SUM($V137:AC137),$P137*$U137/12),0) -> 0.00 | AE137: =IF(AND(AE$16*1>=$R137,AE$16*1<=$D$8,$R137<$D$8,$P137>SUM($V137:AD137)),IF(SUM($P137*$U137/12,$V137:AD137)>$P137,$P137-SUM($V137:AD137),$P137*$U137/12),0) -> 0.00 | AF137: =IF(AND(AF$16*1>=$R137,AF$16*1<=$D$8,$R137<$D$8,$P137>SUM($V137:AE137)),IF(SUM($P137*$U137/12,$V137:AE137)>$P137,$P137-SUM($V137:AE137),$P137*$U137/12),0) -> 0.00 | AG137: =IF(AND(AG$16*1>=$R137,AG$16*1<=$D$8,$R137<$D$8,$P137>SUM($V137:AF137)),IF(SUM($P137*$U137/12,$V137:AF137)>$P137,$P137-SUM($V137:AF137),$P137*$U137/12),0) -> 0.00 | AH137: =IF(AND(AH$16*1>=$R137,AH$16*1<=$D$8,$R137<$D$8,$P137>SUM($V137:AG137)),IF(SUM($P137*$U137/12,$V137:AG137)>$P137,$P137-SUM($V137:AG137),$P137*$U137/12),0) -> 0.00 | AI137: 130.03 | AL137: 312.08 | AN137: 312.08
C138: 122 | D138: 336111 | E138: PC INTEL CORE 13 4GB/ MONIT.19" | I138: 1561.86 | N138: 1561.86 | P138: 1,561.86 | Q138: 2018-04-03 | R138: 2018-05-01 | U138: 25% | V138: 260.31 | W138: =IF(AND(W$16*1>=$R138,W$16*1<=$D$8,$R138<$D$8,$P138>SUM($V138:V138)),IF(SUM($P138*$U138/12,$V138:V138)>$P138,$P138-SUM($V138:V138),$P138*$U138/12),0) -> 32.54 | X138: =IF(AND(X$16*1>=$R138,X$16*1<=$D$8,$R138<$D$8,$P138>SUM($V138:W138)),IF(SUM($P138*$U138/12,$V138:W138)>$P138,$P138-SUM($V138:W138),$P138*$U138/12),0) -> 32.54 | Y138: =IF(AND(Y$16*1>=$R138,Y$16*1<=$D$8,$R138<$D$8,$P138>SUM($V138:X138)),IF(SUM($P138*$U138/12,$V138:X138)>$P138,$P138-SUM($V138:X138),$P138*$U138/12),0) -> 32.54 | Z138: =IF(AND(Z$16*1>=$R138,Z$16*1<=$D$8,$R138<$D$8,$P138>SUM($V138:Y138)),IF(SUM($P138*$U138/12,$V138:Y138)>$P138,$P138-SUM($V138:Y138),$P138*$U138/12),0) -> 32.54 | AA138: =IF(AND(AA$16*1>=$R138,AA$16*1<=$D$8,$R138<$D$8,$P138>SUM($V138:Z138)),IF(SUM($P138*$U138/12,$V138:Z138)>$P138,$P138-SUM($V138:Z138),$P138*$U138/12),0) -> 32.54 | AB138: =IF(AND(AB$16*1>=$R138,AB$16*1<=$D$8,$R138<$D$8,$P138>SUM($V138:AA138)),IF(SUM($P138*$U138/12,$V138:AA138)>$P138,$P138-SUM($V138:AA138),$P138*$U138/12),0) -> 0.00 | AC138: =IF(AND(AC$16*1>=$R138,AC$16*1<=$D$8,$R138<$D$8,$P138>SUM($V138:AB138)),IF(SUM($P138*$U138/12,$V138:AB138)>$P138,$P138-SUM($V138:AB138),$P138*$U138/12),0) -> 0.00 | AD138: =IF(AND(AD$16*1>=$R138,AD$16*1<=$D$8,$R138<$D$8,$P138>SUM($V138:AC138)),IF(SUM($P138*$U138/12,$V138:AC138)>$P138,$P138-SUM($V138:AC138),$P138*$U138/12),0) -> 0.00 | AE138: =IF(AND(AE$16*1>=$R138,AE$16*1<=$D$8,$R138<$D$8,$P138>SUM($V138:AD138)),IF(SUM($P138*$U138/12,$V138:AD138)>$P138,$P138-SUM($V138:AD138),$P138*$U138/12),0) -> 0.00 | AF138: =IF(AND(AF$16*1>=$R138,AF$16*1<=$D$8,$R138<$D$8,$P138>SUM($V138:AE138)),IF(SUM($P138*$U138/12,$V138:AE138)>$P138,$P138-SUM($V138:AE138),$P138*$U138/12),0) -> 0.00 | AG138: =IF(AND(AG$16*1>=$R138,AG$16*1<=$D$8,$R138<$D$8,$P138>SUM($V138:AF138)),IF(SUM($P138*$U138/12,$V138:AF138)>$P138,$P138-SUM($V138:AF138),$P138*$U138/12),0) -> 0.00 | AH138: =IF(AND(AH$16*1>=$R138,AH$16*1<=$D$8,$R138<$D$8,$P138>SUM($V138:AG138)),IF(SUM($P138*$U138/12,$V138:AG138)>$P138,$P138-SUM($V138:AG138),$P138*$U138/12),0) -> 0.00 | AI138: 162.69 | AL138: 357.93 | AN138: 357.93
C139: 123 | D139: 336111 | E139: COMPUT.INTEL, 4GB, DD500GB (MARC | I139: 1720.68 | N139: 1720.68 | P139: 1,720.68 | Q139: 2018-09-03 | R139: 2018-10-01 | U139: 25% | V139: 107.54 | W139: =IF(AND(W$16*1>=$R139,W$16*1<=$D$8,$R139<$D$8,$P139>SUM($V139:V139)),IF(SUM($P139*$U139/12,$V139:V139)>$P139,$P139-SUM($V139:V139),$P139*$U139/12),0) -> 35.85 | X139: =IF(AND(X$16*1>=$R139,X$16*1<=$D$8,$R139<$D$8,$P139>SUM($V139:W139)),IF(SUM($P139*$U139/12,$V139:W139)>$P139,$P139-SUM($V139:W139),$P139*$U139/12),0) -> 35.85 | Y139: =IF(AND(Y$16*1>=$R139,Y$16*1<=$D$8,$R139<$D$8,$P139>SUM($V139:X139)),IF(SUM($P139*$U139/12,$V139:X139)>$P139,$P139-SUM($V139:X139),$P139*$U139/12),0) -> 35.85 | Z139: =IF(AND(Z$16*1>=$R139,Z$16*1<=$D$8,$R139<$D$8,$P139>SUM($V139:Y139)),IF(SUM($P139*$U139/12,$V139:Y139)>$P139,$P139-SUM($V139:Y139),$P139*$U139/12),0) -> 35.85 | AA139: =IF(AND(AA$16*1>=$R139,AA$16*1<=$D$8,$R139<$D$8,$P139>SUM($V139:Z139)),IF(SUM($P139*$U139/12,$V139:Z139)>$P139,$P139-SUM($V139:Z139),$P139*$U139/12),0) -> 35.85 | AB139: =IF(AND(AB$16*1>=$R139,AB$16*1<=$D$8,$R139<$D$8,$P139>SUM($V139:AA139)),IF(SUM($P139*$U139/12,$V139:AA139)>$P139,$P139-SUM($V139:AA139),$P139*$U139/12),0) -> 0.00 | AC139: =IF(AND(AC$16*1>=$R139,AC$16*1<=$D$8,$R139<$D$8,$P139>SUM($V139:AB139)),IF(SUM($P139*$U139/12,$V139:AB139)>$P139,$P139-SUM($V139:AB139),$P139*$U139/12),0) -> 0.00 | AD139: =IF(AND(AD$16*1>=$R139,AD$16*1<=$D$8,$R139<$D$8,$P139>SUM($V139:AC139)),IF(SUM($P139*$U139/12,$V139:AC139)>$P139,$P139-SUM($V139:AC139),$P139*$U139/12),0) -> 0.00 | AE139: =IF(AND(AE$16*1>=$R139,AE$16*1<=$D$8,$R139<$D$8,$P139>SUM($V139:AD139)),IF(SUM($P139*$U139/12,$V139:AD139)>$P139,$P139-SUM($V139:AD139),$P139*$U139/12),0) -> 0.00 | AF139: =IF(AND(AF$16*1>=$R139,AF$16*1<=$D$8,$R139<$D$8,$P139>SUM($V139:AE139)),IF(SUM($P139*$U139/12,$V139:AE139)>$P139,$P139-SUM($V139:AE139),$P139*$U139/12),0) -> 0.00 | AG139: =IF(AND(AG$16*1>=$R139,AG$16*1<=$D$8,$R139<$D$8,$P139>SUM($V139:AF139)),IF(SUM($P139*$U139/12,$V139:AF139)>$P139,$P139-SUM($V139:AF139),$P139*$U139/12),0) -> 0.00 | AH139: =IF(AND(AH$16*1>=$R139,AH$16*1<=$D$8,$R139<$D$8,$P139>SUM($V139:AG139)),IF(SUM($P139*$U139/12,$V139:AG139)>$P139,$P139-SUM($V139:AG139),$P139*$U139/12),0) -> 0.00 | AI139: 179.24 | AL139: 215.08 | AN139: 215.08
C140: 124 | D140: 336111 | E140: IMPRESORA HP 4555 (CF) | I140: 389.83 | N140: 389.83 | P140: 389.83 | Q140: 2018-09-04 | R140: 2018-10-01 | U140: 25% | V140: 24.36 | W140: =IF(AND(W$16*1>=$R140,W$16*1<=$D$8,$R140<$D$8,$P140>SUM($V140:V140)),IF(SUM($P140*$U140/12,$V140:V140)>$P140,$P140-SUM($V140:V140),$P140*$U140/12),0) -> 8.12 | X140: =IF(AND(X$16*1>=$R140,X$16*1<=$D$8,$R140<$D$8,$P140>SUM($V140:W140)),IF(SUM($P140*$U140/12,$V140:W140)>$P140,$P140-SUM($V140:W140),$P140*$U140/12),0) -> 8.12 | Y140: =IF(AND(Y$16*1>=$R140,Y$16*1<=$D$8,$R140<$D$8,$P140>SUM($V140:X140)),IF(SUM($P140*$U140/12,$V140:X140)>$P140,$P140-SUM($V140:X140),$P140*$U140/12),0) -> 8.12 | Z140: =IF(AND(Z$16*1>=$R140,Z$16*1<=$D$8,$R140<$D$8,$P140>SUM($V140:Y140)),IF(SUM($P140*$U140/12,$V140:Y140)>$P140,$P140-SUM($V140:Y140),$P140*$U140/12),0) -> 8.12 | AA140: =IF(AND(AA$16*1>=$R140,AA$16*1<=$D$8,$R140<$D$8,$P140>SUM($V140:Z140)),IF(SUM($P140*$U140/12,$V140:Z140)>$P140,$P140-SUM($V140:Z140),$P140*$U140/12),0) -> 8.12 | AB140: =IF(AND(AB$16*1>=$R140,AB$16*1<=$D$8,$R140<$D$8,$P140>SUM($V140:AA140)),IF(SUM($P140*$U140/12,$V140:AA140)>$P140,$P140-SUM($V140:AA140),$P140*$U140/12),0) -> 0.00 | AC140: =IF(AND(AC$16*1>=$R140,AC$16*1<=$D$8,$R140<$D$8,$P140>SUM($V140:AB140)),IF(SUM($P140*$U140/12,$V140:AB140)>$P140,$P140-SUM($V140:AB140),$P140*$U140/12),0) -> 0.00 | AD140: =IF(AND(AD$16*1>=$R140,AD$16*1<=$D$8,$R140<$D$8,$P140>SUM($V140:AC140)),IF(SUM($P140*$U140/12,$V140:AC140)>$P140,$P140-SUM($V140:AC140),$P140*$U140/12),0) -> 0.00 | AE140: =IF(AND(AE$16*1>=$R140,AE$16*1<=$D$8,$R140<$D$8,$P140>SUM($V140:AD140)),IF(SUM($P140*$U140/12,$V140:AD140)>$P140,$P140-SUM($V140:AD140),$P140*$U140/12),0) -> 0.00 | AF140: =IF(AND(AF$16*1>=$R140,AF$16*1<=$D$8,$R140<$D$8,$P140>SUM($V140:AE140)),IF(SUM($P140*$U140/12,$V140:AE140)>$P140,$P140-SUM($V140:AE140),$P140*$U140/12),0) -> 0.00 | AG140: =IF(AND(AG$16*1>=$R140,AG$16*1<=$D$8,$R140<$D$8,$P140>SUM($V140:AF140)),IF(SUM($P140*$U140/12,$V140:AF140)>$P140,$P140-SUM($V140:AF140),$P140*$U140/12),0) -> 0.00 | AH140: =IF(AND(AH$16*1>=$R140,AH$16*1<=$D$8,$R140<$D$8,$P140>SUM($V140:AG140)),IF(SUM($P140*$U140/12,$V140:AG140)>$P140,$P140-SUM($V140:AG140),$P140*$U140/12),0) -> 0.00 | AI140: 40.61 | AL140: 48.72 | AN140: 48.72
C141: 125 | D141: 336111 | E141: COMPUT.INTEL, 4GB, DD500M(PATEN | I141: 1720.68 | N141: 1720.68 | P141: 1,720.68 | Q141: 2018-09-08 | R141: 2018-10-01 | U141: 25% | V141: 107.54 | W141: =IF(AND(W$16*1>=$R141,W$16*1<=$D$8,$R141<$D$8,$P141>SUM($V141:V141)),IF(SUM($P141*$U141/12,$V141:V141)>$P141,$P141-SUM($V141:V141),$P141*$U141/12),0) -> 35.85 | X141: =IF(AND(X$16*1>=$R141,X$16*1<=$D$8,$R141<$D$8,$P141>SUM($V141:W141)),IF(SUM($P141*$U141/12,$V141:W141)>$P141,$P141-SUM($V141:W141),$P141*$U141/12),0) -> 35.85 | Y141: =IF(AND(Y$16*1>=$R141,Y$16*1<=$D$8,$R141<$D$8,$P141>SUM($V141:X141)),IF(SUM($P141*$U141/12,$V141:X141)>$P141,$P141-SUM($V141:X141),$P141*$U141/12),0) -> 35.85 | Z141: =IF(AND(Z$16*1>=$R141,Z$16*1<=$D$8,$R141<$D$8,$P141>SUM($V141:Y141)),IF(SUM($P141*$U141/12,$V141:Y141)>$P141,$P141-SUM($V141:Y141),$P141*$U141/12),0) -> 35.85 | AA141: =IF(AND(AA$16*1>=$R141,AA$16*1<=$D$8,$R141<$D$8,$P141>SUM($V141:Z141)),IF(SUM($P141*$U141/12,$V141:Z141)>$P141,$P141-SUM($V141:Z141),$P141*$U141/12),0) -> 35.85 | AB141: =IF(AND(AB$16*1>=$R141,AB$16*1<=$D$8,$R141<$D$8,$P141>SUM($V141:AA141)),IF(SUM($P141*$U141/12,$V141:AA141)>$P141,$P141-SUM($V141:AA141),$P141*$U141/12),0) -> 0.00 | AC141: =IF(AND(AC$16*1>=$R141,AC$16*1<=$D$8,$R141<$D$8,$P141>SUM($V141:AB141)),IF(SUM($P141*$U141/12,$V141:AB141)>$P141,$P141-SUM($V141:AB141),$P141*$U141/12),0) -> 0.00 | AD141: =IF(AND(AD$16*1>=$R141,AD$16*1<=$D$8,$R141<$D$8,$P141>SUM($V141:AC141)),IF(SUM($P141*$U141/12,$V141:AC141)>$P141,$P141-SUM($V141:AC141),$P141*$U141/12),0) -> 0.00 | AE141: =IF(AND(AE$16*1>=$R141,AE$16*1<=$D$8,$R141<$D$8,$P141>SUM($V141:AD141)),IF(SUM($P141*$U141/12,$V141:AD141)>$P141,$P141-SUM($V141:AD141),$P141*$U141/12),0) -> 0.00 | AF141: =IF(AND(AF$16*1>=$R141,AF$16*1<=$D$8,$R141<$D$8,$P141>SUM($V141:AE141)),IF(SUM($P141*$U141/12,$V141:AE141)>$P141,$P141-SUM($V141:AE141),$P141*$U141/12),0) -> 0.00 | AG141: =IF(AND(AG$16*1>=$R141,AG$16*1<=$D$8,$R141<$D$8,$P141>SUM($V141:AF141)),IF(SUM($P141*$U141/12,$V141:AF141)>$P141,$P141-SUM($V141:AF141),$P141*$U141/12),0) -> 0.00 | AH141: =IF(AND(AH$16*1>=$R141,AH$16*1<=$D$8,$R141<$D$8,$P141>SUM($V141:AG141)),IF(SUM($P141*$U141/12,$V141:AG141)>$P141,$P141-SUM($V141:AG141),$P141*$U141/12),0) -> 0.00 | AI141: 179.24 | AL141: 215.08 | AN141: 215.08
C142: 126 | D142: 336111 | E142: COMPUT.INTEL, 4GB, DD500M(PAT) | I142: 1693.22 | N142: 1693.22 | P142: 1,693.22 | Q142: 2018-11-03 | R142: 2018-12-01 | U142: 25% | V142: 35.28 | W142: =IF(AND(W$16*1>=$R142,W$16*1<=$D$8,$R142<$D$8,$P142>SUM($V142:V142)),IF(SUM($P142*$U142/12,$V142:V142)>$P142,$P142-SUM($V142:V142),$P142*$U142/12),0) -> 35.28 | X142: =IF(AND(X$16*1>=$R142,X$16*1<=$D$8,$R142<$D$8,$P142>SUM($V142:W142)),IF(SUM($P142*$U142/12,$V142:W142)>$P142,$P142-SUM($V142:W142),$P142*$U142/12),0) -> 35.28 | Y142: =IF(AND(Y$16*1>=$R142,Y$16*1<=$D$8,$R142<$D$8,$P142>SUM($V142:X142)),IF(SUM($P142*$U142/12,$V142:X142)>$P142,$P142-SUM($V142:X142),$P142*$U142/12),0) -> 35.28 | Z142: =IF(AND(Z$16*1>=$R142,Z$16*1<=$D$8,$R142<$D$8,$P142>SUM($V142:Y142)),IF(SUM($P142*$U142/12,$V142:Y142)>$P142,$P142-SUM($V142:Y142),$P142*$U142/12),0) -> 35.28 | AA142: =IF(AND(AA$16*1>=$R142,AA$16*1<=$D$8,$R142<$D$8,$P142>SUM($V142:Z142)),IF(SUM($P142*$U142/12,$V142:Z142)>$P142,$P142-SUM($V142:Z142),$P142*$U142/12),0) -> 35.28 | AB142: =IF(AND(AB$16*1>=$R142,AB$16*1<=$D$8,$R142<$D$8,$P142>SUM($V142:AA142)),IF(SUM($P142*$U142/12,$V142:AA142)>$P142,$P142-SUM($V142:AA142),$P142*$U142/12),0) -> 0.00 | AC142: =IF(AND(AC$16*1>=$R142,AC$16*1<=$D$8,$R142<$D$8,$P142>SUM($V142:AB142)),IF(SUM($P142*$U142/12,$V142:AB142)>$P142,$P142-SUM($V142:AB142),$P142*$U142/12),0) -> 0.00 | AD142: =IF(AND(AD$16*1>=$R142,AD$16*1<=$D$8,$R142<$D$8,$P142>SUM($V142:AC142)),IF(SUM($P142*$U142/12,$V142:AC142)>$P142,$P142-SUM($V142:AC142),$P142*$U142/12),0) -> 0.00 | AE142: =IF(AND(AE$16*1>=$R142,AE$16*1<=$D$8,$R142<$D$8,$P142>SUM($V142:AD142)),IF(SUM($P142*$U142/12,$V142:AD142)>$P142,$P142-SUM($V142:AD142),$P142*$U142/12),0) -> 0.00 | AF142: =IF(AND(AF$16*1>=$R142,AF$16*1<=$D$8,$R142<$D$8,$P142>SUM($V142:AE142)),IF(SUM($P142*$U142/12,$V142:AE142)>$P142,$P142-SUM($V142:AE142),$P142*$U142/12),0) -> 0.00 | AG142: =IF(AND(AG$16*1>=$R142,AG$16*1<=$D$8,$R142<$D$8,$P142>SUM($V142:AF142)),IF(SUM($P142*$U142/12,$V142:AF142)>$P142,$P142-SUM($V142:AF142),$P142*$U142/12),0) -> 0.00 | AH142: =IF(AND(AH$16*1>=$R142,AH$16*1<=$D$8,$R142<$D$8,$P142>SUM($V142:AG142)),IF(SUM($P142*$U142/12,$V142:AG142)>$P142,$P142-SUM($V142:AG142),$P142*$U142/12),0) -> 0.00 | AI142: 176.38 | AL142: 141.11 | AN142: 141.11
C143: 127 | D143: 336111 | E143: COMPUT.INTEL, 4GB, DD500M | I143: 1363.56 | N143: 1363.56 | P143: 1,363.56 | Q143: 2018-11-05 | R143: 2018-12-01 | U143: 25% | V143: 28.41 | W143: =IF(AND(W$16*1>=$R143,W$16*1<=$D$8,$R143<$D$8,$P143>SUM($V143:V143)),IF(SUM($P143*$U143/12,$V143:V143)>$P143,$P143-SUM($V143:V143),$P143*$U143/12),0) -> 28.41 | X143: =IF(AND(X$16*1>=$R143,X$16*1<=$D$8,$R143<$D$8,$P143>SUM($V143:W143)),IF(SUM($P143*$U143/12,$V143:W143)>$P143,$P143-SUM($V143:W143),$P143*$U143/12),0) -> 28.41 | Y143: =IF(AND(Y$16*1>=$R143,Y$16*1<=$D$8,$R143<$D$8,$P143>SUM($V143:X143)),IF(SUM($P143*$U143/12,$V143:X143)>$P143,$P143-SUM($V143:X143),$P143*$U143/12),0) -> 28.41 | Z143: =IF(AND(Z$16*1>=$R143,Z$16*1<=$D$8,$R143<$D$8,$P143>SUM($V143:Y143)),IF(SUM($P143*$U143/12,$V143:Y143)>$P143,$P143-SUM($V143:Y143),$P143*$U143/12),0) -> 28.41 | AA143: =IF(AND(AA$16*1>=$R143,AA$16*1<=$D$8,$R143<$D$8,$P143>SUM($V143:Z143)),IF(SUM($P143*$U143/12,$V143:Z143)>$P143,$P143-SUM($V143:Z143),$P143*$U143/12),0) -> 28.41 | AB143: =IF(AND(AB$16*1>=$R143,AB$16*1<=$D$8,$R143<$D$8,$P143>SUM($V143:AA143)),IF(SUM($P143*$U143/12,$V143:AA143)>$P143,$P143-SUM($V143:AA143),$P143*$U143/12),0) -> 0.00 | AC143: =IF(AND(AC$16*1>=$R143,AC$16*1<=$D$8,$R143<$D$8,$P143>SUM($V143:AB143)),IF(SUM($P143*$U143/12,$V143:AB143)>$P143,$P143-SUM($V143:AB143),$P143*$U143/12),0) -> 0.00 | AD143: =IF(AND(AD$16*1>=$R143,AD$16*1<=$D$8,$R143<$D$8,$P143>SUM($V143:AC143)),IF(SUM($P143*$U143/12,$V143:AC143)>$P143,$P143-SUM($V143:AC143),$P143*$U143/12),0) -> 0.00 | AE143: =IF(AND(AE$16*1>=$R143,AE$16*1<=$D$8,$R143<$D$8,$P143>SUM($V143:AD143)),IF(SUM($P143*$U143/12,$V143:AD143)>$P143,$P143-SUM($V143:AD143),$P143*$U143/12),0) -> 0.00 | AF143: =IF(AND(AF$16*1>=$R143,AF$16*1<=$D$8,$R143<$D$8,$P143>SUM($V143:AE143)),IF(SUM($P143*$U143/12,$V143:AE143)>$P143,$P143-SUM($V143:AE143),$P143*$U143/12),0) -> 0.00 | AG143: =IF(AND(AG$16*1>=$R143,AG$16*1<=$D$8,$R143<$D$8,$P143>SUM($V143:AF143)),IF(SUM($P143*$U143/12,$V143:AF143)>$P143,$P143-SUM($V143:AF143),$P143*$U143/12),0) -> 0.00 | AH143: =IF(AND(AH$16*1>=$R143,AH$16*1<=$D$8,$R143<$D$8,$P143>SUM($V143:AG143)),IF(SUM($P143*$U143/12,$V143:AG143)>$P143,$P143-SUM($V143:AG143),$P143*$U143/12),0) -> 0.00 | AI143: 142.04 | AL143: 113.63 | AN143: 113.63
C144: 128 | D144: 336211 | E144: TELEFONO Y TRANSFORMADOR | I144: 787.25 | N144: 787.25 | P144: 787.25 | Q144: 1999-12-11 | R144: 2000-01-01 | U144: 10% | V144: 787.25 | W144: =IF(AND(W$16*1>=$R144,W$16*1<=$D$8,$R144<$D$8,$P144>SUM($V144:V144)),IF(SUM($P144*$U144/12,$V144:V144)>$P144,$P144-SUM($V144:V144),$P144*$U144/12),0) -> 0.00 | X144: =IF(AND(X$16*1>=$R144,X$16*1<=$D$8,$R144<$D$8,$P144>SUM($V144:W144)),IF(SUM($P144*$U144/12,$V144:W144)>$P144,$P144-SUM($V144:W144),$P144*$U144/12),0) -> 0.00 | Y144: =IF(AND(Y$16*1>=$R144,Y$16*1<=$D$8,$R144<$D$8,$P144>SUM($V144:X144)),IF(SUM($P144*$U144/12,$V144:X144)>$P144,$P144-SUM($V144:X144),$P144*$U144/12),0) -> 0.00 | Z144: =IF(AND(Z$16*1>=$R144,Z$16*1<=$D$8,$R144<$D$8,$P144>SUM($V144:Y144)),IF(SUM($P144*$U144/12,$V144:Y144)>$P144,$P144-SUM($V144:Y144),$P144*$U144/12),0) -> 0.00 | AA144: =IF(AND(AA$16*1>=$R144,AA$16*1<=$D$8,$R144<$D$8,$P144>SUM($V144:Z144)),IF(SUM($P144*$U144/12,$V144:Z144)>$P144,$P144-SUM($V144:Z144),$P144*$U144/12),0) -> 0.00 | AB144: =IF(AND(AB$16*1>=$R144,AB$16*1<=$D$8,$R144<$D$8,$P144>SUM($V144:AA144)),IF(SUM($P144*$U144/12,$V144:AA144)>$P144,$P144-SUM($V144:AA144),$P144*$U144/12),0) -> 0.00 | AC144: =IF(AND(AC$16*1>=$R144,AC$16*1<=$D$8,$R144<$D$8,$P144>SUM($V144:AB144)),IF(SUM($P144*$U144/12,$V144:AB144)>$P144,$P144-SUM($V144:AB144),$P144*$U144/12),0) -> 0.00 | AD144: =IF(AND(AD$16*1>=$R144,AD$16*1<=$D$8,$R144<$D$8,$P144>SUM($V144:AC144)),IF(SUM($P144*$U144/12,$V144:AC144)>$P144,$P144-SUM($V144:AC144),$P144*$U144/12),0) -> 0.00 | AE144: =IF(AND(AE$16*1>=$R144,AE$16*1<=$D$8,$R144<$D$8,$P144>SUM($V144:AD144)),IF(SUM($P144*$U144/12,$V144:AD144)>$P144,$P144-SUM($V144:AD144),$P144*$U144/12),0) -> 0.00 | AF144: =IF(AND(AF$16*1>=$R144,AF$16*1<=$D$8,$R144<$D$8,$P144>SUM($V144:AE144)),IF(SUM($P144*$U144/12,$V144:AE144)>$P144,$P144-SUM($V144:AE144),$P144*$U144/12),0) -> 0.00 | AG144: =IF(AND(AG$16*1>=$R144,AG$16*1<=$D$8,$R144<$D$8,$P144>SUM($V144:AF144)),IF(SUM($P144*$U144/12,$V144:AF144)>$P144,$P144-SUM($V144:AF144),$P144*$U144/12),0) -> 0.00 | AH144: =IF(AND(AH$16*1>=$R144,AH$16*1<=$D$8,$R144<$D$8,$P144>SUM($V144:AG144)),IF(SUM($P144*$U144/12,$V144:AG144)>$P144,$P144-SUM($V144:AG144),$P144*$U144/12),0) -> 0.00 | AI144: 0.00 | AL144: 787.25 | AN144: 787.25
C145: 137 | D145: 336211 | E145: FACSIMIL OFX 580 OLIVETTI | I145: 951.34 | N145: 951.34 | P145: 951.34 | Q145: 2006-03-04 | R145: 2006-04-01 | U145: 10% | V145: 951.34 | W145: =IF(AND(W$16*1>=$R145,W$16*1<=$D$8,$R145<$D$8,$P145>SUM($V145:V145)),IF(SUM($P145*$U145/12,$V145:V145)>$P145,$P145-SUM($V145:V145),$P145*$U145/12),0) -> 0.00 | X145: =IF(AND(X$16*1>=$R145,X$16*1<=$D$8,$R145<$D$8,$P145>SUM($V145:W145)),IF(SUM($P145*$U145/12,$V145:W145)>$P145,$P145-SUM($V145:W145),$P145*$U145/12),0) -> 0.00 | Y145: =IF(AND(Y$16*1>=$R145,Y$16*1<=$D$8,$R145<$D$8,$P145>SUM($V145:X145)),IF(SUM($P145*$U145/12,$V145:X145)>$P145,$P145-SUM($V145:X145),$P145*$U145/12),0) -> 0.00 | Z145: =IF(AND(Z$16*1>=$R145,Z$16*1<=$D$8,$R145<$D$8,$P145>SUM($V145:Y145)),IF(SUM($P145*$U145/12,$V145:Y145)>$P145,$P145-SUM($V145:Y145),$P145*$U145/12),0) -> 0.00 | AA145: =IF(AND(AA$16*1>=$R145,AA$16*1<=$D$8,$R145<$D$8,$P145>SUM($V145:Z145)),IF(SUM($P145*$U145/12,$V145:Z145)>$P145,$P145-SUM($V145:Z145),$P145*$U145/12),0) -> 0.00 | AB145: =IF(AND(AB$16*1>=$R145,AB$16*1<=$D$8,$R145<$D$8,$P145>SUM($V145:AA145)),IF(SUM($P145*$U145/12,$V145:AA145)>$P145,$P145-SUM($V145:AA145),$P145*$U145/12),0) -> 0.00 | AC145: =IF(AND(AC$16*1>=$R145,AC$16*1<=$D$8,$R145<$D$8,$P145>SUM($V145:AB145)),IF(SUM($P145*$U145/12,$V145:AB145)>$P145,$P145-SUM($V145:AB145),$P145*$U145/12),0) -> 0.00 | AD145: =IF(AND(AD$16*1>=$R145,AD$16*1<=$D$8,$R145<$D$8,$P145>SUM($V145:AC145)),IF(SUM($P145*$U145/12,$V145:AC145)>$P145,$P145-SUM($V145:AC145),$P145*$U145/12),0) -> 0.00 | AE145: =IF(AND(AE$16*1>=$R145,AE$16*1<=$D$8,$R145<$D$8,$P145>SUM($V145:AD145)),IF(SUM($P145*$U145/12,$V145:AD145)>$P145,$P145-SUM($V145:AD145),$P145*$U145/12),0) -> 0.00 | AF145: =IF(AND(AF$16*1>=$R145,AF$16*1<=$D$8,$R145<$D$8,$P145>SUM($V145:AE145)),IF(SUM($P145*$U145/12,$V145:AE145)>$P145,$P145-SUM($V145:AE145),$P145*$U145/12),0) -> 0.00 | AG145: =IF(AND(AG$16*1>=$R145,AG$16*1<=$D$8,$R145<$D$8,$P145>SUM($V145:AF145)),IF(SUM($P145*$U145/12,$V145:AF145)>$P145,$P145-SUM($V145:AF145),$P145*$U145/12),0) -> 0.00 | AH145: =IF(AND(AH$16*1>=$R145,AH$16*1<=$D$8,$R145<$D$8,$P145>SUM($V145:AG145)),IF(SUM($P145*$U145/12,$V145:AG145)>$P145,$P145-SUM($V145:AG145),$P145*$U145/12),0) -> 0.00 | AI145: =SUM(W145:AH145) -> 0.00 | AL145: 951.34 | AN145: 951.34
C146: 138 | D146: 336211 | E146: TELEFONO MULTILINEA NX1232 | I146: 347.59 | N146: 347.59 | P146: 347.59 | Q146: 2006-03-12 | R146: 2006-04-01 | U146: 10% | V146: 347.59 | W146: =IF(AND(W$16*1>=$R146,W$16*1<=$D$8,$R146<$D$8,$P146>SUM($V146:V146)),IF(SUM($P146*$U146/12,$V146:V146)>$P146,$P146-SUM($V146:V146),$P146*$U146/12),0) -> 0.00 | X146: =IF(AND(X$16*1>=$R146,X$16*1<=$D$8,$R146<$D$8,$P146>SUM($V146:W146)),IF(SUM($P146*$U146/12,$V146:W146)>$P146,$P146-SUM($V146:W146),$P146*$U146/12),0) -> 0.00 | Y146: =IF(AND(Y$16*1>=$R146,Y$16*1<=$D$8,$R146<$D$8,$P146>SUM($V146:X146)),IF(SUM($P146*$U146/12,$V146:X146)>$P146,$P146-SUM($V146:X146),$P146*$U146/12),0) -> 0.00 | Z146: =IF(AND(Z$16*1>=$R146,Z$16*1<=$D$8,$R146<$D$8,$P146>SUM($V146:Y146)),IF(SUM($P146*$U146/12,$V146:Y146)>$P146,$P146-SUM($V146:Y146),$P146*$U146/12),0) -> 0.00 | AA146: =IF(AND(AA$16*1>=$R146,AA$16*1<=$D$8,$R146<$D$8,$P146>SUM($V146:Z146)),IF(SUM($P146*$U146/12,$V146:Z146)>$P146,$P146-SUM($V146:Z146),$P146*$U146/12),0) -> 0.00 | AB146: =IF(AND(AB$16*1>=$R146,AB$16*1<=$D$8,$R146<$D$8,$P146>SUM($V146:AA146)),IF(SUM($P146*$U146/12,$V146:AA146)>$P146,$P146-SUM($V146:AA146),$P146*$U146/12),0) -> 0.00 | AC146: =IF(AND(AC$16*1>=$R146,AC$16*1<=$D$8,$R146<$D$8,$P146>SUM($V146:AB146)),IF(SUM($P146*$U146/12,$V146:AB146)>$P146,$P146-SUM($V146:AB146),$P146*$U146/12),0) -> 0.00 | AD146: =IF(AND(AD$16*1>=$R146,AD$16*1<=$D$8,$R146<$D$8,$P146>SUM($V146:AC146)),IF(SUM($P146*$U146/12,$V146:AC146)>$P146,$P146-SUM($V146:AC146),$P146*$U146/12),0) -> 0.00 | AE146: =IF(AND(AE$16*1>=$R146,AE$16*1<=$D$8,$R146<$D$8,$P146>SUM($V146:AD146)),IF(SUM($P146*$U146/12,$V146:AD146)>$P146,$P146-SUM($V146:AD146),$P146*$U146/12),0) -> 0.00 | AF146: =IF(AND(AF$16*1>=$R146,AF$16*1<=$D$8,$R146<$D$8,$P146>SUM($V146:AE146)),IF(SUM($P146*$U146/12,$V146:AE146)>$P146,$P146-SUM($V146:AE146),$P146*$U146/12),0) -> 0.00 | AG146: =IF(AND(AG$16*1>=$R146,AG$16*1<=$D$8,$R146<$D$8,$P146>SUM($V146:AF146)),IF(SUM($P146*$U146/12,$V146:AF146)>$P146,$P146-SUM($V146:AF146),$P146*$U146/12),0) -> 0.00 | AH146: =IF(AND(AH$16*1>=$R146,AH$16*1<=$D$8,$R146<$D$8,$P146>SUM($V146:AG146)),IF(SUM($P146*$U146/12,$V146:AG146)>$P146,$P146-SUM($V146:AG146),$P146*$U146/12),0) -> 0.00 | AI146: 0.00 | AL146: 347.59 | AN146: 347.59
C147: 139 | D147: 336211 | E147: EQUIPO INTERNET MILLICOM | I147: 529.47 | N147: 529.47 | P147: 529.47 | Q147: 2006-03-12 | R147: 2006-04-01 | U147: 10% | V147: 529.47 | W147: =IF(AND(W$16*1>=$R147,W$16*1<=$D$8,$R147<$D$8,$P147>SUM($V147:V147)),IF(SUM($P147*$U147/12,$V147:V147)>$P147,$P147-SUM($V147:V147),$P147*$U147/12),0) -> 0.00 | X147: =IF(AND(X$16*1>=$R147,X$16*1<=$D$8,$R147<$D$8,$P147>SUM($V147:W147)),IF(SUM($P147*$U147/12,$V147:W147)>$P147,$P147-SUM($V147:W147),$P147*$U147/12),0) -> 0.00 | Y147: =IF(AND(Y$16*1>=$R147,Y$16*1<=$D$8,$R147<$D$8,$P147>SUM($V147:X147)),IF(SUM($P147*$U147/12,$V147:X147)>$P147,$P147-SUM($V147:X147),$P147*$U147/12),0) -> 0.00 | Z147: =IF(AND(Z$16*1>=$R147,Z$16*1<=$D$8,$R147<$D$8,$P147>SUM($V147:Y147)),IF(SUM($P147*$U147/12,$V147:Y147)>$P147,$P147-SUM($V147:Y147),$P147*$U147/12),0) -> 0.00 | AA147: =IF(AND(AA$16*1>=$R147,AA$16*1<=$D$8,$R147<$D$8,$P147>SUM($V147:Z147)),IF(SUM($P147*$U147/12,$V147:Z147)>$P147,$P147-SUM($V147:Z147),$P147*$U147/12),0) -> 0.00 | AB147: =IF(AND(AB$16*1>=$R147,AB$16*1<=$D$8,$R147<$D$8,$P147>SUM($V147:AA147)),IF(SUM($P147*$U147/12,$V147:AA147)>$P147,$P147-SUM($V147:AA147),$P147*$U147/12),0) -> 0.00 | AC147: =IF(AND(AC$16*1>=$R147,AC$16*1<=$D$8,$R147<$D$8,$P147>SUM($V147:AB147)),IF(SUM($P147*$U147/12,$V147:AB147)>$P147,$P147-SUM($V147:AB147),$P147*$U147/12),0) -> 0.00 | AD147: =IF(AND(AD$16*1>=$R147,AD$16*1<=$D$8,$R147<$D$8,$P147>SUM($V147:AC147)),IF(SUM($P147*$U147/12,$V147:AC147)>$P147,$P147-SUM($V147:AC147),$P147*$U147/12),0) -> 0.00 | AE147: =IF(AND(AE$16*1>=$R147,AE$16*1<=$D$8,$R147<$D$8,$P147>SUM($V147:AD147)),IF(SUM($P147*$U147/12,$V147:AD147)>$P147,$P147-SUM($V147:AD147),$P147*$U147/12),0) -> 0.00 | AF147: =IF(AND(AF$16*1>=$R147,AF$16*1<=$D$8,$R147<$D$8,$P147>SUM($V147:AE147)),IF(SUM($P147*$U147/12,$V147:AE147)>$P147,$P147-SUM($V147:AE147),$P147*$U147/12),0) -> 0.00 | AG147: =IF(AND(AG$16*1>=$R147,AG$16*1<=$D$8,$R147<$D$8,$P147>SUM($V147:AF147)),IF(SUM($P147*$U147/12,$V147:AF147)>$P147,$P147-SUM($V147:AF147),$P147*$U147/12),0) -> 0.00 | AH147: =IF(AND(AH$16*1>=$R147,AH$16*1<=$D$8,$R147<$D$8,$P147>SUM($V147:AG147)),IF(SUM($P147*$U147/12,$V147:AG147)>$P147,$P147-SUM($V147:AG147),$P147*$U147/12),0) -> 0.00 | AI147: 0.00 | AL147: 529.47 | AN147: 529.47
C148: 140 | D148: 336211 | E148: FAX MULTIFUNCION OLIVETTI | I148: 627.93 | N148: 627.93 | P148: 627.93 | Q148: 2006-11-22 | R148: 2006-12-01 | U148: 10% | V148: 627.93 | W148: =IF(AND(W$16*1>=$R148,W$16*1<=$D$8,$R148<$D$8,$P148>SUM($V148:V148)),IF(SUM($P148*$U148/12,$V148:V148)>$P148,$P148-SUM($V148:V148),$P148*$U148/12),0) -> 0.00 | X148: =IF(AND(X$16*1>=$R148,X$16*1<=$D$8,$R148<$D$8,$P148>SUM($V148:W148)),IF(SUM($P148*$U148/12,$V148:W148)>$P148,$P148-SUM($V148:W148),$P148*$U148/12),0) -> 0.00 | Y148: =IF(AND(Y$16*1>=$R148,Y$16*1<=$D$8,$R148<$D$8,$P148>SUM($V148:X148)),IF(SUM($P148*$U148/12,$V148:X148)>$P148,$P148-SUM($V148:X148),$P148*$U148/12),0) -> 0.00 | Z148: =IF(AND(Z$16*1>=$R148,Z$16*1<=$D$8,$R148<$D$8,$P148>SUM($V148:Y148)),IF(SUM($P148*$U148/12,$V148:Y148)>$P148,$P148-SUM($V148:Y148),$P148*$U148/12),0) -> 0.00 | AA148: =IF(AND(AA$16*1>=$R148,AA$16*1<=$D$8,$R148<$D$8,$P148>SUM($V148:Z148)),IF(SUM($P148*$U148/12,$V148:Z148)>$P148,$P148-SUM($V148:Z148),$P148*$U148/12),0) -> 0.00 | AB148: =IF(AND(AB$16*1>=$R148,AB$16*1<=$D$8,$R148<$D$8,$P148>SUM($V148:AA148)),IF(SUM($P148*$U148/12,$V148:AA148)>$P148,$P148-SUM($V148:AA148),$P148*$U148/12),0) -> 0.00 | AC148: =IF(AND(AC$16*1>=$R148,AC$16*1<=$D$8,$R148<$D$8,$P148>SUM($V148:AB148)),IF(SUM($P148*$U148/12,$V148:AB148)>$P148,$P148-SUM($V148:AB148),$P148*$U148/12),0) -> 0.00 | AD148: =IF(AND(AD$16*1>=$R148,AD$16*1<=$D$8,$R148<$D$8,$P148>SUM($V148:AC148)),IF(SUM($P148*$U148/12,$V148:AC148)>$P148,$P148-SUM($V148:AC148),$P148*$U148/12),0) -> 0.00 | AE148: =IF(AND(AE$16*1>=$R148,AE$16*1<=$D$8,$R148<$D$8,$P148>SUM($V148:AD148)),IF(SUM($P148*$U148/12,$V148:AD148)>$P148,$P148-SUM($V148:AD148),$P148*$U148/12),0) -> 0.00 | AF148: =IF(AND(AF$16*1>=$R148,AF$16*1<=$D$8,$R148<$D$8,$P148>SUM($V148:AE148)),IF(SUM($P148*$U148/12,$V148:AE148)>$P148,$P148-SUM($V148:AE148),$P148*$U148/12),0) -> 0.00 | AG148: =IF(AND(AG$16*1>=$R148,AG$16*1<=$D$8,$R148<$D$8,$P148>SUM($V148:AF148)),IF(SUM($P148*$U148/12,$V148:AF148)>$P148,$P148-SUM($V148:AF148),$P148*$U148/12),0) -> 0.00 | AH148: =IF(AND(AH$16*1>=$R148,AH$16*1<=$D$8,$R148<$D$8,$P148>SUM($V148:AG148)),IF(SUM($P148*$U148/12,$V148:AG148)>$P148,$P148-SUM($V148:AG148),$P148*$U148/12),0) -> 0.00 | AI148: 0.00 | AL148: 627.93 | AN148: 627.93
C149: 141 | D149: 336211 | E149: CONTESTADORA AUTOM.DIGITAL AT&T | I149: 164.04 | N149: 164.04 | P149: 164.04 | Q149: 2008-12-14 | R149: 2009-01-01 | U149: 10% | V149: 164.04 | W149: =IF(AND(W$16*1>=$R149,W$16*1<=$D$8,$R149<$D$8,$P149>SUM($V149:V149)),IF(SUM($P149*$U149/12,$V149:V149)>$P149,$P149-SUM($V149:V149),$P149*$U149/12),0) -> 0.00 | X149: =IF(AND(X$16*1>=$R149,X$16*1<=$D$8,$R149<$D$8,$P149>SUM($V149:W149)),IF(SUM($P149*$U149/12,$V149:W149)>$P149,$P149-SUM($V149:W149),$P149*$U149/12),0) -> 0.00 | Y149: =IF(AND(Y$16*1>=$R149,Y$16*1<=$D$8,$R149<$D$8,$P149>SUM($V149:X149)),IF(SUM($P149*$U149/12,$V149:X149)>$P149,$P149-SUM($V149:X149),$P149*$U149/12),0) -> 0.00 | Z149: =IF(AND(Z$16*1>=$R149,Z$16*1<=$D$8,$R149<$D$8,$P149>SUM($V149:Y149)),IF(SUM($P149*$U149/12,$V149:Y149)>$P149,$P149-SUM($V149:Y149),$P149*$U149/12),0) -> 0.00 | AA149: =IF(AND(AA$16*1>=$R149,AA$16*1<=$D$8,$R149<$D$8,$P149>SUM($V149:Z149)),IF(SUM($P149*$U149/12,$V149:Z149)>$P149,$P149-SUM($V149:Z149),$P149*$U149/12),0) -> 0.00 | AB149: =IF(AND(AB$16*1>=$R149,AB$16*1<=$D$8,$R149<$D$8,$P149>SUM($V149:AA149)),IF(SUM($P149*$U149/12,$V149:AA149)>$P149,$P149-SUM($V149:AA149),$P149*$U149/12),0) -> 0.00 | AC149: =IF(AND(AC$16*1>=$R149,AC$16*1<=$D$8,$R149<$D$8,$P149>SUM($V149:AB149)),IF(SUM($P149*$U149/12,$V149:AB149)>$P149,$P149-SUM($V149:AB149),$P149*$U149/12),0) -> 0.00 | AD149: =IF(AND(AD$16*1>=$R149,AD$16*1<=$D$8,$R149<$D$8,$P149>SUM($V149:AC149)),IF(SUM($P149*$U149/12,$V149:AC149)>$P149,$P149-SUM($V149:AC149),$P149*$U149/12),0) -> 0.00 | AE149: =IF(AND(AE$16*1>=$R149,AE$16*1<=$D$8,$R149<$D$8,$P149>SUM($V149:AD149)),IF(SUM($P149*$U149/12,$V149:AD149)>$P149,$P149-SUM($V149:AD149),$P149*$U149/12),0) -> 0.00 | AF149: =IF(AND(AF$16*1>=$R149,AF$16*1<=$D$8,$R149<$D$8,$P149>SUM($V149:AE149)),IF(SUM($P149*$U149/12,$V149:AE149)>$P149,$P149-SUM($V149:AE149),$P149*$U149/12),0) -> 0.00 | AG149: =IF(AND(AG$16*1>=$R149,AG$16*1<=$D$8,$R149<$D$8,$P149>SUM($V149:AF149)),IF(SUM($P149*$U149/12,$V149:AF149)>$P149,$P149-SUM($V149:AF149),$P149*$U149/12),0) -> 0.00 | AH149: =IF(AND(AH$16*1>=$R149,AH$16*1<=$D$8,$R149<$D$8,$P149>SUM($V149:AG149)),IF(SUM($P149*$U149/12,$V149:AG149)>$P149,$P149-SUM($V149:AG149),$P149*$U149/12),0) -> 0.00 | AI149: 0.00 | AL149: 164.04 | AN149: 164.04
C150: 142 | D150: 336211 | E150: TARJ.DISACENTRAL TELEF.MARCA SAMSUNG | I150: 794.71 | N150: 794.71 | P150: 794.71 | Q150: 2011-05-18 | R150: 2011-06-01 | U150: 10% | V150: 602.65 | W150: =IF(AND(W$16*1>=$R150,W$16*1<=$D$8,$R150<$D$8,$P150>SUM($V150:V150)),IF(SUM($P150*$U150/12,$V150:V150)>$P150,$P150-SUM($V150:V150),$P150*$U150/12),0) -> 6.62 | X150: =IF(AND(X$16*1>=$R150,X$16*1<=$D$8,$R150<$D$8,$P150>SUM($V150:W150)),IF(SUM($P150*$U150/12,$V150:W150)>$P150,$P150-SUM($V150:W150),$P150*$U150/12),0) -> 6.62 | Y150: =IF(AND(Y$16*1>=$R150,Y$16*1<=$D$8,$R150<$D$8,$P150>SUM($V150:X150)),IF(SUM($P150*$U150/12,$V150:X150)>$P150,$P150-SUM($V150:X150),$P150*$U150/12),0) -> 6.62 | Z150: =IF(AND(Z$16*1>=$R150,Z$16*1<=$D$8,$R150<$D$8,$P150>SUM($V150:Y150)),IF(SUM($P150*$U150/12,$V150:Y150)>$P150,$P150-SUM($V150:Y150),$P150*$U150/12),0) -> 6.62 | AA150: =IF(AND(AA$16*1>=$R150,AA$16*1<=$D$8,$R150<$D$8,$P150>SUM($V150:Z150)),IF(SUM($P150*$U150/12,$V150:Z150)>$P150,$P150-SUM($V150:Z150),$P150*$U150/12),0) -> 6.62 | AB150: =IF(AND(AB$16*1>=$R150,AB$16*1<=$D$8,$R150<$D$8,$P150>SUM($V150:AA150)),IF(SUM($P150*$U150/12,$V150:AA150)>$P150,$P150-SUM($V150:AA150),$P150*$U150/12),0) -> 0.00 | AC150: =IF(AND(AC$16*1>=$R150,AC$16*1<=$D$8,$R150<$D$8,$P150>SUM($V150:AB150)),IF(SUM($P150*$U150/12,$V150:AB150)>$P150,$P150-SUM($V150:AB150),$P150*$U150/12),0) -> 0.00 | AD150: =IF(AND(AD$16*1>=$R150,AD$16*1<=$D$8,$R150<$D$8,$P150>SUM($V150:AC150)),IF(SUM($P150*$U150/12,$V150:AC150)>$P150,$P150-SUM($V150:AC150),$P150*$U150/12),0) -> 0.00 | AE150: =IF(AND(AE$16*1>=$R150,AE$16*1<=$D$8,$R150<$D$8,$P150>SUM($V150:AD150)),IF(SUM($P150*$U150/12,$V150:AD150)>$P150,$P150-SUM($V150:AD150),$P150*$U150/12),0) -> 0.00 | AF150: =IF(AND(AF$16*1>=$R150,AF$16*1<=$D$8,$R150<$D$8,$P150>SUM($V150:AE150)),IF(SUM($P150*$U150/12,$V150:AE150)>$P150,$P150-SUM($V150:AE150),$P150*$U150/12),0) -> 0.00 | AG150: =IF(AND(AG$16*1>=$R150,AG$16*1<=$D$8,$R150<$D$8,$P150>SUM($V150:AF150)),IF(SUM($P150*$U150/12,$V150:AF150)>$P150,$P150-SUM($V150:AF150),$P150*$U150/12),0) -> 0.00 | AH150: =IF(AND(AH$16*1>=$R150,AH$16*1<=$D$8,$R150<$D$8,$P150>SUM($V150:AG150)),IF(SUM($P150*$U150/12,$V150:AG150)>$P150,$P150-SUM($V150:AG150),$P150*$U150/12),0) -> 0.00 | AI150: 33.11 | AL150: 622.52 | AN150: 622.52
C151: 143 | D151: 336211 | E151: BLACKBERRY (CF) | I151: 765.33 | N151: 765.33 | P151: 765.33 | Q151: 2015-05-04 | R151: 2015-06-01 | U151: 10% | V151: 274.23 | W151: =IF(AND(W$16*1>=$R151,W$16*1<=$D$8,$R151<$D$8,$P151>SUM($V151:V151)),IF(SUM($P151*$U151/12,$V151:V151)>$P151,$P151-SUM($V151:V151),$P151*$U151/12),0) -> 6.38 | X151: =IF(AND(X$16*1>=$R151,X$16*1<=$D$8,$R151<$D$8,$P151>SUM($V151:W151)),IF(SUM($P151*$U151/12,$V151:W151)>$P151,$P151-SUM($V151:W151),$P151*$U151/12),0) -> 6.38 | Y151: =IF(AND(Y$16*1>=$R151,Y$16*1<=$D$8,$R151<$D$8,$P151>SUM($V151:X151)),IF(SUM($P151*$U151/12,$V151:X151)>$P151,$P151-SUM($V151:X151),$P151*$U151/12),0) -> 6.38 | Z151: =IF(AND(Z$16*1>=$R151,Z$16*1<=$D$8,$R151<$D$8,$P151>SUM($V151:Y151)),IF(SUM($P151*$U151/12,$V151:Y151)>$P151,$P151-SUM($V151:Y151),$P151*$U151/12),0) -> 6.38 | AA151: =IF(AND(AA$16*1>=$R151,AA$16*1<=$D$8,$R151<$D$8,$P151>SUM($V151:Z151)),IF(SUM($P151*$U151/12,$V151:Z151)>$P151,$P151-SUM($V151:Z151),$P151*$U151/12),0) -> 6.38 | AB151: =IF(AND(AB$16*1>=$R151,AB$16*1<=$D$8,$R151<$D$8,$P151>SUM($V151:AA151)),IF(SUM($P151*$U151/12,$V151:AA151)>$P151,$P151-SUM($V151:AA151),$P151*$U151/12),0) -> 0.00 | AC151: =IF(AND(AC$16*1>=$R151,AC$16*1<=$D$8,$R151<$D$8,$P151>SUM($V151:AB151)),IF(SUM($P151*$U151/12,$V151:AB151)>$P151,$P151-SUM($V151:AB151),$P151*$U151/12),0) -> 0.00 | AD151: =IF(AND(AD$16*1>=$R151,AD$16*1<=$D$8,$R151<$D$8,$P151>SUM($V151:AC151)),IF(SUM($P151*$U151/12,$V151:AC151)>$P151,$P151-SUM($V151:AC151),$P151*$U151/12),0) -> 0.00 | AE151: =IF(AND(AE$16*1>=$R151,AE$16*1<=$D$8,$R151<$D$8,$P151>SUM($V151:AD151)),IF(SUM($P151*$U151/12,$V151:AD151)>$P151,$P151-SUM($V151:AD151),$P151*$U151/12),0) -> 0.00 | AF151: =IF(AND(AF$16*1>=$R151,AF$16*1<=$D$8,$R151<$D$8,$P151>SUM($V151:AE151)),IF(SUM($P151*$U151/12,$V151:AE151)>$P151,$P151-SUM($V151:AE151),$P151*$U151/12),0) -> 0.00 | AG151: =IF(AND(AG$16*1>=$R151,AG$16*1<=$D$8,$R151<$D$8,$P151>SUM($V151:AF151)),IF(SUM($P151*$U151/12,$V151:AF151)>$P151,$P151-SUM($V151:AF151),$P151*$U151/12),0) -> 0.00 | AH151: =IF(AND(AH$16*1>=$R151,AH$16*1<=$D$8,$R151<$D$8,$P151>SUM($V151:AG151)),IF(SUM($P151*$U151/12,$V151:AG151)>$P151,$P151-SUM($V151:AG151),$P151*$U151/12),0) -> 0.00 | AI151: 31.89 | AL151: 293.36 | AN151: 293.36
C152: 144 | D152: 336211 | E152: EQUIP.SEGURIDAD 6 CAM/GARB/DIS | I152: 3913.97 | N152: 3913.97 | P152: 3,913.97 | Q152: 2016-12-31 | R152: 2017-01-01 | U152: 10% | V152: 750.18 | W152: =IF(AND(W$16*1>=$R152,W$16*1<=$D$8,$R152<$D$8,$P152>SUM($V152:V152)),IF(SUM($P152*$U152/12,$V152:V152)>$P152,$P152-SUM($V152:V152),$P152*$U152/12),0) -> 32.62 | X152: =IF(AND(X$16*1>=$R152,X$16*1<=$D$8,$R152<$D$8,$P152>SUM($V152:W152)),IF(SUM($P152*$U152/12,$V152:W152)>$P152,$P152-SUM($V152:W152),$P152*$U152/12),0) -> 32.62 | Y152: =IF(AND(Y$16*1>=$R152,Y$16*1<=$D$8,$R152<$D$8,$P152>SUM($V152:X152)),IF(SUM($P152*$U152/12,$V152:X152)>$P152,$P152-SUM($V152:X152),$P152*$U152/12),0) -> 32.62 | Z152: =IF(AND(Z$16*1>=$R152,Z$16*1<=$D$8,$R152<$D$8,$P152>SUM($V152:Y152)),IF(SUM($P152*$U152/12,$V152:Y152)>$P152,$P152-SUM($V152:Y152),$P152*$U152/12),0) -> 32.62 | AA152: =IF(AND(AA$16*1>=$R152,AA$16*1<=$D$8,$R152<$D$8,$P152>SUM($V152:Z152)),IF(SUM($P152*$U152/12,$V152:Z152)>$P152,$P152-SUM($V152:Z152),$P152*$U152/12),0) -> 32.62 | AB152: =IF(AND(AB$16*1>=$R152,AB$16*1<=$D$8,$R152<$D$8,$P152>SUM($V152:AA152)),IF(SUM($P152*$U152/12,$V152:AA152)>$P152,$P152-SUM($V152:AA152),$P152*$U152/12),0) -> 0.00 | AC152: =IF(AND(AC$16*1>=$R152,AC$16*1<=$D$8,$R152<$D$8,$P152>SUM($V152:AB152)),IF(SUM($P152*$U152/12,$V152:AB152)>$P152,$P152-SUM($V152:AB152),$P152*$U152/12),0) -> 0.00 | AD152: =IF(AND(AD$16*1>=$R152,AD$16*1<=$D$8,$R152<$D$8,$P152>SUM($V152:AC152)),IF(SUM($P152*$U152/12,$V152:AC152)>$P152,$P152-SUM($V152:AC152),$P152*$U152/12),0) -> 0.00 | AE152: =IF(AND(AE$16*1>=$R152,AE$16*1<=$D$8,$R152<$D$8,$P152>SUM($V152:AD152)),IF(SUM($P152*$U152/12,$V152:AD152)>$P152,$P152-SUM($V152:AD152),$P152*$U152/12),0) -> 0.00 | AF152: =IF(AND(AF$16*1>=$R152,AF$16*1<=$D$8,$R152<$D$8,$P152>SUM($V152:AE152)),IF(SUM($P152*$U152/12,$V152:AE152)>$P152,$P152-SUM($V152:AE152),$P152*$U152/12),0) -> 0.00 | AG152: =IF(AND(AG$16*1>=$R152,AG$16*1<=$D$8,$R152<$D$8,$P152>SUM($V152:AF152)),IF(SUM($P152*$U152/12,$V152:AF152)>$P152,$P152-SUM($V152:AF152),$P152*$U152/12),0) -> 0.00 | AH152: =IF(AND(AH$16*1>=$R152,AH$16*1<=$D$8,$R152<$D$8,$P152>SUM($V152:AG152)),IF(SUM($P152*$U152/12,$V152:AG152)>$P152,$P152-SUM($V152:AG152),$P152*$U152/12),0) -> 0.00 | AI152: 163.08 | AL152: 848.03 | AN152: 848.03
C153: 145 | D153: 336211 | E153: TV SAMSUNG 19" PARA SEGURIDAD | I153: 507.63 | N153: 507.63 | P153: 507.63 | Q153: 2017-01-10 | R153: 2017-02-01 | U153: 10% | V153: 97.29 | W153: =IF(AND(W$16*1>=$R153,W$16*1<=$D$8,$R153<$D$8,$P153>SUM($V153:V153)),IF(SUM($P153*$U153/12,$V153:V153)>$P153,$P153-SUM($V153:V153),$P153*$U153/12),0) -> 4.23 | X153: =IF(AND(X$16*1>=$R153,X$16*1<=$D$8,$R153<$D$8,$P153>SUM($V153:W153)),IF(SUM($P153*$U153/12,$V153:W153)>$P153,$P153-SUM($V153:W153),$P153*$U153/12),0) -> 4.23 | Y153: =IF(AND(Y$16*1>=$R153,Y$16*1<=$D$8,$R153<$D$8,$P153>SUM($V153:X153)),IF(SUM($P153*$U153/12,$V153:X153)>$P153,$P153-SUM($V153:X153),$P153*$U153/12),0) -> 4.23 | Z153: =IF(AND(Z$16*1>=$R153,Z$16*1<=$D$8,$R153<$D$8,$P153>SUM($V153:Y153)),IF(SUM($P153*$U153/12,$V153:Y153)>$P153,$P153-SUM($V153:Y153),$P153*$U153/12),0) -> 4.23 | AA153: =IF(AND(AA$16*1>=$R153,AA$16*1<=$D$8,$R153<$D$8,$P153>SUM($V153:Z153)),IF(SUM($P153*$U153/12,$V153:Z153)>$P153,$P153-SUM($V153:Z153),$P153*$U153/12),0) -> 4.23 | AB153: =IF(AND(AB$16*1>=$R153,AB$16*1<=$D$8,$R153<$D$8,$P153>SUM($V153:AA153)),IF(SUM($P153*$U153/12,$V153:AA153)>$P153,$P153-SUM($V153:AA153),$P153*$U153/12),0) -> 0.00 | AC153: =IF(AND(AC$16*1>=$R153,AC$16*1<=$D$8,$R153<$D$8,$P153>SUM($V153:AB153)),IF(SUM($P153*$U153/12,$V153:AB153)>$P153,$P153-SUM($V153:AB153),$P153*$U153/12),0) -> 0.00 | AD153: =IF(AND(AD$16*1>=$R153,AD$16*1<=$D$8,$R153<$D$8,$P153>SUM($V153:AC153)),IF(SUM($P153*$U153/12,$V153:AC153)>$P153,$P153-SUM($V153:AC153),$P153*$U153/12),0) -> 0.00 | AE153: =IF(AND(AE$16*1>=$R153,AE$16*1<=$D$8,$R153<$D$8,$P153>SUM($V153:AD153)),IF(SUM($P153*$U153/12,$V153:AD153)>$P153,$P153-SUM($V153:AD153),$P153*$U153/12),0) -> 0.00 | AF153: =IF(AND(AF$16*1>=$R153,AF$16*1<=$D$8,$R153<$D$8,$P153>SUM($V153:AE153)),IF(SUM($P153*$U153/12,$V153:AE153)>$P153,$P153-SUM($V153:AE153),$P153*$U153/12),0) -> 0.00 | AG153: =IF(AND(AG$16*1>=$R153,AG$16*1<=$D$8,$R153<$D$8,$P153>SUM($V153:AF153)),IF(SUM($P153*$U153/12,$V153:AF153)>$P153,$P153-SUM($V153:AF153),$P153*$U153/12),0) -> 0.00 | AH153: =IF(AND(AH$16*1>=$R153,AH$16*1<=$D$8,$R153<$D$8,$P153>SUM($V153:AG153)),IF(SUM($P153*$U153/12,$V153:AG153)>$P153,$P153-SUM($V153:AG153),$P153*$U153/12),0) -> 0.00 | AI153: 21.15 | AL153: 109.98 | AN153: 109.98
C154: 146 | D154: 336211 | E154: EQ.AIRE ACONDICIONADO (SERVIDOR) | I154: 703.31 | N154: 703.31 | P154: 703.31 | Q154: 2017-01-23 | R154: 2017-02-01 | U154: 10% | V154: 134.80 | W154: =IF(AND(W$16*1>=$R154,W$16*1<=$D$8,$R154<$D$8,$P154>SUM($V154:V154)),IF(SUM($P154*$U154/12,$V154:V154)>$P154,$P154-SUM($V154:V154),$P154*$U154/12),0) -> 5.86 | X154: =IF(AND(X$16*1>=$R154,X$16*1<=$D$8,$R154<$D$8,$P154>SUM($V154:W154)),IF(SUM($P154*$U154/12,$V154:W154)>$P154,$P154-SUM($V154:W154),$P154*$U154/12),0) -> 5.86 | Y154: =IF(AND(Y$16*1>=$R154,Y$16*1<=$D$8,$R154<$D$8,$P154>SUM($V154:X154)),IF(SUM($P154*$U154/12,$V154:X154)>$P154,$P154-SUM($V154:X154),$P154*$U154/12),0) -> 5.86 | Z154: =IF(AND(Z$16*1>=$R154,Z$16*1<=$D$8,$R154<$D$8,$P154>SUM($V154:Y154)),IF(SUM($P154*$U154/12,$V154:Y154)>$P154,$P154-SUM($V154:Y154),$P154*$U154/12),0) -> 5.86 | AA154: =IF(AND(AA$16*1>=$R154,AA$16*1<=$D$8,$R154<$D$8,$P154>SUM($V154:Z154)),IF(SUM($P154*$U154/12,$V154:Z154)>$P154,$P154-SUM($V154:Z154),$P154*$U154/12),0) -> 5.86 | AB154: =IF(AND(AB$16*1>=$R154,AB$16*1<=$D$8,$R154<$D$8,$P154>SUM($V154:AA154)),IF(SUM($P154*$U154/12,$V154:AA154)>$P154,$P154-SUM($V154:AA154),$P154*$U154/12),0) -> 0.00 | AC154: =IF(AND(AC$16*1>=$R154,AC$16*1<=$D$8,$R154<$D$8,$P154>SUM($V154:AB154)),IF(SUM($P154*$U154/12,$V154:AB154)>$P154,$P154-SUM($V154:AB154),$P154*$U154/12),0) -> 0.00 | AD154: =IF(AND(AD$16*1>=$R154,AD$16*1<=$D$8,$R154<$D$8,$P154>SUM($V154:AC154)),IF(SUM($P154*$U154/12,$V154:AC154)>$P154,$P154-SUM($V154:AC154),$P154*$U154/12),0) -> 0.00 | AE154: =IF(AND(AE$16*1>=$R154,AE$16*1<=$D$8,$R154<$D$8,$P154>SUM($V154:AD154)),IF(SUM($P154*$U154/12,$V154:AD154)>$P154,$P154-SUM($V154:AD154),$P154*$U154/12),0) -> 0.00 | AF154: =IF(AND(AF$16*1>=$R154,AF$16*1<=$D$8,$R154<$D$8,$P154>SUM($V154:AE154)),IF(SUM($P154*$U154/12,$V154:AE154)>$P154,$P154-SUM($V154:AE154),$P154*$U154/12),0) -> 0.00 | AG154: =IF(AND(AG$16*1>=$R154,AG$16*1<=$D$8,$R154<$D$8,$P154>SUM($V154:AF154)),IF(SUM($P154*$U154/12,$V154:AF154)>$P154,$P154-SUM($V154:AF154),$P154*$U154/12),0) -> 0.00 | AH154: =IF(AND(AH$16*1>=$R154,AH$16*1<=$D$8,$R154<$D$8,$P154>SUM($V154:AG154)),IF(SUM($P154*$U154/12,$V154:AG154)>$P154,$P154-SUM($V154:AG154),$P154*$U154/12),0) -> 0.00 | AI154: 29.30 | AL154: 152.38 | AN154: 152.38
C155: 147 | D155: 336211 | E155: PANEL ALARMA (EQUIP.SEG.) | I155: 302.8 | N155: 302.8 | P155: 302.80 | Q155: 2017-07-12 | R155: 2017-08-01 | U155: 10% | V155: 42.90 | W155: =IF(AND(W$16*1>=$R155,W$16*1<=$D$8,$R155<$D$8,$P155>SUM($V155:V155)),IF(SUM($P155*$U155/12,$V155:V155)>$P155,$P155-SUM($V155:V155),$P155*$U155/12),0) -> 2.52 | X155: =IF(AND(X$16*1>=$R155,X$16*1<=$D$8,$R155<$D$8,$P155>SUM($V155:W155)),IF(SUM($P155*$U155/12,$V155:W155)>$P155,$P155-SUM($V155:W155),$P155*$U155/12),0) -> 2.52 | Y155: =IF(AND(Y$16*1>=$R155,Y$16*1<=$D$8,$R155<$D$8,$P155>SUM($V155:X155)),IF(SUM($P155*$U155/12,$V155:X155)>$P155,$P155-SUM($V155:X155),$P155*$U155/12),0) -> 2.52 | Z155: =IF(AND(Z$16*1>=$R155,Z$16*1<=$D$8,$R155<$D$8,$P155>SUM($V155:Y155)),IF(SUM($P155*$U155/12,$V155:Y155)>$P155,$P155-SUM($V155:Y155),$P155*$U155/12),0) -> 2.52 | AA155: =IF(AND(AA$16*1>=$R155,AA$16*1<=$D$8,$R155<$D$8,$P155>SUM($V155:Z155)),IF(SUM($P155*$U155/12,$V155:Z155)>$P155,$P155-SUM($V155:Z155),$P155*$U155/12),0) -> 2.52 | AB155: =IF(AND(AB$16*1>=$R155,AB$16*1<=$D$8,$R155<$D$8,$P155>SUM($V155:AA155)),IF(SUM($P155*$U155/12,$V155:AA155)>$P155,$P155-SUM($V155:AA155),$P155*$U155/12),0) -> 0.00 | AC155: =IF(AND(AC$16*1>=$R155,AC$16*1<=$D$8,$R155<$D$8,$P155>SUM($V155:AB155)),IF(SUM($P155*$U155/12,$V155:AB155)>$P155,$P155-SUM($V155:AB155),$P155*$U155/12),0) -> 0.00 | AD155: =IF(AND(AD$16*1>=$R155,AD$16*1<=$D$8,$R155<$D$8,$P155>SUM($V155:AC155)),IF(SUM($P155*$U155/12,$V155:AC155)>$P155,$P155-SUM($V155:AC155),$P155*$U155/12),0) -> 0.00 | AE155: =IF(AND(AE$16*1>=$R155,AE$16*1<=$D$8,$R155<$D$8,$P155>SUM($V155:AD155)),IF(SUM($P155*$U155/12,$V155:AD155)>$P155,$P155-SUM($V155:AD155),$P155*$U155/12),0) -> 0.00 | AF155: =IF(AND(AF$16*1>=$R155,AF$16*1<=$D$8,$R155<$D$8,$P155>SUM($V155:AE155)),IF(SUM($P155*$U155/12,$V155:AE155)>$P155,$P155-SUM($V155:AE155),$P155*$U155/12),0) -> 0.00 | AG155: =IF(AND(AG$16*1>=$R155,AG$16*1<=$D$8,$R155<$D$8,$P155>SUM($V155:AF155)),IF(SUM($P155*$U155/12,$V155:AF155)>$P155,$P155-SUM($V155:AF155),$P155*$U155/12),0) -> 0.00 | AH155: =IF(AND(AH$16*1>=$R155,AH$16*1<=$D$8,$R155<$D$8,$P155>SUM($V155:AG155)),IF(SUM($P155*$U155/12,$V155:AG155)>$P155,$P155-SUM($V155:AG155),$P155*$U155/12),0) -> 0.00 | AI155: 12.62 | AL155: 50.47 | AN155: 50.47
